Workbook

Sheet Dev Changelog
B4: Tool Change Control
B5: ISSUE | C5: ORIGINATOR | D5: CHANGE CONTROL | E5: DATE | G5: Current Tool Version = | I5: =LOOKUP(2,1/(B6:B88<>""),B6:B88) -> 1.5.4.1
B6: 1.5 | C6: Daniele Romagnoli | D6: Full Proposal template updated to reflect the last changes in the Outline Proposal Added to the PSS A15 to the maximum milestones value acceptable by ESA Fixed in the PSS A15 forms the bug with the periods numbering Fixed the bug on the Project Planning tab on the Gantt chart Various minor bug fixes | E6: 2025-07-02 | G6: Last updated on = | I6: =LOOKUP(2,1/(E6:E88<>""),E6:E88) -> 2026-01-14
B7: 1.5.1 | C7: Daniele Romagnoli | D7: Solved the bug that prevented the A15 to be properly computed due to an error in the formulas in the relevant A10 forms. Fixed an error on the A2 forms where the value of the Company Contribution was hard coded. | E7: 2025-08-25
B8: 1.5.2 | C8: Daniele Romagnoli | D8: Improved WBS Generator sheet to show a dialog box with instructions if the wrong number of Level-1 WPs was inserted in cell C2. Changed the minimum number of WPs from 3 to 2. | E8: 2025-09-18
B9: 1.5.3 | C9: Daniele Romagnoli | D9: Solved a bug in the calculation of expenditures by period in both de-risking and product development A15.1 forms. Fixed an error in the calculation of the cumulative MPP in the de-risking A15.1 form. | E9: 2025-09-25
B10: 1.5.4 | C10: Daniele Romagnoli | D10: Solved the bug that prevented the WP number to be shown in the Project Planning Gantt chart. Fixed the formula for Company Contribution in A2 forms. | E10: 2025-12-20
B11: 1.5.4.1 | C11: Daniele Romagnoli | D11: Solved the bug in the Reset function that removed the formula for the Company Contribution in the PSS A2 forms. | E11: 2026-01-14

Sheet Instructions
B2: InCubed - Full Proposal and PSS Generator
B3: ="Version " & 'Dev Changelog'!I5 & ". Last updated on: " & TEXT('Dev Changelog'!I6, "dd/mm/yy") -> Version 1.5.4.1. Last updated on: 14/01/26
B4: Author: ESA
B5: Link to latest version:
B6: https://incubed.esa.int/list-documents/
B7: This tool is licensed under the ESA Software Community License – Type 3 - v1.1
G8: WORKBOOK STATUS: | I8: PROTECTED
B9: Features:
B10: The present tool contains the MPP calculator and PSS forms required for InCubed proposal
B11: With respect to PSS, this tool verifies the consistency of the cost elements between the different PSS forms, and performs basic checks.
B13: Disclaimer & Limitations:
B14: Tenderers are in principle required to use the PSS forms published on the esa-star website:
B15: https://esastar-publication-ext.sso.esa.int/supportingDocumentation/details/17
B16: The present tool offers a consistency check between the various forms to avoid common errors, and helps in preparing the following datasheets:
B17: * PSS-A1, PSS-A2 and its Exhibits A & B, PSS-A8 and PSS-A15
B18: * WBS, Gantt chart and PSS-A20 (WPD) templates
B19: ESA is providing this tool "as is" and without warranty of fitness for the intended purpose or that the consistency checks will be error-free.
B20: ESA shall not be liable for any damage resulting from the use of this tool.
B21: The maximum number of work packages is 24 in case on one cycle, or 35 in case 2 cycles are selected (still applying the limit of 24 at the single cycle). PSS-A2 Exhibits A and B can have respectively up to 20 and 30 lines.
B22: For larger proposals, please use the forms available on the esa-star website.
B24: Instructions:
B25: The file requires Microsoft Excel 2007 or more recent version for full functionality. Please note that this spreadsheet may not be fully compatible with Microsoft Excel for Mac.
B26: Only yellow cells in each tab shall be filled
B27: Cells in green highlight recommendations to fill in the PSS forms, to prevent common mistakes
B28: MPP (Milestone Payment Plan) and APP (Advance Payment Plan)
B29: Specific instructions for MPP are reported in the Financial Planning tab
B30: PSS
B31: In case of a consortium comprising several companies, each company shall declare their costs in different files.
B32: Consequently, line 13 of PSS-A2 and A8 (sub-contractor's costs) is equal to 0.
B33: Other cells are automatically filled/calculated and shall not be modified, otherwise it may result in erroneous data.
B34: The structure of the tables (row/columns) shall not be modified.
B35: Data shall be entered in this order:
B36: 1. | C36: DASHBOARD: | D36: Fill-in all data required. Some of the data like headers will be reflected in the other forms
B37: 2. | C37: WBS Generator: | D37: Fill-in all data required to generate the Work Breakdown Structure, including the number of Level 1 and Level 2 Work Packages and the corresponding WP titles and responsible entity (Flag if it is a CCN or not)
B38: 3. | C38: Financial Planning: | D38: Fill-in all data required to generate the MPP (Milestone Payment Plan) and APP (Advance Payment Plan) for the de-risking and/or the product development cycle
B39: 4. | C39: Project Planning: | D39: Fill-in all data required including the project duration, WP timeline and Key Personnel responsibilities
B40: 5. | C40: PSS-A1: | D40: Fill-in data from the last audit (when relevant) for the de-risking and/or the product development cycle
B41: 6. | C41: PSS-A2: | D41: Fill-in data for cost elements 1 and 2, as well as elements 5, 6 and 7 for the de-risking and/or the product development cycle
B42: 7. | C42: Exhibit A: | D42: Fill-in for all cost elements 3-1 to 3-7, 3-10 and 10 for the de-risking and/or the product development cycle. Those will automatically be reflected in PSS-A2 and A8
B43: 8. | C43: Exhibit B: | D43: Fill-in travels (cost element 3-9) for the de-risking and/or the product development cycle. Those will automatically be reflected in PSS-A2 and A8
B44: 9. | C44: PSS-A8: | D44: Fill-in for each work package: distribution of hours (cost element 2), transport and insurances (element 3-8), distribution of general expenses (elements 5, 6, 7), and Financial Provision for escalation (element 11)
B45: 10. | C45: PSS-A15.1: | D45: Fill-in the planned expenditures per month for the de-risking and/or the product development cycle. This can be compared to the predicted spendings from PSS-A8, assuming linear distribution in time (green curve)
B46: 11. | C46: Checks: | D46: If any mismatch is detected between PSS-A2 and PSS-A8 for cost elements 2, and 5-7, it will be flagged on the right hand side of PSS-A2 and shall to be corrected
B47: 12. | C47: PSS-A2: | D47: In line 14, enter 'reduction for company contribution' for the de-risking and/or the product development cycle
B48: 13. | C48: Checks: | D48: In Financial Planning, check that the level of co-funding is in line with InCubed rules (Cells M17 to M29), and adjust the payment plan as necessary (consider also PSS-A15.1)
B49: Detailed instructions for each PSS apply:
B55: For any feedback concerning this InCubed Full Proposal and PSS Generator tool, please send an email to michele.castorina@esa.int
B59: Authors: initial development by Nicolas Girault, extension by Amar Vora, Francesco Feliciani and Enrico Spinelli, adaptation to InCubed Amar Vora, Michele Castorina, Daniele Romagnoli

Sheet DASHBOARD
A1: =TODAY() -> 2026-01-14
B2: ITT | C2: InCubed
B3: Project Name | C3: EarthMonitor | D3: =IF(C3="","*","") -> 
B4: Proposal Reference | C4: CM/020/Prop_001 | D4: =IF(C4="","*","") -> 
B7: Company Name | C7: OurLittleComp | D7: =IF(C7="","*","") ->  | F7: Run demo as | G7: Prime 2 cycles - Derisking + Product Development
B8: Company Representative and Title | C8: Mario ROSSI, CEO | D8: =IF(C8="","*","") -> 
B9: Company Responsibility | C9: Prime | D9: =IF(C9="","*","") -> 
B10: Country | C10: IT | D10: =IF(C10="","*","") -> 
B11: Currency | C11: =IF(C10="","EUR",INDEX(References!C3:C25,MATCH(C10,References!D3:D25,0))) -> EUR
B13: Space Segment (Platform) | C13: No | D13: =IF(C13="","*","") -> 
B14: Space Segment (Payload) | C14: No | D14: =IF(C14="","*","") -> 
B15: Ground Segment (Ground Stations & Mission Management) | C15: No
B16: Ground Segment (Ground Networks and Data Distributions) | C16: No
B17: Data Segment (Data Processing/ Visualization) | C17: No
B18: Data Segment (Data Analytics/ Insights /Applications) | C18: Yes
B20: InCubed (De-risking) | C20: Yes
B21: InCubed (Product Development) | C21: Yes
B23: Are Validation activities foreseen? | C23: Yes
B24: Are you requesting financial support for a Flight Opportunity? | C24: No
B34: Checklist | C34: Completion Status
B35: Dashboard | C35: =IF((COUNTBLANK(C3:C4)+COUNTBLANK(C13:C18)+COUNTBLANK(C20:C21)+COUNTBLANK(C23:C24)+COUNTBLANK(C7:C10))=0,"Complete",IF((COUNTBLANK(C3:C4)+COUNTBLANK(C13:C18)+COUNTBLANK(C20:C21)+COUNTBLANK(C23:C24)+COUNTBLANK(C7:C10))=16,"Incomplete","Partial")) -> Complete
B36: WBS Generator | C36: ='WBS Generator'!A1 -> Complete
B37: Work Breakdown Structure | C37: ='Work Breakdown Structure'!W1 -> Complete
B38: Project Planning | C38: =IF(CompResp="Prime",IF(COUNTIF('Project Planning'!A:A,"=0")=5,"Complete",IF(COUNTIF('Project Planning'!A:A,"=2")=5,"Incomplete","Partial")),IF('Project Planning'!A3=0,"Complete",IF('Project Planning'!A3=1,"Partial","Incomplete"))) -> Complete
B39: Financial Planning (Derisk) | C39: =IF(CompResp="Prime",IF(OR('Financial Planning (Derisk)'!A2=1,'Financial Planning (Derisk)'!A14=1,'Financial Planning (Derisk)'!A34=1),"Partial",IF(SUM('Financial Planning (Derisk)'!A2,'Financial Planning (Derisk)'!A14,'Financial Planning (Derisk)'!A34)=0,"Complete","Incomplete")),IF(OR('Financial Planning (Derisk)'!A2=1,'Financial Planning (Derisk)'!A34=1),"Partial",IF(SUM('Financial Planning (Derisk)'!A2,'Financial Planning (Derisk)'!A34)=0,"Complete","Incomplete"))) -> Complete | D39: DERISKING
B40: PSS-A1 (Derisk) | C40: =IF('PSS-A1 (Derisk)'!N3=0,"Complete","Partial") -> Complete
B41: PSS-A2 (Derisk) | C41: =IF('PSS-A2 (Derisk)'!M2=0,"Complete","Partial") -> Complete
B42: Exhibit A (Derisk) | C42: =IF('Exhibit A (Derisk)'!K4=0,"Complete",IF('Exhibit A (Derisk)'!K4=COUNTA('Exhibit A (Derisk)'!B12:B41)*5,"Incomplete","Partial")) -> Complete
B43: Exhibit B (Derisk) | C43: =IF('Exhibit B (Derisk)'!Q3=0,"Complete",IF(COUNTA('Exhibit B (Derisk)'!B11:B30)*10='Exhibit B (Derisk)'!Q3,"Incomplete","Partial")) -> Complete
B44: PSS-A8 (Derisk) | C44: =IFERROR(IF('PSS-A8 Page 2 (Derisk)'!R63<0,"Incomplete","Complete"),"Incomplete") -> Complete
B45: PSS-A15.1 (Derisk) | C45: =IF(AND(C38="Complete", C44="Complete"), "Complete", IF(OR(C38="Complete", C44="Complete"), "Partial", "Incomplete")) -> Complete
B46: Financial Planning (ProdDev) | C46: =IF(CompResp="Prime",IF(OR('Financial Planning (ProdDev)'!A2=1,'Financial Planning (ProdDev)'!A14=1,'Financial Planning (ProdDev)'!A34=1),"Partial",IF(SUM('Financial Planning (ProdDev)'!A2,'Financial Planning (ProdDev)'!A14,'Financial Planning (ProdDev)'!A34)=0,"Complete","Incomplete")),IF(OR('Financial Planning (ProdDev)'!A2=1,'Financial Planning (ProdDev)'!A34=1),"Partial",IF(SUM('Financial Planning (ProdDev)'!A2,'Financial Planning (ProdDev)'!A34)=0,"Complete","Incomplete"))) -> Complete | D46: PRODUCT DEVELOPMENT
B47: PSS-A1 (ProdDev) | C47: =IF('PSS-A1 (ProdDev)'!N3=0,"Complete","Partial") -> Complete
B48: PSS-A2 (ProdDev) | C48: =IF('PSS-A2 (ProdDev)'!M2=0,"Complete","Partial") -> Complete
B49: Exhibit A (ProdDev) | C49: =IF('Exhibit A (ProdDev)'!K4=0,"Complete",IF('Exhibit A (ProdDev)'!K4=COUNTA('Exhibit A (ProdDev)'!B12:B41)*5,"Incomplete","Partial")) -> Complete
B50: Exhibit B (ProdDev) | C50: =IF('Exhibit B (ProdDev)'!Q3=0,"Complete",IF(COUNTA('Exhibit B (ProdDev)'!B11:B30)*10='Exhibit B (ProdDev)'!Q3,"Incomplete","Partial")) -> Complete
B51: PSS-A8 (ProdDev) | C51: =IFERROR(IF('PSS-A8 Page 2 (ProdDev)'!R63<0,"Incomplete","Complete"),"Incomplete") -> Complete
B52: PSS-A15.1 (ProdDev) | C52: =IF(AND(C38="Complete", C51="Complete"), "Complete", IF(OR(C38="Complete", C51="Complete"), "Partial", "Incomplete")) -> Complete
G65: de-risk | H65: Poduct development
F66: Tot Price | G66: =IFERROR('Financial Planning (Derisk)'!G30,"") -> 176792 | H66: =IFERROR('Financial Planning (ProdDev)'!G30,"") -> 502983
F67: Tot cost | G67: =IFERROR('Financial Planning (Derisk)'!F30,"") -> 279056 | H67: =IFERROR('Financial Planning (ProdDev)'!F30,"") -> 955965

Sheet WBS Generator
A1: =IF(C2>2,IF(COUNTIF(A2:A1000,"L2")>2,IF(COUNTIF(C:C,"*Please input*")>0,"Partial","Complete"),"Incomplete"),"Incomplete") -> Complete | E1: =SUM(IF(FREQUENCY(IF(E2:E100<>"", MATCH(E2:E100,E2:E100,0)),ROW(E2:E100)-ROW(E2)+1),1))-1 -> 4 | F1: =IF(AND(OptDerisk="Yes",OptProdDev="Yes"),(IF(COUNTIF(A:A,"=L2")>35, "The number of L2 WPs has exceeded the limit of 36! Please reduce this number.","")),"") -> 
A2: CCN? | B2: Number of Level 1 Work Packages (>2, <15): | C2: 5 | D2: =IF(ISNUMBER(C2),"<-- Note: if this number changes, it will reset the sheet","") -> <-- Note: if this number changes, it will reset the sheet | G2: =IF(DASHBOARD!C20="Yes",IF('Project Planning'!F125>24, "The number of L2 WPs for the de-risking cycle has exceeded the limit of 24! Please reduce this number.",""),"") ->  | N2: =IF(DASHBOARD!$C$21="Yes",IF('Project Planning'!F126>24, "The number of L2 WPs for the product development cycle has exceeded the limit of 24! Please reduce this number.",""),"") -> 
A3: No | E3: =IFERROR(INDEX(INDIRECT(ADDRESS(MATCH("L2",A:A,0),4)):$D$100, MATCH(0,COUNTIF($E$2:E2, INDIRECT(ADDRESS(MATCH("L2",A:A,0),4)):$D$100), 0)),"") -> OurLittleComp | F3: =IF(E3<>"",IF(E3=0,-1,0+F2),"") -> 0 | G3: =IF(ISERROR(MATCH("Please input the title of this WP here",C:C,0)),FALSE,TRUE) -> FALSE | H3: =IF(ISERROR(MATCH("Please input the company name responsible for this WP here",D:D,0)),FALSE,TRUE) -> FALSE | P3: =IF(A3="L2",LEFT(B3,3)&"000","") ->  | Q3: =IF(P3<>"",INDEX(B:D,MATCH(P3,B:B,0),3),"") ->  | R3: =IF(Q3="Derisking",D3,"") ->  | S3: =IF(Q3="Product Development", D3,"") ->  | T3: =IFERROR(INDEX(INDIRECT(ADDRESS(MATCH("L2",A:A,0),18)):$R$100, MATCH(0,COUNTIF($T$2:T2, INDIRECT(ADDRESS(MATCH("L2",A:A,0),18)):$R$100), 0)),"") -> OurLittleComp | U3: =IFERROR(INDEX(INDIRECT(ADDRESS(MATCH("L2",A:A,0),19)):$S$100, MATCH(0,COUNTIF($U$2:U2, INDIRECT(ADDRESS(MATCH("L2",A:A,0),19)):$S$100), 0)),"") -> OurLittleComp
A4: L1 | B4: WP1000 | C4: Management (Derisking Cycle) | D4: Derisking | E4: =IFERROR(INDEX(INDIRECT(ADDRESS(MATCH("L2",A:A,0),4)):$D$100, MATCH(0,COUNTIF($E$2:E3, INDIRECT(ADDRESS(MATCH("L2",A:A,0),4)):$D$100), 0)),"") -> Subcontractor A | F4: =IF(E4<>"",IF(E4=0,-1,1+F3),"") -> 1 | G4: =IF(CompResp="Prime",IF(E3<>CompName,"Please ensure that the first L2 WP belongs to the Prime and that the Prime company name indicated in this sheet matches the one in the 'DASHBOARD'",""),"") ->  | P4: =IF(A4="L2",LEFT(B4,3)&"000","") ->  | Q4: =IF(P4<>"",INDEX(B:D,MATCH(P4,B:B,0),3),"") ->  | R4: =IF(Q4="Derisking",D4,"") ->  | S4: =IF(Q4="Product Development", D4,"") ->  | T4: =IFERROR(INDEX(INDIRECT(ADDRESS(MATCH("L2",A:A,0),18)):$R$100, MATCH(0,COUNTIF($T$2:T3, INDIRECT(ADDRESS(MATCH("L2",A:A,0),18)):$R$100), 0)),"") -> Subcontractor A | U4: =IFERROR(INDEX(INDIRECT(ADDRESS(MATCH("L2",A:A,0),19)):$S$100, MATCH(0,COUNTIF($U$2:U3, INDIRECT(ADDRESS(MATCH("L2",A:A,0),19)):$S$100), 0)),"") -> Subcontractor A
A5: L1 | B5: WP2000 | C5: Management (Product Development Cycle) | D5: Product Development | E5: =IFERROR(INDEX(INDIRECT(ADDRESS(MATCH("L2",A:A,0),4)):$D$100, MATCH(0,COUNTIF($E$2:E4, INDIRECT(ADDRESS(MATCH("L2",A:A,0),4)):$D$100), 0)),"") -> Subcontractor B | F5: =IF(E5<>"",IF(E5=0,-1,1+F4),"") -> 2 | T5: =IFERROR(INDEX(INDIRECT(ADDRESS(MATCH("L2",A:A,0),18)):$R$100, MATCH(0,COUNTIF($T$2:T4, INDIRECT(ADDRESS(MATCH("L2",A:A,0),18)):$R$100), 0)),"") -> Subcontractor B | U5: =IFERROR(INDEX(INDIRECT(ADDRESS(MATCH("L2",A:A,0),19)):$S$100, MATCH(0,COUNTIF($U$2:U4, INDIRECT(ADDRESS(MATCH("L2",A:A,0),19)):$S$100), 0)),"") -> Subcontractor B
A6: L1 | B6: WP3000 | C6: Requirements and Preliminary Design | D6: Derisking | E6: =IFERROR(INDEX(INDIRECT(ADDRESS(MATCH("L2",A:A,0),4)):$D$100, MATCH(0,COUNTIF($E$2:E5, INDIRECT(ADDRESS(MATCH("L2",A:A,0),4)):$D$100), 0)),"") -> Subcontractor C | F6: 3 | T6: =IFERROR(INDEX(INDIRECT(ADDRESS(MATCH("L2",A:A,0),18)):$R$100, MATCH(0,COUNTIF($T$2:T5, INDIRECT(ADDRESS(MATCH("L2",A:A,0),18)):$R$100), 0)),"") ->  | U6: =IFERROR(INDEX(INDIRECT(ADDRESS(MATCH("L2",A:A,0),19)):$S$100, MATCH(0,COUNTIF($U$2:U5, INDIRECT(ADDRESS(MATCH("L2",A:A,0),19)):$S$100), 0)),"") -> Subcontractor C
A7: L1 | B7: WP4000 | C7: Detailed Design and Integration | D7: Product Development | E7: =IFERROR(INDEX(INDIRECT(ADDRESS(MATCH("L2",A:A,0),4)):$D$100, MATCH(0,COUNTIF($E$2:E6, INDIRECT(ADDRESS(MATCH("L2",A:A,0),4)):$D$100), 0)),"") -> 0 | F7: -1 | T7: =IFERROR(INDEX(INDIRECT(ADDRESS(MATCH("L2",A:A,0),18)):$R$100, MATCH(0,COUNTIF($T$2:T6, INDIRECT(ADDRESS(MATCH("L2",A:A,0),18)):$R$100), 0)),"") ->  | U7: =IFERROR(INDEX(INDIRECT(ADDRESS(MATCH("L2",A:A,0),19)):$S$100, MATCH(0,COUNTIF($U$2:U6, INDIRECT(ADDRESS(MATCH("L2",A:A,0),19)):$S$100), 0)),"") -> 
A8: L1 | B8: WP5000 | C8: Verification and Validation | D8: Product Development | E8: =IFERROR(INDEX(INDIRECT(ADDRESS(MATCH("L2",A:A,0),4)):$D$100, MATCH(0,COUNTIF($E$2:E7, INDIRECT(ADDRESS(MATCH("L2",A:A,0),4)):$D$100), 0)),"") ->  | T8: =IFERROR(INDEX(INDIRECT(ADDRESS(MATCH("L2",A:A,0),18)):$R$100, MATCH(0,COUNTIF($T$2:T7, INDIRECT(ADDRESS(MATCH("L2",A:A,0),18)):$R$100), 0)),"") ->  | U8: =IFERROR(INDEX(INDIRECT(ADDRESS(MATCH("L2",A:A,0),19)):$S$100, MATCH(0,COUNTIF($U$2:U7, INDIRECT(ADDRESS(MATCH("L2",A:A,0),19)):$S$100), 0)),"") -> 
E9: =IFERROR(INDEX(INDIRECT(ADDRESS(MATCH("L2",A:A,0),4)):$D$100, MATCH(0,COUNTIF($E$2:E8, INDIRECT(ADDRESS(MATCH("L2",A:A,0),4)):$D$100), 0)),"") ->  | T9: =IFERROR(INDEX(INDIRECT(ADDRESS(MATCH("L2",A:A,0),18)):$R$100, MATCH(0,COUNTIF($T$2:T8, INDIRECT(ADDRESS(MATCH("L2",A:A,0),18)):$R$100), 0)),"") ->  | U9: =IFERROR(INDEX(INDIRECT(ADDRESS(MATCH("L2",A:A,0),19)):$S$100, MATCH(0,COUNTIF($U$2:U8, INDIRECT(ADDRESS(MATCH("L2",A:A,0),19)):$S$100), 0)),"") -> 
B10: Number of Level 2 Work Packages Within WP1000 | C10: 4 | E10: =IFERROR(INDEX(INDIRECT(ADDRESS(MATCH("L2",A:A,0),4)):$D$100, MATCH(0,COUNTIF($E$2:E9, INDIRECT(ADDRESS(MATCH("L2",A:A,0),4)):$D$100), 0)),"") ->  | T10: =IFERROR(INDEX(INDIRECT(ADDRESS(MATCH("L2",A:A,0),18)):$R$100, MATCH(0,COUNTIF($T$2:T9, INDIRECT(ADDRESS(MATCH("L2",A:A,0),18)):$R$100), 0)),"") ->  | U10: =IFERROR(INDEX(INDIRECT(ADDRESS(MATCH("L2",A:A,0),19)):$S$100, MATCH(0,COUNTIF($U$2:U9, INDIRECT(ADDRESS(MATCH("L2",A:A,0),19)):$S$100), 0)),"") -> 
B11: Number of Level 2 Work Packages Within WP2000 | C11: 4 | E11: =IFERROR(INDEX(INDIRECT(ADDRESS(MATCH("L2",A:A,0),4)):$D$100, MATCH(0,COUNTIF($E$2:E10, INDIRECT(ADDRESS(MATCH("L2",A:A,0),4)):$D$100), 0)),"") ->  | T11: =IFERROR(INDEX(INDIRECT(ADDRESS(MATCH("L2",A:A,0),18)):$R$100, MATCH(0,COUNTIF($T$2:T10, INDIRECT(ADDRESS(MATCH("L2",A:A,0),18)):$R$100), 0)),"") ->  | U11: =IFERROR(INDEX(INDIRECT(ADDRESS(MATCH("L2",A:A,0),19)):$S$100, MATCH(0,COUNTIF($U$2:U10, INDIRECT(ADDRESS(MATCH("L2",A:A,0),19)):$S$100), 0)),"") -> 
B12: Number of Level 2 Work Packages Within WP3000 | C12: 4 | E12: =IFERROR(INDEX(INDIRECT(ADDRESS(MATCH("L2",A:A,0),4)):$D$100, MATCH(0,COUNTIF($E$2:E11, INDIRECT(ADDRESS(MATCH("L2",A:A,0),4)):$D$100), 0)),"") ->  | T12: =IFERROR(INDEX(INDIRECT(ADDRESS(MATCH("L2",A:A,0),18)):$R$100, MATCH(0,COUNTIF($T$2:T11, INDIRECT(ADDRESS(MATCH("L2",A:A,0),18)):$R$100), 0)),"") ->  | U12: =IFERROR(INDEX(INDIRECT(ADDRESS(MATCH("L2",A:A,0),19)):$S$100, MATCH(0,COUNTIF($U$2:U11, INDIRECT(ADDRESS(MATCH("L2",A:A,0),19)):$S$100), 0)),"") -> 
B13: Number of Level 2 Work Packages Within WP4000 | C13: 6 | E13: =IFERROR(INDEX(INDIRECT(ADDRESS(MATCH("L2",A:A,0),4)):$D$100, MATCH(0,COUNTIF($E$2:E12, INDIRECT(ADDRESS(MATCH("L2",A:A,0),4)):$D$100), 0)),"") ->  | T13: =IFERROR(INDEX(INDIRECT(ADDRESS(MATCH("L2",A:A,0),18)):$R$100, MATCH(0,COUNTIF($T$2:T12, INDIRECT(ADDRESS(MATCH("L2",A:A,0),18)):$R$100), 0)),"") ->  | U13: =IFERROR(INDEX(INDIRECT(ADDRESS(MATCH("L2",A:A,0),19)):$S$100, MATCH(0,COUNTIF($U$2:U12, INDIRECT(ADDRESS(MATCH("L2",A:A,0),19)):$S$100), 0)),"") -> 
B14: Number of Level 2 Work Packages Within WP5000 | C14: 2 | E14: =IFERROR(INDEX(INDIRECT(ADDRESS(MATCH("L2",A:A,0),4)):$D$100, MATCH(0,COUNTIF($E$2:E13, INDIRECT(ADDRESS(MATCH("L2",A:A,0),4)):$D$100), 0)),"") ->  | P14: =IF($A$3="No",IF(A14="L2",LEFT(B14,3)&"000",""),IF(A14="L2",LEFT(B14,3)&"000"&" "&$A$3,"")) ->  | T14: =IFERROR(INDEX(INDIRECT(ADDRESS(MATCH("L2",A:A,0),18)):$R$100, MATCH(0,COUNTIF($T$2:T13, INDIRECT(ADDRESS(MATCH("L2",A:A,0),18)):$R$100), 0)),"") ->  | U14: =IFERROR(INDEX(INDIRECT(ADDRESS(MATCH("L2",A:A,0),19)):$S$100, MATCH(0,COUNTIF($U$2:U13, INDIRECT(ADDRESS(MATCH("L2",A:A,0),19)):$S$100), 0)),"") -> 
E15: =IFERROR(INDEX(INDIRECT(ADDRESS(MATCH("L2",A:A,0),4)):$D$100, MATCH(0,COUNTIF($E$2:E14, INDIRECT(ADDRESS(MATCH("L2",A:A,0),4)):$D$100), 0)),"") ->  | P15: =IF($A$3="No",IF(A15="L2",LEFT(B15,3)&"000",""),IF(A15="L2",LEFT(B15,3)&"000"&" "&$A$3,"")) ->  | T15: =IFERROR(INDEX(INDIRECT(ADDRESS(MATCH("L2",A:A,0),18)):$R$100, MATCH(0,COUNTIF($T$2:T14, INDIRECT(ADDRESS(MATCH("L2",A:A,0),18)):$R$100), 0)),"") ->  | U15: =IFERROR(INDEX(INDIRECT(ADDRESS(MATCH("L2",A:A,0),19)):$S$100, MATCH(0,COUNTIF($U$2:U14, INDIRECT(ADDRESS(MATCH("L2",A:A,0),19)):$S$100), 0)),"") -> 
A16: L2 | B16: WP1100 | C16: Project Management (Derisking Cycle) | D16: OurLittleComp | E16: =IFERROR(INDEX(INDIRECT(ADDRESS(MATCH("L2",A:A,0),4)):$D$100, MATCH(0,COUNTIF($E$2:E15, INDIRECT(ADDRESS(MATCH("L2",A:A,0),4)):$D$100), 0)),"") ->  | P16: WP1000 | Q16: Derisking | R16: =IF(Q16="Derisking",D16,"") -> OurLittleComp | S16: =IF(Q16="Product Development", D16,"") ->  | T16: =IFERROR(INDEX(INDIRECT(ADDRESS(MATCH("L2",A:A,0),18)):$R$100, MATCH(0,COUNTIF($T$2:T15, INDIRECT(ADDRESS(MATCH("L2",A:A,0),18)):$R$100), 0)),"") ->  | U16: =IFERROR(INDEX(INDIRECT(ADDRESS(MATCH("L2",A:A,0),19)):$S$100, MATCH(0,COUNTIF($U$2:U15, INDIRECT(ADDRESS(MATCH("L2",A:A,0),19)):$S$100), 0)),"") -> 
A17: L2 | B17: WP1200 | C17: Contract Management | D17: OurLittleComp | E17: =IFERROR(INDEX(INDIRECT(ADDRESS(MATCH("L2",A:A,0),4)):$D$100, MATCH(0,COUNTIF($E$2:E16, INDIRECT(ADDRESS(MATCH("L2",A:A,0),4)):$D$100), 0)),"") ->  | P17: WP1000 | Q17: =IF(P17<>"",INDEX(B:D,MATCH(P17,B:B,0),3),"") -> Derisking | R17: OurLittleComp | T17: =IFERROR(INDEX(INDIRECT(ADDRESS(MATCH("L2",A:A,0),18)):$R$100, MATCH(0,COUNTIF($T$2:T16, INDIRECT(ADDRESS(MATCH("L2",A:A,0),18)):$R$100), 0)),"") ->  | U17: =IFERROR(INDEX(INDIRECT(ADDRESS(MATCH("L2",A:A,0),19)):$S$100, MATCH(0,COUNTIF($U$2:U16, INDIRECT(ADDRESS(MATCH("L2",A:A,0),19)):$S$100), 0)),"") -> 
A18: L2 | B18: WP1300 | C18: Workshop Organization | D18: OurLittleComp | E18: =IFERROR(INDEX(INDIRECT(ADDRESS(MATCH("L2",A:A,0),4)):$D$100, MATCH(0,COUNTIF($E$2:E17, INDIRECT(ADDRESS(MATCH("L2",A:A,0),4)):$D$100), 0)),"") ->  | P18: WP1000 | Q18: Derisking | R18: OurLittleComp | T18: =IFERROR(INDEX(INDIRECT(ADDRESS(MATCH("L2",A:A,0),18)):$R$100, MATCH(0,COUNTIF($T$2:T17, INDIRECT(ADDRESS(MATCH("L2",A:A,0),18)):$R$100), 0)),"") ->  | U18: =IFERROR(INDEX(INDIRECT(ADDRESS(MATCH("L2",A:A,0),19)):$S$100, MATCH(0,COUNTIF($U$2:U17, INDIRECT(ADDRESS(MATCH("L2",A:A,0),19)):$S$100), 0)),"") -> 
A19: L2 | B19: WP1400 | C19: User analysis | D19: Subcontractor A | E19: =IFERROR(INDEX(INDIRECT(ADDRESS(MATCH("L2",A:A,0),4)):$D$100, MATCH(0,COUNTIF($E$2:E18, INDIRECT(ADDRESS(MATCH("L2",A:A,0),4)):$D$100), 0)),"") ->  | P19: WP1000 | Q19: Derisking | R19: Subcontractor A | T19: =IFERROR(INDEX(INDIRECT(ADDRESS(MATCH("L2",A:A,0),18)):$R$100, MATCH(0,COUNTIF($T$2:T18, INDIRECT(ADDRESS(MATCH("L2",A:A,0),18)):$R$100), 0)),"") ->  | U19: =IFERROR(INDEX(INDIRECT(ADDRESS(MATCH("L2",A:A,0),19)):$S$100, MATCH(0,COUNTIF($U$2:U18, INDIRECT(ADDRESS(MATCH("L2",A:A,0),19)):$S$100), 0)),"") -> 
A20: L2 | B20: WP2100 | C20: Project Management (Product Development) | D20: OurLittleComp | E20: =IFERROR(INDEX(INDIRECT(ADDRESS(MATCH("L2",A:A,0),4)):$D$100, MATCH(0,COUNTIF($E$2:E19, INDIRECT(ADDRESS(MATCH("L2",A:A,0),4)):$D$100), 0)),"") ->  | P20: WP2000 | Q20: Product Development | S20: OurLittleComp | T20: =IFERROR(INDEX(INDIRECT(ADDRESS(MATCH("L2",A:A,0),18)):$R$100, MATCH(0,COUNTIF($T$2:T19, INDIRECT(ADDRESS(MATCH("L2",A:A,0),18)):$R$100), 0)),"") ->  | U20: =IFERROR(INDEX(INDIRECT(ADDRESS(MATCH("L2",A:A,0),19)):$S$100, MATCH(0,COUNTIF($U$2:U19, INDIRECT(ADDRESS(MATCH("L2",A:A,0),19)):$S$100), 0)),"") -> 
A21: L2 | B21: WP2200 | C21: Contract Management | D21: OurLittleComp | E21: =IFERROR(INDEX(INDIRECT(ADDRESS(MATCH("L2",A:A,0),4)):$D$100, MATCH(0,COUNTIF($E$2:E20, INDIRECT(ADDRESS(MATCH("L2",A:A,0),4)):$D$100), 0)),"") ->  | P21: WP2000 | Q21: Product Development | S21: OurLittleComp | T21: =IFERROR(INDEX(INDIRECT(ADDRESS(MATCH("L2",A:A,0),18)):$R$100, MATCH(0,COUNTIF($T$2:T20, INDIRECT(ADDRESS(MATCH("L2",A:A,0),18)):$R$100), 0)),"") ->  | U21: =IFERROR(INDEX(INDIRECT(ADDRESS(MATCH("L2",A:A,0),19)):$S$100, MATCH(0,COUNTIF($U$2:U20, INDIRECT(ADDRESS(MATCH("L2",A:A,0),19)):$S$100), 0)),"") -> 
A22: L2 | B22: WP2300 | C22: Requirements Gathering | D22: OurLittleComp | E22: =IFERROR(INDEX(INDIRECT(ADDRESS(MATCH("L2",A:A,0),4)):$D$100, MATCH(0,COUNTIF($E$2:E21, INDIRECT(ADDRESS(MATCH("L2",A:A,0),4)):$D$100), 0)),"") ->  | P22: WP2000 | Q22: Product Development | S22: OurLittleComp | T22: =IFERROR(INDEX(INDIRECT(ADDRESS(MATCH("L2",A:A,0),18)):$R$100, MATCH(0,COUNTIF($T$2:T21, INDIRECT(ADDRESS(MATCH("L2",A:A,0),18)):$R$100), 0)),"") ->  | U22: =IFERROR(INDEX(INDIRECT(ADDRESS(MATCH("L2",A:A,0),19)):$S$100, MATCH(0,COUNTIF($U$2:U21, INDIRECT(ADDRESS(MATCH("L2",A:A,0),19)):$S$100), 0)),"") -> 
A23: L2 | B23: WP2400 | C23: User Interface Modelling | D23: Subcontractor A | E23: =IFERROR(INDEX(INDIRECT(ADDRESS(MATCH("L2",A:A,0),4)):$D$100, MATCH(0,COUNTIF($E$2:E22, INDIRECT(ADDRESS(MATCH("L2",A:A,0),4)):$D$100), 0)),"") ->  | P23: WP2000 | Q23: Product Development | S23: Subcontractor A | T23: =IFERROR(INDEX(INDIRECT(ADDRESS(MATCH("L2",A:A,0),18)):$R$100, MATCH(0,COUNTIF($T$2:T22, INDIRECT(ADDRESS(MATCH("L2",A:A,0),18)):$R$100), 0)),"") ->  | U23: =IFERROR(INDEX(INDIRECT(ADDRESS(MATCH("L2",A:A,0),19)):$S$100, MATCH(0,COUNTIF($U$2:U22, INDIRECT(ADDRESS(MATCH("L2",A:A,0),19)):$S$100), 0)),"") -> 
A24: L2 | B24: WP3100 | C24: Preliminary Architectural Design | D24: Subcontractor A | E24: =IFERROR(INDEX(INDIRECT(ADDRESS(MATCH("L2",A:A,0),4)):$D$100, MATCH(0,COUNTIF($E$2:E23, INDIRECT(ADDRESS(MATCH("L2",A:A,0),4)):$D$100), 0)),"") ->  | P24: WP3000 | Q24: Derisking | R24: Subcontractor A | T24: =IFERROR(INDEX(INDIRECT(ADDRESS(MATCH("L2",A:A,0),18)):$R$100, MATCH(0,COUNTIF($T$2:T23, INDIRECT(ADDRESS(MATCH("L2",A:A,0),18)):$R$100), 0)),"") ->  | U24: =IFERROR(INDEX(INDIRECT(ADDRESS(MATCH("L2",A:A,0),19)):$S$100, MATCH(0,COUNTIF($U$2:U23, INDIRECT(ADDRESS(MATCH("L2",A:A,0),19)):$S$100), 0)),"") -> 
A25: L2 | B25: WP3200 | C25: Beta SW development | D25: Subcontractor B | E25: =IFERROR(INDEX(INDIRECT(ADDRESS(MATCH("L2",A:A,0),4)):$D$100, MATCH(0,COUNTIF($E$2:E24, INDIRECT(ADDRESS(MATCH("L2",A:A,0),4)):$D$100), 0)),"") ->  | P25: WP3000 | Q25: Derisking | R25: Subcontractor B | T25: =IFERROR(INDEX(INDIRECT(ADDRESS(MATCH("L2",A:A,0),18)):$R$100, MATCH(0,COUNTIF($T$2:T24, INDIRECT(ADDRESS(MATCH("L2",A:A,0),18)):$R$100), 0)),"") ->  | U25: =IFERROR(INDEX(INDIRECT(ADDRESS(MATCH("L2",A:A,0),19)):$S$100, MATCH(0,COUNTIF($U$2:U24, INDIRECT(ADDRESS(MATCH("L2",A:A,0),19)):$S$100), 0)),"") -> 
A26: L2 | B26: WP3300 | C26: Sprint testing | D26: Subcontractor B | E26: =IFERROR(INDEX(INDIRECT(ADDRESS(MATCH("L2",A:A,0),4)):$D$100, MATCH(0,COUNTIF($E$2:E25, INDIRECT(ADDRESS(MATCH("L2",A:A,0),4)):$D$100), 0)),"") ->  | P26: WP3000 | Q26: Derisking | R26: Subcontractor B | T26: =IFERROR(INDEX(INDIRECT(ADDRESS(MATCH("L2",A:A,0),18)):$R$100, MATCH(0,COUNTIF($T$2:T25, INDIRECT(ADDRESS(MATCH("L2",A:A,0),18)):$R$100), 0)),"") ->  | U26: =IFERROR(INDEX(INDIRECT(ADDRESS(MATCH("L2",A:A,0),19)):$S$100, MATCH(0,COUNTIF($U$2:U25, INDIRECT(ADDRESS(MATCH("L2",A:A,0),19)):$S$100), 0)),"") -> 
A27: L2 | B27: WP3400 | C27: Roadmap to the product develeopment | D27: Subcontractor B | E27: =IFERROR(INDEX(INDIRECT(ADDRESS(MATCH("L2",A:A,0),4)):$D$100, MATCH(0,COUNTIF($E$2:E26, INDIRECT(ADDRESS(MATCH("L2",A:A,0),4)):$D$100), 0)),"") ->  | P27: WP3000 | Q27: Derisking | R27: Subcontractor B | T27: =IFERROR(INDEX(INDIRECT(ADDRESS(MATCH("L2",A:A,0),18)):$R$100, MATCH(0,COUNTIF($T$2:T26, INDIRECT(ADDRESS(MATCH("L2",A:A,0),18)):$R$100), 0)),"") ->  | U27: =IFERROR(INDEX(INDIRECT(ADDRESS(MATCH("L2",A:A,0),19)):$S$100, MATCH(0,COUNTIF($U$2:U26, INDIRECT(ADDRESS(MATCH("L2",A:A,0),19)):$S$100), 0)),"") -> 
A28: L2 | B28: WP4100 | C28: Detailed Design Subsystems | D28: Subcontractor B | E28: =IFERROR(INDEX(INDIRECT(ADDRESS(MATCH("L2",A:A,0),4)):$D$100, MATCH(0,COUNTIF($E$2:E27, INDIRECT(ADDRESS(MATCH("L2",A:A,0),4)):$D$100), 0)),"") ->  | P28: WP4000 | Q28: Product Development | S28: Subcontractor B | T28: =IFERROR(INDEX(INDIRECT(ADDRESS(MATCH("L2",A:A,0),18)):$R$100, MATCH(0,COUNTIF($T$2:T27, INDIRECT(ADDRESS(MATCH("L2",A:A,0),18)):$R$100), 0)),"") ->  | U28: =IFERROR(INDEX(INDIRECT(ADDRESS(MATCH("L2",A:A,0),19)):$S$100, MATCH(0,COUNTIF($U$2:U27, INDIRECT(ADDRESS(MATCH("L2",A:A,0),19)):$S$100), 0)),"") -> 
A29: L2 | B29: WP4200 | C29: Development (HW+SW) | D29: OurLittleComp | E29: =IFERROR(INDEX(INDIRECT(ADDRESS(MATCH("L2",A:A,0),4)):$D$100, MATCH(0,COUNTIF($E$2:E28, INDIRECT(ADDRESS(MATCH("L2",A:A,0),4)):$D$100), 0)),"") ->  | P29: WP4000 | Q29: Product Development | S29: OurLittleComp | T29: =IFERROR(INDEX(INDIRECT(ADDRESS(MATCH("L2",A:A,0),18)):$R$100, MATCH(0,COUNTIF($T$2:T28, INDIRECT(ADDRESS(MATCH("L2",A:A,0),18)):$R$100), 0)),"") ->  | U29: =IFERROR(INDEX(INDIRECT(ADDRESS(MATCH("L2",A:A,0),19)):$S$100, MATCH(0,COUNTIF($U$2:U28, INDIRECT(ADDRESS(MATCH("L2",A:A,0),19)):$S$100), 0)),"") -> 
A30: L2 | B30: WP4300 | C30: Installation and commissioning | D30: Subcontractor B | E30: =IFERROR(INDEX(INDIRECT(ADDRESS(MATCH("L2",A:A,0),4)):$D$100, MATCH(0,COUNTIF($E$2:E29, INDIRECT(ADDRESS(MATCH("L2",A:A,0),4)):$D$100), 0)),"") ->  | P30: WP4000 | Q30: Product Development | S30: Subcontractor B | T30: =IFERROR(INDEX(INDIRECT(ADDRESS(MATCH("L2",A:A,0),18)):$R$100, MATCH(0,COUNTIF($T$2:T29, INDIRECT(ADDRESS(MATCH("L2",A:A,0),18)):$R$100), 0)),"") ->  | U30: =IFERROR(INDEX(INDIRECT(ADDRESS(MATCH("L2",A:A,0),19)):$S$100, MATCH(0,COUNTIF($U$2:U29, INDIRECT(ADDRESS(MATCH("L2",A:A,0),19)):$S$100), 0)),"") -> 
A31: L2 | B31: WP4400 | C31: Susbsystem Verification | D31: OurLittleComp | E31: =IFERROR(INDEX(INDIRECT(ADDRESS(MATCH("L2",A:A,0),4)):$D$100, MATCH(0,COUNTIF($E$2:E30, INDIRECT(ADDRESS(MATCH("L2",A:A,0),4)):$D$100), 0)),"") ->  | P31: WP4000 | Q31: Product Development | S31: OurLittleComp | T31: =IFERROR(INDEX(INDIRECT(ADDRESS(MATCH("L2",A:A,0),18)):$R$100, MATCH(0,COUNTIF($T$2:T30, INDIRECT(ADDRESS(MATCH("L2",A:A,0),18)):$R$100), 0)),"") ->  | U31: =IFERROR(INDEX(INDIRECT(ADDRESS(MATCH("L2",A:A,0),19)):$S$100, MATCH(0,COUNTIF($U$2:U30, INDIRECT(ADDRESS(MATCH("L2",A:A,0),19)):$S$100), 0)),"") -> 
A32: L2 | B32: WP4500 | C32: System Verification | D32: OurLittleComp | E32: =IFERROR(INDEX(INDIRECT(ADDRESS(MATCH("L2",A:A,0),4)):$D$100, MATCH(0,COUNTIF($E$2:E31, INDIRECT(ADDRESS(MATCH("L2",A:A,0),4)):$D$100), 0)),"") ->  | P32: WP4000 | Q32: Product Development | S32: OurLittleComp | T32: =IFERROR(INDEX(INDIRECT(ADDRESS(MATCH("L2",A:A,0),18)):$R$100, MATCH(0,COUNTIF($T$2:T31, INDIRECT(ADDRESS(MATCH("L2",A:A,0),18)):$R$100), 0)),"") ->  | U32: =IFERROR(INDEX(INDIRECT(ADDRESS(MATCH("L2",A:A,0),19)):$S$100, MATCH(0,COUNTIF($U$2:U31, INDIRECT(ADDRESS(MATCH("L2",A:A,0),19)):$S$100), 0)),"") -> 
A33: L2 | B33: WP4600 | C33: Validation Execution and Evaluation | D33: OurLittleComp | E33: =IFERROR(INDEX(INDIRECT(ADDRESS(MATCH("L2",A:A,0),4)):$D$100, MATCH(0,COUNTIF($E$2:E32, INDIRECT(ADDRESS(MATCH("L2",A:A,0),4)):$D$100), 0)),"") ->  | P33: WP4000 | Q33: Product Development | S33: OurLittleComp | T33: =IFERROR(INDEX(INDIRECT(ADDRESS(MATCH("L2",A:A,0),18)):$R$100, MATCH(0,COUNTIF($T$2:T32, INDIRECT(ADDRESS(MATCH("L2",A:A,0),18)):$R$100), 0)),"") ->  | U33: =IFERROR(INDEX(INDIRECT(ADDRESS(MATCH("L2",A:A,0),19)):$S$100, MATCH(0,COUNTIF($U$2:U32, INDIRECT(ADDRESS(MATCH("L2",A:A,0),19)):$S$100), 0)),"") -> 
A34: L2 | B34: WP5100 | C34: Market Analysis and Business Dev. Update | D34: Subcontractor C | E34: =IFERROR(INDEX(INDIRECT(ADDRESS(MATCH("L2",A:A,0),4)):$D$100, MATCH(0,COUNTIF($E$2:E33, INDIRECT(ADDRESS(MATCH("L2",A:A,0),4)):$D$100), 0)),"") ->  | P34: WP5000 | Q34: Product Development | S34: Subcontractor C | T34: =IFERROR(INDEX(INDIRECT(ADDRESS(MATCH("L2",A:A,0),18)):$R$100, MATCH(0,COUNTIF($T$2:T33, INDIRECT(ADDRESS(MATCH("L2",A:A,0),18)):$R$100), 0)),"") ->  | U34: =IFERROR(INDEX(INDIRECT(ADDRESS(MATCH("L2",A:A,0),19)):$S$100, MATCH(0,COUNTIF($U$2:U33, INDIRECT(ADDRESS(MATCH("L2",A:A,0),19)):$S$100), 0)),"") -> 
A35: L2 | B35: WP5200 | C35: Dissemination and Exploitation | D35: Subcontractor C | E35: =IFERROR(INDEX(INDIRECT(ADDRESS(MATCH("L2",A:A,0),4)):$D$100, MATCH(0,COUNTIF($E$2:E34, INDIRECT(ADDRESS(MATCH("L2",A:A,0),4)):$D$100), 0)),"") ->  | P35: WP5000 | Q35: Product Development | S35: Subcontractor C | T35: =IFERROR(INDEX(INDIRECT(ADDRESS(MATCH("L2",A:A,0),18)):$R$100, MATCH(0,COUNTIF($T$2:T34, INDIRECT(ADDRESS(MATCH("L2",A:A,0),18)):$R$100), 0)),"") ->  | U35: =IFERROR(INDEX(INDIRECT(ADDRESS(MATCH("L2",A:A,0),19)):$S$100, MATCH(0,COUNTIF($U$2:U34, INDIRECT(ADDRESS(MATCH("L2",A:A,0),19)):$S$100), 0)),"") -> 
E36: =IFERROR(INDEX(INDIRECT(ADDRESS(MATCH("L2",A:A,0),4)):$D$100, MATCH(0,COUNTIF($E$2:E35, INDIRECT(ADDRESS(MATCH("L2",A:A,0),4)):$D$100), 0)),"") ->  | T36: =IFERROR(INDEX(INDIRECT(ADDRESS(MATCH("L2",A:A,0),18)):$R$100, MATCH(0,COUNTIF($T$2:T35, INDIRECT(ADDRESS(MATCH("L2",A:A,0),18)):$R$100), 0)),"") ->  | U36: =IFERROR(INDEX(INDIRECT(ADDRESS(MATCH("L2",A:A,0),19)):$S$100, MATCH(0,COUNTIF($U$2:U35, INDIRECT(ADDRESS(MATCH("L2",A:A,0),19)):$S$100), 0)),"") -> 
E37: =IFERROR(INDEX(INDIRECT(ADDRESS(MATCH("L2",A:A,0),4)):$D$100, MATCH(0,COUNTIF($E$2:E36, INDIRECT(ADDRESS(MATCH("L2",A:A,0),4)):$D$100), 0)),"") ->  | T37: =IFERROR(INDEX(INDIRECT(ADDRESS(MATCH("L2",A:A,0),18)):$R$100, MATCH(0,COUNTIF($T$2:T36, INDIRECT(ADDRESS(MATCH("L2",A:A,0),18)):$R$100), 0)),"") ->  | U37: =IFERROR(INDEX(INDIRECT(ADDRESS(MATCH("L2",A:A,0),19)):$S$100, MATCH(0,COUNTIF($U$2:U36, INDIRECT(ADDRESS(MATCH("L2",A:A,0),19)):$S$100), 0)),"") -> 
E38: =IFERROR(INDEX(INDIRECT(ADDRESS(MATCH("L2",A:A,0),4)):$D$100, MATCH(0,COUNTIF($E$2:E37, INDIRECT(ADDRESS(MATCH("L2",A:A,0),4)):$D$100), 0)),"") ->  | T38: =IFERROR(INDEX(INDIRECT(ADDRESS(MATCH("L2",A:A,0),18)):$R$100, MATCH(0,COUNTIF($T$2:T37, INDIRECT(ADDRESS(MATCH("L2",A:A,0),18)):$R$100), 0)),"") ->  | U38: =IFERROR(INDEX(INDIRECT(ADDRESS(MATCH("L2",A:A,0),19)):$S$100, MATCH(0,COUNTIF($U$2:U37, INDIRECT(ADDRESS(MATCH("L2",A:A,0),19)):$S$100), 0)),"") -> 
E39: =IFERROR(INDEX(INDIRECT(ADDRESS(MATCH("L2",A:A,0),4)):$D$100, MATCH(0,COUNTIF($E$2:E38, INDIRECT(ADDRESS(MATCH("L2",A:A,0),4)):$D$100), 0)),"") ->  | T39: =IFERROR(INDEX(INDIRECT(ADDRESS(MATCH("L2",A:A,0),18)):$R$100, MATCH(0,COUNTIF($T$2:T38, INDIRECT(ADDRESS(MATCH("L2",A:A,0),18)):$R$100), 0)),"") ->  | U39: =IFERROR(INDEX(INDIRECT(ADDRESS(MATCH("L2",A:A,0),19)):$S$100, MATCH(0,COUNTIF($U$2:U38, INDIRECT(ADDRESS(MATCH("L2",A:A,0),19)):$S$100), 0)),"") -> 
E40: =IFERROR(INDEX(INDIRECT(ADDRESS(MATCH("L2",A:A,0),4)):$D$100, MATCH(0,COUNTIF($E$2:E39, INDIRECT(ADDRESS(MATCH("L2",A:A,0),4)):$D$100), 0)),"") ->  | T40: =IFERROR(INDEX(INDIRECT(ADDRESS(MATCH("L2",A:A,0),18)):$R$100, MATCH(0,COUNTIF($T$2:T39, INDIRECT(ADDRESS(MATCH("L2",A:A,0),18)):$R$100), 0)),"") ->  | U40: =IFERROR(INDEX(INDIRECT(ADDRESS(MATCH("L2",A:A,0),19)):$S$100, MATCH(0,COUNTIF($U$2:U39, INDIRECT(ADDRESS(MATCH("L2",A:A,0),19)):$S$100), 0)),"") -> 
E41: =IFERROR(INDEX(INDIRECT(ADDRESS(MATCH("L2",A:A,0),4)):$D$100, MATCH(0,COUNTIF($E$2:E40, INDIRECT(ADDRESS(MATCH("L2",A:A,0),4)):$D$100), 0)),"") ->  | T41: =IFERROR(INDEX(INDIRECT(ADDRESS(MATCH("L2",A:A,0),18)):$R$100, MATCH(0,COUNTIF($T$2:T40, INDIRECT(ADDRESS(MATCH("L2",A:A,0),18)):$R$100), 0)),"") ->  | U41: =IFERROR(INDEX(INDIRECT(ADDRESS(MATCH("L2",A:A,0),19)):$S$100, MATCH(0,COUNTIF($U$2:U40, INDIRECT(ADDRESS(MATCH("L2",A:A,0),19)):$S$100), 0)),"") -> 
E42: =IFERROR(INDEX(INDIRECT(ADDRESS(MATCH("L2",A:A,0),4)):$D$100, MATCH(0,COUNTIF($E$2:E41, INDIRECT(ADDRESS(MATCH("L2",A:A,0),4)):$D$100), 0)),"") ->  | T42: =IFERROR(INDEX(INDIRECT(ADDRESS(MATCH("L2",A:A,0),18)):$R$100, MATCH(0,COUNTIF($T$2:T41, INDIRECT(ADDRESS(MATCH("L2",A:A,0),18)):$R$100), 0)),"") ->  | U42: =IFERROR(INDEX(INDIRECT(ADDRESS(MATCH("L2",A:A,0),19)):$S$100, MATCH(0,COUNTIF($U$2:U41, INDIRECT(ADDRESS(MATCH("L2",A:A,0),19)):$S$100), 0)),"") -> 
E43: =IFERROR(INDEX(INDIRECT(ADDRESS(MATCH("L2",A:A,0),4)):$D$100, MATCH(0,COUNTIF($E$2:E42, INDIRECT(ADDRESS(MATCH("L2",A:A,0),4)):$D$100), 0)),"") ->  | T43: =IFERROR(INDEX(INDIRECT(ADDRESS(MATCH("L2",A:A,0),18)):$R$100, MATCH(0,COUNTIF($T$2:T42, INDIRECT(ADDRESS(MATCH("L2",A:A,0),18)):$R$100), 0)),"") ->  | U43: =IFERROR(INDEX(INDIRECT(ADDRESS(MATCH("L2",A:A,0),19)):$S$100, MATCH(0,COUNTIF($U$2:U42, INDIRECT(ADDRESS(MATCH("L2",A:A,0),19)):$S$100), 0)),"") -> 
E44: =IFERROR(INDEX(INDIRECT(ADDRESS(MATCH("L2",A:A,0),4)):$D$100, MATCH(0,COUNTIF($E$2:E43, INDIRECT(ADDRESS(MATCH("L2",A:A,0),4)):$D$100), 0)),"") ->  | T44: =IFERROR(INDEX(INDIRECT(ADDRESS(MATCH("L2",A:A,0),18)):$R$100, MATCH(0,COUNTIF($T$2:T43, INDIRECT(ADDRESS(MATCH("L2",A:A,0),18)):$R$100), 0)),"") ->  | U44: =IFERROR(INDEX(INDIRECT(ADDRESS(MATCH("L2",A:A,0),19)):$S$100, MATCH(0,COUNTIF($U$2:U43, INDIRECT(ADDRESS(MATCH("L2",A:A,0),19)):$S$100), 0)),"") -> 
E45: =IFERROR(INDEX(INDIRECT(ADDRESS(MATCH("L2",A:A,0),4)):$D$100, MATCH(0,COUNTIF($E$2:E44, INDIRECT(ADDRESS(MATCH("L2",A:A,0),4)):$D$100), 0)),"") ->  | T45: =IFERROR(INDEX(INDIRECT(ADDRESS(MATCH("L2",A:A,0),18)):$R$100, MATCH(0,COUNTIF($T$2:T44, INDIRECT(ADDRESS(MATCH("L2",A:A,0),18)):$R$100), 0)),"") ->  | U45: =IFERROR(INDEX(INDIRECT(ADDRESS(MATCH("L2",A:A,0),19)):$S$100, MATCH(0,COUNTIF($U$2:U44, INDIRECT(ADDRESS(MATCH("L2",A:A,0),19)):$S$100), 0)),"") -> 
E46: =IFERROR(INDEX(INDIRECT(ADDRESS(MATCH("L2",A:A,0),4)):$D$100, MATCH(0,COUNTIF($E$2:E45, INDIRECT(ADDRESS(MATCH("L2",A:A,0),4)):$D$100), 0)),"") ->  | T46: =IFERROR(INDEX(INDIRECT(ADDRESS(MATCH("L2",A:A,0),18)):$R$100, MATCH(0,COUNTIF($T$2:T45, INDIRECT(ADDRESS(MATCH("L2",A:A,0),18)):$R$100), 0)),"") ->  | U46: =IFERROR(INDEX(INDIRECT(ADDRESS(MATCH("L2",A:A,0),19)):$S$100, MATCH(0,COUNTIF($U$2:U45, INDIRECT(ADDRESS(MATCH("L2",A:A,0),19)):$S$100), 0)),"") -> 
E47: =IFERROR(INDEX(INDIRECT(ADDRESS(MATCH("L2",A:A,0),4)):$D$100, MATCH(0,COUNTIF($E$2:E46, INDIRECT(ADDRESS(MATCH("L2",A:A,0),4)):$D$100), 0)),"") ->  | T47: =IFERROR(INDEX(INDIRECT(ADDRESS(MATCH("L2",A:A,0),18)):$R$100, MATCH(0,COUNTIF($T$2:T46, INDIRECT(ADDRESS(MATCH("L2",A:A,0),18)):$R$100), 0)),"") ->  | U47: =IFERROR(INDEX(INDIRECT(ADDRESS(MATCH("L2",A:A,0),19)):$S$100, MATCH(0,COUNTIF($U$2:U46, INDIRECT(ADDRESS(MATCH("L2",A:A,0),19)):$S$100), 0)),"") -> 
E48: =IFERROR(INDEX(INDIRECT(ADDRESS(MATCH("L2",A:A,0),4)):$D$100, MATCH(0,COUNTIF($E$2:E47, INDIRECT(ADDRESS(MATCH("L2",A:A,0),4)):$D$100), 0)),"") ->  | T48: =IFERROR(INDEX(INDIRECT(ADDRESS(MATCH("L2",A:A,0),18)):$R$100, MATCH(0,COUNTIF($T$2:T47, INDIRECT(ADDRESS(MATCH("L2",A:A,0),18)):$R$100), 0)),"") ->  | U48: =IFERROR(INDEX(INDIRECT(ADDRESS(MATCH("L2",A:A,0),19)):$S$100, MATCH(0,COUNTIF($U$2:U47, INDIRECT(ADDRESS(MATCH("L2",A:A,0),19)):$S$100), 0)),"") -> 
E49: =IFERROR(INDEX(INDIRECT(ADDRESS(MATCH("L2",A:A,0),4)):$D$100, MATCH(0,COUNTIF($E$2:E48, INDIRECT(ADDRESS(MATCH("L2",A:A,0),4)):$D$100), 0)),"") ->  | T49: =IFERROR(INDEX(INDIRECT(ADDRESS(MATCH("L2",A:A,0),18)):$R$100, MATCH(0,COUNTIF($T$2:T48, INDIRECT(ADDRESS(MATCH("L2",A:A,0),18)):$R$100), 0)),"") ->  | U49: =IFERROR(INDEX(INDIRECT(ADDRESS(MATCH("L2",A:A,0),19)):$S$100, MATCH(0,COUNTIF($U$2:U48, INDIRECT(ADDRESS(MATCH("L2",A:A,0),19)):$S$100), 0)),"") -> 
E50: =IFERROR(INDEX(INDIRECT(ADDRESS(MATCH("L2",A:A,0),4)):$D$100, MATCH(0,COUNTIF($E$2:E49, INDIRECT(ADDRESS(MATCH("L2",A:A,0),4)):$D$100), 0)),"") ->  | T50: =IFERROR(INDEX(INDIRECT(ADDRESS(MATCH("L2",A:A,0),18)):$R$100, MATCH(0,COUNTIF($T$2:T49, INDIRECT(ADDRESS(MATCH("L2",A:A,0),18)):$R$100), 0)),"") ->  | U50: =IFERROR(INDEX(INDIRECT(ADDRESS(MATCH("L2",A:A,0),19)):$S$100, MATCH(0,COUNTIF($U$2:U49, INDIRECT(ADDRESS(MATCH("L2",A:A,0),19)):$S$100), 0)),"") -> 
E51: =IFERROR(INDEX(INDIRECT(ADDRESS(MATCH("L2",A:A,0),4)):$D$100, MATCH(0,COUNTIF($E$2:E50, INDIRECT(ADDRESS(MATCH("L2",A:A,0),4)):$D$100), 0)),"") ->  | T51: =IFERROR(INDEX(INDIRECT(ADDRESS(MATCH("L2",A:A,0),18)):$R$100, MATCH(0,COUNTIF($T$2:T50, INDIRECT(ADDRESS(MATCH("L2",A:A,0),18)):$R$100), 0)),"") ->  | U51: =IFERROR(INDEX(INDIRECT(ADDRESS(MATCH("L2",A:A,0),19)):$S$100, MATCH(0,COUNTIF($U$2:U50, INDIRECT(ADDRESS(MATCH("L2",A:A,0),19)):$S$100), 0)),"") -> 
E52: =IFERROR(INDEX(INDIRECT(ADDRESS(MATCH("L2",A:A,0),4)):$D$100, MATCH(0,COUNTIF($E$2:E51, INDIRECT(ADDRESS(MATCH("L2",A:A,0),4)):$D$100), 0)),"") ->  | T52: =IFERROR(INDEX(INDIRECT(ADDRESS(MATCH("L2",A:A,0),18)):$R$100, MATCH(0,COUNTIF($T$2:T51, INDIRECT(ADDRESS(MATCH("L2",A:A,0),18)):$R$100), 0)),"") ->  | U52: =IFERROR(INDEX(INDIRECT(ADDRESS(MATCH("L2",A:A,0),19)):$S$100, MATCH(0,COUNTIF($U$2:U51, INDIRECT(ADDRESS(MATCH("L2",A:A,0),19)):$S$100), 0)),"") -> 
E53: =IFERROR(INDEX(INDIRECT(ADDRESS(MATCH("L2",A:A,0),4)):$D$100, MATCH(0,COUNTIF($E$2:E52, INDIRECT(ADDRESS(MATCH("L2",A:A,0),4)):$D$100), 0)),"") ->  | T53: =IFERROR(INDEX(INDIRECT(ADDRESS(MATCH("L2",A:A,0),18)):$R$100, MATCH(0,COUNTIF($T$2:T52, INDIRECT(ADDRESS(MATCH("L2",A:A,0),18)):$R$100), 0)),"") ->  | U53: =IFERROR(INDEX(INDIRECT(ADDRESS(MATCH("L2",A:A,0),19)):$S$100, MATCH(0,COUNTIF($U$2:U52, INDIRECT(ADDRESS(MATCH("L2",A:A,0),19)):$S$100), 0)),"") -> 
E54: =IFERROR(INDEX(INDIRECT(ADDRESS(MATCH("L2",A:A,0),4)):$D$100, MATCH(0,COUNTIF($E$2:E53, INDIRECT(ADDRESS(MATCH("L2",A:A,0),4)):$D$100), 0)),"") ->  | T54: =IFERROR(INDEX(INDIRECT(ADDRESS(MATCH("L2",A:A,0),18)):$R$100, MATCH(0,COUNTIF($T$2:T53, INDIRECT(ADDRESS(MATCH("L2",A:A,0),18)):$R$100), 0)),"") ->  | U54: =IFERROR(INDEX(INDIRECT(ADDRESS(MATCH("L2",A:A,0),19)):$S$100, MATCH(0,COUNTIF($U$2:U53, INDIRECT(ADDRESS(MATCH("L2",A:A,0),19)):$S$100), 0)),"") -> 
E55: =IFERROR(INDEX(INDIRECT(ADDRESS(MATCH("L2",A:A,0),4)):$D$100, MATCH(0,COUNTIF($E$2:E54, INDIRECT(ADDRESS(MATCH("L2",A:A,0),4)):$D$100), 0)),"") ->  | T55: =IFERROR(INDEX(INDIRECT(ADDRESS(MATCH("L2",A:A,0),18)):$R$100, MATCH(0,COUNTIF($T$2:T54, INDIRECT(ADDRESS(MATCH("L2",A:A,0),18)):$R$100), 0)),"") ->  | U55: =IFERROR(INDEX(INDIRECT(ADDRESS(MATCH("L2",A:A,0),19)):$S$100, MATCH(0,COUNTIF($U$2:U54, INDIRECT(ADDRESS(MATCH("L2",A:A,0),19)):$S$100), 0)),"") -> 
E56: =IFERROR(INDEX(INDIRECT(ADDRESS(MATCH("L2",A:A,0),4)):$D$100, MATCH(0,COUNTIF($E$2:E55, INDIRECT(ADDRESS(MATCH("L2",A:A,0),4)):$D$100), 0)),"") ->  | T56: =IFERROR(INDEX(INDIRECT(ADDRESS(MATCH("L2",A:A,0),18)):$R$100, MATCH(0,COUNTIF($T$2:T55, INDIRECT(ADDRESS(MATCH("L2",A:A,0),18)):$R$100), 0)),"") ->  | U56: =IFERROR(INDEX(INDIRECT(ADDRESS(MATCH("L2",A:A,0),19)):$S$100, MATCH(0,COUNTIF($U$2:U55, INDIRECT(ADDRESS(MATCH("L2",A:A,0),19)):$S$100), 0)),"") -> 
E57: =IFERROR(INDEX(INDIRECT(ADDRESS(MATCH("L2",A:A,0),4)):$D$100, MATCH(0,COUNTIF($E$2:E56, INDIRECT(ADDRESS(MATCH("L2",A:A,0),4)):$D$100), 0)),"") ->  | T57: =IFERROR(INDEX(INDIRECT(ADDRESS(MATCH("L2",A:A,0),18)):$R$100, MATCH(0,COUNTIF($T$2:T56, INDIRECT(ADDRESS(MATCH("L2",A:A,0),18)):$R$100), 0)),"") ->  | U57: =IFERROR(INDEX(INDIRECT(ADDRESS(MATCH("L2",A:A,0),19)):$S$100, MATCH(0,COUNTIF($U$2:U56, INDIRECT(ADDRESS(MATCH("L2",A:A,0),19)):$S$100), 0)),"") -> 
E58: =IFERROR(INDEX(INDIRECT(ADDRESS(MATCH("L2",A:A,0),4)):$D$100, MATCH(0,COUNTIF($E$2:E57, INDIRECT(ADDRESS(MATCH("L2",A:A,0),4)):$D$100), 0)),"") ->  | T58: =IFERROR(INDEX(INDIRECT(ADDRESS(MATCH("L2",A:A,0),18)):$R$100, MATCH(0,COUNTIF($T$2:T57, INDIRECT(ADDRESS(MATCH("L2",A:A,0),18)):$R$100), 0)),"") ->  | U58: =IFERROR(INDEX(INDIRECT(ADDRESS(MATCH("L2",A:A,0),19)):$S$100, MATCH(0,COUNTIF($U$2:U57, INDIRECT(ADDRESS(MATCH("L2",A:A,0),19)):$S$100), 0)),"") -> 
E59: =IFERROR(INDEX(INDIRECT(ADDRESS(MATCH("L2",A:A,0),4)):$D$100, MATCH(0,COUNTIF($E$2:E58, INDIRECT(ADDRESS(MATCH("L2",A:A,0),4)):$D$100), 0)),"") ->  | T59: =IFERROR(INDEX(INDIRECT(ADDRESS(MATCH("L2",A:A,0),18)):$R$100, MATCH(0,COUNTIF($T$2:T58, INDIRECT(ADDRESS(MATCH("L2",A:A,0),18)):$R$100), 0)),"") ->  | U59: =IFERROR(INDEX(INDIRECT(ADDRESS(MATCH("L2",A:A,0),19)):$S$100, MATCH(0,COUNTIF($U$2:U58, INDIRECT(ADDRESS(MATCH("L2",A:A,0),19)):$S$100), 0)),"") -> 
E60: =IFERROR(INDEX(INDIRECT(ADDRESS(MATCH("L2",A:A,0),4)):$D$100, MATCH(0,COUNTIF($E$2:E59, INDIRECT(ADDRESS(MATCH("L2",A:A,0),4)):$D$100), 0)),"") ->  | T60: =IFERROR(INDEX(INDIRECT(ADDRESS(MATCH("L2",A:A,0),18)):$R$100, MATCH(0,COUNTIF($T$2:T59, INDIRECT(ADDRESS(MATCH("L2",A:A,0),18)):$R$100), 0)),"") ->  | U60: =IFERROR(INDEX(INDIRECT(ADDRESS(MATCH("L2",A:A,0),19)):$S$100, MATCH(0,COUNTIF($U$2:U59, INDIRECT(ADDRESS(MATCH("L2",A:A,0),19)):$S$100), 0)),"") -> 
E61: =IFERROR(INDEX(INDIRECT(ADDRESS(MATCH("L2",A:A,0),4)):$D$100, MATCH(0,COUNTIF($E$2:E60, INDIRECT(ADDRESS(MATCH("L2",A:A,0),4)):$D$100), 0)),"") ->  | T61: =IFERROR(INDEX(INDIRECT(ADDRESS(MATCH("L2",A:A,0),18)):$R$100, MATCH(0,COUNTIF($T$2:T60, INDIRECT(ADDRESS(MATCH("L2",A:A,0),18)):$R$100), 0)),"") ->  | U61: =IFERROR(INDEX(INDIRECT(ADDRESS(MATCH("L2",A:A,0),19)):$S$100, MATCH(0,COUNTIF($U$2:U60, INDIRECT(ADDRESS(MATCH("L2",A:A,0),19)):$S$100), 0)),"") -> 
E62: =IFERROR(INDEX(INDIRECT(ADDRESS(MATCH("L2",A:A,0),4)):$D$100, MATCH(0,COUNTIF($E$2:E61, INDIRECT(ADDRESS(MATCH("L2",A:A,0),4)):$D$100), 0)),"") ->  | T62: =IFERROR(INDEX(INDIRECT(ADDRESS(MATCH("L2",A:A,0),18)):$R$100, MATCH(0,COUNTIF($T$2:T61, INDIRECT(ADDRESS(MATCH("L2",A:A,0),18)):$R$100), 0)),"") ->  | U62: =IFERROR(INDEX(INDIRECT(ADDRESS(MATCH("L2",A:A,0),19)):$S$100, MATCH(0,COUNTIF($U$2:U61, INDIRECT(ADDRESS(MATCH("L2",A:A,0),19)):$S$100), 0)),"") -> 
E63: =IFERROR(INDEX(INDIRECT(ADDRESS(MATCH("L2",A:A,0),4)):$D$100, MATCH(0,COUNTIF($E$2:E62, INDIRECT(ADDRESS(MATCH("L2",A:A,0),4)):$D$100), 0)),"") ->  | T63: =IFERROR(INDEX(INDIRECT(ADDRESS(MATCH("L2",A:A,0),18)):$R$100, MATCH(0,COUNTIF($T$2:T62, INDIRECT(ADDRESS(MATCH("L2",A:A,0),18)):$R$100), 0)),"") ->  | U63: =IFERROR(INDEX(INDIRECT(ADDRESS(MATCH("L2",A:A,0),19)):$S$100, MATCH(0,COUNTIF($U$2:U62, INDIRECT(ADDRESS(MATCH("L2",A:A,0),19)):$S$100), 0)),"") -> 
E64: =IFERROR(INDEX(INDIRECT(ADDRESS(MATCH("L2",A:A,0),4)):$D$100, MATCH(0,COUNTIF($E$2:E63, INDIRECT(ADDRESS(MATCH("L2",A:A,0),4)):$D$100), 0)),"") ->  | T64: =IFERROR(INDEX(INDIRECT(ADDRESS(MATCH("L2",A:A,0),18)):$R$100, MATCH(0,COUNTIF($T$2:T63, INDIRECT(ADDRESS(MATCH("L2",A:A,0),18)):$R$100), 0)),"") ->  | U64: =IFERROR(INDEX(INDIRECT(ADDRESS(MATCH("L2",A:A,0),19)):$S$100, MATCH(0,COUNTIF($U$2:U63, INDIRECT(ADDRESS(MATCH("L2",A:A,0),19)):$S$100), 0)),"") -> 
E65: =IFERROR(INDEX(INDIRECT(ADDRESS(MATCH("L2",A:A,0),4)):$D$100, MATCH(0,COUNTIF($E$2:E64, INDIRECT(ADDRESS(MATCH("L2",A:A,0),4)):$D$100), 0)),"") ->  | T65: =IFERROR(INDEX(INDIRECT(ADDRESS(MATCH("L2",A:A,0),18)):$R$100, MATCH(0,COUNTIF($T$2:T64, INDIRECT(ADDRESS(MATCH("L2",A:A,0),18)):$R$100), 0)),"") ->  | U65: =IFERROR(INDEX(INDIRECT(ADDRESS(MATCH("L2",A:A,0),19)):$S$100, MATCH(0,COUNTIF($U$2:U64, INDIRECT(ADDRESS(MATCH("L2",A:A,0),19)):$S$100), 0)),"") -> 
E66: =IFERROR(INDEX(INDIRECT(ADDRESS(MATCH("L2",A:A,0),4)):$D$100, MATCH(0,COUNTIF($E$2:E65, INDIRECT(ADDRESS(MATCH("L2",A:A,0),4)):$D$100), 0)),"") ->  | T66: =IFERROR(INDEX(INDIRECT(ADDRESS(MATCH("L2",A:A,0),18)):$R$100, MATCH(0,COUNTIF($T$2:T65, INDIRECT(ADDRESS(MATCH("L2",A:A,0),18)):$R$100), 0)),"") ->  | U66: =IFERROR(INDEX(INDIRECT(ADDRESS(MATCH("L2",A:A,0),19)):$S$100, MATCH(0,COUNTIF($U$2:U65, INDIRECT(ADDRESS(MATCH("L2",A:A,0),19)):$S$100), 0)),"") -> 
E67: =IFERROR(INDEX(INDIRECT(ADDRESS(MATCH("L2",A:A,0),4)):$D$100, MATCH(0,COUNTIF($E$2:E66, INDIRECT(ADDRESS(MATCH("L2",A:A,0),4)):$D$100), 0)),"") ->  | T67: =IFERROR(INDEX(INDIRECT(ADDRESS(MATCH("L2",A:A,0),18)):$R$100, MATCH(0,COUNTIF($T$2:T66, INDIRECT(ADDRESS(MATCH("L2",A:A,0),18)):$R$100), 0)),"") ->  | U67: =IFERROR(INDEX(INDIRECT(ADDRESS(MATCH("L2",A:A,0),19)):$S$100, MATCH(0,COUNTIF($U$2:U66, INDIRECT(ADDRESS(MATCH("L2",A:A,0),19)):$S$100), 0)),"") -> 
E68: =IFERROR(INDEX(INDIRECT(ADDRESS(MATCH("L2",A:A,0),4)):$D$100, MATCH(0,COUNTIF($E$2:E67, INDIRECT(ADDRESS(MATCH("L2",A:A,0),4)):$D$100), 0)),"") ->  | Q68: =IF(P68<>"",INDEX(B:D,MATCH(P68,B:B,0),3),"") ->  | R68: =IF(Q68="Derisking",D68,"") ->  | S68: =IF(Q68="Product Development", D68,"") ->  | T68: =IFERROR(INDEX(INDIRECT(ADDRESS(MATCH("L2",A:A,0),18)):$R$100, MATCH(0,COUNTIF($T$2:T67, INDIRECT(ADDRESS(MATCH("L2",A:A,0),18)):$R$100), 0)),"") ->  | U68: =IFERROR(INDEX(INDIRECT(ADDRESS(MATCH("L2",A:A,0),19)):$S$100, MATCH(0,COUNTIF($U$2:U67, INDIRECT(ADDRESS(MATCH("L2",A:A,0),19)):$S$100), 0)),"") -> 
E69: =IFERROR(INDEX(INDIRECT(ADDRESS(MATCH("L2",A:A,0),4)):$D$100, MATCH(0,COUNTIF($E$2:E68, INDIRECT(ADDRESS(MATCH("L2",A:A,0),4)):$D$100), 0)),"") ->  | F69: =IF(E69<>"",IF(E69=0,-1,1+F68),"") ->  | T69: =IFERROR(INDEX(INDIRECT(ADDRESS(MATCH("L2",A:A,0),18)):$R$100, MATCH(0,COUNTIF($T$2:T68, INDIRECT(ADDRESS(MATCH("L2",A:A,0),18)):$R$100), 0)),"") ->  | U69: =IFERROR(INDEX(INDIRECT(ADDRESS(MATCH("L2",A:A,0),19)):$S$100, MATCH(0,COUNTIF($U$2:U68, INDIRECT(ADDRESS(MATCH("L2",A:A,0),19)):$S$100), 0)),"") -> 
E70: =IFERROR(INDEX(INDIRECT(ADDRESS(MATCH("L2",A:A,0),4)):$D$100, MATCH(0,COUNTIF($E$2:E69, INDIRECT(ADDRESS(MATCH("L2",A:A,0),4)):$D$100), 0)),"") ->  | T70: =IFERROR(INDEX(INDIRECT(ADDRESS(MATCH("L2",A:A,0),18)):$R$100, MATCH(0,COUNTIF($T$2:T69, INDIRECT(ADDRESS(MATCH("L2",A:A,0),18)):$R$100), 0)),"") ->  | U70: =IFERROR(INDEX(INDIRECT(ADDRESS(MATCH("L2",A:A,0),19)):$S$100, MATCH(0,COUNTIF($U$2:U69, INDIRECT(ADDRESS(MATCH("L2",A:A,0),19)):$S$100), 0)),"") -> 
E71: =IFERROR(INDEX(INDIRECT(ADDRESS(MATCH("L2",A:A,0),4)):$D$100, MATCH(0,COUNTIF($E$2:E70, INDIRECT(ADDRESS(MATCH("L2",A:A,0),4)):$D$100), 0)),"") ->  | T71: =IFERROR(INDEX(INDIRECT(ADDRESS(MATCH("L2",A:A,0),18)):$R$100, MATCH(0,COUNTIF($T$2:T70, INDIRECT(ADDRESS(MATCH("L2",A:A,0),18)):$R$100), 0)),"") ->  | U71: =IFERROR(INDEX(INDIRECT(ADDRESS(MATCH("L2",A:A,0),19)):$S$100, MATCH(0,COUNTIF($U$2:U70, INDIRECT(ADDRESS(MATCH("L2",A:A,0),19)):$S$100), 0)),"") -> 
E72: =IFERROR(INDEX(INDIRECT(ADDRESS(MATCH("L2",A:A,0),4)):$D$100, MATCH(0,COUNTIF($E$2:E71, INDIRECT(ADDRESS(MATCH("L2",A:A,0),4)):$D$100), 0)),"") ->  | T72: =IFERROR(INDEX(INDIRECT(ADDRESS(MATCH("L2",A:A,0),18)):$R$100, MATCH(0,COUNTIF($T$2:T71, INDIRECT(ADDRESS(MATCH("L2",A:A,0),18)):$R$100), 0)),"") ->  | U72: =IFERROR(INDEX(INDIRECT(ADDRESS(MATCH("L2",A:A,0),19)):$S$100, MATCH(0,COUNTIF($U$2:U71, INDIRECT(ADDRESS(MATCH("L2",A:A,0),19)):$S$100), 0)),"") -> 
E73: =IFERROR(INDEX(INDIRECT(ADDRESS(MATCH("L2",A:A,0),4)):$D$100, MATCH(0,COUNTIF($E$2:E72, INDIRECT(ADDRESS(MATCH("L2",A:A,0),4)):$D$100), 0)),"") ->  | T73: =IFERROR(INDEX(INDIRECT(ADDRESS(MATCH("L2",A:A,0),18)):$R$100, MATCH(0,COUNTIF($T$2:T72, INDIRECT(ADDRESS(MATCH("L2",A:A,0),18)):$R$100), 0)),"") ->  | U73: =IFERROR(INDEX(INDIRECT(ADDRESS(MATCH("L2",A:A,0),19)):$S$100, MATCH(0,COUNTIF($U$2:U72, INDIRECT(ADDRESS(MATCH("L2",A:A,0),19)):$S$100), 0)),"") -> 
E74: =IFERROR(INDEX(INDIRECT(ADDRESS(MATCH("L2",A:A,0),4)):$D$100, MATCH(0,COUNTIF($E$2:E73, INDIRECT(ADDRESS(MATCH("L2",A:A,0),4)):$D$100), 0)),"") ->  | T74: =IFERROR(INDEX(INDIRECT(ADDRESS(MATCH("L2",A:A,0),18)):$R$100, MATCH(0,COUNTIF($T$2:T73, INDIRECT(ADDRESS(MATCH("L2",A:A,0),18)):$R$100), 0)),"") ->  | U74: =IFERROR(INDEX(INDIRECT(ADDRESS(MATCH("L2",A:A,0),19)):$S$100, MATCH(0,COUNTIF($U$2:U73, INDIRECT(ADDRESS(MATCH("L2",A:A,0),19)):$S$100), 0)),"") -> 
E75: =IFERROR(INDEX(INDIRECT(ADDRESS(MATCH("L2",A:A,0),4)):$D$100, MATCH(0,COUNTIF($E$2:E74, INDIRECT(ADDRESS(MATCH("L2",A:A,0),4)):$D$100), 0)),"") ->  | T75: =IFERROR(INDEX(INDIRECT(ADDRESS(MATCH("L2",A:A,0),18)):$R$100, MATCH(0,COUNTIF($T$2:T74, INDIRECT(ADDRESS(MATCH("L2",A:A,0),18)):$R$100), 0)),"") ->  | U75: =IFERROR(INDEX(INDIRECT(ADDRESS(MATCH("L2",A:A,0),19)):$S$100, MATCH(0,COUNTIF($U$2:U74, INDIRECT(ADDRESS(MATCH("L2",A:A,0),19)):$S$100), 0)),"") -> 
E76: =IFERROR(INDEX(INDIRECT(ADDRESS(MATCH("L2",A:A,0),4)):$D$100, MATCH(0,COUNTIF($E$2:E75, INDIRECT(ADDRESS(MATCH("L2",A:A,0),4)):$D$100), 0)),"") ->  | T76: =IFERROR(INDEX(INDIRECT(ADDRESS(MATCH("L2",A:A,0),18)):$R$100, MATCH(0,COUNTIF($T$2:T75, INDIRECT(ADDRESS(MATCH("L2",A:A,0),18)):$R$100), 0)),"") ->  | U76: =IFERROR(INDEX(INDIRECT(ADDRESS(MATCH("L2",A:A,0),19)):$S$100, MATCH(0,COUNTIF($U$2:U75, INDIRECT(ADDRESS(MATCH("L2",A:A,0),19)):$S$100), 0)),"") -> 
E77: =IFERROR(INDEX(INDIRECT(ADDRESS(MATCH("L2",A:A,0),4)):$D$100, MATCH(0,COUNTIF($E$2:E76, INDIRECT(ADDRESS(MATCH("L2",A:A,0),4)):$D$100), 0)),"") ->  | T77: =IFERROR(INDEX(INDIRECT(ADDRESS(MATCH("L2",A:A,0),18)):$R$100, MATCH(0,COUNTIF($T$2:T76, INDIRECT(ADDRESS(MATCH("L2",A:A,0),18)):$R$100), 0)),"") ->  | U77: =IFERROR(INDEX(INDIRECT(ADDRESS(MATCH("L2",A:A,0),19)):$S$100, MATCH(0,COUNTIF($U$2:U76, INDIRECT(ADDRESS(MATCH("L2",A:A,0),19)):$S$100), 0)),"") -> 
E78: =IFERROR(INDEX(INDIRECT(ADDRESS(MATCH("L2",A:A,0),4)):$D$100, MATCH(0,COUNTIF($E$2:E77, INDIRECT(ADDRESS(MATCH("L2",A:A,0),4)):$D$100), 0)),"") ->  | T78: =IFERROR(INDEX(INDIRECT(ADDRESS(MATCH("L2",A:A,0),18)):$R$100, MATCH(0,COUNTIF($T$2:T77, INDIRECT(ADDRESS(MATCH("L2",A:A,0),18)):$R$100), 0)),"") ->  | U78: =IFERROR(INDEX(INDIRECT(ADDRESS(MATCH("L2",A:A,0),19)):$S$100, MATCH(0,COUNTIF($U$2:U77, INDIRECT(ADDRESS(MATCH("L2",A:A,0),19)):$S$100), 0)),"") -> 
E79: =IFERROR(INDEX(INDIRECT(ADDRESS(MATCH("L2",A:A,0),4)):$D$100, MATCH(0,COUNTIF($E$2:E78, INDIRECT(ADDRESS(MATCH("L2",A:A,0),4)):$D$100), 0)),"") ->  | P79: =IF($A$3="No",IF(A79="L2",LEFT(B79,3)&"000",""),IF(A79="L2",LEFT(B79,3)&"000"&" "&$A$3,"")) ->  | T79: =IFERROR(INDEX(INDIRECT(ADDRESS(MATCH("L2",A:A,0),18)):$R$100, MATCH(0,COUNTIF($T$2:T78, INDIRECT(ADDRESS(MATCH("L2",A:A,0),18)):$R$100), 0)),"") ->  | U79: =IFERROR(INDEX(INDIRECT(ADDRESS(MATCH("L2",A:A,0),19)):$S$100, MATCH(0,COUNTIF($U$2:U78, INDIRECT(ADDRESS(MATCH("L2",A:A,0),19)):$S$100), 0)),"") -> 
E80: =IFERROR(INDEX(INDIRECT(ADDRESS(MATCH("L2",A:A,0),4)):$D$100, MATCH(0,COUNTIF($E$2:E79, INDIRECT(ADDRESS(MATCH("L2",A:A,0),4)):$D$100), 0)),"") ->  | T80: =IFERROR(INDEX(INDIRECT(ADDRESS(MATCH("L2",A:A,0),18)):$R$100, MATCH(0,COUNTIF($T$2:T79, INDIRECT(ADDRESS(MATCH("L2",A:A,0),18)):$R$100), 0)),"") ->  | U80: =IFERROR(INDEX(INDIRECT(ADDRESS(MATCH("L2",A:A,0),19)):$S$100, MATCH(0,COUNTIF($U$2:U79, INDIRECT(ADDRESS(MATCH("L2",A:A,0),19)):$S$100), 0)),"") -> 
E81: =IFERROR(INDEX(INDIRECT(ADDRESS(MATCH("L2",A:A,0),4)):$D$100, MATCH(0,COUNTIF($E$2:E80, INDIRECT(ADDRESS(MATCH("L2",A:A,0),4)):$D$100), 0)),"") ->  | T81: =IFERROR(INDEX(INDIRECT(ADDRESS(MATCH("L2",A:A,0),18)):$R$100, MATCH(0,COUNTIF($T$2:T80, INDIRECT(ADDRESS(MATCH("L2",A:A,0),18)):$R$100), 0)),"") ->  | U81: =IFERROR(INDEX(INDIRECT(ADDRESS(MATCH("L2",A:A,0),19)):$S$100, MATCH(0,COUNTIF($U$2:U80, INDIRECT(ADDRESS(MATCH("L2",A:A,0),19)):$S$100), 0)),"") -> 
E82: =IFERROR(INDEX(INDIRECT(ADDRESS(MATCH("L2",A:A,0),4)):$D$100, MATCH(0,COUNTIF($E$2:E81, INDIRECT(ADDRESS(MATCH("L2",A:A,0),4)):$D$100), 0)),"") ->  | T82: =IFERROR(INDEX(INDIRECT(ADDRESS(MATCH("L2",A:A,0),18)):$R$100, MATCH(0,COUNTIF($T$2:T81, INDIRECT(ADDRESS(MATCH("L2",A:A,0),18)):$R$100), 0)),"") ->  | U82: =IFERROR(INDEX(INDIRECT(ADDRESS(MATCH("L2",A:A,0),19)):$S$100, MATCH(0,COUNTIF($U$2:U81, INDIRECT(ADDRESS(MATCH("L2",A:A,0),19)):$S$100), 0)),"") -> 
E83: =IFERROR(INDEX(INDIRECT(ADDRESS(MATCH("L2",A:A,0),4)):$D$100, MATCH(0,COUNTIF($E$2:E82, INDIRECT(ADDRESS(MATCH("L2",A:A,0),4)):$D$100), 0)),"") ->  | T83: =IFERROR(INDEX(INDIRECT(ADDRESS(MATCH("L2",A:A,0),18)):$R$100, MATCH(0,COUNTIF($T$2:T82, INDIRECT(ADDRESS(MATCH("L2",A:A,0),18)):$R$100), 0)),"") ->  | U83: =IFERROR(INDEX(INDIRECT(ADDRESS(MATCH("L2",A:A,0),19)):$S$100, MATCH(0,COUNTIF($U$2:U82, INDIRECT(ADDRESS(MATCH("L2",A:A,0),19)):$S$100), 0)),"") -> 
E84: =IFERROR(INDEX(INDIRECT(ADDRESS(MATCH("L2",A:A,0),4)):$D$100, MATCH(0,COUNTIF($E$2:E83, INDIRECT(ADDRESS(MATCH("L2",A:A,0),4)):$D$100), 0)),"") ->  | T84: =IFERROR(INDEX(INDIRECT(ADDRESS(MATCH("L2",A:A,0),18)):$R$100, MATCH(0,COUNTIF($T$2:T83, INDIRECT(ADDRESS(MATCH("L2",A:A,0),18)):$R$100), 0)),"") ->  | U84: =IFERROR(INDEX(INDIRECT(ADDRESS(MATCH("L2",A:A,0),19)):$S$100, MATCH(0,COUNTIF($U$2:U83, INDIRECT(ADDRESS(MATCH("L2",A:A,0),19)):$S$100), 0)),"") -> 
E85: =IFERROR(INDEX(INDIRECT(ADDRESS(MATCH("L2",A:A,0),4)):$D$100, MATCH(0,COUNTIF($E$2:E84, INDIRECT(ADDRESS(MATCH("L2",A:A,0),4)):$D$100), 0)),"") ->  | T85: =IFERROR(INDEX(INDIRECT(ADDRESS(MATCH("L2",A:A,0),18)):$R$100, MATCH(0,COUNTIF($T$2:T84, INDIRECT(ADDRESS(MATCH("L2",A:A,0),18)):$R$100), 0)),"") ->  | U85: =IFERROR(INDEX(INDIRECT(ADDRESS(MATCH("L2",A:A,0),19)):$S$100, MATCH(0,COUNTIF($U$2:U84, INDIRECT(ADDRESS(MATCH("L2",A:A,0),19)):$S$100), 0)),"") -> 
E86: =IFERROR(INDEX(INDIRECT(ADDRESS(MATCH("L2",A:A,0),4)):$D$100, MATCH(0,COUNTIF($E$2:E85, INDIRECT(ADDRESS(MATCH("L2",A:A,0),4)):$D$100), 0)),"") ->  | T86: =IFERROR(INDEX(INDIRECT(ADDRESS(MATCH("L2",A:A,0),18)):$R$100, MATCH(0,COUNTIF($T$2:T85, INDIRECT(ADDRESS(MATCH("L2",A:A,0),18)):$R$100), 0)),"") ->  | U86: =IFERROR(INDEX(INDIRECT(ADDRESS(MATCH("L2",A:A,0),19)):$S$100, MATCH(0,COUNTIF($U$2:U85, INDIRECT(ADDRESS(MATCH("L2",A:A,0),19)):$S$100), 0)),"") -> 
E87: =IFERROR(INDEX(INDIRECT(ADDRESS(MATCH("L2",A:A,0),4)):$D$100, MATCH(0,COUNTIF($E$2:E86, INDIRECT(ADDRESS(MATCH("L2",A:A,0),4)):$D$100), 0)),"") ->  | T87: =IFERROR(INDEX(INDIRECT(ADDRESS(MATCH("L2",A:A,0),18)):$R$100, MATCH(0,COUNTIF($T$2:T86, INDIRECT(ADDRESS(MATCH("L2",A:A,0),18)):$R$100), 0)),"") ->  | U87: =IFERROR(INDEX(INDIRECT(ADDRESS(MATCH("L2",A:A,0),19)):$S$100, MATCH(0,COUNTIF($U$2:U86, INDIRECT(ADDRESS(MATCH("L2",A:A,0),19)):$S$100), 0)),"") -> 
E88: =IFERROR(INDEX(INDIRECT(ADDRESS(MATCH("L2",A:A,0),4)):$D$100, MATCH(0,COUNTIF($E$2:E87, INDIRECT(ADDRESS(MATCH("L2",A:A,0),4)):$D$100), 0)),"") ->  | T88: =IFERROR(INDEX(INDIRECT(ADDRESS(MATCH("L2",A:A,0),18)):$R$100, MATCH(0,COUNTIF($T$2:T87, INDIRECT(ADDRESS(MATCH("L2",A:A,0),18)):$R$100), 0)),"") ->  | U88: =IFERROR(INDEX(INDIRECT(ADDRESS(MATCH("L2",A:A,0),19)):$S$100, MATCH(0,COUNTIF($U$2:U87, INDIRECT(ADDRESS(MATCH("L2",A:A,0),19)):$S$100), 0)),"") -> 
E89: =IFERROR(INDEX(INDIRECT(ADDRESS(MATCH("L2",A:A,0),4)):$D$100, MATCH(0,COUNTIF($E$2:E88, INDIRECT(ADDRESS(MATCH("L2",A:A,0),4)):$D$100), 0)),"") ->  | T89: =IFERROR(INDEX(INDIRECT(ADDRESS(MATCH("L2",A:A,0),18)):$R$100, MATCH(0,COUNTIF($T$2:T88, INDIRECT(ADDRESS(MATCH("L2",A:A,0),18)):$R$100), 0)),"") ->  | U89: =IFERROR(INDEX(INDIRECT(ADDRESS(MATCH("L2",A:A,0),19)):$S$100, MATCH(0,COUNTIF($U$2:U88, INDIRECT(ADDRESS(MATCH("L2",A:A,0),19)):$S$100), 0)),"") -> 
E90: =IFERROR(INDEX(INDIRECT(ADDRESS(MATCH("L2",A:A,0),4)):$D$100, MATCH(0,COUNTIF($E$2:E89, INDIRECT(ADDRESS(MATCH("L2",A:A,0),4)):$D$100), 0)),"") ->  | T90: =IFERROR(INDEX(INDIRECT(ADDRESS(MATCH("L2",A:A,0),18)):$R$100, MATCH(0,COUNTIF($T$2:T89, INDIRECT(ADDRESS(MATCH("L2",A:A,0),18)):$R$100), 0)),"") ->  | U90: =IFERROR(INDEX(INDIRECT(ADDRESS(MATCH("L2",A:A,0),19)):$S$100, MATCH(0,COUNTIF($U$2:U89, INDIRECT(ADDRESS(MATCH("L2",A:A,0),19)):$S$100), 0)),"") -> 
E91: =IFERROR(INDEX(INDIRECT(ADDRESS(MATCH("L2",A:A,0),4)):$D$100, MATCH(0,COUNTIF($E$2:E90, INDIRECT(ADDRESS(MATCH("L2",A:A,0),4)):$D$100), 0)),"") ->  | T91: =IFERROR(INDEX(INDIRECT(ADDRESS(MATCH("L2",A:A,0),18)):$R$100, MATCH(0,COUNTIF($T$2:T90, INDIRECT(ADDRESS(MATCH("L2",A:A,0),18)):$R$100), 0)),"") ->  | U91: =IFERROR(INDEX(INDIRECT(ADDRESS(MATCH("L2",A:A,0),19)):$S$100, MATCH(0,COUNTIF($U$2:U90, INDIRECT(ADDRESS(MATCH("L2",A:A,0),19)):$S$100), 0)),"") -> 
E92: =IFERROR(INDEX(INDIRECT(ADDRESS(MATCH("L2",A:A,0),4)):$D$100, MATCH(0,COUNTIF($E$2:E91, INDIRECT(ADDRESS(MATCH("L2",A:A,0),4)):$D$100), 0)),"") ->  | T92: =IFERROR(INDEX(INDIRECT(ADDRESS(MATCH("L2",A:A,0),18)):$R$100, MATCH(0,COUNTIF($T$2:T91, INDIRECT(ADDRESS(MATCH("L2",A:A,0),18)):$R$100), 0)),"") ->  | U92: =IFERROR(INDEX(INDIRECT(ADDRESS(MATCH("L2",A:A,0),19)):$S$100, MATCH(0,COUNTIF($U$2:U91, INDIRECT(ADDRESS(MATCH("L2",A:A,0),19)):$S$100), 0)),"") -> 
E93: =IFERROR(INDEX(INDIRECT(ADDRESS(MATCH("L2",A:A,0),4)):$D$100, MATCH(0,COUNTIF($E$2:E92, INDIRECT(ADDRESS(MATCH("L2",A:A,0),4)):$D$100), 0)),"") ->  | T93: =IFERROR(INDEX(INDIRECT(ADDRESS(MATCH("L2",A:A,0),18)):$R$100, MATCH(0,COUNTIF($T$2:T92, INDIRECT(ADDRESS(MATCH("L2",A:A,0),18)):$R$100), 0)),"") ->  | U93: =IFERROR(INDEX(INDIRECT(ADDRESS(MATCH("L2",A:A,0),19)):$S$100, MATCH(0,COUNTIF($U$2:U92, INDIRECT(ADDRESS(MATCH("L2",A:A,0),19)):$S$100), 0)),"") -> 
E94: =IFERROR(INDEX(INDIRECT(ADDRESS(MATCH("L2",A:A,0),4)):$D$100, MATCH(0,COUNTIF($E$2:E93, INDIRECT(ADDRESS(MATCH("L2",A:A,0),4)):$D$100), 0)),"") ->  | T94: =IFERROR(INDEX(INDIRECT(ADDRESS(MATCH("L2",A:A,0),18)):$R$100, MATCH(0,COUNTIF($T$2:T93, INDIRECT(ADDRESS(MATCH("L2",A:A,0),18)):$R$100), 0)),"") ->  | U94: =IFERROR(INDEX(INDIRECT(ADDRESS(MATCH("L2",A:A,0),19)):$S$100, MATCH(0,COUNTIF($U$2:U93, INDIRECT(ADDRESS(MATCH("L2",A:A,0),19)):$S$100), 0)),"") -> 
E95: =IFERROR(INDEX(INDIRECT(ADDRESS(MATCH("L2",A:A,0),4)):$D$100, MATCH(0,COUNTIF($E$2:E94, INDIRECT(ADDRESS(MATCH("L2",A:A,0),4)):$D$100), 0)),"") ->  | T95: =IFERROR(INDEX(INDIRECT(ADDRESS(MATCH("L2",A:A,0),18)):$R$100, MATCH(0,COUNTIF($T$2:T94, INDIRECT(ADDRESS(MATCH("L2",A:A,0),18)):$R$100), 0)),"") ->  | U95: =IFERROR(INDEX(INDIRECT(ADDRESS(MATCH("L2",A:A,0),19)):$S$100, MATCH(0,COUNTIF($U$2:U94, INDIRECT(ADDRESS(MATCH("L2",A:A,0),19)):$S$100), 0)),"") -> 
E96: =IFERROR(INDEX(INDIRECT(ADDRESS(MATCH("L2",A:A,0),4)):$D$100, MATCH(0,COUNTIF($E$2:E95, INDIRECT(ADDRESS(MATCH("L2",A:A,0),4)):$D$100), 0)),"") ->  | T96: =IFERROR(INDEX(INDIRECT(ADDRESS(MATCH("L2",A:A,0),18)):$R$100, MATCH(0,COUNTIF($T$2:T95, INDIRECT(ADDRESS(MATCH("L2",A:A,0),18)):$R$100), 0)),"") ->  | U96: =IFERROR(INDEX(INDIRECT(ADDRESS(MATCH("L2",A:A,0),19)):$S$100, MATCH(0,COUNTIF($U$2:U95, INDIRECT(ADDRESS(MATCH("L2",A:A,0),19)):$S$100), 0)),"") -> 
E97: =IFERROR(INDEX(INDIRECT(ADDRESS(MATCH("L2",A:A,0),4)):$D$100, MATCH(0,COUNTIF($E$2:E96, INDIRECT(ADDRESS(MATCH("L2",A:A,0),4)):$D$100), 0)),"") ->  | T97: =IFERROR(INDEX(INDIRECT(ADDRESS(MATCH("L2",A:A,0),18)):$R$100, MATCH(0,COUNTIF($T$2:T96, INDIRECT(ADDRESS(MATCH("L2",A:A,0),18)):$R$100), 0)),"") ->  | U97: =IFERROR(INDEX(INDIRECT(ADDRESS(MATCH("L2",A:A,0),19)):$S$100, MATCH(0,COUNTIF($U$2:U96, INDIRECT(ADDRESS(MATCH("L2",A:A,0),19)):$S$100), 0)),"") -> 
E98: =IFERROR(INDEX(INDIRECT(ADDRESS(MATCH("L2",A:A,0),4)):$D$100, MATCH(0,COUNTIF($E$2:E97, INDIRECT(ADDRESS(MATCH("L2",A:A,0),4)):$D$100), 0)),"") ->  | T98: =IFERROR(INDEX(INDIRECT(ADDRESS(MATCH("L2",A:A,0),18)):$R$100, MATCH(0,COUNTIF($T$2:T97, INDIRECT(ADDRESS(MATCH("L2",A:A,0),18)):$R$100), 0)),"") ->  | U98: =IFERROR(INDEX(INDIRECT(ADDRESS(MATCH("L2",A:A,0),19)):$S$100, MATCH(0,COUNTIF($U$2:U97, INDIRECT(ADDRESS(MATCH("L2",A:A,0),19)):$S$100), 0)),"") -> 
E99: =IFERROR(INDEX(INDIRECT(ADDRESS(MATCH("L2",A:A,0),4)):$D$100, MATCH(0,COUNTIF($E$2:E98, INDIRECT(ADDRESS(MATCH("L2",A:A,0),4)):$D$100), 0)),"") ->  | T99: =IFERROR(INDEX(INDIRECT(ADDRESS(MATCH("L2",A:A,0),18)):$R$100, MATCH(0,COUNTIF($T$2:T98, INDIRECT(ADDRESS(MATCH("L2",A:A,0),18)):$R$100), 0)),"") ->  | U99: =IFERROR(INDEX(INDIRECT(ADDRESS(MATCH("L2",A:A,0),19)):$S$100, MATCH(0,COUNTIF($U$2:U98, INDIRECT(ADDRESS(MATCH("L2",A:A,0),19)):$S$100), 0)),"") -> 
E100: =IFERROR(INDEX(INDIRECT(ADDRESS(MATCH("L2",A:A,0),4)):$D$100, MATCH(0,COUNTIF($E$2:E99, INDIRECT(ADDRESS(MATCH("L2",A:A,0),4)):$D$100), 0)),"") ->  | T100: =IFERROR(INDEX(INDIRECT(ADDRESS(MATCH("L2",A:A,0),18)):$R$100, MATCH(0,COUNTIF($T$2:T99, INDIRECT(ADDRESS(MATCH("L2",A:A,0),18)):$R$100), 0)),"") ->  | U100: =IFERROR(INDEX(INDIRECT(ADDRESS(MATCH("L2",A:A,0),19)):$S$100, MATCH(0,COUNTIF($U$2:U99, INDIRECT(ADDRESS(MATCH("L2",A:A,0),19)):$S$100), 0)),"") -> 
E101: =IFERROR(INDEX(INDIRECT(ADDRESS(MATCH("L2",A:A,0),4)):$D$100, MATCH(0,COUNTIF($E$2:E100, INDIRECT(ADDRESS(MATCH("L2",A:A,0),4)):$D$100), 0)),"") ->  | T101: =IFERROR(INDEX(INDIRECT(ADDRESS(MATCH("L2",A:A,0),18)):$R$100, MATCH(0,COUNTIF($T$2:T100, INDIRECT(ADDRESS(MATCH("L2",A:A,0),18)):$R$100), 0)),"") ->  | U101: =IFERROR(INDEX(INDIRECT(ADDRESS(MATCH("L2",A:A,0),19)):$S$100, MATCH(0,COUNTIF($U$2:U100, INDIRECT(ADDRESS(MATCH("L2",A:A,0),19)):$S$100), 0)),"") -> 
T102: =IFERROR(INDEX(INDIRECT(ADDRESS(MATCH("L2",A:A,0),18)):$R$100, MATCH(0,COUNTIF($T$2:T101, INDIRECT(ADDRESS(MATCH("L2",A:A,0),18)):$R$100), 0)),"") ->  | U102: =IFERROR(INDEX(INDIRECT(ADDRESS(MATCH("L2",A:A,0),19)):$S$100, MATCH(0,COUNTIF($U$2:U101, INDIRECT(ADDRESS(MATCH("L2",A:A,0),19)):$S$100), 0)),"") -> 
T103: =IFERROR(INDEX(INDIRECT(ADDRESS(MATCH("L2",A:A,0),18)):$R$100, MATCH(0,COUNTIF($T$2:T102, INDIRECT(ADDRESS(MATCH("L2",A:A,0),18)):$R$100), 0)),"") ->  | U103: =IFERROR(INDEX(INDIRECT(ADDRESS(MATCH("L2",A:A,0),19)):$S$100, MATCH(0,COUNTIF($U$2:U102, INDIRECT(ADDRESS(MATCH("L2",A:A,0),19)):$S$100), 0)),"") -> 
T104: =IFERROR(INDEX(INDIRECT(ADDRESS(MATCH("L2",A:A,0),18)):$R$100, MATCH(0,COUNTIF($T$2:T103, INDIRECT(ADDRESS(MATCH("L2",A:A,0),18)):$R$100), 0)),"") ->  | U104: =IFERROR(INDEX(INDIRECT(ADDRESS(MATCH("L2",A:A,0),19)):$S$100, MATCH(0,COUNTIF($U$2:U103, INDIRECT(ADDRESS(MATCH("L2",A:A,0),19)):$S$100), 0)),"") -> 
T105: =IFERROR(INDEX(INDIRECT(ADDRESS(MATCH("L2",A:A,0),18)):$R$100, MATCH(0,COUNTIF($T$2:T104, INDIRECT(ADDRESS(MATCH("L2",A:A,0),18)):$R$100), 0)),"") ->  | U105: =IFERROR(INDEX(INDIRECT(ADDRESS(MATCH("L2",A:A,0),19)):$S$100, MATCH(0,COUNTIF($U$2:U104, INDIRECT(ADDRESS(MATCH("L2",A:A,0),19)):$S$100), 0)),"") -> 
T106: =IFERROR(INDEX(INDIRECT(ADDRESS(MATCH("L2",A:A,0),18)):$R$100, MATCH(0,COUNTIF($T$2:T105, INDIRECT(ADDRESS(MATCH("L2",A:A,0),18)):$R$100), 0)),"") ->  | U106: =IFERROR(INDEX(INDIRECT(ADDRESS(MATCH("L2",A:A,0),19)):$S$100, MATCH(0,COUNTIF($U$2:U105, INDIRECT(ADDRESS(MATCH("L2",A:A,0),19)):$S$100), 0)),"") -> 
T107: =IFERROR(INDEX(INDIRECT(ADDRESS(MATCH("L2",A:A,0),18)):$R$100, MATCH(0,COUNTIF($T$2:T106, INDIRECT(ADDRESS(MATCH("L2",A:A,0),18)):$R$100), 0)),"") ->  | U107: =IFERROR(INDEX(INDIRECT(ADDRESS(MATCH("L2",A:A,0),19)):$S$100, MATCH(0,COUNTIF($U$2:U106, INDIRECT(ADDRESS(MATCH("L2",A:A,0),19)):$S$100), 0)),"") -> 
T108: =IFERROR(INDEX(INDIRECT(ADDRESS(MATCH("L2",A:A,0),18)):$R$100, MATCH(0,COUNTIF($T$2:T107, INDIRECT(ADDRESS(MATCH("L2",A:A,0),18)):$R$100), 0)),"") ->  | U108: =IFERROR(INDEX(INDIRECT(ADDRESS(MATCH("L2",A:A,0),19)):$S$100, MATCH(0,COUNTIF($U$2:U107, INDIRECT(ADDRESS(MATCH("L2",A:A,0),19)):$S$100), 0)),"") -> 
T109: =IFERROR(INDEX(INDIRECT(ADDRESS(MATCH("L2",A:A,0),18)):$R$100, MATCH(0,COUNTIF($T$2:T108, INDIRECT(ADDRESS(MATCH("L2",A:A,0),18)):$R$100), 0)),"") ->  | U109: =IFERROR(INDEX(INDIRECT(ADDRESS(MATCH("L2",A:A,0),19)):$S$100, MATCH(0,COUNTIF($U$2:U108, INDIRECT(ADDRESS(MATCH("L2",A:A,0),19)):$S$100), 0)),"") -> 
T110: =IFERROR(INDEX(INDIRECT(ADDRESS(MATCH("L2",A:A,0),18)):$R$100, MATCH(0,COUNTIF($T$2:T109, INDIRECT(ADDRESS(MATCH("L2",A:A,0),18)):$R$100), 0)),"") ->  | U110: =IFERROR(INDEX(INDIRECT(ADDRESS(MATCH("L2",A:A,0),19)):$S$100, MATCH(0,COUNTIF($U$2:U109, INDIRECT(ADDRESS(MATCH("L2",A:A,0),19)):$S$100), 0)),"") -> 
T111: =IFERROR(INDEX(INDIRECT(ADDRESS(MATCH("L2",A:A,0),18)):$R$100, MATCH(0,COUNTIF($T$2:T110, INDIRECT(ADDRESS(MATCH("L2",A:A,0),18)):$R$100), 0)),"") ->  | U111: =IFERROR(INDEX(INDIRECT(ADDRESS(MATCH("L2",A:A,0),19)):$S$100, MATCH(0,COUNTIF($U$2:U110, INDIRECT(ADDRESS(MATCH("L2",A:A,0),19)):$S$100), 0)),"") -> 

Sheet Financial Planning (Derisk)
A2: =IF((COUNTBLANK(D3:D7)+COUNTBLANK(D9:D12))=0,0, IF((COUNTBLANK(D3:D7)+COUNTBLANK(D9:D12))=9, 2, 1)) -> 0 | C2: Additional Information
C3: SME | D3: Yes
C4: Contractual Phase | D4: N/A | E4: For instance: N/A, CCN1, …
C5: Contract Price Type | D5: Firm Fixed Price
C6: Economic Condition | D6: 2021-2022 | E6: For instance: 2021-2022
C7: ="Exchange Rate (1 EUR / 1 "&DASHBOARD!C11&")" -> Exchange Rate (1 EUR / 1 EUR) | D7: 1 | E7: =1 when national currency is EUR
C9: Derisking Cycle | D9: =OptDerisk -> Yes
C10: Number of Review Meetings | D10: 3
C11: Number of Payment Milestones | D11: 2 | E11: =IF(D11>D10,"The number of payment milestones cannot exceed the number of review meetings. Please correct.","") -> 
C12: Advance Payment Request | D12: Yes
C13: Last MS number of the orignal contract or previous CCN | D13: 4
A14: =IF((COUNTBLANK(D17:I29)-(COUNTBLANK(C17:C29)*6))=0,0,1) -> 0 | B14: FINANCIAL SUMMARY
C16: Company | D16: Country | E16: SME? | F16: Cost in EUR | G16: Price in EUR | H16: ESA Funding | I16: Advance Payment Request | J16: AP % | K16: AP in EUR
C17: =CompName -> OurLittleComp | D17: =DASHBOARD!C10 -> IT | E17: =D3 -> Yes | F17: ='PSS-A2 (Derisk)'!K65 -> 129056 | G17: ='PSS-A2 (Derisk)'!K68 -> 96792 | H17: =IF(AND(F17<>"",G17<>""),G17/F17,"") -> 0.75 | I17: =D12 -> Yes | J17: =IF(I17="Yes",IF(E17="Yes",0.35,0.1),"") -> 0.35 | K17: =IF(I17="Yes",J17*G17,"") -> 33877.2 | L17: =G17/$G$30 -> 0.5474908367 | M17: =IF(C17<>"",IF(E17="Yes",IF(H17<=References!$C$38,References!$D$38,References!$D$39),IF(E17="No",IF(H17<=References!$C$36,References!$D$36,References!$D$37), IF(H17<=References!$C$40,References!$D$40))),"") -> In line with InCubed rules (up to 80% for SMEs)
C18: =IF('WBS Generator'!$T4=0,"",'WBS Generator'!$T4) -> Subcontractor A | D18: AT | E18: Yes | F18: 50000 | G18: 30000 | H18: =IF(AND(F18<>"",G18<>""),G18/F18,"") -> 0.6 | I18: Yes | J18: =IF(I18="Yes",IF(E18="Yes",0.35,0.1),"") -> 0.35 | K18: =IF(I18="Yes",J18*G18,"") -> 10500 | L18: =G18/$G$30 -> 0.1696909362 | M18: =IF(C18<>"",IF(E18="Yes",IF(H18<=References!$C$38,References!$D$38,References!$D$39),IF(E18="No",IF(H18<=References!$C$36,References!$D$36,References!$D$37), IF(H18<=References!$C$40,References!$D$40))),"") -> In line with InCubed rules (up to 80% for SMEs)
C19: =IF('WBS Generator'!$T5=0,"",'WBS Generator'!$T5) -> Subcontractor B | D19: IT | E19: No | F19: 100000 | G19: 50000 | H19: 0.5 | I19: Yes | J19: 0.1 | K19: 5000 | L19: 0.2828182271 | M19: =IF(C19<>"",IF(E19="Yes",IF(H19<=References!$C$38,References!$D$38,References!$D$39),IF(E19="No",IF(H19<=References!$C$36,References!$D$36,References!$D$37), IF(H19<=References!$C$40,References!$D$40))),"") -> In line with InCubed rules (up to 75% for NON SMEs)
C20: =IF('WBS Generator'!$T6=0,"",'WBS Generator'!$T6) ->  | L20: 0 | M20: =IF(C20<>"",IF(E20="Yes",IF(H20<=References!$C$38,References!$D$38,References!$D$39),IF(E20="No",IF(H20<=References!$C$36,References!$D$36,References!$D$37), IF(H20<=References!$C$40,References!$D$40))),"") -> 
B21: =IF('WBS Generator'!$E7=0,"",'WBS Generator'!$E7) ->  | C21: =IF('WBS Generator'!$T7=0,"",'WBS Generator'!$T7) ->  | L21: 0 | M21: =IF(C21<>"",IF(E21="Yes",IF(H21<=References!$C$38,References!$D$38,References!$D$39),IF(E21="No",IF(H21<=References!$C$36,References!$D$36,References!$D$37), IF(H21<=References!$C$40,References!$D$40))),"") -> 
B22: =IF('WBS Generator'!$E8=0,"",'WBS Generator'!$E8) ->  | C22: =IF('WBS Generator'!$T8=0,"",'WBS Generator'!$T8) ->  | L22: 0 | M22: =IF(C22<>"",IF(E22="Yes",IF(H22<=References!$C$38,References!$D$38,References!$D$39),IF(E22="No",IF(H22<=References!$C$36,References!$D$36,References!$D$37), IF(H22<=References!$C$40,References!$D$40))),"") -> 
B23: =IF('WBS Generator'!$E9=0,"",'WBS Generator'!$E9) ->  | C23: =IF('WBS Generator'!$T9=0,"",'WBS Generator'!$T9) ->  | L23: 0 | M23: =IF(C23<>"",IF(E23="Yes",IF(H23<=References!$C$38,References!$D$38,References!$D$39),IF(E23="No",IF(H23<=References!$C$36,References!$D$36,References!$D$37), IF(H23<=References!$C$40,References!$D$40))),"") -> 
B24: =IF('WBS Generator'!$E10=0,"",'WBS Generator'!$E10) ->  | C24: =IF('WBS Generator'!$T10=0,"",'WBS Generator'!$T10) ->  | L24: 0 | M24: =IF(C24<>"",IF(E24="Yes",IF(H24<=References!$C$38,References!$D$38,References!$D$39),IF(E24="No",IF(H24<=References!$C$36,References!$D$36,References!$D$37), IF(H24<=References!$C$40,References!$D$40))),"") -> 
B25: =IF('WBS Generator'!$E11=0,"",'WBS Generator'!$E11) ->  | C25: =IF('WBS Generator'!$T11=0,"",'WBS Generator'!$T11) ->  | L25: 0 | M25: =IF(C25<>"",IF(E25="Yes",IF(H25<=References!$C$38,References!$D$38,References!$D$39),IF(E25="No",IF(H25<=References!$C$36,References!$D$36,References!$D$37), IF(H25<=References!$C$40,References!$D$40))),"") -> 
B26: =IF('WBS Generator'!$E12=0,"",'WBS Generator'!$E12) ->  | C26: =IF('WBS Generator'!$T12=0,"",'WBS Generator'!$T12) ->  | L26: 0 | M26: =IF(C26<>"",IF(E26="Yes",IF(H26<=References!$C$38,References!$D$38,References!$D$39),IF(E26="No",IF(H26<=References!$C$36,References!$D$36,References!$D$37), IF(H26<=References!$C$40,References!$D$40))),"") -> 
B27: =IF('WBS Generator'!$E13=0,"",'WBS Generator'!$E13) ->  | C27: =IF('WBS Generator'!$T13=0,"",'WBS Generator'!$T13) ->  | L27: 0 | M27: =IF(C27<>"",IF(E27="Yes",IF(H27<=References!$C$38,References!$D$38,References!$D$39),IF(E27="No",IF(H27<=References!$C$36,References!$D$36,References!$D$37), IF(H27<=References!$C$40,References!$D$40))),"") -> 
B28: =IF('WBS Generator'!$E14=0,"",'WBS Generator'!$E14) ->  | C28: =IF('WBS Generator'!$T14=0,"",'WBS Generator'!$T14) ->  | L28: 0 | M28: =IF(C28<>"",IF(E28="Yes",IF(H28<=References!$C$38,References!$D$38,References!$D$39),IF(E28="No",IF(H28<=References!$C$36,References!$D$36,References!$D$37), IF(H28<=References!$C$40,References!$D$40))),"") -> 
B29: =IF('WBS Generator'!$E15=0,"",'WBS Generator'!$E15) ->  | C29: =IF('WBS Generator'!$T15=0,"",'WBS Generator'!$T15) ->  | L29: 0 | M29: =IF(C29<>"",IF(E29="Yes",IF(H29<=References!$C$38,References!$D$38,References!$D$39),IF(E29="No",IF(H29<=References!$C$36,References!$D$36,References!$D$37), IF(H29<=References!$C$40,References!$D$40))),"") -> 
E30: TOTAL | F30: =SUMPRODUCT(--(LEN(C17:C29)>=1),F17:F29) -> 279056 | G30: =SUMPRODUCT(--(LEN(C17:C29)>=1),G17:G29) -> 176792 | K30: =SUMPRODUCT(--(LEN(C17:C29)>=1),K17:K29) -> 49377.2
G31: =IFERROR("("&ROUND(G30/F30*100,0)&"% of total cost)","") -> (63% of total cost) | K31: =IFERROR("("&ROUND(K30/G30*100,0)&"% of total price)","") -> (28% of total price)
C32: ='WBS Generator'!E16 -> 
A34: =IF(AND(COUNTA(C38:C45)>=D11,COUNTA(D38:D45)=COUNTA(C38:C45),COUNTA(F38:F45)=D11,COUNTA(G38:G45)=D11,IF(OR(APR="Yes",K30<>0),COUNTA(H38:H45)=D11,TRUE)),0,1) -> 0 | B34: =" MILESTONE OVERVIEW" & IF(AND(CompResp="Prime",COUNTBLANK('Financial Planning (Derisk)'!C18:C29)<>12)," (overall for Prime and Subcos)","") -> MILESTONE OVERVIEW (overall for Prime and Subcos)
C36: Derisking Milestone Review Meeting | D36: Date | F36: Milestone Payment Meeting? (select with x) | G36: Milestone Payment % Distribution | H36: =IF(OR(AND(CompResp="Subcontractor",APR="No"),K30=0),"","Advance Payment % Offset to be subtracted from the correspondent payment for SMEs in the consortium (total cannot exceed 100%). For non-SME the offset will be by default 10% against the first milestone") -> Advance Payment % Offset to be subtracted from the correspondent payment for SMEs in the consortium (total cannot exceed 100%). For non-SME the offset will be by default 10% against the first milestone | M36: =+IF(OptDerisk="Yes",INDIRECT("D"&37+D10), 0) -> 9
D37: relative to T0=KOM (in months, decimals okay)
C38: RR | D38: 3 | E38: =IF(C38="","",'Project Planning'!$D$4+(365.25/12)*D38) -> 2021-04-02T07:30:00 | F38: x | G38: 0.4 | H38: 0.5 | I38: =IF(D38<>"",IF(F38<>"x",0.1,0),"") -> 0 | J38: =IF(D38<>"",IF(F38="x",0.1,0),"") -> 0.1 | K38: =IF(AND(G38<10%,C39:$C$46="",C38<>""),"The final milestone payment shall be at least 10%","") ->  | L38: =IF(AND(LEFT(C38,4)<>"DCCR",C39:$C$46="",C38<>""),"Please ensure that the final milestone review is called DCCR","") -> 
C39: MTR | D39: 6 | E39: =IF(C39="","",'Project Planning'!$D$4+(365.25/12)*D39) -> 2021-07-02T15:00:00 | I39: =IF(D39<>"",IF(F39<>"x",0.1,0),"") -> 0.1 | J39: =IF(D39<>"",IF(F39="x",0.1,0),"") -> 0 | K39: =IF(AND(G39<10%,C40:$C$46="",C39<>""),"The final milestone payment shall be at least 10%","") ->  | L39: =IF(AND(LEFT(C39,4)<>"DCCR",C40:$C$46="",C39<>""),"Please ensure that the final milestone review is called DCCR","") -> 
C40: DCCR (PDR) | D40: 9 | E40: =IF(C40="","",'Project Planning'!$D$4+(365.25/12)*D40) -> 2021-10-01T22:30:00 | F40: x | G40: 0.6 | H40: 0.5 | I40: =IF(D40<>"",IF(F40<>"x",0.1,0),"") -> 0 | J40: 0.1 | K40: =IF(AND(G40<10%,C41:$C$46="",C40<>""),"The final milestone payment shall be at least 10%","") ->  | L40: =IF(AND(LEFT(C40,4)<>"DCCR",C41:$C$46="",C40<>""),"Please ensure that the final milestone review is called DCCR","") -> 
E41: =IF(C41="","",'Project Planning'!$D$4+(365.25/12)*D41) ->  | K41: =IF(AND(G41<10%,C42:$C$46="",C41<>""),"The final milestone payment shall be at least 10%","") ->  | L41: =IF(AND(LEFT(C41,4)<>"DCCR",C42:$C$46="",C41<>""),"Please ensure that the final milestone review is called DCCR","") -> 
E42: =IF(C42="","",'Project Planning'!$D$4+(365.25/12)*D42) ->  | K42: =IF(AND(G42<10%,C43:$C$46="",C42<>""),"The final milestone payment shall be at least 10%","") ->  | L42: =IF(AND(LEFT(C42,4)<>"DCCR",C43:$C$46="",C42<>""),"Please ensure that the final milestone review is called DCCR","") -> 
E43: =IF(C43="","",'Project Planning'!$D$4+(365.25/12)*D43) ->  | K43: =IF(AND(G43<10%,C44:$C$46="",C43<>""),"The final milestone payment shall be at least 10%","") ->  | L43: =IF(AND(LEFT(C43,4)<>"DCCR",C44:$C$46="",C43<>""),"Please ensure that the final milestone review is called DCCR","") -> 
E44: =IF(C44="","",'Project Planning'!$D$4+(365.25/12)*D44) ->  | K44: =IF(AND(G44<10%,C45:$C$46="",C44<>""),"The final milestone payment shall be at least 10%","") ->  | L44: =IF(AND(LEFT(C44,4)<>"DCCR",C45:$C$46="",C44<>""),"Please ensure that the final milestone review is called DCCR","") -> 
E45: =IF(C45="","",'Project Planning'!$D$4+(365.25/12)*D45) ->  | K45: =IF(AND(G45<10%,C46:$C$46="",C45<>""),"The final milestone payment shall be at least 10%","") ->  | L45: =IF(AND(LEFT(C45,4)<>"DCCR",C46:$C$46="",C45<>""),"Please ensure that the final milestone review is called DCCR","") -> 
C46: ="" ->  | D46: =ProjDur -> 24 | F46: =IF(COUNTIF(F38:F45,"=x")<>$D$11,"Number of milestone payments selected does not match the number indicated above in D11. Please correct.","") ->  | G46: =IF(SUM(G38:G45)>1,"Total % exceeds 100%! Please correct.",IF(SUM(G38:G45)<1,"Total % is less than 100%! Please correct.","")) ->  | H46: =IF(H36="","",IF(CompResp="Prime", IF(SUM(H38:H45)>1,"Total % exceeds 100%! Please correct.",IF(SUM(H38:H45)<1,"Total % is less than 100%! Please correct.","")), IF(SUM(H38:H45)>1,"Total % exceeds 100%! Please correct",IF(SUM(H38:H45)<1,"Total % exceeds 100%! Please correct","")))) ->  | I46: 0 | J46: 0
B49: MILESTONE PAYMENT PLAN
C51: Overall Payment Plan
C52: Payment Milestone | D52: Date | E52: Amount | F52: Advance Payment Offset
B53: =ROW(Milestones) -> 38 | C53: =IFERROR(INDEX(INDIRECT("C"&$B$53&":C"&$B$54),SMALL(IF("x"=INDIRECT("F"&$B$53&":F"&$B$54),ROW(INDIRECT("F"&$B$53&":F"&$B$54))-ROW(INDIRECT("F"&$B$53))+1),1)),"") -> RR | D53: =IFERROR(INDEX(INDIRECT("E"&$B$53&":E"&$B$54),SMALL(IF("x"=INDIRECT("F"&$B$53&":F"&$B$54),ROW(INDIRECT("F"&$B$53&":F"&$B$54))-ROW(INDIRECT("F"&$B$53))+1),1)),"") -> 2021-04-02T07:30:00 | E53: =IFERROR($G$30*INDEX(INDIRECT("G"&$B$53&":G"&$B$54),SMALL(IF("x"=INDIRECT("F"&$B$53&":F"&$B$54),ROW(INDIRECT("F"&$B$53&":F"&$B$54))-ROW(INDIRECT("F"&$B$53))+1),1)),"") -> 70716.8 | F53: =IF(C53="","",SUM(D76:P76)) -> 27188.6
B54: =B53+7 -> 45 | C54: =IFERROR(INDEX(INDIRECT("C"&$B$53&":C"&$B$54),SMALL(IF("x"=INDIRECT("F"&$B$53&":F"&$B$54),ROW(INDIRECT("F"&$B$53&":F"&$B$54))-ROW(INDIRECT("F"&$B$53))+1),2)),"") -> DCCR (PDR) | D54: =IFERROR(INDEX(INDIRECT("E"&$B$53&":E"&$B$54),SMALL(IF("x"=INDIRECT("F"&$B$53&":F"&$B$54),ROW(INDIRECT("F"&$B$53&":F"&$B$54))-ROW(INDIRECT("F"&$B$53))+1),2)),"") -> 2021-10-01T22:30:00 | E54: =IFERROR($G$30*INDEX(INDIRECT("G"&$B$53&":G"&$B$54),SMALL(IF("x"=INDIRECT("F"&$B$53&":F"&$B$54),ROW(INDIRECT("F"&$B$53&":F"&$B$54))-ROW(INDIRECT("F"&$B$53))+1),2)),"") -> 106075.2 | F54: =IF(C54="","",SUM(D77:P77)) -> 22188.6
C55: =IFERROR(INDEX(INDIRECT("C"&$B$53&":C"&$B$54),SMALL(IF("x"=INDIRECT("F"&$B$53&":F"&$B$54),ROW(INDIRECT("F"&$B$53&":F"&$B$54))-ROW(INDIRECT("F"&$B$53))+1),3)),"") ->  | D55: =IFERROR(INDEX(INDIRECT("E"&$B$53&":E"&$B$54),SMALL(IF("x"=INDIRECT("F"&$B$53&":F"&$B$54),ROW(INDIRECT("F"&$B$53&":F"&$B$54))-ROW(INDIRECT("F"&$B$53))+1),3)),"") ->  | E55: =IFERROR($G$30*INDEX(INDIRECT("G"&$B$53&":G"&$B$54),SMALL(IF("x"=INDIRECT("F"&$B$53&":F"&$B$54),ROW(INDIRECT("F"&$B$53&":F"&$B$54))-ROW(INDIRECT("F"&$B$53))+1),3)),"") -> 
C56: =IFERROR(INDEX(INDIRECT("C"&$B$53&":C"&$B$54),SMALL(IF("x"=INDIRECT("F"&$B$53&":F"&$B$54),ROW(INDIRECT("F"&$B$53&":F"&$B$54))-ROW(INDIRECT("F"&$B$53))+1),4)),"") ->  | D56: =IFERROR(INDEX(INDIRECT("E"&$B$53&":E"&$B$54),SMALL(IF("x"=INDIRECT("F"&$B$53&":F"&$B$54),ROW(INDIRECT("F"&$B$53&":F"&$B$54))-ROW(INDIRECT("F"&$B$53))+1),4)),"") ->  | E56: =IFERROR($G$30*INDEX(INDIRECT("G"&$B$53&":G"&$B$54),SMALL(IF("x"=INDIRECT("F"&$B$53&":F"&$B$54),ROW(INDIRECT("F"&$B$53&":F"&$B$54))-ROW(INDIRECT("F"&$B$53))+1),4)),"") -> 
C57: =IFERROR(INDEX(INDIRECT("C"&$B$53&":C"&$B$54),SMALL(IF("x"=INDIRECT("F"&$B$53&":F"&$B$54),ROW(INDIRECT("F"&$B$53&":F"&$B$54))-ROW(INDIRECT("F"&$B$53))+1),5)),"") ->  | D57: =IFERROR(INDEX(INDIRECT("E"&$B$53&":E"&$B$54),SMALL(IF("x"=INDIRECT("F"&$B$53&":F"&$B$54),ROW(INDIRECT("F"&$B$53&":F"&$B$54))-ROW(INDIRECT("F"&$B$53))+1),5)),"") ->  | E57: =IFERROR($G$30*INDEX(INDIRECT("G"&$B$53&":G"&$B$54),SMALL(IF("x"=INDIRECT("F"&$B$53&":F"&$B$54),ROW(INDIRECT("F"&$B$53&":F"&$B$54))-ROW(INDIRECT("F"&$B$53))+1),5)),"") -> 
C58: =IFERROR(INDEX(INDIRECT("C"&$B$53&":C"&$B$54),SMALL(IF("x"=INDIRECT("F"&$B$53&":F"&$B$54),ROW(INDIRECT("F"&$B$53&":F"&$B$54))-ROW(INDIRECT("F"&$B$53))+1),6)),"") ->  | D58: =IFERROR(INDEX(INDIRECT("E"&$B$53&":E"&$B$54),SMALL(IF("x"=INDIRECT("F"&$B$53&":F"&$B$54),ROW(INDIRECT("F"&$B$53&":F"&$B$54))-ROW(INDIRECT("F"&$B$53))+1),6)),"") ->  | E58: =IFERROR($G$30*INDEX(INDIRECT("G"&$B$53&":G"&$B$54),SMALL(IF("x"=INDIRECT("F"&$B$53&":F"&$B$54),ROW(INDIRECT("F"&$B$53&":F"&$B$54))-ROW(INDIRECT("F"&$B$53))+1),6)),"") -> 
C59: =IFERROR(INDEX(INDIRECT("C"&$B$53&":C"&$B$54),SMALL(IF("x"=INDIRECT("F"&$B$53&":F"&$B$54),ROW(INDIRECT("F"&$B$53&":F"&$B$54))-ROW(INDIRECT("F"&$B$53))+1),7)),"") ->  | D59: =IFERROR(INDEX(INDIRECT("E"&$B$53&":E"&$B$54),SMALL(IF("x"=INDIRECT("F"&$B$53&":F"&$B$54),ROW(INDIRECT("F"&$B$53&":F"&$B$54))-ROW(INDIRECT("F"&$B$53))+1),7)),"") ->  | E59: =IFERROR($G$30*INDEX(INDIRECT("G"&$B$53&":G"&$B$54),SMALL(IF("x"=INDIRECT("F"&$B$53&":F"&$B$54),ROW(INDIRECT("F"&$B$53&":F"&$B$54))-ROW(INDIRECT("F"&$B$53))+1),7)),"") -> 
C60: =IFERROR(INDEX(INDIRECT("C"&$B$53&":C"&$B$54),SMALL(IF("x"=INDIRECT("F"&$B$53&":F"&$B$54),ROW(INDIRECT("F"&$B$53&":F"&$B$54))-ROW(INDIRECT("F"&$B$53))+1),8)),"") ->  | D60: =IFERROR(INDEX(INDIRECT("E"&$B$53&":E"&$B$54),SMALL(IF("x"=INDIRECT("F"&$B$53&":F"&$B$54),ROW(INDIRECT("F"&$B$53&":F"&$B$54))-ROW(INDIRECT("F"&$B$53))+1),8)),"") ->  | E60: =IFERROR($G$30*INDEX(INDIRECT("G"&$B$53&":G"&$B$54),SMALL(IF("x"=INDIRECT("F"&$B$53&":F"&$B$54),ROW(INDIRECT("F"&$B$53&":F"&$B$54))-ROW(INDIRECT("F"&$B$53))+1),8)),"") -> 
D61: TOTAL | E61: =SUM(E53:E60) -> 176792 | F61: =SUM(F53:F60) -> 49377.2
C63: Payment Plan Broken Down Per Entity
C64: Payment Milestone | D64: =$C$17 -> OurLittleComp | E64: =$C$18 -> Subcontractor A | F64: =$C$19 -> Subcontractor B | G64: =$C$20 ->  | H64: =$C$21 ->  | I64: =$C$22 ->  | J64: =$C$23 ->  | K64: =$C$24 ->  | L64: =$C$25 ->  | M64: =$C$26 ->  | N64: =$C$27 ->  | O64: =$C$28 ->  | P64: =$C$29 -> 
C65: =IFERROR(INDEX(INDIRECT("C"&$B$53&":C"&$B$54),SMALL(IF("x"=INDIRECT("F"&$B$53&":F"&$B$54),ROW(INDIRECT("F"&$B$53&":F"&$B$54))-ROW(INDIRECT("F"&$B$53))+1),1)),"") -> RR | D65: =IFERROR(IF(D$64<>"",VLOOKUP(D$64,$C$16:$G$29,5,FALSE)*$E53/$E$61,""),"") -> 38716.8 | E65: 12000 | F65: =IFERROR(IF(F$64<>"",VLOOKUP(F$64,$C$16:$G$29,5,FALSE)*$E53/$E$61,""),"") -> 20000
C66: =IFERROR(INDEX(INDIRECT("C"&$B$53&":C"&$B$54),SMALL(IF("x"=INDIRECT("F"&$B$53&":F"&$B$54),ROW(INDIRECT("F"&$B$53&":F"&$B$54))-ROW(INDIRECT("F"&$B$53))+1),2)),"") -> DCCR (PDR) | D66: =IFERROR(IF(D$64<>"",VLOOKUP(D$64,$C$16:$G$29,5,FALSE)*$E54/$E$61,""),"") -> 58075.2 | E66: 18000 | F66: =IFERROR(IF(F$64<>"",VLOOKUP(F$64,$C$16:$G$29,5,FALSE)*$E54/$E$61,""),"") -> 30000
C67: =IFERROR(INDEX(INDIRECT("C"&$B$53&":C"&$B$54),SMALL(IF("x"=INDIRECT("F"&$B$53&":F"&$B$54),ROW(INDIRECT("F"&$B$53&":F"&$B$54))-ROW(INDIRECT("F"&$B$53))+1),3)),"") ->  | D67: =IFERROR(IF(D$64<>"",VLOOKUP(D$64,$C$16:$G$29,5,FALSE)*$E55/$E$61,""),"") -> 
C68: =IFERROR(INDEX(INDIRECT("C"&$B$53&":C"&$B$54),SMALL(IF("x"=INDIRECT("F"&$B$53&":F"&$B$54),ROW(INDIRECT("F"&$B$53&":F"&$B$54))-ROW(INDIRECT("F"&$B$53))+1),4)),"") ->  | D68: =IFERROR(IF(D$64<>"",VLOOKUP(D$64,$C$16:$G$29,5,FALSE)*$E56/$E$61,""),"") -> 
C69: =IFERROR(INDEX(INDIRECT("C"&$B$53&":C"&$B$54),SMALL(IF("x"=INDIRECT("F"&$B$53&":F"&$B$54),ROW(INDIRECT("F"&$B$53&":F"&$B$54))-ROW(INDIRECT("F"&$B$53))+1),5)),"") ->  | D69: =IFERROR(IF(D$64<>"",VLOOKUP(D$64,$C$16:$G$29,5,FALSE)*$E57/$E$61,""),"") -> 
C70: =IFERROR(INDEX(INDIRECT("C"&$B$53&":C"&$B$54),SMALL(IF("x"=INDIRECT("F"&$B$53&":F"&$B$54),ROW(INDIRECT("F"&$B$53&":F"&$B$54))-ROW(INDIRECT("F"&$B$53))+1),6)),"") ->  | D70: =IFERROR(IF(D$64<>"",VLOOKUP(D$64,$C$16:$G$29,5,FALSE)*$E58/$E$61,""),"") -> 
C71: =IFERROR(INDEX(INDIRECT("C"&$B$53&":C"&$B$54),SMALL(IF("x"=INDIRECT("F"&$B$53&":F"&$B$54),ROW(INDIRECT("F"&$B$53&":F"&$B$54))-ROW(INDIRECT("F"&$B$53))+1),7)),"") ->  | D71: =IFERROR(IF(D$64<>"",VLOOKUP(D$64,$C$16:$G$29,5,FALSE)*$E59/$E$61,""),"") -> 
C72: =IFERROR(INDEX(INDIRECT("C"&$B$53&":C"&$B$54),SMALL(IF("x"=INDIRECT("F"&$B$53&":F"&$B$54),ROW(INDIRECT("F"&$B$53&":F"&$B$54))-ROW(INDIRECT("F"&$B$53))+1),8)),"") ->  | D72: =IFERROR(IF(D$64<>"",VLOOKUP(D$64,$C$16:$G$29,5,FALSE)*$E60/$E$61,""),"") -> 
C74: Advance Payment Request Offset Broken Down Per Entity
C75: Payment Milestone | D75: =$C$17 -> OurLittleComp | E75: =$C$18 -> Subcontractor A | F75: =$C$19 -> Subcontractor B | G75: =$C$20 ->  | H75: =$C$21 ->  | I75: =$C$22 ->  | J75: =$C$23 ->  | K75: =$C$24 ->  | L75: =$C$25 ->  | M75: =$C$26 ->  | N75: =$C$27 ->  | O75: =$C$28 ->  | P75: =$C$29 -> 
C76: =IFERROR(INDEX(INDIRECT("C"&$B$53&":C"&$B$54),SMALL(IF("x"=INDIRECT("F"&$B$53&":F"&$B$54),ROW(INDIRECT("F"&$B$53&":F"&$B$54))-ROW(INDIRECT("F"&$B$53))+1),1)),"") -> RR | D76: =IF(D$75="","",IF($C76="","",IF(VLOOKUP(D$75,$C$17:$K$29,7,FALSE)="No",0,IF(VLOOKUP(D$75,$C$17:$K$29,3,FALSE)="No",0.1*VLOOKUP(D$75,$C$17:$K$29,5,FALSE),0.35*VLOOKUP($C76,$C$38:$H$45,6,FALSE)*VLOOKUP(D$75,$C$17:$K$29,5,FALSE))))) -> 16938.6 | E76: =IF(E$75="","",IF($C76="","",IF(VLOOKUP(E$75,$C$17:$K$29,7,FALSE)="No",0,IF(VLOOKUP(E$75,$C$17:$K$29,3,FALSE)="No",0.1*VLOOKUP(E$75,$C$17:$K$29,5,FALSE),0.35*VLOOKUP($C76,$C$38:$H$45,6,FALSE)*VLOOKUP(E$75,$C$17:$K$29,5,FALSE))))) -> 5250 | F76: 5000
C77: =IFERROR(INDEX(INDIRECT("C"&$B$53&":C"&$B$54),SMALL(IF("x"=INDIRECT("F"&$B$53&":F"&$B$54),ROW(INDIRECT("F"&$B$53&":F"&$B$54))-ROW(INDIRECT("F"&$B$53))+1),2)),"") -> DCCR (PDR) | D77: =IF(D$75="","",IF($C77="","",IF(VLOOKUP(D$75,$C$17:$K$29,7,FALSE)="No",0,IF(VLOOKUP(D$75,$C$17:$K$29,3,FALSE)="No",0,0.35*VLOOKUP($C77,$C$38:$H$45,6,FALSE)*VLOOKUP(D$75,$C$17:$K$29,5,FALSE))))) -> 16938.6 | E77: =IF(E$75="","",IF($C77="","",IF(VLOOKUP(E$75,$C$17:$K$29,7,FALSE)="No",0,IF(VLOOKUP(E$75,$C$17:$K$29,3,FALSE)="No",0,0.35*VLOOKUP($C77,$C$38:$H$45,6,FALSE)*VLOOKUP(E$75,$C$17:$K$29,5,FALSE))))) -> 5250 | F77: 0
C78: =IFERROR(INDEX(INDIRECT("C"&$B$53&":C"&$B$54),SMALL(IF("x"=INDIRECT("F"&$B$53&":F"&$B$54),ROW(INDIRECT("F"&$B$53&":F"&$B$54))-ROW(INDIRECT("F"&$B$53))+1),3)),"") ->  | D78: =IF(D$75="","",IF($C78="","",IF(VLOOKUP(D$75,$C$17:$K$29,7,FALSE)="No",0,IF(VLOOKUP(D$75,$C$17:$K$29,3,FALSE)="No",0,0.35*VLOOKUP($C78,$C$38:$H$45,6,FALSE)*VLOOKUP(D$75,$C$17:$K$29,5,FALSE))))) -> 
C79: =IFERROR(INDEX(INDIRECT("C"&$B$53&":C"&$B$54),SMALL(IF("x"=INDIRECT("F"&$B$53&":F"&$B$54),ROW(INDIRECT("F"&$B$53&":F"&$B$54))-ROW(INDIRECT("F"&$B$53))+1),4)),"") -> 
C80: =IFERROR(INDEX(INDIRECT("C"&$B$53&":C"&$B$54),SMALL(IF("x"=INDIRECT("F"&$B$53&":F"&$B$54),ROW(INDIRECT("F"&$B$53&":F"&$B$54))-ROW(INDIRECT("F"&$B$53))+1),5)),"") -> 
C81: =IFERROR(INDEX(INDIRECT("C"&$B$53&":C"&$B$54),SMALL(IF("x"=INDIRECT("F"&$B$53&":F"&$B$54),ROW(INDIRECT("F"&$B$53&":F"&$B$54))-ROW(INDIRECT("F"&$B$53))+1),6)),"") -> 
C82: =IFERROR(INDEX(INDIRECT("C"&$B$53&":C"&$B$54),SMALL(IF("x"=INDIRECT("F"&$B$53&":F"&$B$54),ROW(INDIRECT("F"&$B$53&":F"&$B$54))-ROW(INDIRECT("F"&$B$53))+1),7)),"") -> 
C83: =IFERROR(INDEX(INDIRECT("C"&$B$53&":C"&$B$54),SMALL(IF("x"=INDIRECT("F"&$B$53&":F"&$B$54),ROW(INDIRECT("F"&$B$53&":F"&$B$54))-ROW(INDIRECT("F"&$B$53))+1),8)),"") -> 
C85: =CompName&" Payment Plan" -> OurLittleComp Payment Plan
C86: Payment Milestone | D86: Date | E86: Amount | F86: Advance Payment Offset
C87: =IFERROR(INDEX(INDIRECT("C"&$B$53&":C"&$B$54),SMALL(IF("x"=INDIRECT("F"&$B$53&":F"&$B$54),ROW(INDIRECT("F"&$B$53&":F"&$B$54))-ROW(INDIRECT("F"&$B$53))+1),1)),"") -> RR | D87: =IFERROR(INDEX(INDIRECT("E"&$B$53&":E"&$B$54),SMALL(IF("x"=INDIRECT("F"&$B$53&":F"&$B$54),ROW(INDIRECT("F"&$B$53&":F"&$B$54))-ROW(INDIRECT("F"&$B$53))+1),1)),"") -> 2021-04-02T07:30:00 | E87: =IFERROR('PSS-A2 (Derisk)'!$K$68*INDEX(INDIRECT("G"&$B$53&":G"&$B$54),SMALL(IF("x"=INDIRECT("F"&$B$53&":F"&$B$54),ROW(INDIRECT("F"&$B$53&":F"&$B$54))-ROW(INDIRECT("F"&$B$53))+1),1)),"") -> 38716.8 | F87: =IF(C87="","",D76) -> 16938.6 | H87: =IFERROR(INDEX(INDIRECT("D"&$B$53&":D"&$B$54),SMALL(IF("x"=INDIRECT("F"&$B$53&":F"&$B$54),ROW(INDIRECT("F"&$B$53&":F"&$B$54))-ROW(INDIRECT("F"&$B$53))+1),1)),"") -> 3 | I87: =IF(F87<>"",E87-F87,"") -> 21778.2
C88: =IFERROR(INDEX(INDIRECT("C"&$B$53&":C"&$B$54),SMALL(IF("x"=INDIRECT("F"&$B$53&":F"&$B$54),ROW(INDIRECT("F"&$B$53&":F"&$B$54))-ROW(INDIRECT("F"&$B$53))+1),2)),"") -> DCCR (PDR) | D88: =IFERROR(INDEX(INDIRECT("E"&$B$53&":E"&$B$54),SMALL(IF("x"=INDIRECT("F"&$B$53&":F"&$B$54),ROW(INDIRECT("F"&$B$53&":F"&$B$54))-ROW(INDIRECT("F"&$B$53))+1),2)),"") -> 2021-10-01T22:30:00 | E88: =IFERROR('PSS-A2 (Derisk)'!$K$68*INDEX(INDIRECT("G"&$B$53&":G"&$B$54),SMALL(IF("x"=INDIRECT("F"&$B$53&":F"&$B$54),ROW(INDIRECT("F"&$B$53&":F"&$B$54))-ROW(INDIRECT("F"&$B$53))+1),2)),"") -> 58075.2 | F88: =IF(C88="","",D77) -> 16938.6 | H88: =IFERROR(INDEX(INDIRECT("D"&$B$53&":D"&$B$54),SMALL(IF("x"=INDIRECT("F"&$B$53&":F"&$B$54),ROW(INDIRECT("F"&$B$53&":F"&$B$54))-ROW(INDIRECT("F"&$B$53))+1),2)),"") -> 9 | I88: =IF(F88<>"",E88-F88,"") -> 41136.6
C89: =IFERROR(INDEX(INDIRECT("C"&$B$53&":C"&$B$54),SMALL(IF("x"=INDIRECT("F"&$B$53&":F"&$B$54),ROW(INDIRECT("F"&$B$53&":F"&$B$54))-ROW(INDIRECT("F"&$B$53))+1),3)),"") ->  | D89: =IFERROR(INDEX(INDIRECT("E"&$B$53&":E"&$B$54),SMALL(IF("x"=INDIRECT("F"&$B$53&":F"&$B$54),ROW(INDIRECT("F"&$B$53&":F"&$B$54))-ROW(INDIRECT("F"&$B$53))+1),3)),"") ->  | E89: =IFERROR('PSS-A2 (Derisk)'!$K$68*INDEX(INDIRECT("G"&$B$53&":G"&$B$54),SMALL(IF("x"=INDIRECT("F"&$B$53&":F"&$B$54),ROW(INDIRECT("F"&$B$53&":F"&$B$54))-ROW(INDIRECT("F"&$B$53))+1),3)),"") ->  | H89: =IFERROR(INDEX(INDIRECT("D"&$B$53&":D"&$B$54),SMALL(IF("x"=INDIRECT("F"&$B$53&":F"&$B$54),ROW(INDIRECT("F"&$B$53&":F"&$B$54))-ROW(INDIRECT("F"&$B$53))+1),3)),"") -> 
C90: =IFERROR(INDEX(INDIRECT("C"&$B$53&":C"&$B$54),SMALL(IF("x"=INDIRECT("F"&$B$53&":F"&$B$54),ROW(INDIRECT("F"&$B$53&":F"&$B$54))-ROW(INDIRECT("F"&$B$53))+1),4)),"") ->  | D90: =IFERROR(INDEX(INDIRECT("E"&$B$53&":E"&$B$54),SMALL(IF("x"=INDIRECT("F"&$B$53&":F"&$B$54),ROW(INDIRECT("F"&$B$53&":F"&$B$54))-ROW(INDIRECT("F"&$B$53))+1),4)),"") ->  | E90: =IFERROR('PSS-A2 (Derisk)'!$K$68*INDEX(INDIRECT("G"&$B$53&":G"&$B$54),SMALL(IF("x"=INDIRECT("F"&$B$53&":F"&$B$54),ROW(INDIRECT("F"&$B$53&":F"&$B$54))-ROW(INDIRECT("F"&$B$53))+1),4)),"") ->  | H90: =IFERROR(INDEX(INDIRECT("D"&$B$53&":D"&$B$54),SMALL(IF("x"=INDIRECT("F"&$B$53&":F"&$B$54),ROW(INDIRECT("F"&$B$53&":F"&$B$54))-ROW(INDIRECT("F"&$B$53))+1),4)),"") -> 
C91: =IFERROR(INDEX(INDIRECT("C"&$B$53&":C"&$B$54),SMALL(IF("x"=INDIRECT("F"&$B$53&":F"&$B$54),ROW(INDIRECT("F"&$B$53&":F"&$B$54))-ROW(INDIRECT("F"&$B$53))+1),5)),"") ->  | D91: =IFERROR(INDEX(INDIRECT("E"&$B$53&":E"&$B$54),SMALL(IF("x"=INDIRECT("F"&$B$53&":F"&$B$54),ROW(INDIRECT("F"&$B$53&":F"&$B$54))-ROW(INDIRECT("F"&$B$53))+1),5)),"") ->  | E91: =IFERROR('PSS-A2 (Derisk)'!$K$68*INDEX(INDIRECT("G"&$B$53&":G"&$B$54),SMALL(IF("x"=INDIRECT("F"&$B$53&":F"&$B$54),ROW(INDIRECT("F"&$B$53&":F"&$B$54))-ROW(INDIRECT("F"&$B$53))+1),5)),"") ->  | H91: =IFERROR(INDEX(INDIRECT("D"&$B$53&":D"&$B$54),SMALL(IF("x"=INDIRECT("F"&$B$53&":F"&$B$54),ROW(INDIRECT("F"&$B$53&":F"&$B$54))-ROW(INDIRECT("F"&$B$53))+1),5)),"") -> 
C92: =IFERROR(INDEX(INDIRECT("C"&$B$53&":C"&$B$54),SMALL(IF("x"=INDIRECT("F"&$B$53&":F"&$B$54),ROW(INDIRECT("F"&$B$53&":F"&$B$54))-ROW(INDIRECT("F"&$B$53))+1),6)),"") ->  | D92: =IFERROR(INDEX(INDIRECT("E"&$B$53&":E"&$B$54),SMALL(IF("x"=INDIRECT("F"&$B$53&":F"&$B$54),ROW(INDIRECT("F"&$B$53&":F"&$B$54))-ROW(INDIRECT("F"&$B$53))+1),6)),"") ->  | E92: =IFERROR('PSS-A2 (Derisk)'!$K$68*INDEX(INDIRECT("G"&$B$53&":G"&$B$54),SMALL(IF("x"=INDIRECT("F"&$B$53&":F"&$B$54),ROW(INDIRECT("F"&$B$53&":F"&$B$54))-ROW(INDIRECT("F"&$B$53))+1),6)),"") ->  | H92: =IFERROR(INDEX(INDIRECT("D"&$B$53&":D"&$B$54),SMALL(IF("x"=INDIRECT("F"&$B$53&":F"&$B$54),ROW(INDIRECT("F"&$B$53&":F"&$B$54))-ROW(INDIRECT("F"&$B$53))+1),6)),"") -> 
C93: =IFERROR(INDEX(INDIRECT("C"&$B$53&":C"&$B$54),SMALL(IF("x"=INDIRECT("F"&$B$53&":F"&$B$54),ROW(INDIRECT("F"&$B$53&":F"&$B$54))-ROW(INDIRECT("F"&$B$53))+1),7)),"") ->  | D93: =IFERROR(INDEX(INDIRECT("E"&$B$53&":E"&$B$54),SMALL(IF("x"=INDIRECT("F"&$B$53&":F"&$B$54),ROW(INDIRECT("F"&$B$53&":F"&$B$54))-ROW(INDIRECT("F"&$B$53))+1),7)),"") ->  | E93: =IFERROR('PSS-A2 (Derisk)'!$K$68*INDEX(INDIRECT("G"&$B$53&":G"&$B$54),SMALL(IF("x"=INDIRECT("F"&$B$53&":F"&$B$54),ROW(INDIRECT("F"&$B$53&":F"&$B$54))-ROW(INDIRECT("F"&$B$53))+1),7)),"") ->  | H93: =IFERROR(INDEX(INDIRECT("D"&$B$53&":D"&$B$54),SMALL(IF("x"=INDIRECT("F"&$B$53&":F"&$B$54),ROW(INDIRECT("F"&$B$53&":F"&$B$54))-ROW(INDIRECT("F"&$B$53))+1),7)),"") -> 
C94: =IFERROR(INDEX(INDIRECT("C"&$B$53&":C"&$B$54),SMALL(IF("x"=INDIRECT("F"&$B$53&":F"&$B$54),ROW(INDIRECT("F"&$B$53&":F"&$B$54))-ROW(INDIRECT("F"&$B$53))+1),8)),"") ->  | D94: =IFERROR(INDEX(INDIRECT("E"&$B$53&":E"&$B$54),SMALL(IF("x"=INDIRECT("F"&$B$53&":F"&$B$54),ROW(INDIRECT("F"&$B$53&":F"&$B$54))-ROW(INDIRECT("F"&$B$53))+1),8)),"") ->  | E94: =IFERROR('PSS-A2 (Derisk)'!$K$68*INDEX(INDIRECT("G"&$B$53&":G"&$B$54),SMALL(IF("x"=INDIRECT("F"&$B$53&":F"&$B$54),ROW(INDIRECT("F"&$B$53&":F"&$B$54))-ROW(INDIRECT("F"&$B$53))+1),8)),"") ->  | H94: =IFERROR(INDEX(INDIRECT("D"&$B$53&":D"&$B$54),SMALL(IF("x"=INDIRECT("F"&$B$53&":F"&$B$54),ROW(INDIRECT("F"&$B$53&":F"&$B$54))-ROW(INDIRECT("F"&$B$53))+1),8)),"") -> 
D95: TOTAL | E95: =SUM(E87:E94) -> 96792 | F95: =SUM(F87:F94) -> 33877.2

Sheet Financial Planning (ProdDev)
A2: =IF((COUNTBLANK(D3:D7)+COUNTBLANK(D9:D12))=0,0, IF((COUNTBLANK(D3:D7)+COUNTBLANK(D9:D12))=9, 2, 1)) -> 0 | C2: Additional Information
C3: SME | D3: Yes
C4: Contractual Phase | D4: N/A | E4: For instance: N/A, CCN1, …
C5: Contract Price Type | D5: Firm Fixed Price
C6: Economic Condition | D6: 2021-2022 | E6: For instance: 2021-2022
C7: ="Exchange Rate (1 EUR / 1 "&DASHBOARD!C11&")" -> Exchange Rate (1 EUR / 1 EUR) | D7: 1 | E7: =1 when national currency is EUR
C9: Product Development Cycle | D9: =OptProdDev -> Yes
C10: Number of Review Meetings | D10: 5
C11: Number of Payment Milestones | D11: 4 | E11: =IF(D11>D10,"The number of payment milestones cannot exceed the number of review meetings. Please correct.","") -> 
C12: Advance Payment Request | D12: Yes
C13: Last MS number of the orignal contract or previous CCN | D13: 2
A14: =IF((COUNTBLANK(D17:I29)-(COUNTBLANK(C17:C29)*6))=0,0,1) -> 0 | B14: FINANCIAL SUMMARY
C16: Company | D16: Country | E16: SME? | F16: Cost in EUR | G16: Price in EUR | H16: ESA Funding | I16: Advance Payment Request | J16: AP % | K16: AP in EUR
C17: =CompName -> OurLittleComp | D17: =DASHBOARD!C10 -> IT | E17: =D3 -> Yes | F17: ='PSS-A2 (ProdDev)'!K65 -> 445965 | G17: ='PSS-A2 (ProdDev)'!K68 -> 222983 | H17: =IF(AND(F17<>"",G17<>""),G17/F17,"") -> 0.5000011212 | I17: =D12 -> Yes | J17: =IF(I17="Yes",IF(E17="Yes",0.35,0.1),"") -> 0.35 | K17: =IF(I17="Yes",J17*G17,"") -> 78044.05 | L17: =G17/$G$30 -> 0.443321146 | M17: =IF(C17<>"",IF(E17="Yes",IF(H17<=References!$C$31,References!$D$31,References!$D$32),IF(E17="No",IF(H17<=References!$C$29,References!$D$29,References!$D$30), IF(H17<=References!$C$24,References!$D$33))),"") -> In line with InCubed rules (up to 80% for SMEs)
C18: =IF('WBS Generator'!$U4=0,"",'WBS Generator'!$U4) -> Subcontractor A | D18: AT | E18: Yes | F18: 100000 | G18: 75000 | H18: =IF(AND(F18<>"",G18<>""),G18/F18,"") -> 0.75 | I18: Yes | J18: =IF(I18="Yes",IF(E18="Yes",0.35,0.1),"") -> 0.35 | K18: =IF(I18="Yes",J18*G18,"") -> 26250 | L18: =G18/$G$30 -> 0.1491104073 | M18: =IF(C18<>"",IF(E18="Yes",IF(H18<=References!$C$31,References!$D$31,References!$D$32),IF(E18="No",IF(H18<=References!$C$29,References!$D$29,References!$D$30), IF(H18<=References!$C$24,References!$D$33))),"") -> In line with InCubed rules (up to 80% for SMEs)
C19: =IF('WBS Generator'!$U5=0,"",'WBS Generator'!$U5) -> Subcontractor B | D19: IT | E19: No | F19: 250000 | G19: 125000 | H19: 0.5 | I19: Yes | J19: 0.1 | K19: =IF(I19="Yes",J19*G19,"") -> 12500 | L19: 0.2485173455 | M19: =IF(C19<>"",IF(E19="Yes",IF(H19<=References!$C$31,References!$D$31,References!$D$32),IF(E19="No",IF(H19<=References!$C$29,References!$D$29,References!$D$30), IF(H19<=References!$C$24,References!$D$33))),"") -> In line with InCubed rules (up to 50% for NON SMEs)
C20: =IF('WBS Generator'!$U6=0,"",'WBS Generator'!$U6) -> Subcontractor C | D20: DE | E20: No | F20: 160000 | G20: 80000 | H20: 0.5 | I20: Yes | J20: 0.1 | K20: 8000 | L20: 0.1590511011 | M20: =IF(C20<>"",IF(E20="Yes",IF(H20<=References!$C$31,References!$D$31,References!$D$32),IF(E20="No",IF(H20<=References!$C$29,References!$D$29,References!$D$30), IF(H20<=References!$C$24,References!$D$33))),"") -> In line with InCubed rules (up to 50% for NON SMEs)
C21: =IF('WBS Generator'!$U7=0,"",'WBS Generator'!$U7) ->  | L21: 0 | M21: =IF(C21<>"",IF(E21="Yes",IF(H21<=References!$C$31,References!$D$31,References!$D$32),IF(E21="No",IF(H21<=References!$C$29,References!$D$29,References!$D$30), IF(H21<=References!$C$24,References!$D$33))),"") -> 
C22: =IF('WBS Generator'!$U8=0,"",'WBS Generator'!$U8) ->  | L22: 0 | M22: =IF(C22<>"",IF(E22="Yes",IF(H22<=References!$C$31,References!$D$31,References!$D$32),IF(E22="No",IF(H22<=References!$C$29,References!$D$29,References!$D$30), IF(H22<=References!$C$24,References!$D$33))),"") -> 
C23: =IF('WBS Generator'!$U9=0,"",'WBS Generator'!$U9) ->  | L23: 0 | M23: =IF(C23<>"",IF(E23="Yes",IF(H23<=References!$C$31,References!$D$31,References!$D$32),IF(E23="No",IF(H23<=References!$C$29,References!$D$29,References!$D$30), IF(H23<=References!$C$24,References!$D$33))),"") -> 
C24: =IF('WBS Generator'!$U10=0,"",'WBS Generator'!$U10) ->  | L24: 0 | M24: =IF(C24<>"",IF(E24="Yes",IF(H24<=References!$C$31,References!$D$31,References!$D$32),IF(E24="No",IF(H24<=References!$C$29,References!$D$29,References!$D$30), IF(H24<=References!$C$24,References!$D$33))),"") -> 
C25: =IF('WBS Generator'!$U11=0,"",'WBS Generator'!$U11) ->  | L25: 0 | M25: =IF(C25<>"",IF(E25="Yes",IF(H25<=References!$C$31,References!$D$31,References!$D$32),IF(E25="No",IF(H25<=References!$C$29,References!$D$29,References!$D$30), IF(H25<=References!$C$24,References!$D$33))),"") -> 
C26: =IF('WBS Generator'!$U12=0,"",'WBS Generator'!$U12) ->  | L26: 0 | M26: =IF(C26<>"",IF(E26="Yes",IF(H26<=References!$C$31,References!$D$31,References!$D$32),IF(E26="No",IF(H26<=References!$C$29,References!$D$29,References!$D$30), IF(H26<=References!$C$24,References!$D$33))),"") -> 
C27: =IF('WBS Generator'!$U13=0,"",'WBS Generator'!$U13) ->  | L27: 0 | M27: =IF(C27<>"",IF(E27="Yes",IF(H27<=References!$C$31,References!$D$31,References!$D$32),IF(E27="No",IF(H27<=References!$C$29,References!$D$29,References!$D$30), IF(H27<=References!$C$24,References!$D$33))),"") -> 
C28: =IF('WBS Generator'!$U14=0,"",'WBS Generator'!$U14) ->  | L28: 0 | M28: =IF(C28<>"",IF(E28="Yes",IF(H28<=References!$C$31,References!$D$31,References!$D$32),IF(E28="No",IF(H28<=References!$C$29,References!$D$29,References!$D$30), IF(H28<=References!$C$24,References!$D$33))),"") -> 
C29: =IF('WBS Generator'!$U15=0,"",'WBS Generator'!$U15) ->  | L29: 0 | M29: =IF(C29<>"",IF(E29="Yes",IF(H29<=References!$C$31,References!$D$31,References!$D$32),IF(E29="No",IF(H29<=References!$C$29,References!$D$29,References!$D$30), IF(H29<=References!$C$24,References!$D$33))),"") -> 
E30: TOTAL | F30: =SUMPRODUCT(--(LEN(C17:C29)>=1),F17:F29) -> 955965 | G30: =SUMPRODUCT(--(LEN(C17:C29)>=1),G17:G29) -> 502983 | K30: =SUMPRODUCT(--(LEN(C17:C29)>=1),K17:K29) -> 124794.05
G31: =IFERROR("("&ROUND(G30/F30*100,0)&"% of total cost)","") -> (53% of total cost) | K31: =IFERROR("("&ROUND(K30/G30*100,0)&"% of total price)","") -> (25% of total price)
C32: ='WBS Generator'!E16 -> 
A34: =IF(AND(COUNTA(B38:B45)>=D11,COUNTA(D38:D45)=COUNTA(B38:B45),COUNTA(F38:F45)=D11,COUNTA(G38:G45)=D11,IF(OR(APRpd="Yes",K30<>0),COUNTA(H38:H45)=D11,TRUE)),0,1) -> 0 | B34: =" MILESTONE OVERVIEW" & IF(AND(CompResp="Prime",COUNTBLANK('Financial Planning (ProdDev)'!C18:C29)<>12)," (overall for Prime and Subcos)","") -> MILESTONE OVERVIEW (overall for Prime and Subcos)
B36: Product Development Milestone Review Meeting | D36: Date | F36: Milestone Payment Meeting? (select with x) | G36: Milestone Payment % Distribution | H36: =IF(OR(AND(CompResp="Subcontractor",APRpd="No"),K30=0),"","Advance Payment % Offset to be subtracted from the correspondent payment for SMEs in the consortium (total cannot exceed 100%). For non-SME the offset will be by default 10% against the first milestone") -> Advance Payment % Offset to be subtracted from the correspondent payment for SMEs in the consortium (total cannot exceed 100%). For non-SME the offset will be by default 10% against the first milestone
D37: relative to T0=KOM (in months, decimals okay) | L37: =+INDIRECT("D"&37+D10)-deriskdur -> 15
B38: RR | C38: =IF(B38="","",IF(ISNUMBER(SEARCH("CCN",'WBS Generator'!$A$3)),'WBS Generator'!$A$3&" "&B38,B38)) -> RR | D38: 12 | E38: =IF(C38="","",'Project Planning'!$D$4+(365.25/12)*D38) -> 2022-01-01T06:00:00 | F38: x | G38: 0.3 | H38: 0 | I38: =IF(D38<>"",IF(F38<>"x",0.1,0),"") -> 0 | J38: =IF(D38<>"",IF(F38="x",0.1,0),"") -> 0.1 | K38: =IF(AND(G38<10%,C39:$C$46="",C38<>""),"The final milestone payment shall be at least 10%","") -> 
B39: CDR | C39: =IF(B39="","",IF(ISNUMBER(SEARCH("CCN",'WBS Generator'!$A$3)),'WBS Generator'!$A$3&" "&B39,B39)) -> CDR | D39: 15 | E39: =IF(C39="","",'Project Planning'!$D$4+(365.25/12)*D39) -> 2022-04-02T13:30:00 | F39: x | G39: 0.3 | H39: 0.4 | I39: =IF(D39<>"",IF(F39<>"x",0.1,0),"") -> 0 | J39: =IF(D39<>"",IF(F39="x",0.1,0),"") -> 0.1 | K39: =IF(AND(G39<10%,C40:$C$46="",C39<>""),"The final milestone payment shall be at least 10%","") -> 
B40: FAT | C40: =IF(B40="","",IF(ISNUMBER(SEARCH("CCN",'WBS Generator'!$A$3)),'WBS Generator'!$A$3&" "&B40,B40)) -> FAT | D40: 20 | E40: =IF(C40="","",'Project Planning'!$D$4+(365.25/12)*D40) -> 2022-09-01T18:00:00 | F40: x | G40: 0.2 | H40: 0.4 | I40: 0 | J40: 0.1 | K40: =IF(AND(G40<10%,C41:$C$46="",C40<>""),"The final milestone payment shall be at least 10%","") -> 
B41: SAT | C41: =IF(B41="","",IF(ISNUMBER(SEARCH("CCN",'WBS Generator'!$A$3)),'WBS Generator'!$A$3&" "&B41,B41)) -> SAT | D41: 22 | E41: =IF(C41="","",'Project Planning'!$D$4+(365.25/12)*D41) -> 2022-11-01T15:00:00 | I41: 0.1 | J41: 0 | K41: =IF(AND(G41<10%,C42:$C$46="",C41<>""),"The final milestone payment shall be at least 10%","") -> 
B42: FR | C42: =IF(B42="","",IF(ISNUMBER(SEARCH("CCN",'WBS Generator'!$A$3)),'WBS Generator'!$A$3&" "&B42,B42)) -> FR | D42: 24 | E42: =IF(C42="","",'Project Planning'!$D$4+(365.25/12)*D42) -> 2023-01-01T12:00:00 | F42: x | G42: 0.2 | H42: 0.2 | I42: 0 | J42: 0.1 | K42: =IF(AND(G42<10%,C43:$C$46="",C42<>""),"The final milestone payment shall be at least 10%","") -> 
C43: =IF(B43="","",IF(ISNUMBER(SEARCH("CCN",'WBS Generator'!$A$3)),'WBS Generator'!$A$3&" "&B43,B43)) ->  | E43: =IF(C43="","",'Project Planning'!$D$4+(365.25/12)*D43) ->  | K43: =IF(AND(G43<10%,C44:$C$46="",C43<>""),"The final milestone payment shall be at least 10%","") -> 
C44: =IF(B44="","",IF(ISNUMBER(SEARCH("CCN",'WBS Generator'!$A$3)),'WBS Generator'!$A$3&" "&B44,B44)) ->  | E44: =IF(C44="","",'Project Planning'!$D$4+(365.25/12)*D44) ->  | K44: =IF(AND(G44<10%,C45:$C$46="",C44<>""),"The final milestone payment shall be at least 10%","") -> 
C45: =IF(B45="","",IF(ISNUMBER(SEARCH("CCN",'WBS Generator'!$A$3)),'WBS Generator'!$A$3&" "&B45,B45)) ->  | E45: =IF(C45="","",'Project Planning'!$D$4+(365.25/12)*D45) ->  | K45: =IF(AND(G45<10%,C46:$C$46="",C45<>""),"The final milestone payment shall be at least 10%","") -> 
C46: ="" ->  | D46: =ProjDur -> 24 | F46: =IF(COUNTIF(F38:F45,"=x")<>$D$11,"Number of milestone payments selected does not match the number indicated above in D11. Please correct.","") ->  | G46: =IF(SUM(G38:G45)>1,"Total % exceeds 100%! Please correct.",IF(SUM(G38:G45)<1,"Total % is less than 100%! Please correct.","")) ->  | H46: =IF(H36="","",IF(CompResp="Prime", IF(SUM(H38:H45)>1,"Total % exceeds 100%! Please correct.",IF(SUM(H38:H45)<1,"Total % is less than 100%! Please correct.","")), IF(SUM(H38:H45)>1,"Total % exceeds 100%! Please correct",IF(SUM(H38:H45)<1,"Total % exceeds 100%! Please correct","")))) ->  | I46: 0 | J46: 0
B49: MILESTONE PAYMENT PLAN
C51: Overall Payment Plan
C52: Payment Milestone | D52: Date | E52: Amount | F52: Advance Payment Offset
B53: =ROW(Milestones_PD) -> 38 | C53: =IFERROR(INDEX(INDIRECT("C"&$B$53&":C"&$B$54),SMALL(IF("x"=INDIRECT("F"&$B$53&":F"&$B$54),ROW(INDIRECT("F"&$B$53&":F"&$B$54))-ROW(INDIRECT("F"&$B$53))+1),1)),"") -> RR | D53: =IFERROR(INDEX(INDIRECT("E"&$B$53&":E"&$B$54),SMALL(IF("x"=INDIRECT("F"&$B$53&":F"&$B$54),ROW(INDIRECT("F"&$B$53&":F"&$B$54))-ROW(INDIRECT("F"&$B$53))+1),1)),"") -> 2022-01-01T06:00:00 | E53: =IFERROR($G$30*INDEX(INDIRECT("G"&$B$53&":G"&$B$54),SMALL(IF("x"=INDIRECT("F"&$B$53&":F"&$B$54),ROW(INDIRECT("F"&$B$53&":F"&$B$54))-ROW(INDIRECT("F"&$B$53))+1),1)),"") -> 150894.9 | F53: =IF(C53="","",SUM(D76:P76)) -> 20500
B54: =B53+7 -> 45 | C54: =IFERROR(INDEX(INDIRECT("C"&$B$53&":C"&$B$54),SMALL(IF("x"=INDIRECT("F"&$B$53&":F"&$B$54),ROW(INDIRECT("F"&$B$53&":F"&$B$54))-ROW(INDIRECT("F"&$B$53))+1),2)),"") -> CDR | D54: =IFERROR(INDEX(INDIRECT("E"&$B$53&":E"&$B$54),SMALL(IF("x"=INDIRECT("F"&$B$53&":F"&$B$54),ROW(INDIRECT("F"&$B$53&":F"&$B$54))-ROW(INDIRECT("F"&$B$53))+1),2)),"") -> 2022-04-02T13:30:00 | E54: =IFERROR($G$30*INDEX(INDIRECT("G"&$B$53&":G"&$B$54),SMALL(IF("x"=INDIRECT("F"&$B$53&":F"&$B$54),ROW(INDIRECT("F"&$B$53&":F"&$B$54))-ROW(INDIRECT("F"&$B$53))+1),2)),"") -> 150894.9 | F54: =IF(C54="","",SUM(D77:P77)) -> 41717.62
C55: =IFERROR(INDEX(INDIRECT("C"&$B$53&":C"&$B$54),SMALL(IF("x"=INDIRECT("F"&$B$53&":F"&$B$54),ROW(INDIRECT("F"&$B$53&":F"&$B$54))-ROW(INDIRECT("F"&$B$53))+1),3)),"") -> FAT | D55: =IFERROR(INDEX(INDIRECT("E"&$B$53&":E"&$B$54),SMALL(IF("x"=INDIRECT("F"&$B$53&":F"&$B$54),ROW(INDIRECT("F"&$B$53&":F"&$B$54))-ROW(INDIRECT("F"&$B$53))+1),3)),"") -> 2022-09-01T18:00:00 | E55: =IFERROR($G$30*INDEX(INDIRECT("G"&$B$53&":G"&$B$54),SMALL(IF("x"=INDIRECT("F"&$B$53&":F"&$B$54),ROW(INDIRECT("F"&$B$53&":F"&$B$54))-ROW(INDIRECT("F"&$B$53))+1),3)),"") -> 100596.6 | F55: =IF(C55="","",SUM(D78:P78)) -> 41717.62
C56: =IFERROR(INDEX(INDIRECT("C"&$B$53&":C"&$B$54),SMALL(IF("x"=INDIRECT("F"&$B$53&":F"&$B$54),ROW(INDIRECT("F"&$B$53&":F"&$B$54))-ROW(INDIRECT("F"&$B$53))+1),4)),"") -> FR | D56: =IFERROR(INDEX(INDIRECT("E"&$B$53&":E"&$B$54),SMALL(IF("x"=INDIRECT("F"&$B$53&":F"&$B$54),ROW(INDIRECT("F"&$B$53&":F"&$B$54))-ROW(INDIRECT("F"&$B$53))+1),4)),"") -> 2023-01-01T12:00:00 | E56: =IFERROR($G$30*INDEX(INDIRECT("G"&$B$53&":G"&$B$54),SMALL(IF("x"=INDIRECT("F"&$B$53&":F"&$B$54),ROW(INDIRECT("F"&$B$53&":F"&$B$54))-ROW(INDIRECT("F"&$B$53))+1),4)),"") -> 100596.6 | F56: =IF(C56="","",SUM(D79:P79)) -> 20858.81
C57: =IFERROR(INDEX(INDIRECT("C"&$B$53&":C"&$B$54),SMALL(IF("x"=INDIRECT("F"&$B$53&":F"&$B$54),ROW(INDIRECT("F"&$B$53&":F"&$B$54))-ROW(INDIRECT("F"&$B$53))+1),5)),"") ->  | D57: =IFERROR(INDEX(INDIRECT("E"&$B$53&":E"&$B$54),SMALL(IF("x"=INDIRECT("F"&$B$53&":F"&$B$54),ROW(INDIRECT("F"&$B$53&":F"&$B$54))-ROW(INDIRECT("F"&$B$53))+1),5)),"") ->  | E57: =IFERROR($G$30*INDEX(INDIRECT("G"&$B$53&":G"&$B$54),SMALL(IF("x"=INDIRECT("F"&$B$53&":F"&$B$54),ROW(INDIRECT("F"&$B$53&":F"&$B$54))-ROW(INDIRECT("F"&$B$53))+1),5)),"") ->  | F57: =IF(C57="","",SUM(D80:P80)) -> 
C58: =IFERROR(INDEX(INDIRECT("C"&$B$53&":C"&$B$54),SMALL(IF("x"=INDIRECT("F"&$B$53&":F"&$B$54),ROW(INDIRECT("F"&$B$53&":F"&$B$54))-ROW(INDIRECT("F"&$B$53))+1),6)),"") ->  | D58: =IFERROR(INDEX(INDIRECT("E"&$B$53&":E"&$B$54),SMALL(IF("x"=INDIRECT("F"&$B$53&":F"&$B$54),ROW(INDIRECT("F"&$B$53&":F"&$B$54))-ROW(INDIRECT("F"&$B$53))+1),6)),"") ->  | E58: =IFERROR($G$30*INDEX(INDIRECT("G"&$B$53&":G"&$B$54),SMALL(IF("x"=INDIRECT("F"&$B$53&":F"&$B$54),ROW(INDIRECT("F"&$B$53&":F"&$B$54))-ROW(INDIRECT("F"&$B$53))+1),6)),"") -> 
C59: =IFERROR(INDEX(INDIRECT("C"&$B$53&":C"&$B$54),SMALL(IF("x"=INDIRECT("F"&$B$53&":F"&$B$54),ROW(INDIRECT("F"&$B$53&":F"&$B$54))-ROW(INDIRECT("F"&$B$53))+1),7)),"") ->  | D59: =IFERROR(INDEX(INDIRECT("E"&$B$53&":E"&$B$54),SMALL(IF("x"=INDIRECT("F"&$B$53&":F"&$B$54),ROW(INDIRECT("F"&$B$53&":F"&$B$54))-ROW(INDIRECT("F"&$B$53))+1),7)),"") ->  | E59: =IFERROR($G$30*INDEX(INDIRECT("G"&$B$53&":G"&$B$54),SMALL(IF("x"=INDIRECT("F"&$B$53&":F"&$B$54),ROW(INDIRECT("F"&$B$53&":F"&$B$54))-ROW(INDIRECT("F"&$B$53))+1),7)),"") -> 
C60: =IFERROR(INDEX(INDIRECT("C"&$B$53&":C"&$B$54),SMALL(IF("x"=INDIRECT("F"&$B$53&":F"&$B$54),ROW(INDIRECT("F"&$B$53&":F"&$B$54))-ROW(INDIRECT("F"&$B$53))+1),8)),"") ->  | D60: =IFERROR(INDEX(INDIRECT("E"&$B$53&":E"&$B$54),SMALL(IF("x"=INDIRECT("F"&$B$53&":F"&$B$54),ROW(INDIRECT("F"&$B$53&":F"&$B$54))-ROW(INDIRECT("F"&$B$53))+1),8)),"") ->  | E60: =IFERROR($G$30*INDEX(INDIRECT("G"&$B$53&":G"&$B$54),SMALL(IF("x"=INDIRECT("F"&$B$53&":F"&$B$54),ROW(INDIRECT("F"&$B$53&":F"&$B$54))-ROW(INDIRECT("F"&$B$53))+1),8)),"") -> 
D61: TOTAL | E61: =SUM(E53:E60) -> 502983 | F61: =SUM(F53:F60) -> 124794.05
C63: Payment Plan Broken Down Per Entity
C64: Payment Milestone | D64: =$C$17 -> OurLittleComp | E64: =$C$18 -> Subcontractor A | F64: =$C$19 -> Subcontractor B | G64: =$C$20 -> Subcontractor C | H64: =$C$21 ->  | I64: =$C$22 ->  | J64: =$C$23 ->  | K64: =$C$24 ->  | L64: =$C$25 ->  | M64: =$C$26 ->  | N64: =$C$27 ->  | O64: =$C$28 ->  | P64: =$C$29 -> 
C65: =IFERROR(INDEX(INDIRECT("C"&$B$53&":C"&$B$54),SMALL(IF("x"=INDIRECT("F"&$B$53&":F"&$B$54),ROW(INDIRECT("F"&$B$53&":F"&$B$54))-ROW(INDIRECT("F"&$B$53))+1),1)),"") -> RR | D65: =IFERROR(IF(D$64<>"",VLOOKUP(D$64,$C$16:$G$29,5,FALSE)*$E53/$E$61,""),"") -> 66894.9 | E65: =IFERROR(IF(E$64<>"",VLOOKUP(E$64,$C$16:$G$29,5,FALSE)*$E53/$E$61,""),"") -> 22500 | F65: =IFERROR(IF(F$64<>"",VLOOKUP(F$64,$C$16:$G$29,5,FALSE)*$E53/$E$61,""),"") -> 37500 | G65: 24000
C66: =IFERROR(INDEX(INDIRECT("C"&$B$53&":C"&$B$54),SMALL(IF("x"=INDIRECT("F"&$B$53&":F"&$B$54),ROW(INDIRECT("F"&$B$53&":F"&$B$54))-ROW(INDIRECT("F"&$B$53))+1),2)),"") -> CDR | D66: =IFERROR(IF(D$64<>"",VLOOKUP(D$64,$C$16:$G$29,5,FALSE)*$E54/$E$61,""),"") -> 66894.9 | E66: =IFERROR(IF(E$64<>"",VLOOKUP(E$64,$C$16:$G$29,5,FALSE)*$E54/$E$61,""),"") -> 22500 | F66: =IFERROR(IF(F$64<>"",VLOOKUP(F$64,$C$16:$G$29,5,FALSE)*$E54/$E$61,""),"") -> 37500 | G66: 24000
C67: =IFERROR(INDEX(INDIRECT("C"&$B$53&":C"&$B$54),SMALL(IF("x"=INDIRECT("F"&$B$53&":F"&$B$54),ROW(INDIRECT("F"&$B$53&":F"&$B$54))-ROW(INDIRECT("F"&$B$53))+1),3)),"") -> FAT | D67: 44596.6 | E67: =IFERROR(IF(E$64<>"",VLOOKUP(E$64,$C$16:$G$29,5,FALSE)*$E55/$E$61,""),"") -> 15000 | F67: =IFERROR(IF(F$64<>"",VLOOKUP(F$64,$C$16:$G$29,5,FALSE)*$E55/$E$61,""),"") -> 25000 | G67: 16000
C68: =IFERROR(INDEX(INDIRECT("C"&$B$53&":C"&$B$54),SMALL(IF("x"=INDIRECT("F"&$B$53&":F"&$B$54),ROW(INDIRECT("F"&$B$53&":F"&$B$54))-ROW(INDIRECT("F"&$B$53))+1),4)),"") -> FR | D68: 44596.6 | E68: =IFERROR(IF(E$64<>"",VLOOKUP(E$64,$C$16:$G$29,5,FALSE)*$E56/$E$61,""),"") -> 15000 | F68: =IFERROR(IF(F$64<>"",VLOOKUP(F$64,$C$16:$G$29,5,FALSE)*$E56/$E$61,""),"") -> 25000 | G68: 16000
C69: =IFERROR(INDEX(INDIRECT("C"&$B$53&":C"&$B$54),SMALL(IF("x"=INDIRECT("F"&$B$53&":F"&$B$54),ROW(INDIRECT("F"&$B$53&":F"&$B$54))-ROW(INDIRECT("F"&$B$53))+1),5)),"") ->  | D69: =IFERROR(IF(D$64<>"",VLOOKUP(D$64,$C$16:$G$29,5,FALSE)*$E57/$E$61,""),"") ->  | F69: =IFERROR(IF(F$64<>"",VLOOKUP(F$64,$C$16:$G$29,5,FALSE)*$E57/$E$61,""),"") -> 
C70: =IFERROR(INDEX(INDIRECT("C"&$B$53&":C"&$B$54),SMALL(IF("x"=INDIRECT("F"&$B$53&":F"&$B$54),ROW(INDIRECT("F"&$B$53&":F"&$B$54))-ROW(INDIRECT("F"&$B$53))+1),6)),"") ->  | D70: =IFERROR(IF(D$64<>"",VLOOKUP(D$64,$C$16:$G$29,5,FALSE)*$E58/$E$61,""),"") ->  | F70: =IFERROR(IF(F$64<>"",VLOOKUP(F$64,$C$16:$G$29,5,FALSE)*$E58/$E$61,""),"") -> 
C71: =IFERROR(INDEX(INDIRECT("C"&$B$53&":C"&$B$54),SMALL(IF("x"=INDIRECT("F"&$B$53&":F"&$B$54),ROW(INDIRECT("F"&$B$53&":F"&$B$54))-ROW(INDIRECT("F"&$B$53))+1),7)),"") ->  | D71: =IFERROR(IF(D$64<>"",VLOOKUP(D$64,$C$16:$G$29,5,FALSE)*$E59/$E$61,""),"") ->  | F71: =IFERROR(IF(F$64<>"",VLOOKUP(F$64,$C$16:$G$29,5,FALSE)*$E59/$E$61,""),"") -> 
C72: =IFERROR(INDEX(INDIRECT("C"&$B$53&":C"&$B$54),SMALL(IF("x"=INDIRECT("F"&$B$53&":F"&$B$54),ROW(INDIRECT("F"&$B$53&":F"&$B$54))-ROW(INDIRECT("F"&$B$53))+1),8)),"") ->  | D72: =IFERROR(IF(D$64<>"",VLOOKUP(D$64,$C$16:$G$29,5,FALSE)*$E60/$E$61,""),"") ->  | F72: =IFERROR(IF(F$64<>"",VLOOKUP(F$64,$C$16:$G$29,5,FALSE)*$E60/$E$61,""),"") -> 
C74: Advance Payment Request Offset Broken Down Per Entity
C75: Payment Milestone | D75: =$C$17 -> OurLittleComp | E75: =$C$18 -> Subcontractor A | F75: =$C$19 -> Subcontractor B | G75: =$C$20 -> Subcontractor C | H75: =$C$21 ->  | I75: =$C$22 ->  | J75: =$C$23 ->  | K75: =$C$24 ->  | L75: =$C$25 ->  | M75: =$C$26 ->  | N75: =$C$27 ->  | O75: =$C$28 ->  | P75: =$C$29 -> 
C76: =IFERROR(INDEX(INDIRECT("C"&$B$53&":C"&$B$54),SMALL(IF("x"=INDIRECT("F"&$B$53&":F"&$B$54),ROW(INDIRECT("F"&$B$53&":F"&$B$54))-ROW(INDIRECT("F"&$B$53))+1),1)),"") -> RR | D76: =IF(D$75="","",IF($C76="","",IF(VLOOKUP(D$75,$C$17:$K$29,7,FALSE)="No",0,IF(VLOOKUP(D$75,$C$17:$K$29,3,FALSE)="No",0.1*VLOOKUP(D$75,$C$17:$K$29,5,FALSE),0.35*VLOOKUP($C76,$C$38:$H$45,6,FALSE)*VLOOKUP(D$75,$C$17:$K$29,5,FALSE))))) -> 0 | E76: =IF(E$75="","",IF($C76="","",IF(VLOOKUP(E$75,$C$17:$K$29,7,FALSE)="No",0,IF(VLOOKUP(E$75,$C$17:$K$29,3,FALSE)="No",0.1*VLOOKUP(E$75,$C$17:$K$29,5,FALSE),0.35*VLOOKUP($C76,$C$38:$H$45,6,FALSE)*VLOOKUP(E$75,$C$17:$K$29,5,FALSE))))) -> 0 | F76: 12500 | G76: 8000
C77: =IFERROR(INDEX(INDIRECT("C"&$B$53&":C"&$B$54),SMALL(IF("x"=INDIRECT("F"&$B$53&":F"&$B$54),ROW(INDIRECT("F"&$B$53&":F"&$B$54))-ROW(INDIRECT("F"&$B$53))+1),2)),"") -> CDR | D77: =IF(D$75="","",IF($C77="","",IF(VLOOKUP(D$75,$C$17:$K$29,7,FALSE)="No",0,IF(VLOOKUP(D$75,$C$17:$K$29,3,FALSE)="No",0,0.35*VLOOKUP($C77,$C$38:$H$45,6,FALSE)*VLOOKUP(D$75,$C$17:$K$29,5,FALSE))))) -> 31217.62 | E77: =IF(E$75="","",IF($C77="","",IF(VLOOKUP(E$75,$C$17:$K$29,7,FALSE)="No",0,IF(VLOOKUP(E$75,$C$17:$K$29,3,FALSE)="No",0,0.35*VLOOKUP($C77,$C$38:$H$45,6,FALSE)*VLOOKUP(E$75,$C$17:$K$29,5,FALSE))))) -> 10500 | F77: 0 | G77: 0
C78: =IFERROR(INDEX(INDIRECT("C"&$B$53&":C"&$B$54),SMALL(IF("x"=INDIRECT("F"&$B$53&":F"&$B$54),ROW(INDIRECT("F"&$B$53&":F"&$B$54))-ROW(INDIRECT("F"&$B$53))+1),3)),"") -> FAT | D78: =IF(D$75="","",IF($C78="","",IF(VLOOKUP(D$75,$C$17:$K$29,7,FALSE)="No",0,IF(VLOOKUP(D$75,$C$17:$K$29,3,FALSE)="No",0,0.35*VLOOKUP($C78,$C$38:$H$45,6,FALSE)*VLOOKUP(D$75,$C$17:$K$29,5,FALSE))))) -> 31217.62 | E78: 10500 | F78: 0 | G78: 0
C79: =IFERROR(INDEX(INDIRECT("C"&$B$53&":C"&$B$54),SMALL(IF("x"=INDIRECT("F"&$B$53&":F"&$B$54),ROW(INDIRECT("F"&$B$53&":F"&$B$54))-ROW(INDIRECT("F"&$B$53))+1),4)),"") -> FR | D79: 15608.81 | E79: 5250 | F79: 0 | G79: 0
C80: =IFERROR(INDEX(INDIRECT("C"&$B$53&":C"&$B$54),SMALL(IF("x"=INDIRECT("F"&$B$53&":F"&$B$54),ROW(INDIRECT("F"&$B$53&":F"&$B$54))-ROW(INDIRECT("F"&$B$53))+1),5)),"") -> 
C81: =IFERROR(INDEX(INDIRECT("C"&$B$53&":C"&$B$54),SMALL(IF("x"=INDIRECT("F"&$B$53&":F"&$B$54),ROW(INDIRECT("F"&$B$53&":F"&$B$54))-ROW(INDIRECT("F"&$B$53))+1),6)),"") -> 
C82: =IFERROR(INDEX(INDIRECT("C"&$B$53&":C"&$B$54),SMALL(IF("x"=INDIRECT("F"&$B$53&":F"&$B$54),ROW(INDIRECT("F"&$B$53&":F"&$B$54))-ROW(INDIRECT("F"&$B$53))+1),7)),"") -> 
C83: =IFERROR(INDEX(INDIRECT("C"&$B$53&":C"&$B$54),SMALL(IF("x"=INDIRECT("F"&$B$53&":F"&$B$54),ROW(INDIRECT("F"&$B$53&":F"&$B$54))-ROW(INDIRECT("F"&$B$53))+1),8)),"") -> 
C85: =CompName&" Payment Plan" -> OurLittleComp Payment Plan
C86: Payment Milestone | D86: Date | E86: Amount | F86: Advance Payment Offset
C87: =IFERROR(INDEX(INDIRECT("C"&$B$53&":C"&$B$54),SMALL(IF("x"=INDIRECT("F"&$B$53&":F"&$B$54),ROW(INDIRECT("F"&$B$53&":F"&$B$54))-ROW(INDIRECT("F"&$B$53))+1),1)),"") -> RR | D87: =IFERROR(INDEX(INDIRECT("E"&$B$53&":E"&$B$54),SMALL(IF("x"=INDIRECT("F"&$B$53&":F"&$B$54),ROW(INDIRECT("F"&$B$53&":F"&$B$54))-ROW(INDIRECT("F"&$B$53))+1),1)),"") -> 2022-01-01T06:00:00 | E87: =IFERROR('PSS-A2 (ProdDev)'!$K$68*INDEX(INDIRECT("G"&$B$53&":G"&$B$54),SMALL(IF("x"=INDIRECT("F"&$B$53&":F"&$B$54),ROW(INDIRECT("F"&$B$53&":F"&$B$54))-ROW(INDIRECT("F"&$B$53))+1),1)),"") -> 66894.9 | F87: =IF(C87="","",D76) -> 0 | H87: =IFERROR(INDEX(INDIRECT("D"&$B$53&":D"&$B$54),SMALL(IF("x"=INDIRECT("F"&$B$53&":F"&$B$54),ROW(INDIRECT("F"&$B$53&":F"&$B$54))-ROW(INDIRECT("F"&$B$53))+1),1))-deriskdur,"") -> 3 | I87: =IF(F87<>"",E87-F87,"") -> 66894.9
C88: =IFERROR(INDEX(INDIRECT("C"&$B$53&":C"&$B$54),SMALL(IF("x"=INDIRECT("F"&$B$53&":F"&$B$54),ROW(INDIRECT("F"&$B$53&":F"&$B$54))-ROW(INDIRECT("F"&$B$53))+1),2)),"") -> CDR | D88: =IFERROR(INDEX(INDIRECT("E"&$B$53&":E"&$B$54),SMALL(IF("x"=INDIRECT("F"&$B$53&":F"&$B$54),ROW(INDIRECT("F"&$B$53&":F"&$B$54))-ROW(INDIRECT("F"&$B$53))+1),2)),"") -> 2022-04-02T13:30:00 | E88: =IFERROR('PSS-A2 (ProdDev)'!$K$68*INDEX(INDIRECT("G"&$B$53&":G"&$B$54),SMALL(IF("x"=INDIRECT("F"&$B$53&":F"&$B$54),ROW(INDIRECT("F"&$B$53&":F"&$B$54))-ROW(INDIRECT("F"&$B$53))+1),2)),"") -> 66894.9 | F88: =IF(C88="","",D77) -> 31217.62 | H88: =IFERROR(INDEX(INDIRECT("D"&$B$53&":D"&$B$54),SMALL(IF("x"=INDIRECT("F"&$B$53&":F"&$B$54),ROW(INDIRECT("F"&$B$53&":F"&$B$54))-ROW(INDIRECT("F"&$B$53))+1),2))-deriskdur,"") -> 6 | I88: =IF(F88<>"",E88-F88,"") -> 35677.28
C89: =IFERROR(INDEX(INDIRECT("C"&$B$53&":C"&$B$54),SMALL(IF("x"=INDIRECT("F"&$B$53&":F"&$B$54),ROW(INDIRECT("F"&$B$53&":F"&$B$54))-ROW(INDIRECT("F"&$B$53))+1),3)),"") -> FAT | D89: =IFERROR(INDEX(INDIRECT("E"&$B$53&":E"&$B$54),SMALL(IF("x"=INDIRECT("F"&$B$53&":F"&$B$54),ROW(INDIRECT("F"&$B$53&":F"&$B$54))-ROW(INDIRECT("F"&$B$53))+1),3)),"") -> 2022-09-01T18:00:00 | E89: =IFERROR('PSS-A2 (ProdDev)'!$K$68*INDEX(INDIRECT("G"&$B$53&":G"&$B$54),SMALL(IF("x"=INDIRECT("F"&$B$53&":F"&$B$54),ROW(INDIRECT("F"&$B$53&":F"&$B$54))-ROW(INDIRECT("F"&$B$53))+1),3)),"") -> 44596.6 | F89: =IF(C89="","",D78) -> 31217.62 | H89: =IFERROR(INDEX(INDIRECT("D"&$B$53&":D"&$B$54),SMALL(IF("x"=INDIRECT("F"&$B$53&":F"&$B$54),ROW(INDIRECT("F"&$B$53&":F"&$B$54))-ROW(INDIRECT("F"&$B$53))+1),3))-deriskdur,"") -> 11 | I89: 13378.98
C90: =IFERROR(INDEX(INDIRECT("C"&$B$53&":C"&$B$54),SMALL(IF("x"=INDIRECT("F"&$B$53&":F"&$B$54),ROW(INDIRECT("F"&$B$53&":F"&$B$54))-ROW(INDIRECT("F"&$B$53))+1),4)),"") -> FR | D90: =IFERROR(INDEX(INDIRECT("E"&$B$53&":E"&$B$54),SMALL(IF("x"=INDIRECT("F"&$B$53&":F"&$B$54),ROW(INDIRECT("F"&$B$53&":F"&$B$54))-ROW(INDIRECT("F"&$B$53))+1),4)),"") -> 2023-01-01T12:00:00 | E90: =IFERROR('PSS-A2 (ProdDev)'!$K$68*INDEX(INDIRECT("G"&$B$53&":G"&$B$54),SMALL(IF("x"=INDIRECT("F"&$B$53&":F"&$B$54),ROW(INDIRECT("F"&$B$53&":F"&$B$54))-ROW(INDIRECT("F"&$B$53))+1),4)),"") -> 44596.6 | F90: 15608.81 | H90: =IFERROR(INDEX(INDIRECT("D"&$B$53&":D"&$B$54),SMALL(IF("x"=INDIRECT("F"&$B$53&":F"&$B$54),ROW(INDIRECT("F"&$B$53&":F"&$B$54))-ROW(INDIRECT("F"&$B$53))+1),4))-deriskdur,"") -> 15 | I90: 28987.79
C91: =IFERROR(INDEX(INDIRECT("C"&$B$53&":C"&$B$54),SMALL(IF("x"=INDIRECT("F"&$B$53&":F"&$B$54),ROW(INDIRECT("F"&$B$53&":F"&$B$54))-ROW(INDIRECT("F"&$B$53))+1),5)),"") ->  | D91: =IFERROR(INDEX(INDIRECT("E"&$B$53&":E"&$B$54),SMALL(IF("x"=INDIRECT("F"&$B$53&":F"&$B$54),ROW(INDIRECT("F"&$B$53&":F"&$B$54))-ROW(INDIRECT("F"&$B$53))+1),5)),"") ->  | E91: =IFERROR('PSS-A2 (ProdDev)'!$K$68*INDEX(INDIRECT("G"&$B$53&":G"&$B$54),SMALL(IF("x"=INDIRECT("F"&$B$53&":F"&$B$54),ROW(INDIRECT("F"&$B$53&":F"&$B$54))-ROW(INDIRECT("F"&$B$53))+1),5)),"") ->  | H91: =IFERROR(INDEX(INDIRECT("D"&$B$53&":D"&$B$54),SMALL(IF("x"=INDIRECT("F"&$B$53&":F"&$B$54),ROW(INDIRECT("F"&$B$53&":F"&$B$54))-ROW(INDIRECT("F"&$B$53))+1),5))-deriskdur,"") -> 
C92: =IFERROR(INDEX(INDIRECT("C"&$B$53&":C"&$B$54),SMALL(IF("x"=INDIRECT("F"&$B$53&":F"&$B$54),ROW(INDIRECT("F"&$B$53&":F"&$B$54))-ROW(INDIRECT("F"&$B$53))+1),6)),"") ->  | D92: =IFERROR(INDEX(INDIRECT("E"&$B$53&":E"&$B$54),SMALL(IF("x"=INDIRECT("F"&$B$53&":F"&$B$54),ROW(INDIRECT("F"&$B$53&":F"&$B$54))-ROW(INDIRECT("F"&$B$53))+1),6)),"") ->  | E92: =IFERROR('PSS-A2 (ProdDev)'!$K$68*INDEX(INDIRECT("G"&$B$53&":G"&$B$54),SMALL(IF("x"=INDIRECT("F"&$B$53&":F"&$B$54),ROW(INDIRECT("F"&$B$53&":F"&$B$54))-ROW(INDIRECT("F"&$B$53))+1),6)),"") ->  | H92: =IFERROR(INDEX(INDIRECT("D"&$B$53&":D"&$B$54),SMALL(IF("x"=INDIRECT("F"&$B$53&":F"&$B$54),ROW(INDIRECT("F"&$B$53&":F"&$B$54))-ROW(INDIRECT("F"&$B$53))+1),6))-deriskdur,"") -> 
C93: =IFERROR(INDEX(INDIRECT("C"&$B$53&":C"&$B$54),SMALL(IF("x"=INDIRECT("F"&$B$53&":F"&$B$54),ROW(INDIRECT("F"&$B$53&":F"&$B$54))-ROW(INDIRECT("F"&$B$53))+1),7)),"") ->  | D93: =IFERROR(INDEX(INDIRECT("E"&$B$53&":E"&$B$54),SMALL(IF("x"=INDIRECT("F"&$B$53&":F"&$B$54),ROW(INDIRECT("F"&$B$53&":F"&$B$54))-ROW(INDIRECT("F"&$B$53))+1),7)),"") ->  | E93: =IFERROR('PSS-A2 (ProdDev)'!$K$68*INDEX(INDIRECT("G"&$B$53&":G"&$B$54),SMALL(IF("x"=INDIRECT("F"&$B$53&":F"&$B$54),ROW(INDIRECT("F"&$B$53&":F"&$B$54))-ROW(INDIRECT("F"&$B$53))+1),7)),"") ->  | H93: =IFERROR(INDEX(INDIRECT("D"&$B$53&":D"&$B$54),SMALL(IF("x"=INDIRECT("F"&$B$53&":F"&$B$54),ROW(INDIRECT("F"&$B$53&":F"&$B$54))-ROW(INDIRECT("F"&$B$53))+1),7))-deriskdur,"") -> 
C94: =IFERROR(INDEX(INDIRECT("C"&$B$53&":C"&$B$54),SMALL(IF("x"=INDIRECT("F"&$B$53&":F"&$B$54),ROW(INDIRECT("F"&$B$53&":F"&$B$54))-ROW(INDIRECT("F"&$B$53))+1),8)),"") ->  | D94: =IFERROR(INDEX(INDIRECT("E"&$B$53&":E"&$B$54),SMALL(IF("x"=INDIRECT("F"&$B$53&":F"&$B$54),ROW(INDIRECT("F"&$B$53&":F"&$B$54))-ROW(INDIRECT("F"&$B$53))+1),8)),"") ->  | E94: =IFERROR('PSS-A2 (ProdDev)'!$K$68*INDEX(INDIRECT("G"&$B$53&":G"&$B$54),SMALL(IF("x"=INDIRECT("F"&$B$53&":F"&$B$54),ROW(INDIRECT("F"&$B$53&":F"&$B$54))-ROW(INDIRECT("F"&$B$53))+1),8)),"") ->  | H94: =IFERROR(INDEX(INDIRECT("D"&$B$53&":D"&$B$54),SMALL(IF("x"=INDIRECT("F"&$B$53&":F"&$B$54),ROW(INDIRECT("F"&$B$53&":F"&$B$54))-ROW(INDIRECT("F"&$B$53))+1),8))-deriskdur,"") -> 
D95: TOTAL | E95: =SUM(E87:E94) -> 222983 | F95: =SUM(F87:F94) -> 78044.05

Sheet Work Breakdown Structure
A1: THE WORK BREAKDOWN STRUCTURE IS AUTOMATICALLY GENERATED BY FOLLOWING THE STEPS IN THE "WBS GENERATOR" SHEET. ONCE GENERATED, THE WBS WILL AUTOMATICALLY BE INSERTED INTO THE PROPOSAL PART 2 THROUGH THE MACRO (IN "DASHBOARD"), OR ALTERNATIVELY YOU MAY COPY AND PASTE THIS WORK BREAKDOWN STRUCTURE INTO THE PROPOSAL PART 2. PLEASE DO NOT MANUALLY EDIT THIS SPREADSHEET. | W1: Complete

Sheet Project Planning
C2: Additional Information | E2: =IFERROR("",IF(pddur + deriskdur = ProjDur,"", "Please be sure that the 2 cycles DO NOT overlap")) -> 
A3: =IF(COUNTBLANK(D3:D4)=0,0,IF(COUNTBLANK(D3:D4)=2,2,1)) -> 0 | C3: Project Duration (months) | D3: 24
C4: Project Start Date (dd/mm/yyyy) | D4: 2021-01-01
C5: Project End Date (dd/mm/yyyy) | D5: =EDATE(D4,D3) -> 2023-01-01
A7: =IF((COUNTBLANK(E12:F35)-(COUNTBLANK(C12:C35)*2))=0,0,IF(COUNTBLANK(E12:F35)>=24*2,2,1)) -> 0 | B7: GANTT CHART
C9: Work Breakdown Structure (WBS)
C10: WP Number | D10: Title | E10: relative to T0=KOM (in months, integers only) | G10: Duration | I10: Start Date | J10: End Date | L10: Duration PD | M10: Duration DR
E11: Start | F11: End
B12: =IF(C12="","",INDEX('WBS Generator'!D:D,MATCH(LEFT(C12,LEN(C12)-3),LEFT('WBS Generator'!B:B,LEN('WBS Generator'!B:B)-3),0))) -> Derisking | C12: =IFERROR(INDEX('WBS Generator'!$B$2:$B$101,_xlfn.AGGREGATE(15,3,(('WBS Generator'!$A$2:$A$101="L2")/('WBS Generator'!$A$2:$A$101="L2")*ROW('WBS Generator'!$A$2:$A$101))-ROW('WBS Generator'!$A$1), ROWS('Project Planning'!$B$12:B12))),"") -> WP1100 | D12: =IFERROR(VLOOKUP(C12,'WBS Generator'!B:C,2,FALSE),"") -> Project Management (Derisking Cycle) | E12: 0 | F12: 9 | G12: =IF(C12="","",F12-E12) -> 9 | H12: =IF(I12<>"",(I12-$D$4)/30,"") -> 0 | I12: =IF(E12="","",EDATE($D$4,$E12)) -> 2021-01-01 | J12: =IF(F12="","",EDATE($D$4,$F12)) -> 2021-10-01 | K12: =IF(AND(J12>$D$5,J12<>""),"WP End Date exceeds project End Date! Please correct.","") ->  | L12: =IF(B12="Derisking",0,G12) -> 0 | M12: =IF(B12="Product Development",0,G12) -> 9
B13: =IF(C13="","",INDEX('WBS Generator'!D:D,MATCH(LEFT(C13,LEN(C13)-3),LEFT('WBS Generator'!B:B,LEN('WBS Generator'!B:B)-3),0))) -> Derisking | C13: =IFERROR(INDEX('WBS Generator'!$B$2:$B$101,_xlfn.AGGREGATE(15,3,(('WBS Generator'!$A$2:$A$101="L2")/('WBS Generator'!$A$2:$A$101="L2")*ROW('WBS Generator'!$A$2:$A$101))-ROW('WBS Generator'!$A$1), ROWS('Project Planning'!$B$12:B13))),"") -> WP1200 | D13: =IFERROR(VLOOKUP(C13,'WBS Generator'!B:C,2,FALSE),"") -> Contract Management | E13: 0 | F13: 6 | G13: =IF(C13="","",F13-E13) -> 6 | H13: 0 | I13: 2021-01-01 | J13: 2021-07-01 | K13: =IF(AND(J13>$D$5,J13<>""),"WP End Date exceeds project End Date! Please correct.","") ->  | L13: =IF(B13="Derisking",0,G13) -> 0 | M13: =IF(B13="Product Development",0,G13) -> 6
B14: =IF(C14="","",INDEX('WBS Generator'!D:D,MATCH(LEFT(C14,LEN(C14)-3),LEFT('WBS Generator'!B:B,LEN('WBS Generator'!B:B)-3),0))) -> Derisking | C14: =IFERROR(INDEX('WBS Generator'!$B$2:$B$101,_xlfn.AGGREGATE(15,3,(('WBS Generator'!$A$2:$A$101="L2")/('WBS Generator'!$A$2:$A$101="L2")*ROW('WBS Generator'!$A$2:$A$101))-ROW('WBS Generator'!$A$1), ROWS('Project Planning'!$B$12:B14))),"") -> WP1300 | D14: =IFERROR(VLOOKUP(C14,'WBS Generator'!B:C,2,FALSE),"") -> Workshop Organization | E14: 0 | F14: 3 | G14: 3 | H14: 0 | I14: 2021-01-01 | J14: 2021-04-01 | L14: 0 | M14: 3
B15: =IF(C15="","",INDEX('WBS Generator'!D:D,MATCH(LEFT(C15,LEN(C15)-3),LEFT('WBS Generator'!B:B,LEN('WBS Generator'!B:B)-3),0))) -> Derisking | C15: =IFERROR(INDEX('WBS Generator'!$B$2:$B$101,_xlfn.AGGREGATE(15,3,(('WBS Generator'!$A$2:$A$101="L2")/('WBS Generator'!$A$2:$A$101="L2")*ROW('WBS Generator'!$A$2:$A$101))-ROW('WBS Generator'!$A$1), ROWS('Project Planning'!$B$12:B15))),"") -> WP1400 | D15: =IFERROR(VLOOKUP(C15,'WBS Generator'!B:C,2,FALSE),"") -> User analysis | E15: 0 | F15: 6 | G15: 6 | H15: 0 | I15: 2021-01-01 | J15: 2021-07-01 | L15: 0 | M15: 6
B16: =IF(C16="","",INDEX('WBS Generator'!D:D,MATCH(LEFT(C16,LEN(C16)-3),LEFT('WBS Generator'!B:B,LEN('WBS Generator'!B:B)-3),0))) -> Product Development | C16: =IFERROR(INDEX('WBS Generator'!$B$2:$B$101,_xlfn.AGGREGATE(15,3,(('WBS Generator'!$A$2:$A$101="L2")/('WBS Generator'!$A$2:$A$101="L2")*ROW('WBS Generator'!$A$2:$A$101))-ROW('WBS Generator'!$A$1), ROWS('Project Planning'!$B$12:B16))),"") -> WP2100 | D16: =IFERROR(VLOOKUP(C16,'WBS Generator'!B:C,2,FALSE),"") -> Project Management (Product Development) | E16: 9 | F16: 15 | G16: 6 | H16: 9.1 | I16: 2021-10-01 | J16: 2022-04-01 | L16: 6 | M16: 0
B17: =IF(C17="","",INDEX('WBS Generator'!D:D,MATCH(LEFT(C17,LEN(C17)-3),LEFT('WBS Generator'!B:B,LEN('WBS Generator'!B:B)-3),0))) -> Product Development | C17: =IFERROR(INDEX('WBS Generator'!$B$2:$B$101,_xlfn.AGGREGATE(15,3,(('WBS Generator'!$A$2:$A$101="L2")/('WBS Generator'!$A$2:$A$101="L2")*ROW('WBS Generator'!$A$2:$A$101))-ROW('WBS Generator'!$A$1), ROWS('Project Planning'!$B$12:B17))),"") -> WP2200 | D17: =IFERROR(VLOOKUP(C17,'WBS Generator'!B:C,2,FALSE),"") -> Contract Management | E17: 9 | F17: 15 | G17: 6 | H17: 9.1 | I17: 2021-10-01 | J17: 2022-04-01 | L17: 6 | M17: 0
B18: =IF(C18="","",INDEX('WBS Generator'!D:D,MATCH(LEFT(C18,LEN(C18)-3),LEFT('WBS Generator'!B:B,LEN('WBS Generator'!B:B)-3),0))) -> Product Development | C18: =IFERROR(INDEX('WBS Generator'!$B$2:$B$101,_xlfn.AGGREGATE(15,3,(('WBS Generator'!$A$2:$A$101="L2")/('WBS Generator'!$A$2:$A$101="L2")*ROW('WBS Generator'!$A$2:$A$101))-ROW('WBS Generator'!$A$1), ROWS('Project Planning'!$B$12:B18))),"") -> WP2300 | D18: =IFERROR(VLOOKUP(C18,'WBS Generator'!B:C,2,FALSE),"") -> Requirements Gathering | E18: 9 | F18: 15 | G18: 6 | H18: 9.1 | I18: 2021-10-01 | J18: 2022-04-01 | L18: 6 | M18: 0
B19: =IF(C19="","",INDEX('WBS Generator'!D:D,MATCH(LEFT(C19,LEN(C19)-3),LEFT('WBS Generator'!B:B,LEN('WBS Generator'!B:B)-3),0))) -> Product Development | C19: =IFERROR(INDEX('WBS Generator'!$B$2:$B$101,_xlfn.AGGREGATE(15,3,(('WBS Generator'!$A$2:$A$101="L2")/('WBS Generator'!$A$2:$A$101="L2")*ROW('WBS Generator'!$A$2:$A$101))-ROW('WBS Generator'!$A$1), ROWS('Project Planning'!$B$12:B19))),"") -> WP2400 | D19: =IFERROR(VLOOKUP(C19,'WBS Generator'!B:C,2,FALSE),"") -> User Interface Modelling | E19: 9 | F19: 15 | G19: 6 | H19: 9.1 | I19: 2021-10-01 | J19: 2022-04-01 | L19: 6 | M19: 0
B20: =IF(C20="","",INDEX('WBS Generator'!D:D,MATCH(LEFT(C20,LEN(C20)-3),LEFT('WBS Generator'!B:B,LEN('WBS Generator'!B:B)-3),0))) -> Derisking | C20: =IFERROR(INDEX('WBS Generator'!$B$2:$B$101,_xlfn.AGGREGATE(15,3,(('WBS Generator'!$A$2:$A$101="L2")/('WBS Generator'!$A$2:$A$101="L2")*ROW('WBS Generator'!$A$2:$A$101))-ROW('WBS Generator'!$A$1), ROWS('Project Planning'!$B$12:B20))),"") -> WP3100 | D20: =IFERROR(VLOOKUP(C20,'WBS Generator'!B:C,2,FALSE),"") -> Preliminary Architectural Design | E20: 2 | F20: 6 | G20: 4 | H20: 1.966666667 | I20: 2021-03-01 | J20: 2021-07-01 | L20: 0 | M20: 4
B21: =IF(C21="","",INDEX('WBS Generator'!D:D,MATCH(LEFT(C21,LEN(C21)-3),LEFT('WBS Generator'!B:B,LEN('WBS Generator'!B:B)-3),0))) -> Derisking | C21: =IFERROR(INDEX('WBS Generator'!$B$2:$B$101,_xlfn.AGGREGATE(15,3,(('WBS Generator'!$A$2:$A$101="L2")/('WBS Generator'!$A$2:$A$101="L2")*ROW('WBS Generator'!$A$2:$A$101))-ROW('WBS Generator'!$A$1), ROWS('Project Planning'!$B$12:B21))),"") -> WP3200 | D21: =IFERROR(VLOOKUP(C21,'WBS Generator'!B:C,2,FALSE),"") -> Beta SW development | E21: 2 | F21: 6 | G21: 4 | H21: 1.966666667 | I21: 2021-03-01 | J21: 2021-07-01 | L21: 0 | M21: 4
B22: =IF(C22="","",INDEX('WBS Generator'!D:D,MATCH(LEFT(C22,LEN(C22)-3),LEFT('WBS Generator'!B:B,LEN('WBS Generator'!B:B)-3),0))) -> Derisking | C22: =IFERROR(INDEX('WBS Generator'!$B$2:$B$101,_xlfn.AGGREGATE(15,3,(('WBS Generator'!$A$2:$A$101="L2")/('WBS Generator'!$A$2:$A$101="L2")*ROW('WBS Generator'!$A$2:$A$101))-ROW('WBS Generator'!$A$1), ROWS('Project Planning'!$B$12:B22))),"") -> WP3300 | D22: =IFERROR(VLOOKUP(C22,'WBS Generator'!B:C,2,FALSE),"") -> Sprint testing | E22: 6 | F22: 9 | G22: 3 | H22: 6.033333333 | I22: 2021-07-01 | J22: 2021-10-01 | L22: 0 | M22: 3
B23: =IF(C23="","",INDEX('WBS Generator'!D:D,MATCH(LEFT(C23,LEN(C23)-3),LEFT('WBS Generator'!B:B,LEN('WBS Generator'!B:B)-3),0))) -> Derisking | C23: =IFERROR(INDEX('WBS Generator'!$B$2:$B$101,_xlfn.AGGREGATE(15,3,(('WBS Generator'!$A$2:$A$101="L2")/('WBS Generator'!$A$2:$A$101="L2")*ROW('WBS Generator'!$A$2:$A$101))-ROW('WBS Generator'!$A$1), ROWS('Project Planning'!$B$12:B23))),"") -> WP3400 | D23: =IFERROR(VLOOKUP(C23,'WBS Generator'!B:C,2,FALSE),"") -> Roadmap to the product develeopment | E23: 6 | F23: 9 | G23: 3 | H23: 6.033333333 | I23: 2021-07-01 | J23: 2021-10-01 | L23: 0 | M23: 3
B24: =IF(C24="","",INDEX('WBS Generator'!D:D,MATCH(LEFT(C24,LEN(C24)-3),LEFT('WBS Generator'!B:B,LEN('WBS Generator'!B:B)-3),0))) -> Product Development | C24: =IFERROR(INDEX('WBS Generator'!$B$2:$B$101,_xlfn.AGGREGATE(15,3,(('WBS Generator'!$A$2:$A$101="L2")/('WBS Generator'!$A$2:$A$101="L2")*ROW('WBS Generator'!$A$2:$A$101))-ROW('WBS Generator'!$A$1), ROWS('Project Planning'!$B$12:B24))),"") -> WP4100 | D24: =IFERROR(VLOOKUP(C24,'WBS Generator'!B:C,2,FALSE),"") -> Detailed Design Subsystems | E24: 9 | F24: 15 | G24: 6 | H24: 9.1 | I24: 2021-10-01 | J24: 2022-04-01 | L24: 6 | M24: 0
B25: =IF(C25="","",INDEX('WBS Generator'!D:D,MATCH(LEFT(C25,LEN(C25)-3),LEFT('WBS Generator'!B:B,LEN('WBS Generator'!B:B)-3),0))) -> Product Development | C25: =IFERROR(INDEX('WBS Generator'!$B$2:$B$101,_xlfn.AGGREGATE(15,3,(('WBS Generator'!$A$2:$A$101="L2")/('WBS Generator'!$A$2:$A$101="L2")*ROW('WBS Generator'!$A$2:$A$101))-ROW('WBS Generator'!$A$1), ROWS('Project Planning'!$B$12:B25))),"") -> WP4200 | D25: =IFERROR(VLOOKUP(C25,'WBS Generator'!B:C,2,FALSE),"") -> Development (HW+SW) | E25: 15 | F25: 20 | G25: 5 | H25: 15.16666667 | I25: 2022-04-01 | J25: 2022-09-01 | L25: 5 | M25: 0
B26: =IF(C26="","",INDEX('WBS Generator'!D:D,MATCH(LEFT(C26,LEN(C26)-3),LEFT('WBS Generator'!B:B,LEN('WBS Generator'!B:B)-3),0))) -> Product Development | C26: =IFERROR(INDEX('WBS Generator'!$B$2:$B$101,_xlfn.AGGREGATE(15,3,(('WBS Generator'!$A$2:$A$101="L2")/('WBS Generator'!$A$2:$A$101="L2")*ROW('WBS Generator'!$A$2:$A$101))-ROW('WBS Generator'!$A$1), ROWS('Project Planning'!$B$12:B26))),"") -> WP4300 | D26: =IFERROR(VLOOKUP(C26,'WBS Generator'!B:C,2,FALSE),"") -> Installation and commissioning | E26: 20 | F26: 22 | G26: 2 | H26: 20.26666667 | I26: 2022-09-01 | J26: 2022-11-01 | L26: 2 | M26: 0
B27: =IF(C27="","",INDEX('WBS Generator'!D:D,MATCH(LEFT(C27,LEN(C27)-3),LEFT('WBS Generator'!B:B,LEN('WBS Generator'!B:B)-3),0))) -> Product Development | C27: =IFERROR(INDEX('WBS Generator'!$B$2:$B$101,_xlfn.AGGREGATE(15,3,(('WBS Generator'!$A$2:$A$101="L2")/('WBS Generator'!$A$2:$A$101="L2")*ROW('WBS Generator'!$A$2:$A$101))-ROW('WBS Generator'!$A$1), ROWS('Project Planning'!$B$12:B27))),"") -> WP4400 | D27: =IFERROR(VLOOKUP(C27,'WBS Generator'!B:C,2,FALSE),"") -> Susbsystem Verification | E27: 15 | F27: 22 | G27: 7 | H27: 15.16666667 | I27: 2022-04-01 | J27: 2022-11-01 | L27: 7 | M27: 0
B28: =IF(C28="","",INDEX('WBS Generator'!D:D,MATCH(LEFT(C28,LEN(C28)-3),LEFT('WBS Generator'!B:B,LEN('WBS Generator'!B:B)-3),0))) -> Product Development | C28: =IFERROR(INDEX('WBS Generator'!$B$2:$B$101,_xlfn.AGGREGATE(15,3,(('WBS Generator'!$A$2:$A$101="L2")/('WBS Generator'!$A$2:$A$101="L2")*ROW('WBS Generator'!$A$2:$A$101))-ROW('WBS Generator'!$A$1), ROWS('Project Planning'!$B$12:B28))),"") -> WP4500 | D28: =IFERROR(VLOOKUP(C28,'WBS Generator'!B:C,2,FALSE),"") -> System Verification | E28: 18 | F28: 22 | G28: 4 | H28: 18.2 | I28: 2022-07-01 | J28: 2022-11-01 | L28: 4 | M28: 0
B29: =IF(C29="","",INDEX('WBS Generator'!D:D,MATCH(LEFT(C29,LEN(C29)-3),LEFT('WBS Generator'!B:B,LEN('WBS Generator'!B:B)-3),0))) -> Product Development | C29: =IFERROR(INDEX('WBS Generator'!$B$2:$B$101,_xlfn.AGGREGATE(15,3,(('WBS Generator'!$A$2:$A$101="L2")/('WBS Generator'!$A$2:$A$101="L2")*ROW('WBS Generator'!$A$2:$A$101))-ROW('WBS Generator'!$A$1), ROWS('Project Planning'!$B$12:B29))),"") -> WP4600 | D29: =IFERROR(VLOOKUP(C29,'WBS Generator'!B:C,2,FALSE),"") -> Validation Execution and Evaluation | E29: 22 | F29: 24 | G29: 2 | H29: 22.3 | I29: 2022-11-01 | J29: 2023-01-01 | L29: 2 | M29: 0
B30: =IF(C30="","",INDEX('WBS Generator'!D:D,MATCH(LEFT(C30,LEN(C30)-3),LEFT('WBS Generator'!B:B,LEN('WBS Generator'!B:B)-3),0))) -> Product Development | C30: =IFERROR(INDEX('WBS Generator'!$B$2:$B$101,_xlfn.AGGREGATE(15,3,(('WBS Generator'!$A$2:$A$101="L2")/('WBS Generator'!$A$2:$A$101="L2")*ROW('WBS Generator'!$A$2:$A$101))-ROW('WBS Generator'!$A$1), ROWS('Project Planning'!$B$12:B30))),"") -> WP5100 | D30: =IFERROR(VLOOKUP(C30,'WBS Generator'!B:C,2,FALSE),"") -> Market Analysis and Business Dev. Update | E30: 18 | F30: 24 | G30: 6 | H30: 18.2 | I30: 2022-07-01 | J30: 2023-01-01 | L30: 6 | M30: 0
B31: =IF(C31="","",INDEX('WBS Generator'!D:D,MATCH(LEFT(C31,LEN(C31)-3),LEFT('WBS Generator'!B:B,LEN('WBS Generator'!B:B)-3),0))) -> Product Development | C31: =IFERROR(INDEX('WBS Generator'!$B$2:$B$101,_xlfn.AGGREGATE(15,3,(('WBS Generator'!$A$2:$A$101="L2")/('WBS Generator'!$A$2:$A$101="L2")*ROW('WBS Generator'!$A$2:$A$101))-ROW('WBS Generator'!$A$1), ROWS('Project Planning'!$B$12:B31))),"") -> WP5200 | D31: =IFERROR(VLOOKUP(C31,'WBS Generator'!B:C,2,FALSE),"") -> Dissemination and Exploitation | E31: 20 | F31: 24 | G31: 4 | H31: 20.26666667 | I31: 2022-09-01 | J31: 2023-01-01 | L31: 4 | M31: 0
B32: =IF(C32="","",INDEX('WBS Generator'!D:D,MATCH(LEFT(C32,LEN(C32)-3),LEFT('WBS Generator'!B:B,LEN('WBS Generator'!B:B)-3),0))) ->  | C32: =IFERROR(INDEX('WBS Generator'!$B$2:$B$101,_xlfn.AGGREGATE(15,3,(('WBS Generator'!$A$2:$A$101="L2")/('WBS Generator'!$A$2:$A$101="L2")*ROW('WBS Generator'!$A$2:$A$101))-ROW('WBS Generator'!$A$1), ROWS('Project Planning'!$B$12:B32))),"") ->  | D32: =IFERROR(VLOOKUP(C32,'WBS Generator'!B:C,2,FALSE),"") -> 
B33: =IF(C33="","",INDEX('WBS Generator'!D:D,MATCH(LEFT(C33,LEN(C33)-3),LEFT('WBS Generator'!B:B,LEN('WBS Generator'!B:B)-3),0))) ->  | C33: =IFERROR(INDEX('WBS Generator'!$B$2:$B$101,_xlfn.AGGREGATE(15,3,(('WBS Generator'!$A$2:$A$101="L2")/('WBS Generator'!$A$2:$A$101="L2")*ROW('WBS Generator'!$A$2:$A$101))-ROW('WBS Generator'!$A$1), ROWS('Project Planning'!$B$12:B33))),"") ->  | D33: =IFERROR(VLOOKUP(C33,'WBS Generator'!B:C,2,FALSE),"") -> 
B34: =IF(C34="","",INDEX('WBS Generator'!D:D,MATCH(LEFT(C34,LEN(C34)-3),LEFT('WBS Generator'!B:B,LEN('WBS Generator'!B:B)-3),0))) ->  | C34: =IFERROR(INDEX('WBS Generator'!$B$2:$B$101,_xlfn.AGGREGATE(15,3,(('WBS Generator'!$A$2:$A$101="L2")/('WBS Generator'!$A$2:$A$101="L2")*ROW('WBS Generator'!$A$2:$A$101))-ROW('WBS Generator'!$A$1), ROWS('Project Planning'!$B$12:B34))),"") ->  | D34: =IFERROR(VLOOKUP(C34,'WBS Generator'!B:C,2,FALSE),"") -> 
B35: =IF(C35="","",INDEX('WBS Generator'!D:D,MATCH(LEFT(C35,LEN(C35)-3),LEFT('WBS Generator'!B:B,LEN('WBS Generator'!B:B)-3),0))) ->  | C35: =IFERROR(INDEX('WBS Generator'!$B$2:$B$101,_xlfn.AGGREGATE(15,3,(('WBS Generator'!$A$2:$A$101="L2")/('WBS Generator'!$A$2:$A$101="L2")*ROW('WBS Generator'!$A$2:$A$101))-ROW('WBS Generator'!$A$1), ROWS('Project Planning'!$B$12:B35))),"") ->  | D35: =IFERROR(VLOOKUP(C35,'WBS Generator'!B:C,2,FALSE),"") -> 
B36: =IF(C36="","",INDEX('WBS Generator'!D:D,MATCH(LEFT(C36,LEN(C36)-3),LEFT('WBS Generator'!B:B,LEN('WBS Generator'!B:B)-3),0))) ->  | C36: =IFERROR(INDEX('WBS Generator'!$B$2:$B$101,_xlfn.AGGREGATE(15,3,(('WBS Generator'!$A$2:$A$101="L2")/('WBS Generator'!$A$2:$A$101="L2")*ROW('WBS Generator'!$A$2:$A$101))-ROW('WBS Generator'!$A$1), ROWS('Project Planning'!$B$12:B36))),"") ->  | D36: =IFERROR(VLOOKUP(C36,'WBS Generator'!B:C,2,FALSE),"") ->  | H36: =IF(I36<>"",(I36-$D$4)/30,"") ->  | I36: =IF(E36="","",EDATE($D$4,$E36)) ->  | J36: =IF(F36="","",EDATE($D$4,$F36)) -> 
B37: =IF(C37="","",INDEX('WBS Generator'!D:D,MATCH(LEFT(C37,LEN(C37)-3),LEFT('WBS Generator'!B:B,LEN('WBS Generator'!B:B)-3),0))) ->  | C37: =IFERROR(INDEX('WBS Generator'!$B$2:$B$101,_xlfn.AGGREGATE(15,3,(('WBS Generator'!$A$2:$A$101="L2")/('WBS Generator'!$A$2:$A$101="L2")*ROW('WBS Generator'!$A$2:$A$101))-ROW('WBS Generator'!$A$1), ROWS('Project Planning'!$B$12:B37))),"") ->  | D37: =IFERROR(VLOOKUP(C37,'WBS Generator'!B:C,2,FALSE),"") -> 
B38: =IF(C38="","",INDEX('WBS Generator'!D:D,MATCH(LEFT(C38,LEN(C38)-3),LEFT('WBS Generator'!B:B,LEN('WBS Generator'!B:B)-3),0))) ->  | C38: =IFERROR(INDEX('WBS Generator'!$B$2:$B$101,_xlfn.AGGREGATE(15,3,(('WBS Generator'!$A$2:$A$101="L2")/('WBS Generator'!$A$2:$A$101="L2")*ROW('WBS Generator'!$A$2:$A$101))-ROW('WBS Generator'!$A$1), ROWS('Project Planning'!$B$12:B38))),"") ->  | D38: =IFERROR(VLOOKUP(C38,'WBS Generator'!B:C,2,FALSE),"") -> 
B39: =IF(C39="","",INDEX('WBS Generator'!D:D,MATCH(LEFT(C39,LEN(C39)-3),LEFT('WBS Generator'!B:B,LEN('WBS Generator'!B:B)-3),0))) ->  | C39: =IFERROR(INDEX('WBS Generator'!$B$2:$B$101,_xlfn.AGGREGATE(15,3,(('WBS Generator'!$A$2:$A$101="L2")/('WBS Generator'!$A$2:$A$101="L2")*ROW('WBS Generator'!$A$2:$A$101))-ROW('WBS Generator'!$A$1), ROWS('Project Planning'!$B$12:B39))),"") ->  | D39: =IFERROR(VLOOKUP(C39,'WBS Generator'!B:C,2,FALSE),"") -> 
B40: =IF(C40="","",INDEX('WBS Generator'!D:D,MATCH(LEFT(C40,LEN(C40)-3),LEFT('WBS Generator'!B:B,LEN('WBS Generator'!B:B)-3),0))) ->  | C40: =IFERROR(INDEX('WBS Generator'!$B$2:$B$101,_xlfn.AGGREGATE(15,3,(('WBS Generator'!$A$2:$A$101="L2")/('WBS Generator'!$A$2:$A$101="L2")*ROW('WBS Generator'!$A$2:$A$101))-ROW('WBS Generator'!$A$1), ROWS('Project Planning'!$B$12:B40))),"") ->  | D40: =IFERROR(VLOOKUP(C40,'WBS Generator'!B:C,2,FALSE),"") -> 
B41: =IF(C41="","",INDEX('WBS Generator'!D:D,MATCH(LEFT(C41,LEN(C41)-3),LEFT('WBS Generator'!B:B,LEN('WBS Generator'!B:B)-3),0))) ->  | C41: =IFERROR(INDEX('WBS Generator'!$B$2:$B$101,_xlfn.AGGREGATE(15,3,(('WBS Generator'!$A$2:$A$101="L2")/('WBS Generator'!$A$2:$A$101="L2")*ROW('WBS Generator'!$A$2:$A$101))-ROW('WBS Generator'!$A$1), ROWS('Project Planning'!$B$12:B41))),"") ->  | D41: =IFERROR(VLOOKUP(C41,'WBS Generator'!B:C,2,FALSE),"") -> 
B42: =IF(C42="","",INDEX('WBS Generator'!D:D,MATCH(LEFT(C42,LEN(C42)-3),LEFT('WBS Generator'!B:B,LEN('WBS Generator'!B:B)-3),0))) ->  | C42: =IFERROR(INDEX('WBS Generator'!$B$2:$B$101,_xlfn.AGGREGATE(15,3,(('WBS Generator'!$A$2:$A$101="L2")/('WBS Generator'!$A$2:$A$101="L2")*ROW('WBS Generator'!$A$2:$A$101))-ROW('WBS Generator'!$A$1), ROWS('Project Planning'!$B$12:B42))),"") ->  | D42: =IFERROR(VLOOKUP(C42,'WBS Generator'!B:C,2,FALSE),"") -> 
B43: =IF(C43="","",INDEX('WBS Generator'!D:D,MATCH(LEFT(C43,LEN(C43)-3),LEFT('WBS Generator'!B:B,LEN('WBS Generator'!B:B)-3),0))) ->  | C43: =IFERROR(INDEX('WBS Generator'!$B$2:$B$101,_xlfn.AGGREGATE(15,3,(('WBS Generator'!$A$2:$A$101="L2")/('WBS Generator'!$A$2:$A$101="L2")*ROW('WBS Generator'!$A$2:$A$101))-ROW('WBS Generator'!$A$1), ROWS('Project Planning'!$B$12:B43))),"") ->  | D43: =IFERROR(VLOOKUP(C43,'WBS Generator'!B:C,2,FALSE),"") -> 
B44: =IF(C44="","",INDEX('WBS Generator'!D:D,MATCH(LEFT(C44,LEN(C44)-3),LEFT('WBS Generator'!B:B,LEN('WBS Generator'!B:B)-3),0))) ->  | C44: =IFERROR(INDEX('WBS Generator'!$B$2:$B$101,_xlfn.AGGREGATE(15,3,(('WBS Generator'!$A$2:$A$101="L2")/('WBS Generator'!$A$2:$A$101="L2")*ROW('WBS Generator'!$A$2:$A$101))-ROW('WBS Generator'!$A$1), ROWS('Project Planning'!$B$12:B44))),"") ->  | D44: =IFERROR(VLOOKUP(C44,'WBS Generator'!B:C,2,FALSE),"") -> 
B45: =IF(C45="","",INDEX('WBS Generator'!D:D,MATCH(LEFT(C45,LEN(C45)-3),LEFT('WBS Generator'!B:B,LEN('WBS Generator'!B:B)-3),0))) ->  | C45: =IFERROR(INDEX('WBS Generator'!$B$2:$B$101,_xlfn.AGGREGATE(15,3,(('WBS Generator'!$A$2:$A$101="L2")/('WBS Generator'!$A$2:$A$101="L2")*ROW('WBS Generator'!$A$2:$A$101))-ROW('WBS Generator'!$A$1), ROWS('Project Planning'!$B$12:B45))),"") ->  | D45: =IFERROR(VLOOKUP(C45,'WBS Generator'!B:C,2,FALSE),"") -> 
B46: =IF(C46="","",INDEX('WBS Generator'!D:D,MATCH(LEFT(C46,LEN(C46)-3),LEFT('WBS Generator'!B:B,LEN('WBS Generator'!B:B)-3),0))) ->  | C46: =IFERROR(INDEX('WBS Generator'!$B$2:$B$101,_xlfn.AGGREGATE(15,3,(('WBS Generator'!$A$2:$A$101="L2")/('WBS Generator'!$A$2:$A$101="L2")*ROW('WBS Generator'!$A$2:$A$101))-ROW('WBS Generator'!$A$1), ROWS('Project Planning'!$B$12:B46))),"") ->  | D46: =IFERROR(VLOOKUP(C46,'WBS Generator'!B:C,2,FALSE),"") ->  | J46: =IF(F46="","",EDATE($D$4,$F46)) -> 
A49: =IF((COUNTBLANK(F55:F89)-COUNTBLANK(C55:C89))=0,0,IF(COUNTBLANK(F55:F89)=24,2,1)) -> 0 | B49: KEY PERSONNEL
A50: 0
A51: =IF(SUMPRODUCT(--(LEN(C93:C116)>0),--(D93:D116="Indicate role"))=SUMPRODUCT(--(LEN(C93:C116)>0)),2,IF(SUMPRODUCT(--(LEN(C93:C116)>0),--(D93:D116="Indicate role"))=0,0,1)) -> 0 | N51: =IF(ISNA(INDEX($E$55:$E$89,MATCH(N53,$F$55:$F$89,0))),"",INDEX($E$55:$E$89,MATCH(N53,$F$55:$F$89,0))) -> OurLittleComp | O51: OurLittleComp | P51: OurLittleComp | Q51: OurLittleComp | R51: Subcontractor A | S51: Subcontractor A | T51: OurLittleComp | U51: OurLittleComp
N52: =IF(N53<>"",SUM(N55:N89),"") -> 1015 | O52: 100 | P52: 70 | Q52: 120 | R52: 290 | S52: 1645 | T52: 360 | U52: 55
N53: =IF(INDEX($F$55:$F$89,MATCH(0,COUNTIF($M$53:M$53,$F$55:$F$89),0))=0,"",IFERROR(INDEX($F$55:$F$89,MATCH(0,COUNTIF($M$53:M$53,$F$55:$F$89),0)),"")) -> Mario Primi | O53: =IF(INDEX($F$55:$F$89,MATCH(0,COUNTIF($M$53:N$53,$F$55:$F$89),0))=0,"",IFERROR(INDEX($F$55:$F$89,MATCH(0,COUNTIF($M$53:N$53,$F$55:$F$89),0)),"")) -> Luca Secondi | P53: =IF(INDEX($F$55:$F$89,MATCH(0,COUNTIF($M$53:O$53,$F$55:$F$89),0))=0,"",IFERROR(INDEX($F$55:$F$89,MATCH(0,COUNTIF($M$53:O$53,$F$55:$F$89),0)),"")) -> Franca Terzi | Q53: =IF(INDEX($F$55:$F$89,MATCH(0,COUNTIF($M$53:P$53,$F$55:$F$89),0))=0,"",IFERROR(INDEX($F$55:$F$89,MATCH(0,COUNTIF($M$53:P$53,$F$55:$F$89),0)),"")) -> Luigi Quarti | R53: =IF(INDEX($F$55:$F$89,MATCH(0,COUNTIF($M$53:Q$53,$F$55:$F$89),0))=0,"",IFERROR(INDEX($F$55:$F$89,MATCH(0,COUNTIF($M$53:Q$53,$F$55:$F$89),0)),"")) -> Elena Quinti | S53: =IF(INDEX($F$55:$F$89,MATCH(0,COUNTIF($M$53:R$53,$F$55:$F$89),0))=0,"",IFERROR(INDEX($F$55:$F$89,MATCH(0,COUNTIF($M$53:R$53,$F$55:$F$89),0)),"")) -> Marcello Sesti | T53: =IF(INDEX($F$55:$F$89,MATCH(0,COUNTIF($M$53:S$53,$F$55:$F$89),0))=0,"",IFERROR(INDEX($F$55:$F$89,MATCH(0,COUNTIF($M$53:S$53,$F$55:$F$89),0)),"")) -> Marco Settimi | U53: =IF(INDEX($F$55:$F$89,MATCH(0,COUNTIF($M$53:T$53,$F$55:$F$89),0))=0,"",IFERROR(INDEX($F$55:$F$89,MATCH(0,COUNTIF($M$53:T$53,$F$55:$F$89),0)),"")) -> Andrea Ottavi | V53: =IF(INDEX($F$55:$F$89,MATCH(0,COUNTIF($M$53:U$53,$F$55:$F$89),0))=0,"",IFERROR(INDEX($F$55:$F$89,MATCH(0,COUNTIF($M$53:U$53,$F$55:$F$89),0)),"")) ->  | W53: =IF(INDEX($F$55:$F$89,MATCH(0,COUNTIF($M$53:V$53,$F$55:$F$89),0))=0,"",IFERROR(INDEX($F$55:$F$89,MATCH(0,COUNTIF($M$53:V$53,$F$55:$F$89),0)),"")) ->  | X53: =IF(INDEX($F$55:$F$89,MATCH(0,COUNTIF($M$53:W$53,$F$55:$F$89),0))=0,"",IFERROR(INDEX($F$55:$F$89,MATCH(0,COUNTIF($M$53:W$53,$F$55:$F$89),0)),"")) ->  | Y53: =IF(INDEX($F$55:$F$89,MATCH(0,COUNTIF($M$53:X$53,$F$55:$F$89),0))=0,"",IFERROR(INDEX($F$55:$F$89,MATCH(0,COUNTIF($M$53:X$53,$F$55:$F$89),0)),"")) ->  | Z53: =IF(INDEX($F$55:$F$89,MATCH(0,COUNTIF($M$53:Y$53,$F$55:$F$89),0))=0,"",IFERROR(INDEX($F$55:$F$89,MATCH(0,COUNTIF($M$53:Y$53,$F$55:$F$89),0)),"")) ->  | AA53: =IF(INDEX($F$55:$F$89,MATCH(0,COUNTIF($M$53:Z$53,$F$55:$F$89),0))=0,"",IFERROR(INDEX($F$55:$F$89,MATCH(0,COUNTIF($M$53:Z$53,$F$55:$F$89),0)),"")) ->  | AB53: =IF(INDEX($F$55:$F$89,MATCH(0,COUNTIF($M$53:AA$53,$F$55:$F$89),0))=0,"",IFERROR(INDEX($F$55:$F$89,MATCH(0,COUNTIF($M$53:AA$53,$F$55:$F$89),0)),"")) ->  | AC53: =IF(INDEX($F$55:$F$89,MATCH(0,COUNTIF($M$53:AB$53,$F$55:$F$89),0))=0,"",IFERROR(INDEX($F$55:$F$89,MATCH(0,COUNTIF($M$53:AB$53,$F$55:$F$89),0)),"")) ->  | AD53: =IF(INDEX($F$55:$F$89,MATCH(0,COUNTIF($M$53:AC$53,$F$55:$F$89),0))=0,"",IFERROR(INDEX($F$55:$F$89,MATCH(0,COUNTIF($M$53:AC$53,$F$55:$F$89),0)),"")) ->  | AE53: =IF(INDEX($F$55:$F$89,MATCH(0,COUNTIF($M$53:AD$53,$F$55:$F$89),0))=0,"",IFERROR(INDEX($F$55:$F$89,MATCH(0,COUNTIF($M$53:AD$53,$F$55:$F$89),0)),"")) ->  | AF53: =IF(INDEX($F$55:$F$89,MATCH(0,COUNTIF($M$53:AE$53,$F$55:$F$89),0))=0,"",IFERROR(INDEX($F$55:$F$89,MATCH(0,COUNTIF($M$53:AE$53,$F$55:$F$89),0)),"")) ->  | AG53: =IF(INDEX($F$55:$F$89,MATCH(0,COUNTIF($M$53:AF$53,$F$55:$F$89),0))=0,"",IFERROR(INDEX($F$55:$F$89,MATCH(0,COUNTIF($M$53:AF$53,$F$55:$F$89),0)),"")) ->  | AH53: =IF(INDEX($F$55:$F$89,MATCH(0,COUNTIF($M$53:AG$53,$F$55:$F$89),0))=0,"",IFERROR(INDEX($F$55:$F$89,MATCH(0,COUNTIF($M$53:AG$53,$F$55:$F$89),0)),"")) ->  | AI53: =IF(INDEX($F$55:$F$89,MATCH(0,COUNTIF($M$53:AH$53,$F$55:$F$89),0))=0,"",IFERROR(INDEX($F$55:$F$89,MATCH(0,COUNTIF($M$53:AH$53,$F$55:$F$89),0)),"")) ->  | AJ53: =IF(INDEX($F$55:$F$89,MATCH(0,COUNTIF($M$53:AI$53,$F$55:$F$89),0))=0,"",IFERROR(INDEX($F$55:$F$89,MATCH(0,COUNTIF($M$53:AI$53,$F$55:$F$89),0)),"")) ->  | AK53: =IF(INDEX($F$55:$F$89,MATCH(0,COUNTIF($M$53:AJ$53,$F$55:$F$89),0))=0,"",IFERROR(INDEX($F$55:$F$89,MATCH(0,COUNTIF($M$53:AJ$53,$F$55:$F$89),0)),"")) -> 
C54: WP Number | D54: WP Title | E54: Company Responsible | F54: WP Manager | I54: Allocated h of the WP Manager | J54: Labour h from PSS-A8 | L54: WP Number
B55: =IF(B12="Derisking"," (Derisk)",IF(B12="Product Development"," (ProdDev)","")) -> (Derisk) | C55: =C12 -> WP1100 | D55: =D12 -> Project Management (Derisking Cycle) | E55: =IFERROR(VLOOKUP(C55,'WBS Generator'!B:D,3,FALSE),"") -> OurLittleComp | F55: Mario Primi | I55: =IF(ISNA(INDEX(N55:AK55,MATCH(F55,$N$53:$AK$53,0))),"", INDEX(N55:AK55,MATCH(F55,$N$53:$AK$53,0))) -> 400 | J55: =IF(B12="Derisking",VLOOKUP(C55,$E$132:$F$155,2),IF(B12="Product Development",VLOOKUP(C55,$K$132:$L$155,2),"")) -> 600 | L55: =C55 -> WP1100 | N55: 400
B56: =IF(B13="Derisking"," (Derisk)",IF(B13="Product Development"," (ProdDev)","")) -> (Derisk) | C56: =C13 -> WP1200 | D56: Contract Management | E56: =IFERROR(VLOOKUP(C56,'WBS Generator'!B:D,3,FALSE),"") -> OurLittleComp | F56: Mario Primi | I56: =IF(ISNA(INDEX(N56:AK56,MATCH(F56,$N$53:$AK$53,0))),"", INDEX(N56:AK56,MATCH(F56,$N$53:$AK$53,0))) -> 40 | J56: =IF(B13="Derisking",VLOOKUP(C56,$E$132:$F$155,2),IF(B13="Product Development",VLOOKUP(C56,$K$132:$L$155,2),"")) -> 80 | L56: =C56 -> WP1200 | N56: 40
B57: (Derisk) | C57: WP1300 | D57: Workshop Organization | E57: =IFERROR(VLOOKUP(C57,'WBS Generator'!B:D,3,FALSE),"") -> OurLittleComp | F57: Luca Secondi | I57: 40 | J57: 50 | L57: WP1300 | O57: 40
B58: (Derisk) | C58: =C15 -> WP1400 | D58: User analysis | E58: =IFERROR(VLOOKUP(C58,'WBS Generator'!B:D,3,FALSE),"") -> Subcontractor A | F58: Mario Primi | I58: =IF(ISNA(INDEX(N58:AK58,MATCH(F58,$N$53:$AK$53,0))),"", INDEX(N58:AK58,MATCH(F58,$N$53:$AK$53,0))) -> 10 | J58: 45 | L58: WP1400 | N58: 10
B59: (ProdDev) | C59: =C16 -> WP2100 | D59: Project Management (Product Development) | E59: =IFERROR(VLOOKUP(C59,'WBS Generator'!B:D,3,FALSE),"") -> OurLittleComp | F59: Luca Secondi | I59: 60 | J59: 1150 | L59: WP2100 | N59: 400 | O59: 60
B60: (ProdDev) | C60: =C17 -> WP2200 | D60: Contract Management | E60: =IFERROR(VLOOKUP(C60,'WBS Generator'!B:D,3,FALSE),"") -> OurLittleComp | F60: Franca Terzi | I60: 70 | J60: 80 | L60: WP2200 | P60: 70
B61: (ProdDev) | C61: =C18 -> WP2300 | D61: Requirements Gathering | E61: =IFERROR(VLOOKUP(C61,'WBS Generator'!B:D,3,FALSE),"") -> OurLittleComp | F61: Luigi Quarti | I61: 120 | J61: 50 | L61: WP2300 | Q61: 120
B62: (ProdDev) | C62: =C19 -> WP2400 | D62: User Interface Modelling | E62: =IFERROR(VLOOKUP(C62,'WBS Generator'!B:D,3,FALSE),"") -> Subcontractor A | F62: Elena Quinti | I62: 130 | J62: 45 | L62: WP2400 | R62: 130
B63: (Derisk) | C63: =C20 -> WP3100 | D63: Preliminary Architectural Design | E63: =IFERROR(VLOOKUP(C63,'WBS Generator'!B:D,3,FALSE),"") -> Subcontractor A | F63: Marcello Sesti | I63: 1500 | J63: 80 | L63: WP3100 | S63: 1500
B64: (Derisk) | C64: =C21 -> WP3200 | D64: Beta SW development | E64: =IFERROR(VLOOKUP(C64,'WBS Generator'!B:D,3,FALSE),"") -> Subcontractor B | F64: Elena Quinti | I64: 70 | J64: 380 | L64: WP3200 | R64: 70
B65: (Derisk) | C65: =C22 -> WP3300 | D65: Sprint testing | E65: =IFERROR(VLOOKUP(C65,'WBS Generator'!B:D,3,FALSE),"") -> Subcontractor B | F65: Marcello Sesti | I65: 145 | J65: 540 | L65: WP3300 | R65: 35 | S65: 145
B66: (Derisk) | C66: =C23 -> WP3400 | D66: Roadmap to the product develeopment | E66: =IFERROR(VLOOKUP(C66,'WBS Generator'!B:D,3,FALSE),"") -> Subcontractor B | F66: Mario Primi | I66: 35 | J66: 160 | L66: WP3400 | N66: 35
B67: (ProdDev) | C67: =C24 -> WP4100 | D67: Detailed Design Subsystems | E67: =IFERROR(VLOOKUP(C67,'WBS Generator'!B:D,3,FALSE),"") -> Subcontractor B | F67: Elena Quinti | I67: 55 | J67: 80 | L67: WP4100 | R67: 55
B68: (ProdDev) | C68: =C25 -> WP4200 | D68: Development (HW+SW) | E68: =IFERROR(VLOOKUP(C68,'WBS Generator'!B:D,3,FALSE),"") -> OurLittleComp | F68: Marco Settimi | I68: 360 | J68: 38 | L68: WP4200 | N68: 30 | T68: 360
B69: (ProdDev) | C69: =C26 -> WP4300 | D69: Installation and commissioning | E69: =IFERROR(VLOOKUP(C69,'WBS Generator'!B:D,3,FALSE),"") -> Subcontractor B | F69: Mario Primi | I69: 25 | J69: 540 | L69: WP4300 | N69: 25
B70: (ProdDev) | C70: =C27 -> WP4400 | D70: Susbsystem Verification | E70: =IFERROR(VLOOKUP(C70,'WBS Generator'!B:D,3,FALSE),"") -> OurLittleComp | F70: Mario Primi | I70: 25 | J70: 160 | L70: WP4400 | N70: 25
B71: (ProdDev) | C71: =C28 -> WP4500 | D71: System Verification | E71: =IFERROR(VLOOKUP(C71,'WBS Generator'!B:D,3,FALSE),"") -> OurLittleComp | F71: Andrea Ottavi | I71: 20 | J71: 2315 | L71: WP4500 | U71: 20
B72: (ProdDev) | C72: =C29 -> WP4600 | D72: Validation Execution and Evaluation | E72: =IFERROR(VLOOKUP(C72,'WBS Generator'!B:D,3,FALSE),"") -> OurLittleComp | F72: Andrea Ottavi | I72: 35 | J72: 1323 | L72: WP4600 | U72: 35
B73: (ProdDev) | C73: =C30 -> WP5100 | D73: Market Analysis and Business Dev. Update | E73: =IFERROR(VLOOKUP(C73,'WBS Generator'!B:D,3,FALSE),"") -> Subcontractor C | F73: Mario Primi | I73: 25 | J73: 368 | L73: WP5100 | N73: 25
B74: (ProdDev) | C74: =C31 -> WP5200 | D74: Dissemination and Exploitation | E74: =IFERROR(VLOOKUP(C74,'WBS Generator'!B:D,3,FALSE),"") -> Subcontractor C | F74: Mario Primi | I74: 25 | J74: 235 | L74: WP5200 | N74: 25
C75: =C32 ->  | E75: =IFERROR(VLOOKUP(C75,'WBS Generator'!B:D,3,FALSE),"") ->  | J75: =IF(B32="Derisking",VLOOKUP(C75,$E$132:$F$155,2),IF(B32="Product Development",VLOOKUP(C75,$K$132:$L$155,2),"")) -> 
C76: =C33 ->  | E76: =IFERROR(VLOOKUP(C76,'WBS Generator'!B:D,3,FALSE),"") -> 
C77: =C34 ->  | E77: =IFERROR(VLOOKUP(C77,'WBS Generator'!B:D,3,FALSE),"") -> 
C78: =C35 ->  | E78: =IFERROR(VLOOKUP(C78,'WBS Generator'!B:D,3,FALSE),"") -> 
C79: =C36 ->  | E79: =IFERROR(VLOOKUP(C79,'WBS Generator'!B:D,3,FALSE),"") -> 
C80: =C37 ->  | E80: =IFERROR(VLOOKUP(C80,'WBS Generator'!B:D,3,FALSE),"") -> 
C81: =C38 ->  | E81: =IFERROR(VLOOKUP(C81,'WBS Generator'!B:D,3,FALSE),"") -> 
C82: =C39 ->  | E82: =IFERROR(VLOOKUP(C82,'WBS Generator'!B:D,3,FALSE),"") -> 
C83: =C40 ->  | E83: =IFERROR(VLOOKUP(C83,'WBS Generator'!B:D,3,FALSE),"") -> 
C84: =C41 ->  | E84: =IFERROR(VLOOKUP(C84,'WBS Generator'!B:D,3,FALSE),"") -> 
C85: =C42 ->  | E85: =IFERROR(VLOOKUP(C85,'WBS Generator'!B:D,3,FALSE),"") -> 
C86: =C43 ->  | E86: =IFERROR(VLOOKUP(C86,'WBS Generator'!B:D,3,FALSE),"") -> 
C87: =C44 ->  | E87: =IFERROR(VLOOKUP(C87,'WBS Generator'!B:D,3,FALSE),"") -> 
C88: =C45 ->  | E88: =IFERROR(VLOOKUP(C88,'WBS Generator'!B:D,3,FALSE),"") -> 
C89: =C46 ->  | E89: =IFERROR(VLOOKUP(C89,'WBS Generator'!B:D,3,FALSE),"") -> 
C92: Name | D92: Role in the Project | E92: Company | F92: Manager of WP(s) | I92: WP(s) allocation in h | J92: =CONCATENATE("Average allocation of time for the duration of the project ("&IF(MAX('PSS-A2 (Derisk)'!$F$17:$F$26)=0,MAX('PSS-A2 (ProdDev)'!$F$17:$F$26),MAX('PSS-A2 (Derisk)'!$F$17:$F$26))&" h/year)") -> Average allocation of time for the duration of the project (1700 h/year)
C93: =INDEX($N$53:$AK$53, 1, ROW(1:1)) -> Mario Primi | D93: Project Manager | E93: =INDEX($N$51:$AK$51,MATCH(C93,$N$53:$AK$53,0)) -> OurLittleComp | F93: =_xlfn.TEXTJOIN(", ",TRUE,IF($F$55:$F$89=C93,$C$55:$C$89,"")) -> WP1100, WP1200, WP1400, WP3400, WP4300, WP4400, WP5100, WP5200 | H93: =TRANSPOSE(N52:AK52) -> 1015 | I93: WP1100(400) WP1200(40) WP1400(10) WP2100(400) WP3400(35) WP4200(30) WP4300(25) WP4400(25) WP5100(25) WP5200(25) | J93: =IF(C93<>"",IF(ISERR(H93/MAX('PSS-A2 (Derisk)'!$F$17:$F$26)*12/ProjDur),IF(ISERR(H93/MAX('PSS-A2 (ProdDev)'!$F$17:$F$26)*12/ProjDur),"",H93/MAX('PSS-A2 (ProdDev)'!$F$17:$F$26)*12/ProjDur),H93/MAX('PSS-A2 (Derisk)'!$F$17:$F$26)*12/ProjDur),"") -> 0.2985294118
C94: =INDEX($N$53:$AK$53, 1, ROW(2:2)) -> Luca Secondi | D94: Product Manager | E94: =INDEX($N$51:$AK$51,MATCH(C94,$N$53:$AK$53,0)) -> OurLittleComp | F94: =_xlfn.TEXTJOIN(", ",TRUE,IF($F$55:$F$89=C94,$C$55:$C$89,"")) -> WP1300, WP2100 | H94: 100 | I94: WP1300(40) WP2100(60) | J94: =IF(C94<>"",IF(ISERR(H94/MAX('PSS-A2 (Derisk)'!$F$17:$F$26)*12/ProjDur),IF(ISERR(H94/MAX('PSS-A2 (ProdDev)'!$F$17:$F$26)*12/ProjDur),"",H94/MAX('PSS-A2 (ProdDev)'!$F$17:$F$26)*12/ProjDur),H94/MAX('PSS-A2 (Derisk)'!$F$17:$F$26)*12/ProjDur),"") -> 0.02941176471
C95: =INDEX($N$53:$AK$53, 1, ROW(3:3)) -> Franca Terzi | D95: UX Designer | E95: OurLittleComp | F95: =_xlfn.TEXTJOIN(", ",TRUE,IF($F$55:$F$89=C95,$C$55:$C$89,"")) -> WP2200 | H95: 70 | I95: WP2200(70) | J95: =IF(C95<>"",IF(ISERR(H95/MAX('PSS-A2 (Derisk)'!$F$17:$F$26)*12/ProjDur),IF(ISERR(H95/MAX('PSS-A2 (ProdDev)'!$F$17:$F$26)*12/ProjDur),"",H95/MAX('PSS-A2 (ProdDev)'!$F$17:$F$26)*12/ProjDur),H95/MAX('PSS-A2 (Derisk)'!$F$17:$F$26)*12/ProjDur),"") -> 0.02058823529
C96: =INDEX($N$53:$AK$53, 1, ROW(4:4)) -> Luigi Quarti | D96: Software Architect | E96: OurLittleComp | F96: =_xlfn.TEXTJOIN(", ",TRUE,IF($F$55:$F$89=C96,$C$55:$C$89,"")) -> WP2300 | H96: 120 | I96: WP2300(120) | J96: =IF(C96<>"",IF(ISERR(H96/MAX('PSS-A2 (Derisk)'!$F$17:$F$26)*12/ProjDur),IF(ISERR(H96/MAX('PSS-A2 (ProdDev)'!$F$17:$F$26)*12/ProjDur),"",H96/MAX('PSS-A2 (ProdDev)'!$F$17:$F$26)*12/ProjDur),H96/MAX('PSS-A2 (Derisk)'!$F$17:$F$26)*12/ProjDur),"") -> 0.03529411765
C97: =INDEX($N$53:$AK$53, 1, ROW(5:5)) -> Elena Quinti | D97: Software Developer | E97: Subcontractor A | F97: =_xlfn.TEXTJOIN(", ",TRUE,IF($F$55:$F$89=C97,$C$55:$C$89,"")) -> WP2400, WP3200, WP4100 | H97: 290 | I97: WP2400(130) WP3200(70) WP3300(35) WP4100(55) | J97: =IF(C97<>"",IF(ISERR(H97/MAX('PSS-A2 (Derisk)'!$F$17:$F$26)*12/ProjDur),IF(ISERR(H97/MAX('PSS-A2 (ProdDev)'!$F$17:$F$26)*12/ProjDur),"",H97/MAX('PSS-A2 (ProdDev)'!$F$17:$F$26)*12/ProjDur),H97/MAX('PSS-A2 (Derisk)'!$F$17:$F$26)*12/ProjDur),"") -> 0.08529411765
C98: =INDEX($N$53:$AK$53, 1, ROW(6:6)) -> Marcello Sesti | D98: Software Developer | E98: Subcontractor A | F98: =_xlfn.TEXTJOIN(", ",TRUE,IF($F$55:$F$89=C98,$C$55:$C$89,"")) -> WP3100, WP3300 | H98: 1645 | I98: WP3100(1500) WP3300(145) | J98: =IF(C98<>"",IF(ISERR(H98/MAX('PSS-A2 (Derisk)'!$F$17:$F$26)*12/ProjDur),IF(ISERR(H98/MAX('PSS-A2 (ProdDev)'!$F$17:$F$26)*12/ProjDur),"",H98/MAX('PSS-A2 (ProdDev)'!$F$17:$F$26)*12/ProjDur),H98/MAX('PSS-A2 (Derisk)'!$F$17:$F$26)*12/ProjDur),"") -> 0.4838235294
C99: =INDEX($N$53:$AK$53, 1, ROW(7:7)) -> Marco Settimi | D99: User Coordinator | E99: OurLittleComp | F99: =_xlfn.TEXTJOIN(", ",TRUE,IF($F$55:$F$89=C99,$C$55:$C$89,"")) -> WP4200 | H99: 360 | I99: WP4200(360) | J99: =IF(C99<>"",IF(ISERR(H99/MAX('PSS-A2 (Derisk)'!$F$17:$F$26)*12/ProjDur),IF(ISERR(H99/MAX('PSS-A2 (ProdDev)'!$F$17:$F$26)*12/ProjDur),"",H99/MAX('PSS-A2 (ProdDev)'!$F$17:$F$26)*12/ProjDur),H99/MAX('PSS-A2 (Derisk)'!$F$17:$F$26)*12/ProjDur),"") -> 0.1058823529
C100: =INDEX($N$53:$AK$53, 1, ROW(8:8)) -> Andrea Ottavi | D100: Business Development and Marketing Manager | E100: OurLittleComp | F100: =_xlfn.TEXTJOIN(", ",TRUE,IF($F$55:$F$89=C100,$C$55:$C$89,"")) -> WP4500, WP4600 | H100: 55 | I100: WP4500(20) WP4600(35) | J100: =IF(C100<>"",IF(ISERR(H100/MAX('PSS-A2 (Derisk)'!$F$17:$F$26)*12/ProjDur),IF(ISERR(H100/MAX('PSS-A2 (ProdDev)'!$F$17:$F$26)*12/ProjDur),"",H100/MAX('PSS-A2 (ProdDev)'!$F$17:$F$26)*12/ProjDur),H100/MAX('PSS-A2 (Derisk)'!$F$17:$F$26)*12/ProjDur),"") -> 0.01617647059
C101: =INDEX($N$53:$AK$53, 1, ROW(9:9)) ->  | D101: Indicate role | F101: =_xlfn.TEXTJOIN(", ",TRUE,IF($F$55:$F$89=C101,$C$55:$C$89,"")) ->  | J101: =IF(C101<>"",IF(ISERR(H101/MAX('PSS-A2 (Derisk)'!$F$17:$F$26)*12/ProjDur),IF(ISERR(H101/MAX('PSS-A2 (ProdDev)'!$F$17:$F$26)*12/ProjDur),"",H101/MAX('PSS-A2 (ProdDev)'!$F$17:$F$26)*12/ProjDur),H101/MAX('PSS-A2 (Derisk)'!$F$17:$F$26)*12/ProjDur),"") -> 
C102: =INDEX($N$53:$AK$53, 1, ROW(10:10)) ->  | D102: Indicate role | F102: =_xlfn.TEXTJOIN(", ",TRUE,IF($F$55:$F$89=C102,$C$55:$C$89,"")) ->  | J102: =IF(C102<>"",IF(ISERR(H102/MAX('PSS-A2 (Derisk)'!$F$17:$F$26)*12/ProjDur),IF(ISERR(H102/MAX('PSS-A2 (ProdDev)'!$F$17:$F$26)*12/ProjDur),"",H102/MAX('PSS-A2 (ProdDev)'!$F$17:$F$26)*12/ProjDur),H102/MAX('PSS-A2 (Derisk)'!$F$17:$F$26)*12/ProjDur),"") -> 
C103: =INDEX($N$53:$AK$53, 1, ROW(11:11)) ->  | D103: Indicate role | F103: =_xlfn.TEXTJOIN(", ",TRUE,IF($F$55:$F$89=C103,$C$55:$C$89,"")) ->  | J103: =IF(C103<>"",IF(ISERR(H103/MAX('PSS-A2 (Derisk)'!$F$17:$F$26)*12/ProjDur),IF(ISERR(H103/MAX('PSS-A2 (ProdDev)'!$F$17:$F$26)*12/ProjDur),"",H103/MAX('PSS-A2 (ProdDev)'!$F$17:$F$26)*12/ProjDur),H103/MAX('PSS-A2 (Derisk)'!$F$17:$F$26)*12/ProjDur),"") -> 
C104: =INDEX($N$53:$AK$53, 1, ROW(12:12)) ->  | D104: Indicate role | F104: =_xlfn.TEXTJOIN(", ",TRUE,IF($F$55:$F$89=C104,$C$55:$C$89,"")) ->  | J104: =IF(C104<>"",IF(ISERR(H104/MAX('PSS-A2 (Derisk)'!$F$17:$F$26)*12/ProjDur),IF(ISERR(H104/MAX('PSS-A2 (ProdDev)'!$F$17:$F$26)*12/ProjDur),"",H104/MAX('PSS-A2 (ProdDev)'!$F$17:$F$26)*12/ProjDur),H104/MAX('PSS-A2 (Derisk)'!$F$17:$F$26)*12/ProjDur),"") -> 
C105: =INDEX($N$53:$AK$53, 1, ROW(13:13)) ->  | D105: Indicate role | F105: =_xlfn.TEXTJOIN(", ",TRUE,IF($F$55:$F$89=C105,$C$55:$C$89,"")) ->  | J105: =IF(C105<>"",IF(ISERR(H105/MAX('PSS-A2 (Derisk)'!$F$17:$F$26)*12/ProjDur),IF(ISERR(H105/MAX('PSS-A2 (ProdDev)'!$F$17:$F$26)*12/ProjDur),"",H105/MAX('PSS-A2 (ProdDev)'!$F$17:$F$26)*12/ProjDur),H105/MAX('PSS-A2 (Derisk)'!$F$17:$F$26)*12/ProjDur),"") -> 
C106: =INDEX($N$53:$AK$53, 1, ROW(14:14)) ->  | D106: Indicate role | F106: =_xlfn.TEXTJOIN(", ",TRUE,IF($F$55:$F$89=C106,$C$55:$C$89,"")) ->  | J106: =IF(C106<>"",IF(ISERR(H106/MAX('PSS-A2 (Derisk)'!$F$17:$F$26)*12/ProjDur),IF(ISERR(H106/MAX('PSS-A2 (ProdDev)'!$F$17:$F$26)*12/ProjDur),"",H106/MAX('PSS-A2 (ProdDev)'!$F$17:$F$26)*12/ProjDur),H106/MAX('PSS-A2 (Derisk)'!$F$17:$F$26)*12/ProjDur),"") -> 
C107: =INDEX($N$53:$AK$53, 1, ROW(15:15)) ->  | D107: Indicate role | F107: =_xlfn.TEXTJOIN(", ",TRUE,IF($F$55:$F$89=C107,$C$55:$C$89,"")) ->  | J107: =IF(C107<>"",IF(ISERR(H107/MAX('PSS-A2 (Derisk)'!$F$17:$F$26)*12/ProjDur),IF(ISERR(H107/MAX('PSS-A2 (ProdDev)'!$F$17:$F$26)*12/ProjDur),"",H107/MAX('PSS-A2 (ProdDev)'!$F$17:$F$26)*12/ProjDur),H107/MAX('PSS-A2 (Derisk)'!$F$17:$F$26)*12/ProjDur),"") -> 
C108: =INDEX($N$53:$AK$53, 1, ROW(16:16)) ->  | D108: Indicate role | F108: =_xlfn.TEXTJOIN(", ",TRUE,IF($F$55:$F$89=C108,$C$55:$C$89,"")) ->  | J108: =IF(C108<>"",IF(ISERR(H108/MAX('PSS-A2 (Derisk)'!$F$17:$F$26)*12/ProjDur),IF(ISERR(H108/MAX('PSS-A2 (ProdDev)'!$F$17:$F$26)*12/ProjDur),"",H108/MAX('PSS-A2 (ProdDev)'!$F$17:$F$26)*12/ProjDur),H108/MAX('PSS-A2 (Derisk)'!$F$17:$F$26)*12/ProjDur),"") -> 
C109: =INDEX($N$53:$AK$53, 1, ROW(17:17)) ->  | D109: Indicate role | F109: =_xlfn.TEXTJOIN(", ",TRUE,IF($F$55:$F$89=C109,$C$55:$C$89,"")) ->  | J109: =IF(C109<>"",IF(ISERR(H109/MAX('PSS-A2 (Derisk)'!$F$17:$F$26)*12/ProjDur),IF(ISERR(H109/MAX('PSS-A2 (ProdDev)'!$F$17:$F$26)*12/ProjDur),"",H109/MAX('PSS-A2 (ProdDev)'!$F$17:$F$26)*12/ProjDur),H109/MAX('PSS-A2 (Derisk)'!$F$17:$F$26)*12/ProjDur),"") -> 
C110: =INDEX($N$53:$AK$53, 1, ROW(18:18)) ->  | D110: Indicate role | F110: =_xlfn.TEXTJOIN(", ",TRUE,IF($F$55:$F$89=C110,$C$55:$C$89,"")) ->  | J110: =IF(C110<>"",IF(ISERR(H110/MAX('PSS-A2 (Derisk)'!$F$17:$F$26)*12/ProjDur),IF(ISERR(H110/MAX('PSS-A2 (ProdDev)'!$F$17:$F$26)*12/ProjDur),"",H110/MAX('PSS-A2 (ProdDev)'!$F$17:$F$26)*12/ProjDur),H110/MAX('PSS-A2 (Derisk)'!$F$17:$F$26)*12/ProjDur),"") -> 
C111: =INDEX($N$53:$AK$53, 1, ROW(19:19)) ->  | D111: Indicate role | F111: =_xlfn.TEXTJOIN(", ",TRUE,IF($F$55:$F$89=C111,$C$55:$C$89,"")) ->  | J111: =IF(C111<>"",IF(ISERR(H111/MAX('PSS-A2 (Derisk)'!$F$17:$F$26)*12/ProjDur),IF(ISERR(H111/MAX('PSS-A2 (ProdDev)'!$F$17:$F$26)*12/ProjDur),"",H111/MAX('PSS-A2 (ProdDev)'!$F$17:$F$26)*12/ProjDur),H111/MAX('PSS-A2 (Derisk)'!$F$17:$F$26)*12/ProjDur),"") -> 
C112: =INDEX($N$53:$AK$53, 1, ROW(20:20)) ->  | D112: Indicate role | F112: =_xlfn.TEXTJOIN(", ",TRUE,IF($F$55:$F$89=C112,$C$55:$C$89,"")) ->  | J112: =IF(C112<>"",IF(ISERR(H112/MAX('PSS-A2 (Derisk)'!$F$17:$F$26)*12/ProjDur),IF(ISERR(H112/MAX('PSS-A2 (ProdDev)'!$F$17:$F$26)*12/ProjDur),"",H112/MAX('PSS-A2 (ProdDev)'!$F$17:$F$26)*12/ProjDur),H112/MAX('PSS-A2 (Derisk)'!$F$17:$F$26)*12/ProjDur),"") -> 
C113: =INDEX($N$53:$AK$53, 1, ROW(21:21)) ->  | D113: Indicate role | F113: =_xlfn.TEXTJOIN(", ",TRUE,IF($F$55:$F$89=C113,$C$55:$C$89,"")) ->  | J113: =IF(C113<>"",IF(ISERR(H113/MAX('PSS-A2 (Derisk)'!$F$17:$F$26)*12/ProjDur),IF(ISERR(H113/MAX('PSS-A2 (ProdDev)'!$F$17:$F$26)*12/ProjDur),"",H113/MAX('PSS-A2 (ProdDev)'!$F$17:$F$26)*12/ProjDur),H113/MAX('PSS-A2 (Derisk)'!$F$17:$F$26)*12/ProjDur),"") -> 
C114: =INDEX($N$53:$AK$53, 1, ROW(22:22)) ->  | D114: Indicate role | F114: =_xlfn.TEXTJOIN(", ",TRUE,IF($F$55:$F$89=C114,$C$55:$C$89,"")) ->  | J114: =IF(C114<>"",IF(ISERR(H114/MAX('PSS-A2 (Derisk)'!$F$17:$F$26)*12/ProjDur),IF(ISERR(H114/MAX('PSS-A2 (ProdDev)'!$F$17:$F$26)*12/ProjDur),"",H114/MAX('PSS-A2 (ProdDev)'!$F$17:$F$26)*12/ProjDur),H114/MAX('PSS-A2 (Derisk)'!$F$17:$F$26)*12/ProjDur),"") -> 
C115: =INDEX($N$53:$AK$53, 1, ROW(23:23)) ->  | D115: Indicate role | F115: =_xlfn.TEXTJOIN(", ",TRUE,IF($F$55:$F$89=C115,$C$55:$C$89,"")) ->  | J115: =IF(C115<>"",IF(ISERR(H115/MAX('PSS-A2 (Derisk)'!$F$17:$F$26)*12/ProjDur),IF(ISERR(H115/MAX('PSS-A2 (ProdDev)'!$F$17:$F$26)*12/ProjDur),"",H115/MAX('PSS-A2 (ProdDev)'!$F$17:$F$26)*12/ProjDur),H115/MAX('PSS-A2 (Derisk)'!$F$17:$F$26)*12/ProjDur),"") -> 
C116: =INDEX($N$53:$AK$53, 1, ROW(24:24)) ->  | D116: Indicate role | F116: =_xlfn.TEXTJOIN(", ",TRUE,IF($F$55:$F$89=C116,$C$55:$C$89,"")) ->  | J116: =IF(C116<>"",IF(ISERR(H116/MAX('PSS-A2 (Derisk)'!$F$17:$F$26)*12/ProjDur),IF(ISERR(H116/MAX('PSS-A2 (ProdDev)'!$F$17:$F$26)*12/ProjDur),"",H116/MAX('PSS-A2 (ProdDev)'!$F$17:$F$26)*12/ProjDur),H116/MAX('PSS-A2 (Derisk)'!$F$17:$F$26)*12/ProjDur),"") -> 
F125: =SUMPRODUCT(--NOT(ISERROR(_xlfn.ANCHORARRAY(J125)))) -> 8 | I125: De-risking | J125: =+TRANSPOSE(E132:E166) -> WP1100 | K125: WP1200 | L125: WP1300 | M125: WP1400 | N125: WP3100 | O125: WP3200 | P125: WP3300 | Q125: WP3400
F126: =SUMPRODUCT(--NOT(ISERROR(_xlfn.ANCHORARRAY(J126)))) -> 12 | I126: Product Development | J126: =+TRANSPOSE(K132:K166) -> WP2100 | K126: WP2200 | L126: WP2300 | M126: WP2400 | N126: WP4100 | O126: WP4200 | P126: WP4300 | Q126: WP4400 | R126: WP4500 | S126: WP4600 | T126: WP5100 | U126: WP5200
E132: =+INDEX($B$12:$C$46,SMALL(IF(INDEX($B$12:$D$46,,1)="derisking",MATCH(ROW($C$12:$C$46),ROW($C$12:$C$46)),""),ROWS($A$131:A131)),2) -> WP1100 | F132: =INDIRECT("'PSS-A8 Page 1 (Derisk)"&"'!"&I132) -> 600 | I132: E24 | K132: =+INDEX($B$12:$C$43,SMALL(IF(INDEX($B$12:$D$46,,1)="Product Development",MATCH(ROW($C$12:$C$46),ROW($C$12:$C$46)),""),ROWS($A$131:B131)),2) -> WP2100 | L132: =INDIRECT("'PSS-A8 Page 1 (ProdDev)"&"'!"&I132) -> 1150
E133: =+INDEX($B$12:$C$46,SMALL(IF(INDEX($B$12:$D$46,,1)="derisking",MATCH(ROW($C$12:$C$46),ROW($C$12:$C$46)),""),ROWS($A$131:A132)),2) -> WP1200 | F133: =INDIRECT("'PSS-A8 Page 1 (Derisk)"&"'!"&I133) -> 80 | I133: F24 | K133: =+INDEX($B$12:$C$43,SMALL(IF(INDEX($B$12:$D$46,,1)="Product Development",MATCH(ROW($C$12:$C$46),ROW($C$12:$C$46)),""),ROWS($A$131:B132)),2) -> WP2200 | L133: =INDIRECT("'PSS-A8 Page 1 (ProdDev)"&"'!"&I133) -> 80
E134: =+INDEX($B$12:$C$46,SMALL(IF(INDEX($B$12:$D$46,,1)="derisking",MATCH(ROW($C$12:$C$46),ROW($C$12:$C$46)),""),ROWS($A$131:A133)),2) -> WP1300 | F134: =INDIRECT("'PSS-A8 Page 1 (Derisk)"&"'!"&I134) -> 50 | I134: G24 | K134: =+INDEX($B$12:$C$43,SMALL(IF(INDEX($B$12:$D$46,,1)="Product Development",MATCH(ROW($C$12:$C$46),ROW($C$12:$C$46)),""),ROWS($A$131:B133)),2) -> WP2300 | L134: =INDIRECT("'PSS-A8 Page 1 (ProdDev)"&"'!"&I134) -> 50
E135: =+INDEX($B$12:$C$46,SMALL(IF(INDEX($B$12:$D$46,,1)="derisking",MATCH(ROW($C$12:$C$46),ROW($C$12:$C$46)),""),ROWS($A$131:A134)),2) -> WP1400 | F135: =INDIRECT("'PSS-A8 Page 1 (Derisk)"&"'!"&I135) -> 45 | I135: H24 | K135: =+INDEX($B$12:$C$43,SMALL(IF(INDEX($B$12:$D$46,,1)="Product Development",MATCH(ROW($C$12:$C$46),ROW($C$12:$C$46)),""),ROWS($A$131:B134)),2) -> WP2400 | L135: =INDIRECT("'PSS-A8 Page 1 (ProdDev)"&"'!"&I135) -> 45
E136: =+INDEX($B$12:$C$46,SMALL(IF(INDEX($B$12:$D$46,,1)="derisking",MATCH(ROW($C$12:$C$46),ROW($C$12:$C$46)),""),ROWS($A$131:A135)),2) -> WP3100 | F136: =INDIRECT("'PSS-A8 Page 1 (Derisk)"&"'!"&I136) -> 80 | I136: I24 | K136: =+INDEX($B$12:$C$43,SMALL(IF(INDEX($B$12:$D$46,,1)="Product Development",MATCH(ROW($C$12:$C$46),ROW($C$12:$C$46)),""),ROWS($A$131:B135)),2) -> WP4100 | L136: =INDIRECT("'PSS-A8 Page 1 (ProdDev)"&"'!"&I136) -> 80
E137: =+INDEX($B$12:$C$46,SMALL(IF(INDEX($B$12:$D$46,,1)="derisking",MATCH(ROW($C$12:$C$46),ROW($C$12:$C$46)),""),ROWS($A$131:A136)),2) -> WP3200 | F137: =INDIRECT("'PSS-A8 Page 1 (Derisk)"&"'!"&I137) -> 380 | I137: J24 | K137: =+INDEX($B$12:$C$43,SMALL(IF(INDEX($B$12:$D$46,,1)="Product Development",MATCH(ROW($C$12:$C$46),ROW($C$12:$C$46)),""),ROWS($A$131:B136)),2) -> WP4200 | L137: =INDIRECT("'PSS-A8 Page 1 (ProdDev)"&"'!"&I137) -> 38
E138: =+INDEX($B$12:$C$46,SMALL(IF(INDEX($B$12:$D$46,,1)="derisking",MATCH(ROW($C$12:$C$46),ROW($C$12:$C$46)),""),ROWS($A$131:A137)),2) -> WP3300 | F138: =INDIRECT("'PSS-A8 Page 1 (Derisk)"&"'!"&I138) -> 540 | I138: K24 | K138: =+INDEX($B$12:$C$43,SMALL(IF(INDEX($B$12:$D$46,,1)="Product Development",MATCH(ROW($C$12:$C$46),ROW($C$12:$C$46)),""),ROWS($A$131:B137)),2) -> WP4300 | L138: =INDIRECT("'PSS-A8 Page 1 (ProdDev)"&"'!"&I138) -> 540
E139: =+INDEX($B$12:$C$46,SMALL(IF(INDEX($B$12:$D$46,,1)="derisking",MATCH(ROW($C$12:$C$46),ROW($C$12:$C$46)),""),ROWS($A$131:A138)),2) -> WP3400 | F139: =INDIRECT("'PSS-A8 Page 1 (Derisk)"&"'!"&I139) -> 160 | I139: L24 | K139: =+INDEX($B$12:$C$43,SMALL(IF(INDEX($B$12:$D$46,,1)="Product Development",MATCH(ROW($C$12:$C$46),ROW($C$12:$C$46)),""),ROWS($A$131:B138)),2) -> WP4400 | L139: =INDIRECT("'PSS-A8 Page 1 (ProdDev)"&"'!"&I139) -> 160
E140: =+INDEX($B$12:$C$46,SMALL(IF(INDEX($B$12:$D$46,,1)="derisking",MATCH(ROW($C$12:$C$46),ROW($C$12:$C$46)),""),ROWS($A$131:A139)),2) ->  | F140: =INDIRECT("'PSS-A8 Page 1 (Derisk)"&"'!"&I140) -> 0 | I140: M24 | K140: =+INDEX($B$12:$C$46,SMALL(IF(INDEX($B$12:$D$46,,1)="Product Development",MATCH(ROW($C$12:$C$46),ROW($C$12:$C$46)),""),ROWS($A$131:B139)),2) -> WP4500 | L140: =INDIRECT("'PSS-A8 Page 1 (ProdDev)"&"'!"&I140) -> 2315
E141: =+INDEX($B$12:$C$46,SMALL(IF(INDEX($B$12:$D$46,,1)="derisking",MATCH(ROW($C$12:$C$46),ROW($C$12:$C$46)),""),ROWS($A$131:A140)),2) ->  | F141: =INDIRECT("'PSS-A8 Page 1 (Derisk)"&"'!"&I141) -> 0 | I141: N24 | K141: =+INDEX($B$12:$C$46,SMALL(IF(INDEX($B$12:$D$46,,1)="Product Development",MATCH(ROW($C$12:$C$46),ROW($C$12:$C$46)),""),ROWS($A$131:B140)),2) -> WP4600 | L141: =INDIRECT("'PSS-A8 Page 1 (ProdDev)"&"'!"&I141) -> 1323
E142: =+INDEX($B$12:$C$46,SMALL(IF(INDEX($B$12:$D$46,,1)="derisking",MATCH(ROW($C$12:$C$46),ROW($C$12:$C$46)),""),ROWS($A$131:A141)),2) ->  | F142: =INDIRECT("'PSS-A8 Page 1 (Derisk)"&"'!"&I142) -> 0 | I142: O24 | K142: =+INDEX($B$12:$C$46,SMALL(IF(INDEX($B$12:$D$46,,1)="Product Development",MATCH(ROW($C$12:$C$46),ROW($C$12:$C$46)),""),ROWS($A$131:B141)),2) -> WP5100 | L142: =INDIRECT("'PSS-A8 Page 1 (ProdDev)"&"'!"&I142) -> 368
E143: =+INDEX($B$12:$C$46,SMALL(IF(INDEX($B$12:$D$46,,1)="derisking",MATCH(ROW($C$12:$C$46),ROW($C$12:$C$46)),""),ROWS($A$131:A142)),2) ->  | F143: =INDIRECT("'PSS-A8 Page 1 (Derisk)"&"'!"&I143) -> 0 | I143: P24 | K143: =+INDEX($B$12:$C$46,SMALL(IF(INDEX($B$12:$D$46,,1)="Product Development",MATCH(ROW($C$12:$C$46),ROW($C$12:$C$46)),""),ROWS($A$131:B142)),2) -> WP5200 | L143: =INDIRECT("'PSS-A8 Page 1 (ProdDev)"&"'!"&I143) -> 235
E144: =+INDEX($B$12:$C$46,SMALL(IF(INDEX($B$12:$D$46,,1)="derisking",MATCH(ROW($C$12:$C$46),ROW($C$12:$C$46)),""),ROWS($A$131:A143)),2) ->  | F144: =INDIRECT("'PSS-A8 Page 2 (Derisk)"&"'!"&I144) -> 0 | I144: E24 | K144: =+INDEX($B$12:$C$46,SMALL(IF(INDEX($B$12:$D$46,,1)="Product Development",MATCH(ROW($C$12:$C$46),ROW($C$12:$C$46)),""),ROWS($A$131:B143)),2) ->  | L144: =INDIRECT("'PSS-A8 Page 2 (ProdDev)"&"'!"&I144) -> 0
E145: =+INDEX($B$12:$C$46,SMALL(IF(INDEX($B$12:$D$46,,1)="derisking",MATCH(ROW($C$12:$C$46),ROW($C$12:$C$46)),""),ROWS($A$131:A144)),2) ->  | F145: =INDIRECT("'PSS-A8 Page 2 (Derisk)"&"'!"&I145) -> 0 | I145: F24 | K145: =+INDEX($B$12:$C$46,SMALL(IF(INDEX($B$12:$D$46,,1)="Product Development",MATCH(ROW($C$12:$C$46),ROW($C$12:$C$46)),""),ROWS($A$131:B144)),2) ->  | L145: =INDIRECT("'PSS-A8 Page 2 (ProdDev)"&"'!"&I145) -> 0
E146: =+INDEX($B$12:$C$46,SMALL(IF(INDEX($B$12:$D$46,,1)="derisking",MATCH(ROW($C$12:$C$46),ROW($C$12:$C$46)),""),ROWS($A$131:A145)),2) ->  | F146: =INDIRECT("'PSS-A8 Page 2 (Derisk)"&"'!"&I146) -> 0 | I146: G24 | K146: =+INDEX($B$12:$C$46,SMALL(IF(INDEX($B$12:$D$46,,1)="Product Development",MATCH(ROW($C$12:$C$46),ROW($C$12:$C$46)),""),ROWS($A$131:B145)),2) ->  | L146: =INDIRECT("'PSS-A8 Page 2 (ProdDev)"&"'!"&I146) -> 0
E147: =+INDEX($B$12:$C$46,SMALL(IF(INDEX($B$12:$D$46,,1)="derisking",MATCH(ROW($C$12:$C$46),ROW($C$12:$C$46)),""),ROWS($A$131:A146)),2) ->  | F147: =INDIRECT("'PSS-A8 Page 2 (Derisk)"&"'!"&I147) -> 0 | I147: H24 | K147: =+INDEX($B$12:$C$46,SMALL(IF(INDEX($B$12:$D$46,,1)="Product Development",MATCH(ROW($C$12:$C$46),ROW($C$12:$C$46)),""),ROWS($A$131:B146)),2) ->  | L147: =INDIRECT("'PSS-A8 Page 2 (ProdDev)"&"'!"&I147) -> 0
E148: =+INDEX($B$12:$C$46,SMALL(IF(INDEX($B$12:$D$46,,1)="derisking",MATCH(ROW($C$12:$C$46),ROW($C$12:$C$46)),""),ROWS($A$131:A147)),2) ->  | F148: =INDIRECT("'PSS-A8 Page 2 (Derisk)"&"'!"&I148) -> 0 | I148: I24 | K148: =+INDEX($B$12:$C$46,SMALL(IF(INDEX($B$12:$D$46,,1)="Product Development",MATCH(ROW($C$12:$C$46),ROW($C$12:$C$46)),""),ROWS($A$131:B147)),2) ->  | L148: =INDIRECT("'PSS-A8 Page 2 (ProdDev)"&"'!"&I148) -> 0
E149: =+INDEX($B$12:$C$46,SMALL(IF(INDEX($B$12:$D$46,,1)="derisking",MATCH(ROW($C$12:$C$46),ROW($C$12:$C$46)),""),ROWS($A$131:A148)),2) ->  | F149: =INDIRECT("'PSS-A8 Page 2 (Derisk)"&"'!"&I149) -> 0 | I149: J24 | K149: =+INDEX($B$12:$C$46,SMALL(IF(INDEX($B$12:$D$46,,1)="Product Development",MATCH(ROW($C$12:$C$46),ROW($C$12:$C$46)),""),ROWS($A$131:B148)),2) ->  | L149: =INDIRECT("'PSS-A8 Page 2 (ProdDev)"&"'!"&I149) -> 0
E150: =+INDEX($B$12:$C$46,SMALL(IF(INDEX($B$12:$D$46,,1)="derisking",MATCH(ROW($C$12:$C$46),ROW($C$12:$C$46)),""),ROWS($A$131:A149)),2) ->  | F150: =INDIRECT("'PSS-A8 Page 2 (Derisk)"&"'!"&I150) -> 0 | I150: K24 | K150: =+INDEX($B$12:$C$46,SMALL(IF(INDEX($B$12:$D$46,,1)="Product Development",MATCH(ROW($C$12:$C$46),ROW($C$12:$C$46)),""),ROWS($A$131:B149)),2) ->  | L150: =INDIRECT("'PSS-A8 Page 2 (ProdDev)"&"'!"&I150) -> 0
E151: =+INDEX($B$12:$C$46,SMALL(IF(INDEX($B$12:$D$46,,1)="derisking",MATCH(ROW($C$12:$C$46),ROW($C$12:$C$46)),""),ROWS($A$131:A150)),2) ->  | F151: =INDIRECT("'PSS-A8 Page 2 (Derisk)"&"'!"&I151) -> 0 | I151: L24 | K151: =+INDEX($B$12:$C$46,SMALL(IF(INDEX($B$12:$D$46,,1)="Product Development",MATCH(ROW($C$12:$C$46),ROW($C$12:$C$46)),""),ROWS($A$131:B150)),2) ->  | L151: =INDIRECT("'PSS-A8 Page 2 (ProdDev)"&"'!"&I151) -> 0
E152: =+INDEX($B$12:$C$46,SMALL(IF(INDEX($B$12:$D$46,,1)="derisking",MATCH(ROW($C$12:$C$46),ROW($C$12:$C$46)),""),ROWS($A$131:A151)),2) ->  | F152: =INDIRECT("'PSS-A8 Page 2 (Derisk)"&"'!"&I152) -> 0 | I152: M24 | K152: =+INDEX($B$12:$C$46,SMALL(IF(INDEX($B$12:$D$46,,1)="Product Development",MATCH(ROW($C$12:$C$46),ROW($C$12:$C$46)),""),ROWS($A$131:B151)),2) ->  | L152: =INDIRECT("'PSS-A8 Page 2 (ProdDev)"&"'!"&I152) -> 0
E153: =+INDEX($B$12:$C$46,SMALL(IF(INDEX($B$12:$D$46,,1)="derisking",MATCH(ROW($C$12:$C$46),ROW($C$12:$C$46)),""),ROWS($A$131:A152)),2) ->  | F153: =INDIRECT("'PSS-A8 Page 2 (Derisk)"&"'!"&I153) -> 0 | I153: N24 | K153: =+INDEX($B$12:$C$46,SMALL(IF(INDEX($B$12:$D$46,,1)="Product Development",MATCH(ROW($C$12:$C$46),ROW($C$12:$C$46)),""),ROWS($A$131:B152)),2) ->  | L153: =INDIRECT("'PSS-A8 Page 2 (ProdDev)"&"'!"&I153) -> 0
E154: =+INDEX($B$12:$C$46,SMALL(IF(INDEX($B$12:$D$46,,1)="derisking",MATCH(ROW($C$12:$C$46),ROW($C$12:$C$46)),""),ROWS($A$131:A153)),2) ->  | F154: =INDIRECT("'PSS-A8 Page 2 (Derisk)"&"'!"&I154) -> 0 | I154: O24 | K154: =+INDEX($B$12:$C$46,SMALL(IF(INDEX($B$12:$D$46,,1)="Product Development",MATCH(ROW($C$12:$C$46),ROW($C$12:$C$46)),""),ROWS($A$131:B153)),2) ->  | L154: =INDIRECT("'PSS-A8 Page 2 (ProdDev)"&"'!"&I154) -> 0
E155: =+INDEX($B$12:$C$46,SMALL(IF(INDEX($B$12:$D$46,,1)="derisking",MATCH(ROW($C$12:$C$46),ROW($C$12:$C$46)),""),ROWS($A$131:A154)),2) ->  | F155: =INDIRECT("'PSS-A8 Page 2 (Derisk)"&"'!"&I155) -> 0 | I155: P24 | K155: =+INDEX($B$12:$C$46,SMALL(IF(INDEX($B$12:$D$46,,1)="Product Development",MATCH(ROW($C$12:$C$46),ROW($C$12:$C$46)),""),ROWS($A$131:B154)),2) ->  | L155: =INDIRECT("'PSS-A8 Page 2 (ProdDev)"&"'!"&I155) -> 0
E156: =+INDEX($B$12:$C$46,SMALL(IF(INDEX($B$12:$D$46,,1)="derisking",MATCH(ROW($C$12:$C$46),ROW($C$12:$C$46)),""),ROWS($A$131:A155)),2) ->  | K156: =+INDEX($B$12:$C$46,SMALL(IF(INDEX($B$12:$D$46,,1)="Product Development",MATCH(ROW($C$12:$C$46),ROW($C$12:$C$46)),""),ROWS($A$131:B155)),2) -> 
E157: =+INDEX($B$12:$C$46,SMALL(IF(INDEX($B$12:$D$46,,1)="derisking",MATCH(ROW($C$12:$C$46),ROW($C$12:$C$46)),""),ROWS($A$131:A156)),2) ->  | K157: =+INDEX($B$12:$C$46,SMALL(IF(INDEX($B$12:$D$46,,1)="Product Development",MATCH(ROW($C$12:$C$46),ROW($C$12:$C$46)),""),ROWS($A$131:B156)),2) -> 
E158: =+INDEX($B$12:$C$46,SMALL(IF(INDEX($B$12:$D$46,,1)="derisking",MATCH(ROW($C$12:$C$46),ROW($C$12:$C$46)),""),ROWS($A$131:A157)),2) ->  | K158: =+INDEX($B$12:$C$46,SMALL(IF(INDEX($B$12:$D$46,,1)="Product Development",MATCH(ROW($C$12:$C$46),ROW($C$12:$C$46)),""),ROWS($A$131:B157)),2) -> 
E159: =+INDEX($B$12:$C$46,SMALL(IF(INDEX($B$12:$D$46,,1)="derisking",MATCH(ROW($C$12:$C$46),ROW($C$12:$C$46)),""),ROWS($A$131:A158)),2) ->  | K159: =+INDEX($B$12:$C$46,SMALL(IF(INDEX($B$12:$D$46,,1)="Product Development",MATCH(ROW($C$12:$C$46),ROW($C$12:$C$46)),""),ROWS($A$131:B158)),2) -> 
E160: =+INDEX($B$12:$C$46,SMALL(IF(INDEX($B$12:$D$46,,1)="derisking",MATCH(ROW($C$12:$C$46),ROW($C$12:$C$46)),""),ROWS($A$131:A159)),2) ->  | K160: =+INDEX($B$12:$C$46,SMALL(IF(INDEX($B$12:$D$46,,1)="Product Development",MATCH(ROW($C$12:$C$46),ROW($C$12:$C$46)),""),ROWS($A$131:B159)),2) -> 
E161: =+INDEX($B$12:$C$46,SMALL(IF(INDEX($B$12:$D$46,,1)="derisking",MATCH(ROW($C$12:$C$46),ROW($C$12:$C$46)),""),ROWS($A$131:A160)),2) ->  | K161: =+INDEX($B$12:$C$46,SMALL(IF(INDEX($B$12:$D$46,,1)="Product Development",MATCH(ROW($C$12:$C$46),ROW($C$12:$C$46)),""),ROWS($A$131:B160)),2) -> 
E162: =+INDEX($B$12:$C$46,SMALL(IF(INDEX($B$12:$D$46,,1)="derisking",MATCH(ROW($C$12:$C$46),ROW($C$12:$C$46)),""),ROWS($A$131:A161)),2) ->  | K162: =+INDEX($B$12:$C$46,SMALL(IF(INDEX($B$12:$D$46,,1)="Product Development",MATCH(ROW($C$12:$C$46),ROW($C$12:$C$46)),""),ROWS($A$131:B161)),2) -> 
E163: =+INDEX($B$12:$C$46,SMALL(IF(INDEX($B$12:$D$46,,1)="derisking",MATCH(ROW($C$12:$C$46),ROW($C$12:$C$46)),""),ROWS($A$131:A162)),2) ->  | K163: =+INDEX($B$12:$C$46,SMALL(IF(INDEX($B$12:$D$46,,1)="Product Development",MATCH(ROW($C$12:$C$46),ROW($C$12:$C$46)),""),ROWS($A$131:B162)),2) -> 
E164: =+INDEX($B$12:$C$46,SMALL(IF(INDEX($B$12:$D$46,,1)="derisking",MATCH(ROW($C$12:$C$46),ROW($C$12:$C$46)),""),ROWS($A$131:A163)),2) ->  | K164: =+INDEX($B$12:$C$46,SMALL(IF(INDEX($B$12:$D$46,,1)="Product Development",MATCH(ROW($C$12:$C$46),ROW($C$12:$C$46)),""),ROWS($A$131:B163)),2) -> 
E165: =+INDEX($B$12:$C$46,SMALL(IF(INDEX($B$12:$D$46,,1)="derisking",MATCH(ROW($C$12:$C$46),ROW($C$12:$C$46)),""),ROWS($A$131:A164)),2) ->  | K165: =+INDEX($B$12:$C$46,SMALL(IF(INDEX($B$12:$D$46,,1)="Product Development",MATCH(ROW($C$12:$C$46),ROW($C$12:$C$46)),""),ROWS($A$131:B164)),2) -> 
E166: =+INDEX($B$12:$C$46,SMALL(IF(INDEX($B$12:$D$46,,1)="derisking",MATCH(ROW($C$12:$C$46),ROW($C$12:$C$46)),""),ROWS($A$131:A165)),2) ->  | K166: =+INDEX($B$12:$C$46,SMALL(IF(INDEX($B$12:$D$46,,1)="Product Development",MATCH(ROW($C$12:$C$46),ROW($C$12:$C$46)),""),ROWS($A$131:B165)),2) -> 

Sheet PSS-A2 (Derisk)
B2: COMPANY PRICE BREAKDOWN FORM | F2: Form No. PSS A2 | H2: Page no. | I2: 1 | J2: of 1 | K2: Issue 1 | M2: =(COUNTBLANK(F17:F26)-COUNTBLANK(B17:B26))+COUNTBLANK(J67) -> 0
B3: RFQ/ITT No.: | D3: ='PSS-A1 (Derisk)'!D4 -> InCubed | G3: COMPANY
B4: Proposal/Tender No.: | D4: ='PSS-A1 (Derisk)'!D5 -> CM/020/Prop_001 | G4: Name: | H4: ='PSS-A1 (Derisk)'!G3 -> OurLittleComp
B5: Type of Price: | D5: =TRIM(LEFT(E5,1)&MID(E5,FIND(" ",E5&" ")+1,1)&MID(E5,FIND("*",SUBSTITUTE(E5&" "," ","*",2))+1,1)) -> FFP | E5: ='Financial Planning (Derisk)'!D5 -> Firm Fixed Price | G5: Country: | H5: =DASHBOARD!C10 -> IT
B6: Economic Condition: | D6: ='PSS-A1 (Derisk)'!D6 -> 2021-2022
B7: National Currency (NC): | D7: ='PSS-A1 (Derisk)'!D7 -> EUR | G7: Representative
B8: Exchange Rate (X): | D8: 1 EURO = | E8: ='Financial Planning (Derisk)'!D7 -> 1 | F8: =IF(D7<>"", D7, "") -> EUR | G8: Name and Title: | H8: ='PSS-A1 (Derisk)'!G5 -> Mario ROSSI, CEO
B9: Contractual Phase: | D9: =IF('Financial Planning (Derisk)'!D4="","N/A",'Financial Planning (Derisk)'!D4) -> N/A | G9: Signature:
B10: Project: | D10: =DASHBOARD!C3 -> EarthMonitor
J13: TOTAL (NC) | K13: TOTAL (EURO)
J14: 0 | K14: NC / X
C15: LABOUR
B16: Direct Labour cost centres or categories Code / Description | E16: No. of FTE (calculated) U = W / V | F16: Sold Hours per ManYear V | G16: Manpower Effort No. of Hours W | H16: Gross Hourly Rate in NC
B17: Man01 | C17: =IF(ISERROR(VLOOKUP(B17,'PSS-A1 (Derisk)'!$B$16:$G$30,2,FALSE)),"",VLOOKUP(B17,'PSS-A1 (Derisk)'!$B$16:$G$30,2,FALSE)) -> Project Manager | E17: =IF(F17<>"",G17/F17,"") -> 0.2705882353 | F17: 1700 | G17: ='PSS-A8 Page 2 (Derisk)'!R14 -> 460 | H17: =IF(C17<>"",VLOOKUP(B17,'PSS-A1 (Derisk)'!$B$16:$G$30,6,FALSE),"") -> 77.625 | J17: =IF(G17>0, G17*H17, 0) -> 35707.5 | K17: =IF($E$8>0, J17/$E$8, "") -> 35707.5
B18: Dev01 | C18: =IF(ISERROR(VLOOKUP(B18,'PSS-A1 (Derisk)'!$B$16:$G$30,2,FALSE)),"",VLOOKUP(B18,'PSS-A1 (Derisk)'!$B$16:$G$30,2,FALSE)) -> Senior SW Developer | E18: =IF(F18<>"",G18/F18,"") -> 0.3147058824 | F18: 1700 | G18: ='PSS-A8 Page 2 (Derisk)'!R15 -> 535 | H18: =IF(C18<>"",VLOOKUP(B18,'PSS-A1 (Derisk)'!$B$16:$G$30,6,FALSE),"") -> 69.345 | J18: =IF(G18>0, G18*H18, 0) -> 37099.575 | K18: =IF($E$8>0, J18/$E$8, "") -> 37099.575
B19: Dev02 | C19: =IF(ISERROR(VLOOKUP(B19,'PSS-A1 (Derisk)'!$B$16:$G$30,2,FALSE)),"",VLOOKUP(B19,'PSS-A1 (Derisk)'!$B$16:$G$30,2,FALSE)) -> Junior SW Developer | E19: 0.4290322581 | F19: 1550 | G19: ='PSS-A8 Page 2 (Derisk)'!R16 -> 665 | H19: =IF(C19<>"",VLOOKUP(B19,'PSS-A1 (Derisk)'!$B$16:$G$30,6,FALSE),"") -> 52.555 | J19: =IF(G19>0, G19*H19, 0) -> 34949.075 | K19: 34949.075
B20: Adm01 | C20: =IF(ISERROR(VLOOKUP(B20,'PSS-A1 (Derisk)'!$B$16:$G$30,2,FALSE)),"",VLOOKUP(B20,'PSS-A1 (Derisk)'!$B$16:$G$30,2,FALSE)) -> Administrative Assistant | E20: 0.1774193548 | F20: 1550 | G20: ='PSS-A8 Page 2 (Derisk)'!R17 -> 275 | H20: =IF(C20<>"",VLOOKUP(B20,'PSS-A1 (Derisk)'!$B$16:$G$30,6,FALSE),"") -> 41.745 | J20: =IF(G20>0, G20*H20, 0) -> 11479.875 | K20: 11479.875
C21: =IF(ISERROR(VLOOKUP(B21,'PSS-A1 (Derisk)'!$B$16:$G$30,2,FALSE)),"",VLOOKUP(B21,'PSS-A1 (Derisk)'!$B$16:$G$30,2,FALSE)) ->  | G21: ='PSS-A8 Page 2 (Derisk)'!R18 -> 0 | H21: =IF(C21<>"",VLOOKUP(B21,'PSS-A1 (Derisk)'!$B$16:$G$30,6,FALSE),"") ->  | J21: =IF(G21>0, G21*H21, 0) -> 0 | K21: 0
C22: =IF(ISERROR(VLOOKUP(B22,'PSS-A1 (Derisk)'!$B$16:$G$30,2,FALSE)),"",VLOOKUP(B22,'PSS-A1 (Derisk)'!$B$16:$G$30,2,FALSE)) ->  | G22: ='PSS-A8 Page 2 (Derisk)'!R19 -> 0 | H22: =IF(C22<>"",VLOOKUP(B22,'PSS-A1 (Derisk)'!$B$16:$G$30,6,FALSE),"") ->  | J22: =IF(G22>0, G22*H22, 0) -> 0 | K22: 0
C23: =IF(ISERROR(VLOOKUP(B23,'PSS-A1 (Derisk)'!$B$16:$G$30,2,FALSE)),"",VLOOKUP(B23,'PSS-A1 (Derisk)'!$B$16:$G$30,2,FALSE)) ->  | G23: ='PSS-A8 Page 2 (Derisk)'!R20 -> 0 | H23: =IF(C23<>"",VLOOKUP(B23,'PSS-A1 (Derisk)'!$B$16:$G$30,6,FALSE),"") ->  | J23: =IF(G23>0, G23*H23, 0) -> 0 | K23: 0
C24: =IF(ISERROR(VLOOKUP(B24,'PSS-A1 (Derisk)'!$B$16:$G$30,2,FALSE)),"",VLOOKUP(B24,'PSS-A1 (Derisk)'!$B$16:$G$30,2,FALSE)) ->  | G24: ='PSS-A8 Page 2 (Derisk)'!R21 -> 0 | H24: =IF(C24<>"",VLOOKUP(B24,'PSS-A1 (Derisk)'!$B$16:$G$30,6,FALSE),"") ->  | J24: 0 | K24: 0
C25: =IF(ISERROR(VLOOKUP(B25,'PSS-A1 (Derisk)'!$B$16:$G$30,2,FALSE)),"",VLOOKUP(B25,'PSS-A1 (Derisk)'!$B$16:$G$30,2,FALSE)) ->  | G25: ='PSS-A8 Page 2 (Derisk)'!R22 -> 0 | H25: =IF(C25<>"",VLOOKUP(B25,'PSS-A1 (Derisk)'!$B$16:$G$30,6,FALSE),"") ->  | J25: 0 | K25: 0
C26: =IF(ISERROR(VLOOKUP(B26,'PSS-A1 (Derisk)'!$B$16:$G$30,2,FALSE)),"",VLOOKUP(B26,'PSS-A1 (Derisk)'!$B$16:$G$30,2,FALSE)) ->  | G26: ='PSS-A8 Page 2 (Derisk)'!R23 -> 0 | H26: =IF(C26<>"",VLOOKUP(B26,'PSS-A1 (Derisk)'!$B$16:$G$30,6,FALSE),"") ->  | J26: 0 | K26: 0
B27: 1 | C27: Total Direct Labour Hours and Cost | E27: =SUM(E17:E26) -> 1.191745731 | G27: =SUM(G17:G26) -> 1935 | I27: A | J27: =SUM(J17:J26) -> 119236.025 | K27: =SUM(K17:K26) -> 119236.025
C28: INTERNAL SPECIAL FACILITIES
B29: Code | C29: Description | F29: Type of unit | G29: No. of units | H29: Unit rates in NC
C30: =IF(ISERROR(VLOOKUP(B30,'PSS-A1 (Derisk)'!$B$33:$G$42,2,FALSE)),"",VLOOKUP(B30,'PSS-A1 (Derisk)'!$B$33:$G$42,2,FALSE)) ->  | F30: =IF(C30<>"",VLOOKUP(B30,'PSS-A1 (Derisk)'!$B$33:$G$42,4,FALSE),"") ->  | H30: =IF(C30<>"",VLOOKUP(B30,'PSS-A1 (Derisk)'!$B$33:$G$42,6,FALSE),"") ->  | J30: =IF(G30>0, G30*H30, 0) -> 0 | K30: =IF($E$8>0, J30/$E$8, "") -> 0
C31: =IF(ISERROR(VLOOKUP(B31,'PSS-A1 (Derisk)'!$B$33:$G$42,2,FALSE)),"",VLOOKUP(B31,'PSS-A1 (Derisk)'!$B$33:$G$42,2,FALSE)) ->  | F31: =IF(C31<>"",VLOOKUP(B31,'PSS-A1 (Derisk)'!$B$33:$G$42,4,FALSE),"") ->  | H31: =IF(C31<>"",VLOOKUP(B31,'PSS-A1 (Derisk)'!$B$33:$G$42,6,FALSE),"") ->  | J31: =IF(G31>0, G31*H31, 0) -> 0 | K31: =IF($E$8>0, J31/$E$8, "") -> 0
C32: =IF(ISERROR(VLOOKUP(B32,'PSS-A1 (Derisk)'!$B$33:$G$42,2,FALSE)),"",VLOOKUP(B32,'PSS-A1 (Derisk)'!$B$33:$G$42,2,FALSE)) ->  | F32: =IF(C32<>"",VLOOKUP(B32,'PSS-A1 (Derisk)'!$B$33:$G$42,4,FALSE),"") ->  | H32: =IF(C32<>"",VLOOKUP(B32,'PSS-A1 (Derisk)'!$B$33:$G$42,6,FALSE),"") ->  | J32: 0 | K32: 0
C33: =IF(ISERROR(VLOOKUP(B33,'PSS-A1 (Derisk)'!$B$33:$G$42,2,FALSE)),"",VLOOKUP(B33,'PSS-A1 (Derisk)'!$B$33:$G$42,2,FALSE)) ->  | F33: =IF(C33<>"",VLOOKUP(B33,'PSS-A1 (Derisk)'!$B$33:$G$42,4,FALSE),"") ->  | H33: =IF(C33<>"",VLOOKUP(B33,'PSS-A1 (Derisk)'!$B$33:$G$42,6,FALSE),"") ->  | J33: 0 | K33: 0
C34: =IF(ISERROR(VLOOKUP(B34,'PSS-A1 (Derisk)'!$B$33:$G$42,2,FALSE)),"",VLOOKUP(B34,'PSS-A1 (Derisk)'!$B$33:$G$42,2,FALSE)) ->  | F34: =IF(C34<>"",VLOOKUP(B34,'PSS-A1 (Derisk)'!$B$33:$G$42,4,FALSE),"") ->  | H34: =IF(C34<>"",VLOOKUP(B34,'PSS-A1 (Derisk)'!$B$33:$G$42,6,FALSE),"") ->  | J34: 0 | K34: 0
C35: =IF(ISERROR(VLOOKUP(B35,'PSS-A1 (Derisk)'!$B$33:$G$42,2,FALSE)),"",VLOOKUP(B35,'PSS-A1 (Derisk)'!$B$33:$G$42,2,FALSE)) ->  | F35: =IF(C35<>"",VLOOKUP(B35,'PSS-A1 (Derisk)'!$B$33:$G$42,4,FALSE),"") ->  | H35: =IF(C35<>"",VLOOKUP(B35,'PSS-A1 (Derisk)'!$B$33:$G$42,6,FALSE),"") ->  | J35: 0 | K35: 0
C36: =IF(ISERROR(VLOOKUP(B36,'PSS-A1 (Derisk)'!$B$33:$G$42,2,FALSE)),"",VLOOKUP(B36,'PSS-A1 (Derisk)'!$B$33:$G$42,2,FALSE)) ->  | F36: =IF(C36<>"",VLOOKUP(B36,'PSS-A1 (Derisk)'!$B$33:$G$42,4,FALSE),"") ->  | H36: =IF(C36<>"",VLOOKUP(B36,'PSS-A1 (Derisk)'!$B$33:$G$42,6,FALSE),"") ->  | J36: 0 | K36: 0
C37: =IF(ISERROR(VLOOKUP(B37,'PSS-A1 (Derisk)'!$B$33:$G$42,2,FALSE)),"",VLOOKUP(B37,'PSS-A1 (Derisk)'!$B$33:$G$42,2,FALSE)) ->  | F37: =IF(C37<>"",VLOOKUP(B37,'PSS-A1 (Derisk)'!$B$33:$G$42,4,FALSE),"") ->  | H37: =IF(C37<>"",VLOOKUP(B37,'PSS-A1 (Derisk)'!$B$33:$G$42,6,FALSE),"") ->  | J37: 0 | K37: 0
C38: =IF(ISERROR(VLOOKUP(B38,'PSS-A1 (Derisk)'!$B$33:$G$42,2,FALSE)),"",VLOOKUP(B38,'PSS-A1 (Derisk)'!$B$33:$G$42,2,FALSE)) ->  | F38: =IF(C38<>"",VLOOKUP(B38,'PSS-A1 (Derisk)'!$B$33:$G$42,4,FALSE),"") ->  | H38: =IF(C38<>"",VLOOKUP(B38,'PSS-A1 (Derisk)'!$B$33:$G$42,6,FALSE),"") ->  | J38: 0 | K38: 0
C39: =IF(ISERROR(VLOOKUP(B39,'PSS-A1 (Derisk)'!$B$33:$G$42,2,FALSE)),"",VLOOKUP(B39,'PSS-A1 (Derisk)'!$B$33:$G$42,2,FALSE)) ->  | F39: =IF(C39<>"",VLOOKUP(B39,'PSS-A1 (Derisk)'!$B$33:$G$42,4,FALSE),"") ->  | H39: =IF(C39<>"",VLOOKUP(B39,'PSS-A1 (Derisk)'!$B$33:$G$42,6,FALSE),"") ->  | J39: 0 | K39: 0
B40: 2 | C40: Total Internal Special Facilities Cost | I40: B | J40: =SUM(J30:J39) -> 0 | K40: =SUM(K30:K39) -> 0 | M40: =IF(J40<>'PSS-A8 Page 2 (Derisk)'!R29,"<= Total cost of element 2 does not match with PSS-A8: "&'PSS-A8 Page 2 (Derisk)'!R29&" (NC)","") -> 
C41: OTHER DIRECT COST ELEMENTS | E41: Base amounts in NC | F41: + OH % | G41: OH amounts in NC
B42: 3-1 | C42: Raw materials | E42: =SUMIF('Exhibit A (Derisk)'!$C$12:$C$41,'PSS-A2 (Derisk)'!B42,'Exhibit A (Derisk)'!$I$12:$I$41) -> 0 | F42: ='PSS-A1 (Derisk)'!G45 -> 0 | G42: =E42*F42 -> 0 | J42: =IF(E42>0, E42+G42, 0) -> 0 | K42: =IF($E$8>0, J42/$E$8, "") -> 0
B43: 3-2 | C43: Mechanical parts | E43: =SUMIF('Exhibit A (Derisk)'!$C$12:$C$41,'PSS-A2 (Derisk)'!B43,'Exhibit A (Derisk)'!$I$12:$I$41) -> 0 | F43: ='PSS-A1 (Derisk)'!G46 -> 0 | G43: =E43*F43 -> 0 | J43: =IF(E43>0, E43+G43, 0) -> 0 | K43: =IF($E$8>0, J43/$E$8, "") -> 0
B44: 3-3 | C44: Semi-finished products | E44: =SUMIF('Exhibit A (Derisk)'!$C$12:$C$41,'PSS-A2 (Derisk)'!B44,'Exhibit A (Derisk)'!$I$12:$I$41) -> 0 | F44: ='PSS-A1 (Derisk)'!G47 -> 0 | G44: =E44*F44 -> 0 | J44: =IF(E44>0, E44+G44, 0) -> 0 | K44: 0
B45: 3-4 | C45: Electrical & electronic components | E45: =SUMIF('Exhibit A (Derisk)'!$C$12:$C$41,'PSS-A2 (Derisk)'!B45,'Exhibit A (Derisk)'!$I$12:$I$41) -> 0 | F45: ='PSS-A1 (Derisk)'!G48 -> 0 | G45: =E45*F45 -> 0 | J45: =IF(E45>0, E45+G45, 0) -> 0 | K45: 0
B46: 3-5 | C46: HIREL parts: | K46: 0
B47: 3-5a | C47: a) procured by company | E47: =SUMIF('Exhibit A (Derisk)'!$C$12:$C$41,'PSS-A2 (Derisk)'!B47,'Exhibit A (Derisk)'!$I$12:$I$41) -> 0 | F47: ='PSS-A1 (Derisk)'!G50 -> 0 | G47: =E47*F47 -> 0 | J47: =IF(E47>0, E47+G47, 0) -> 0 | K47: 0
B48: 3-5b | C48: b) procured by third party | E48: =SUMIF('Exhibit A (Derisk)'!$C$12:$C$41,'PSS-A2 (Derisk)'!B48,'Exhibit A (Derisk)'!$I$12:$I$41) -> 0 | F48: ='PSS-A1 (Derisk)'!G51 -> 0 | G48: 0 | J48: =IF(E48>0, G48, 0) -> 0 | K48: 0
B49: 3-6 | C49: External Major Products | E49: =SUMIF('Exhibit A (Derisk)'!$C$12:$C$41,'PSS-A2 (Derisk)'!B49,'Exhibit A (Derisk)'!$I$12:$I$41) -> 6340 | F49: ='PSS-A1 (Derisk)'!G52 -> 0 | G49: 0 | J49: 6340 | K49: 6340 | M49: Please report external items under 3.6 - External Major Products and 3.7 - External Services and NOT under 3.10 Miscellaneous
B50: 3-7 | C50: External Services | E50: =SUMIF('Exhibit A (Derisk)'!$C$12:$C$41,'PSS-A2 (Derisk)'!B50,'Exhibit A (Derisk)'!$I$12:$I$41) -> 0 | F50: ='PSS-A1 (Derisk)'!G53 -> 0 | G50: 0 | J50: =IF(E50>0, E50+G50, 0) -> 0 | K50: 0
B51: 3-8 | C51: Transport and Insurances | E51: ='PSS-A8 Page 2 (Derisk)'!R39/(1+F51) -> 0 | F51: ='PSS-A1 (Derisk)'!G54 -> 0 | G51: 0 | J51: 0 | K51: 0
B52: 3-9 | C52: Travel and Subsistence | E52: ='PSS-A8 Page 2 (Derisk)'!R40/(1+F52) -> 3480 | F52: ='PSS-A1 (Derisk)'!G55 -> 0 | G52: 0 | J52: 3480 | K52: 3480
B53: 3-10 | C53: Miscellaneous | E53: =SUMIF('Exhibit A (Derisk)'!$C$12:$C$41,'PSS-A2 (Derisk)'!B53,'Exhibit A (Derisk)'!$I$12:$I$41) -> 0 | F53: ='PSS-A1 (Derisk)'!G56 -> 0 | G53: 0 | J53: 0 | K53: 0
B54: 3 | C54: Total Other Direct Cost | E54: =SUM(E42:E53)-E48 -> 9820 | I54: C | J54: =SUM(J42:J53) -> 9820 | K54: 9820
B55: 4 | C55: SUB-TOTAL DIRECT COST | H55: (A+B+C) | I55: D | J55: =J27+J40+J54 -> 129056.025 | K55: =K27+K40+K54 -> 129056.025
C56: GENERAL EXPENSES | E56: Cost items to which % applies | G56: Base Amount in NC | H56: OH % | M56: For cells in yellow at rows 57 to 59: please note that general costs like IT equipment and services for standard office operations shall not be charged in PSS-A2, but allocated as fixed overhead on top of net manpower costs in PSS-A1
B57: 5 | C57: General & Administration Expenses | H57: ='PSS-A1 (Derisk)'!G60 -> 0 | I57: E | J57: =IF(G57>0, G57*H57, 0) -> 0 | K57: =IF($E$8>0, J57/$E$8, "") -> 0 | M57: =IF(SUM(J57:J59)<>'PSS-A8 Page 2 (Derisk)'!R46,"<= Total cost of elements 5-7 does not match with PSS-A8: "&'PSS-A8 Page 2 (Derisk)'!R46&" (NC)","") -> 
B58: 6 | C58: Research & Development Expenses | H58: ='PSS-A1 (Derisk)'!G61 -> 0 | I58: F | J58: =IF(G58>0, G58*H58, 0) -> 0 | K58: 0
B59: 7 | C59: Other | I59: G | J59: =IF(G59>0, G59*H59, 0) -> 0 | K59: 0
B60: 8 | C60: TOTAL COMPANY COST | H60: D+(E+F+G) | I60: H | J60: =J55+SUM(J57:J59) -> 129056.025 | K60: =ROUND(K55+SUM(K57:K59),0) -> 129056 | M60: Cost will be automatically rounded (no decimal)
E61: Cost items to which % applies | G61: Base Amount in NC | H61: %
B62: 9 | C62: PROFIT | I62: I | J62: 0 | K62: 0 | M62: No profit is allowed in InCubed
B63: 10 | C63: COST WITHOUT ADDITIONAL CHARGE | I63: J | J63: ='PSS-A8 Page 2 (Derisk)'!R51 -> 0 | K63: =IF($E$8>0, J63/$E$8, "") -> 0
B64: 11 | C64: FINANCIAL PROVISION FOR ESCALATION | I64: K | J64: ='PSS-A8 Page 2 (Derisk)'!R52 -> 0 | K64: 0
B65: 12 | C65: TOTAL COMPANY PRICE | H65: (H+I+J+K) | I65: L | J65: =SUM(J60:J64) -> 129056.025 | K65: =ROUND(SUM(K60:K64),0) -> 129056 | M65: Please report the cost in cell K12 in the Financial Proposal, (cost is rounded)
B66: 13 | C66: TOTAL SUB-CONTRACTOR PRICE | I66: M | J66: 0 | K66: 0 | M66: This line should be left empty. Sub-contractor(s) price should be shown as separate PSS
B67: 14 | C67: REDUCTION for COMPANY CONTRIBUTION | I67: N | J67: ='PSS-A8 Page 2 (Derisk)'!R60 -> 32264.00625 | K67: =IF($E$8>0,ROUND( J67/$E$8,0), "") -> 32264 | M67: Reduction for Company Contribution is defined in the PSS A8, line 14.
B68: 15 | C68: TOTAL PRICE FOR ESA | H68: (L+M-N) | J68: =ROUND(J65+J66-J67,0) -> 96792 | K68: =ROUND(K65+K66-K67,0) -> 96792 | M68: Please note that: - Total Price for ESA cannot exceed the Letter of Support from the National Delegate - the price indicated in cell K15 is to be reported in Financial Proposal

Sheet PSS-A1 (Derisk)
B2: COMPANY RATES AND OVERHEADS | D2: FORM No. PSS A1 | F2: Page no. 1 | G2: of 1 | I2: Issue 5
F3: COMPANY NAME: | G3: =DASHBOARD!C7 -> OurLittleComp | N3: =COUNTBLANK('PSS-A1 (Derisk)'!D8:D9)+COUNTBLANK('PSS-A1 (Derisk)'!E8)+COUNTBLANK('PSS-A1 (Derisk)'!B16:C16)+COUNTBLANK('PSS-A1 (Derisk)'!E16:F16) -> 0
B4: RFQ/ITT no.: | D4: =DASHBOARD!C2 -> InCubed
B5: PROPOSAL no.: | D5: =DASHBOARD!C4 -> CM/020/Prop_001 | F5: Name and title: | G5: =DASHBOARD!C8 -> Mario ROSSI, CEO
B6: ECONOMIC CONDITIONS: | D6: ='Financial Planning (Derisk)'!D6 -> 2021-2022
B7: NATIONAL CURRENCY (NC): | D7: =DASHBOARD!C11 -> EUR | F7: Signature:
B8: VALIDITY PERIOD (from / to): | D8: 2021-01-01 | E8: 2023-01-01 | N8: VALIDITY PERIOD (cell D8 and E8) has to include the full project planned duration
B9: ESA Audit agreement reference / date | D9: NOT AUDITED | N9: If your company has not yet been audited by ESA, please enter NOT AUDITED in cell D9
H10: Agreed by
H12: Status
H13: (x when applicable)
B14: 1. LABOUR
B15: Direct labour cost centres or categories Code and Name | E15: Basic Hourly Rate (NC) | F15: Direct Overhead (% or Rate in NC) | G15: Gross Hourly Rate (NC)
B16: Man01 | C16: Project Manager | E16: 67.5 | F16: 0.15 | G16: =E16*(1+F16) -> 77.625
B17: Dev01 | C17: Senior SW Developer | E17: 60.3 | F17: 0.15 | G17: =E17*(1+F17) -> 69.345
B18: Dev02 | C18: Junior SW Developer | E18: 45.7 | F18: 0.15 | G18: 52.555
B19: Adm01 | C19: Administrative Assistant | E19: 36.3 | F19: 0.15 | G19: 41.745
G20: 0
G21: 0
G22: 0
G23: 0
G24: 0
G25: 0
G26: 0
G27: 0
G28: 0
G29: 0
G30: 0
B31: 2. INTERNAL SPECIAL FACILITIES
B32: Facility Code and Name | E32: Type of Unit | G32: UNIT RATE (NC)
B43: 3. OTHER COST ELEMENTS
B44: Standard ESA type | D44: According to normal company type | G44: OVERHEAD %
B45: 3-1 | C45: Raw materials
B46: 3-2 | C46: Mechanical parts
B47: 3-3 | C47: Semi-finished products
B48: 3-4 | C48: Electric & electronic components
B49: 3-5 | C49: Hirel parts
C50: a) procured by company
C51: b) procured by 3rd party
B52: 3-6 | C52: External major products | N52: Please report external items under 3.6 External Major Products and 3.7 External Services and not under 3.10 Miscellaneous
B53: 3-7 | C53: External services
B54: 3-8 | C54: Transport, insurance
B55: 3-9 | C55: Travels
B56: 3-10 | C56: Miscellaneous
B58: GENERAL EXPENSES
B59: According to ESA type | D59: =+D44 -> According to normal company type | E59: Applicable on cost element no. | G59: OVERHEAD %
B60: 5. General & Administration expenses
B61: 6. Research & Development expenses
B62: 7. Other (specify)

Sheet Exhibit A (Derisk)
B2: COMPANY PRICE BREAKDOWN FORM | E2: EXHIBIT "A" TO PSS A2 | H2: Issue 5 | K2: Are expenditures perfomed outside the country of the company submitting the PSS forms? | L2: Yes
F3: Page No. | H3: Page 1 of 1
B4: RFQ/ITT No.: | D4: ='PSS-A1 (Derisk)'!D4 -> InCubed | F4: COMPANY NAME: | G4: ='PSS-A1 (Derisk)'!G3 -> OurLittleComp | K4: =(COUNTBLANK(C12:C41)-COUNTBLANK(B12:B41))+(4*COUNTA(B12:B41)-(COUNTA(D12:F41)+COUNTA(H12:H41))) -> 0
B5: Proposal/Tender No.: | D5: ='PSS-A1 (Derisk)'!D5 -> CM/020/Prop_001 | F5: Name and Title: | G5: ='PSS-A1 (Derisk)'!G5 -> Mario ROSSI, CEO
B6: National Currency: | D6: ='PSS-A1 (Derisk)'!D7 -> EUR
B7: Contractual Phase | D7: ='PSS-A2 (Derisk)'!D9 -> N/A | F7: Signature
B8: Applicable to PSS-A2 elements 3.1 to 3.7, 3.10 and 10
B9: Project: | D9: ='PSS-A2 (Derisk)'!D10 -> EarthMonitor
B11: WP No. | C11: Cost Element Number | D11: ITEM DESCRIPTION | E11: Unit cost | F11: Number of units | G11: Purchase Amount | H11: Exchange rate for Purchase Currency 1 NC = | I11: Amount in NC | K11: ITEM DESCRIPTION -- Please report an exhaustive breakdown of the cost elements (specific description of the item, quantity of items like number of units or hours, cost per item, total costs). COTS/NO-COTS status and COUNTRY of procurement must be reported for each item. Purchase amount -- it is WITHOUT overhead. In case of substantial investments (above 10k), please report them in the amortisation scheme: eligible amount to be indicated in coloumn G is to be computed as purchase cost*(duration of use during the project / item lifetime) Exchange rate for Purchase Currency: Equal to 1 when Purchase Currency is the same as NC. Reference for exchange rates: http://www.oanda.com/currency/converter/ EXPENDITURES OUTSIDE THE COUNTRY - Please be aware that in case of expenditures outside the Country, ESA geo-return rules apply. In particular, expenditures outside the Country can be included in the ESA price ONLY in case of COTS. For NON-COTS items, such expenditures outside the country MUST BE COVERED WITH YOUR COMPANY CONTRIBUTION. Please inform as soon as possible the ESA Technical Officer in case some expenditures are planned to occur (directly or indirectly) outside the Country!
B12: WP3200 | C12: 3-6 | D12: SW XYZ Development Environment - 9 month license | E12: 6340 | F12: 1 | G12: =IF(E12*F12>0,E12*F12,"") -> 6340 | H12: 1 | I12: =IF(H12=0,0,G12/H12) -> 6340
G13: =IF(E13*F13>0,E13*F13,"") ->  | I13: =IF(H13=0,0,G13/H13) -> 0
I14: 0
I15: 0
I16: 0
I17: 0
I18: 0
I19: 0
I20: 0
I21: 0
I22: =IF(H22=0,0,G22/H22) -> 0
I23: =IF(H23=0,0,G23/H23) -> 0
I24: 0
I25: =IF(H25=0,0,G25/H25) -> 0
I26: 0
I27: 0
I28: 0
I29: 0
I30: 0
I31: 0
I32: 0
I33: 0
I34: 0
I35: 0
I36: 0
I37: 0
I38: 0
I39: 0
I40: 0
I41: 0

Sheet Exhibit B (Derisk)
B2: TRAVEL PLAN AND COST DETAIL | F2: EXHIBIT "B" TO PSS-A2 | O2: Issue 1
Q3: =COUNTA(B11:B30)*10-COUNTA(D11:M30) -> 0
B4: RFQ/ITT No.: | D4: ='PSS-A1 (Derisk)'!D4 -> InCubed | K4: Project: | L4: ='PSS-A2 (Derisk)'!D10 -> EarthMonitor
B5: Proposal/Tender No.: | D5: ='PSS-A1 (Derisk)'!D5 -> CM/020/Prop_001 | K5: Company: | L5: ='PSS-A1 (Derisk)'!G3 -> OurLittleComp
B6: Contractual Phase | D6: ='PSS-A2 (Derisk)'!D9 -> N/A
B7: Economic Condition: | D7: ='PSS-A1 (Derisk)'!D6 -> 2021-2022 | K7: Type of Price: | L7: ='PSS-A2 (Derisk)'!D5 -> FFP
B8: National Currency (NC)*: | D8: ='PSS-A1 (Derisk)'!D7 -> EUR | K8: Exchange (X): 1 EURO = | L8: ='PSS-A2 (Derisk)'!E8 -> 1 | N8: =IF(D8<>"", D8, "") -> EUR
B10: WP No. | C10: WP Title | D10: Purpose/Event | E10: Departure | F10: Destination | G10: No. of Trips | H10: Avg. People per Trip | I10: Travel Cost p.p. (NC) | J10: B / E | K10: Avg.Days per Trip | L10: Subsistence Cost p.d. (NC) | M10: A / R | N10: Total Cost (NC) | O10: Total Cost (EURO)
B11: WP1100 | C11: =IF(B11="","",VLOOKUP(B11,'Project Planning'!$C$10:$D$35,2,FALSE)) -> Project Management (Derisking Cycle) | D11: Nego Meeting @ ESRIN | E11: Milan | F11: Frascati | G11: 1 | H11: 2 | I11: 550 | J11: E | K11: 2 | L11: 160 | M11: A | N11: =G11*H11*(I11+K11*L11) -> 1740 | O11: =N11/$L$8 -> 1740
B12: WP1100 | C12: =IF(B12="","",VLOOKUP(B12,'Project Planning'!$C$10:$D$35,2,FALSE)) -> Project Management (Derisking Cycle) | D12: Development Cycle Completion Review (PDR) @ ESRIN | E12: Milan | F12: Frascati | G12: 1 | H12: 2 | I12: 550 | J12: E | K12: 2 | L12: 160 | M12: A | N12: =G12*H12*(I12+K12*L12) -> 1740 | O12: =N12/$L$8 -> 1740
C13: =IF(B13="","",VLOOKUP(B13,'Project Planning'!$C$10:$D$35,2,FALSE)) ->  | N13: 0 | O13: 0
C14: =IF(B14="","",VLOOKUP(B14,'Project Planning'!$C$10:$D$35,2,FALSE)) ->  | N14: 0 | O14: 0
C15: =IF(B15="","",VLOOKUP(B15,'Project Planning'!$C$10:$D$35,2,FALSE)) ->  | N15: 0 | O15: 0
C16: =IF(B16="","",VLOOKUP(B16,'Project Planning'!$C$10:$D$35,2,FALSE)) ->  | N16: 0 | O16: 0
C17: =IF(B17="","",VLOOKUP(B17,'Project Planning'!$C$10:$D$35,2,FALSE)) ->  | N17: 0 | O17: 0
C18: =IF(B18="","",VLOOKUP(B18,'Project Planning'!$C$10:$D$35,2,FALSE)) ->  | N18: 0 | O18: 0
C19: =IF(B19="","",VLOOKUP(B19,'Project Planning'!$C$10:$D$35,2,FALSE)) ->  | N19: 0 | O19: 0
C20: =IF(B20="","",VLOOKUP(B20,'Project Planning'!$C$10:$D$35,2,FALSE)) ->  | N20: 0 | O20: 0
C21: =IF(B21="","",VLOOKUP(B21,'Project Planning'!$C$10:$D$35,2,FALSE)) ->  | N21: 0 | O21: 0
C22: =IF(B22="","",VLOOKUP(B22,'Project Planning'!$C$10:$D$35,2,FALSE)) ->  | N22: 0 | O22: 0
C23: =IF(B23="","",VLOOKUP(B23,'Project Planning'!$C$10:$D$35,2,FALSE)) ->  | N23: 0 | O23: 0
C24: =IF(B24="","",VLOOKUP(B24,'Project Planning'!$C$10:$D$35,2,FALSE)) ->  | N24: 0 | O24: 0
C25: =IF(B25="","",VLOOKUP(B25,'Project Planning'!$C$10:$D$35,2,FALSE)) ->  | N25: 0 | O25: 0
C26: =IF(B26="","",VLOOKUP(B26,'Project Planning'!$C$10:$D$35,2,FALSE)) ->  | N26: 0 | O26: 0
C27: =IF(B27="","",VLOOKUP(B27,'Project Planning'!$C$10:$D$35,2,FALSE)) ->  | N27: 0 | O27: 0
C28: =IF(B28="","",VLOOKUP(B28,'Project Planning'!$C$10:$D$35,2,FALSE)) ->  | N28: 0 | O28: 0
C29: =IF(B29="","",VLOOKUP(B29,'Project Planning'!$C$10:$D$35,2,FALSE)) ->  | N29: 0 | O29: 0
C30: =IF(B30="","",VLOOKUP(B30,'Project Planning'!$C$10:$D$35,2,FALSE)) ->  | N30: 0 | O30: 0
B31: Total Cost, WBS level 1 (equal to the item 3-9 of PSS-A2) | N31: =SUM(N11:N30) -> 3480 | O31: =SUM(O11:O30) -> 3480

Sheet PSS-A8 Page 1 (Derisk)
B2: COMPANY MANPOWER AND PRICE SUMMARY PER WP | J2: Form no. PSS A8 | P2: Page 1 | R2: Issue 5
C4: ITT/RFQ: | E4: ='PSS-A1 (Derisk)'!D4 -> InCubed | M4: Price Type: | O4: ='PSS-A2 (Derisk)'!D5 -> FFP
C5: Proposal/Tender No.: | E5: ='PSS-A1 (Derisk)'!D5 -> CM/020/Prop_001 | M5: Economic Conditions: | O5: ='PSS-A1 (Derisk)'!D6 -> 2021-2022
C6: Company Name: | E6: ='PSS-A1 (Derisk)'!G3 -> OurLittleComp | M6: National Currency (NC): | O6: ='PSS-A1 (Derisk)'!D7 -> EUR
C7: Contractual Phase: | E7: ='PSS-A2 (Derisk)'!D9 -> N/A | M7: Exchange Rate: 1 EUR = | O7: ='PSS-A2 (Derisk)'!E8 -> 1
C8: WBS-Level (Number and Title): | E8: N/A
D11: WP Title | E11: =IF(E12="","",VLOOKUP(E12,'Project Planning'!$C$10:$D$46,2,FALSE)) -> Project Management (Derisking Cycle) | F11: =IF(F12="","",VLOOKUP(F12,'Project Planning'!$C$10:$D$46,2,FALSE)) -> Contract Management | G11: =IF(G12="","",VLOOKUP(G12,'Project Planning'!$C$10:$D$46,2,FALSE)) -> Workshop Organization | H11: =IF(H12="","",VLOOKUP(H12,'Project Planning'!$C$10:$D$46,2,FALSE)) -> User analysis | I11: =IF(I12="","",VLOOKUP(I12,'Project Planning'!$C$10:$D$46,2,FALSE)) -> Preliminary Architectural Design | J11: =IF(J12="","",VLOOKUP(J12,'Project Planning'!$C$10:$D$46,2,FALSE)) -> Beta SW development | K11: =IF(K12="","",VLOOKUP(K12,'Project Planning'!$C$10:$D$46,2,FALSE)) -> Sprint testing | L11: =IF(L12="","",VLOOKUP(L12,'Project Planning'!$C$10:$D$46,2,FALSE)) -> Roadmap to the product develeopment | M11: =IF(M12="","",VLOOKUP(M12,'Project Planning'!$C$10:$D$46,2,FALSE)) ->  | N11: =IF(N12="","",VLOOKUP(N12,'Project Planning'!$C$10:$D$46,2,FALSE)) ->  | O11: =IF(O12="","",VLOOKUP(O12,'Project Planning'!$C$10:$D$46,2,FALSE)) ->  | P11: =IF(P12="","",VLOOKUP(P12,'Project Planning'!$C$10:$D$46,2,FALSE)) ->  | T11: only the lowest level WPs have to be provided (or at least only the WPs for which a WPD exists)
D12: WP Number | E12: =IFERROR('Project Planning'!J125,"") -> WP1100 | F12: =IFERROR('Project Planning'!K125,"") -> WP1200 | G12: =IFERROR('Project Planning'!L125,"") -> WP1300 | H12: =IFERROR('Project Planning'!M125,"") -> WP1400 | I12: =IFERROR('Project Planning'!N125,"") -> WP3100 | J12: =IFERROR('Project Planning'!O125,"") -> WP3200 | K12: =IFERROR('Project Planning'!P125,"") -> WP3300 | L12: =IFERROR('Project Planning'!Q125,"") -> WP3400 | M12: =IFERROR('Project Planning'!R125,"") ->  | N12: =IFERROR('Project Planning'!S125,"") ->  | O12: =IFERROR('Project Planning'!T125,"") ->  | P12: =IFERROR('Project Planning'!U125,"") ->  | R12: Total WBS-Level
C13: Labour Hours per category | D13: Hours
C14: =IF('PSS-A2 (Derisk)'!C17<>"",'PSS-A2 (Derisk)'!C17,"") -> Project Manager | D14: # | E14: 400 | F14: 40 | G14: 10 | H14: 10 | R14: =SUM(E14:P14) -> 460
C15: =IF('PSS-A2 (Derisk)'!C18<>"",'PSS-A2 (Derisk)'!C18,"") -> Senior SW Developer | D15: # | G15: 40 | I15: 60 | J15: 200 | K15: 200 | L15: 35 | R15: 535
C16: =IF('PSS-A2 (Derisk)'!C19<>"",'PSS-A2 (Derisk)'!C19,"") -> Junior SW Developer | D16: # | I16: 20 | J16: 180 | K16: 340 | L16: 125 | R16: 665
C17: =IF('PSS-A2 (Derisk)'!C20<>"",'PSS-A2 (Derisk)'!C20,"") -> Administrative Assistant | D17: # | E17: 200 | F17: 40 | H17: 35 | R17: 275
C18: =IF('PSS-A2 (Derisk)'!C21<>"",'PSS-A2 (Derisk)'!C21,"") ->  | D18: # | R18: 0
C19: =IF('PSS-A2 (Derisk)'!C22<>"",'PSS-A2 (Derisk)'!C22,"") ->  | D19: # | R19: 0
C20: =IF('PSS-A2 (Derisk)'!C23<>"",'PSS-A2 (Derisk)'!C23,"") ->  | D20: # | R20: 0
C21: =IF('PSS-A2 (Derisk)'!C24<>"",'PSS-A2 (Derisk)'!C24,"") ->  | D21: # | R21: 0
C22: =IF('PSS-A2 (Derisk)'!C25<>"",'PSS-A2 (Derisk)'!C25,"") ->  | D22: # | R22: 0
C23: =IF('PSS-A2 (Derisk)'!C26<>"",'PSS-A2 (Derisk)'!C26,"") ->  | D23: # | R23: 0
C24: Total Labour Hours | D24: # | E24: =SUM(E14:E23) -> 600 | F24: 80 | G24: 50 | H24: 45 | I24: 80 | J24: 380 | K24: 540 | L24: 160 | M24: 0 | N24: 0 | O24: 0 | P24: 0 | R24: 1935
D25: Relative effort between WP | E25: =IFERROR("",E24/'PSS-A8 Page 2 (Derisk)'!$R$24) ->  | F25: =IFERROR("",F24/'PSS-A8 Page 2 (Derisk)'!$R$24) ->  | G25: =IFERROR("",G24/'PSS-A8 Page 2 (Derisk)'!$R$24) ->  | H25: =IFERROR("",H24/'PSS-A8 Page 2 (Derisk)'!$R$24) ->  | I25: =IFERROR("",I24/'PSS-A8 Page 2 (Derisk)'!$R$24) ->  | J25: =IFERROR("",J24/'PSS-A8 Page 2 (Derisk)'!$R$24) ->  | K25: =IFERROR("",K24/'PSS-A8 Page 2 (Derisk)'!$R$24) ->  | L25: =IFERROR("",L24/'PSS-A8 Page 2 (Derisk)'!$R$24) ->  | M25: =IFERROR("",M24/'PSS-A8 Page 2 (Derisk)'!$R$24) ->  | N25: =IFERROR("",N24/'PSS-A8 Page 2 (Derisk)'!$R$24) ->  | O25: =IFERROR("",O24/'PSS-A8 Page 2 (Derisk)'!$R$24) ->  | P25: =IFERROR("",P24/'PSS-A8 Page 2 (Derisk)'!$R$24) -> 
B27: 1 | C27: Total Labour Cost | D27: NC | E27: =SUMPRODUCT(E14:E23,'PSS-A2 (Derisk)'!$H$17:$H$26) -> 39399 | F27: =SUMPRODUCT(F14:F23,'PSS-A2 (Derisk)'!$H$17:$H$26) -> 4774.8 | G27: =SUMPRODUCT(G14:G23,'PSS-A2 (Derisk)'!$H$17:$H$26) -> 3550.05 | H27: =SUMPRODUCT(H14:H23,'PSS-A2 (Derisk)'!$H$17:$H$26) -> 2237.325 | I27: =SUMPRODUCT(I14:I23,'PSS-A2 (Derisk)'!$H$17:$H$26) -> 5211.8 | J27: =SUMPRODUCT(J14:J23,'PSS-A2 (Derisk)'!$H$17:$H$26) -> 23328.9 | K27: =SUMPRODUCT(K14:K23,'PSS-A2 (Derisk)'!$H$17:$H$26) -> 31737.7 | L27: =SUMPRODUCT(L14:L23,'PSS-A2 (Derisk)'!$H$17:$H$26) -> 8996.45 | M27: =SUMPRODUCT(M14:M23,'PSS-A2 (Derisk)'!$H$17:$H$26) -> 0 | N27: =SUMPRODUCT(N14:N23,'PSS-A2 (Derisk)'!$H$17:$H$26) -> 0 | O27: =SUMPRODUCT(O14:O23,'PSS-A2 (Derisk)'!$H$17:$H$26) -> 0 | P27: =SUMPRODUCT(P14:P23,'PSS-A2 (Derisk)'!$H$17:$H$26) -> 0 | R27: =SUM(E27:P27) -> 119236.025
B29: 2 | C29: Internal Special Facilities Cost | D29: NC | R29: =SUM(E29:P29) -> 0
B31: 3-1 | C31: Raw materials | D31: NC | E31: =SUMIFS('Exhibit A (Derisk)'!$I$12:$I$41,'Exhibit A (Derisk)'!$C$12:$C$41,'PSS-A8 Page 1 (Derisk)'!$B31,'Exhibit A (Derisk)'!$B$12:$B$41,'PSS-A8 Page 1 (Derisk)'!E$12)*(1+'PSS-A2 (Derisk)'!$F42) -> 0 | F31: =SUMIFS('Exhibit A (Derisk)'!$I$12:$I$41,'Exhibit A (Derisk)'!$C$12:$C$41,'PSS-A8 Page 1 (Derisk)'!$B31,'Exhibit A (Derisk)'!$B$12:$B$41,'PSS-A8 Page 1 (Derisk)'!F$12)*(1+'PSS-A2 (Derisk)'!$F42) -> 0 | G31: =SUMIFS('Exhibit A (Derisk)'!$I$12:$I$41,'Exhibit A (Derisk)'!$C$12:$C$41,'PSS-A8 Page 1 (Derisk)'!$B31,'Exhibit A (Derisk)'!$B$12:$B$41,'PSS-A8 Page 1 (Derisk)'!G$12)*(1+'PSS-A2 (Derisk)'!$F42) -> 0 | H31: =SUMIFS('Exhibit A (Derisk)'!$I$12:$I$41,'Exhibit A (Derisk)'!$C$12:$C$41,'PSS-A8 Page 1 (Derisk)'!$B31,'Exhibit A (Derisk)'!$B$12:$B$41,'PSS-A8 Page 1 (Derisk)'!H$12)*(1+'PSS-A2 (Derisk)'!$F42) -> 0 | I31: =SUMIFS('Exhibit A (Derisk)'!$I$12:$I$41,'Exhibit A (Derisk)'!$C$12:$C$41,'PSS-A8 Page 1 (Derisk)'!$B31,'Exhibit A (Derisk)'!$B$12:$B$41,'PSS-A8 Page 1 (Derisk)'!I$12)*(1+'PSS-A2 (Derisk)'!$F42) -> 0 | J31: =SUMIFS('Exhibit A (Derisk)'!$I$12:$I$41,'Exhibit A (Derisk)'!$C$12:$C$41,'PSS-A8 Page 1 (Derisk)'!$B31,'Exhibit A (Derisk)'!$B$12:$B$41,'PSS-A8 Page 1 (Derisk)'!J$12)*(1+'PSS-A2 (Derisk)'!$F42) -> 0 | K31: =SUMIFS('Exhibit A (Derisk)'!$I$12:$I$41,'Exhibit A (Derisk)'!$C$12:$C$41,'PSS-A8 Page 1 (Derisk)'!$B31,'Exhibit A (Derisk)'!$B$12:$B$41,'PSS-A8 Page 1 (Derisk)'!K$12)*(1+'PSS-A2 (Derisk)'!$F42) -> 0 | L31: =SUMIFS('Exhibit A (Derisk)'!$I$12:$I$41,'Exhibit A (Derisk)'!$C$12:$C$41,'PSS-A8 Page 1 (Derisk)'!$B31,'Exhibit A (Derisk)'!$B$12:$B$41,'PSS-A8 Page 1 (Derisk)'!L$12)*(1+'PSS-A2 (Derisk)'!$F42) -> 0 | M31: =SUMIFS('Exhibit A (Derisk)'!$I$12:$I$41,'Exhibit A (Derisk)'!$C$12:$C$41,'PSS-A8 Page 1 (Derisk)'!$B31,'Exhibit A (Derisk)'!$B$12:$B$41,'PSS-A8 Page 1 (Derisk)'!M$12)*(1+'PSS-A2 (Derisk)'!$F42) -> 0 | N31: =SUMIFS('Exhibit A (Derisk)'!$I$12:$I$41,'Exhibit A (Derisk)'!$C$12:$C$41,'PSS-A8 Page 1 (Derisk)'!$B31,'Exhibit A (Derisk)'!$B$12:$B$41,'PSS-A8 Page 1 (Derisk)'!N$12)*(1+'PSS-A2 (Derisk)'!$F42) -> 0 | O31: =SUMIFS('Exhibit A (Derisk)'!$I$12:$I$41,'Exhibit A (Derisk)'!$C$12:$C$41,'PSS-A8 Page 1 (Derisk)'!$B31,'Exhibit A (Derisk)'!$B$12:$B$41,'PSS-A8 Page 1 (Derisk)'!O$12)*(1+'PSS-A2 (Derisk)'!$F42) -> 0 | P31: =SUMIFS('Exhibit A (Derisk)'!$I$12:$I$41,'Exhibit A (Derisk)'!$C$12:$C$41,'PSS-A8 Page 1 (Derisk)'!$B31,'Exhibit A (Derisk)'!$B$12:$B$41,'PSS-A8 Page 1 (Derisk)'!P$12)*(1+'PSS-A2 (Derisk)'!$F42) -> 0 | R31: =SUM(E31:P31) -> 0
B32: 3-2 | C32: Mechanical parts | D32: NC | E32: =SUMIFS('Exhibit A (Derisk)'!$I$12:$I$41,'Exhibit A (Derisk)'!$C$12:$C$41,'PSS-A8 Page 1 (Derisk)'!$B32,'Exhibit A (Derisk)'!$B$12:$B$41,'PSS-A8 Page 1 (Derisk)'!E$12)*(1+'PSS-A2 (Derisk)'!$F43) -> 0 | F32: =SUMIFS('Exhibit A (Derisk)'!$I$12:$I$41,'Exhibit A (Derisk)'!$C$12:$C$41,'PSS-A8 Page 1 (Derisk)'!$B32,'Exhibit A (Derisk)'!$B$12:$B$41,'PSS-A8 Page 1 (Derisk)'!F$12)*(1+'PSS-A2 (Derisk)'!$F43) -> 0 | G32: =SUMIFS('Exhibit A (Derisk)'!$I$12:$I$41,'Exhibit A (Derisk)'!$C$12:$C$41,'PSS-A8 Page 1 (Derisk)'!$B32,'Exhibit A (Derisk)'!$B$12:$B$41,'PSS-A8 Page 1 (Derisk)'!G$12)*(1+'PSS-A2 (Derisk)'!$F43) -> 0 | H32: =SUMIFS('Exhibit A (Derisk)'!$I$12:$I$41,'Exhibit A (Derisk)'!$C$12:$C$41,'PSS-A8 Page 1 (Derisk)'!$B32,'Exhibit A (Derisk)'!$B$12:$B$41,'PSS-A8 Page 1 (Derisk)'!H$12)*(1+'PSS-A2 (Derisk)'!$F43) -> 0 | I32: =SUMIFS('Exhibit A (Derisk)'!$I$12:$I$41,'Exhibit A (Derisk)'!$C$12:$C$41,'PSS-A8 Page 1 (Derisk)'!$B32,'Exhibit A (Derisk)'!$B$12:$B$41,'PSS-A8 Page 1 (Derisk)'!I$12)*(1+'PSS-A2 (Derisk)'!$F43) -> 0 | J32: =SUMIFS('Exhibit A (Derisk)'!$I$12:$I$41,'Exhibit A (Derisk)'!$C$12:$C$41,'PSS-A8 Page 1 (Derisk)'!$B32,'Exhibit A (Derisk)'!$B$12:$B$41,'PSS-A8 Page 1 (Derisk)'!J$12)*(1+'PSS-A2 (Derisk)'!$F43) -> 0 | K32: =SUMIFS('Exhibit A (Derisk)'!$I$12:$I$41,'Exhibit A (Derisk)'!$C$12:$C$41,'PSS-A8 Page 1 (Derisk)'!$B32,'Exhibit A (Derisk)'!$B$12:$B$41,'PSS-A8 Page 1 (Derisk)'!K$12)*(1+'PSS-A2 (Derisk)'!$F43) -> 0 | L32: =SUMIFS('Exhibit A (Derisk)'!$I$12:$I$41,'Exhibit A (Derisk)'!$C$12:$C$41,'PSS-A8 Page 1 (Derisk)'!$B32,'Exhibit A (Derisk)'!$B$12:$B$41,'PSS-A8 Page 1 (Derisk)'!L$12)*(1+'PSS-A2 (Derisk)'!$F43) -> 0 | M32: =SUMIFS('Exhibit A (Derisk)'!$I$12:$I$41,'Exhibit A (Derisk)'!$C$12:$C$41,'PSS-A8 Page 1 (Derisk)'!$B32,'Exhibit A (Derisk)'!$B$12:$B$41,'PSS-A8 Page 1 (Derisk)'!M$12)*(1+'PSS-A2 (Derisk)'!$F43) -> 0 | N32: =SUMIFS('Exhibit A (Derisk)'!$I$12:$I$41,'Exhibit A (Derisk)'!$C$12:$C$41,'PSS-A8 Page 1 (Derisk)'!$B32,'Exhibit A (Derisk)'!$B$12:$B$41,'PSS-A8 Page 1 (Derisk)'!N$12)*(1+'PSS-A2 (Derisk)'!$F43) -> 0 | O32: =SUMIFS('Exhibit A (Derisk)'!$I$12:$I$41,'Exhibit A (Derisk)'!$C$12:$C$41,'PSS-A8 Page 1 (Derisk)'!$B32,'Exhibit A (Derisk)'!$B$12:$B$41,'PSS-A8 Page 1 (Derisk)'!O$12)*(1+'PSS-A2 (Derisk)'!$F43) -> 0 | P32: =SUMIFS('Exhibit A (Derisk)'!$I$12:$I$41,'Exhibit A (Derisk)'!$C$12:$C$41,'PSS-A8 Page 1 (Derisk)'!$B32,'Exhibit A (Derisk)'!$B$12:$B$41,'PSS-A8 Page 1 (Derisk)'!P$12)*(1+'PSS-A2 (Derisk)'!$F43) -> 0 | R32: 0
B33: 3-3 | C33: Semi-finished products | D33: NC | E33: =SUMIFS('Exhibit A (Derisk)'!$I$12:$I$41,'Exhibit A (Derisk)'!$C$12:$C$41,'PSS-A8 Page 1 (Derisk)'!$B33,'Exhibit A (Derisk)'!$B$12:$B$41,'PSS-A8 Page 1 (Derisk)'!E$12)*(1+'PSS-A2 (Derisk)'!$F44) -> 0 | F33: =SUMIFS('Exhibit A (Derisk)'!$I$12:$I$41,'Exhibit A (Derisk)'!$C$12:$C$41,'PSS-A8 Page 1 (Derisk)'!$B33,'Exhibit A (Derisk)'!$B$12:$B$41,'PSS-A8 Page 1 (Derisk)'!F$12)*(1+'PSS-A2 (Derisk)'!$F44) -> 0 | G33: =SUMIFS('Exhibit A (Derisk)'!$I$12:$I$41,'Exhibit A (Derisk)'!$C$12:$C$41,'PSS-A8 Page 1 (Derisk)'!$B33,'Exhibit A (Derisk)'!$B$12:$B$41,'PSS-A8 Page 1 (Derisk)'!G$12)*(1+'PSS-A2 (Derisk)'!$F44) -> 0 | H33: =SUMIFS('Exhibit A (Derisk)'!$I$12:$I$41,'Exhibit A (Derisk)'!$C$12:$C$41,'PSS-A8 Page 1 (Derisk)'!$B33,'Exhibit A (Derisk)'!$B$12:$B$41,'PSS-A8 Page 1 (Derisk)'!H$12)*(1+'PSS-A2 (Derisk)'!$F44) -> 0 | I33: =SUMIFS('Exhibit A (Derisk)'!$I$12:$I$41,'Exhibit A (Derisk)'!$C$12:$C$41,'PSS-A8 Page 1 (Derisk)'!$B33,'Exhibit A (Derisk)'!$B$12:$B$41,'PSS-A8 Page 1 (Derisk)'!I$12)*(1+'PSS-A2 (Derisk)'!$F44) -> 0 | J33: =SUMIFS('Exhibit A (Derisk)'!$I$12:$I$41,'Exhibit A (Derisk)'!$C$12:$C$41,'PSS-A8 Page 1 (Derisk)'!$B33,'Exhibit A (Derisk)'!$B$12:$B$41,'PSS-A8 Page 1 (Derisk)'!J$12)*(1+'PSS-A2 (Derisk)'!$F44) -> 0 | K33: =SUMIFS('Exhibit A (Derisk)'!$I$12:$I$41,'Exhibit A (Derisk)'!$C$12:$C$41,'PSS-A8 Page 1 (Derisk)'!$B33,'Exhibit A (Derisk)'!$B$12:$B$41,'PSS-A8 Page 1 (Derisk)'!K$12)*(1+'PSS-A2 (Derisk)'!$F44) -> 0 | L33: =SUMIFS('Exhibit A (Derisk)'!$I$12:$I$41,'Exhibit A (Derisk)'!$C$12:$C$41,'PSS-A8 Page 1 (Derisk)'!$B33,'Exhibit A (Derisk)'!$B$12:$B$41,'PSS-A8 Page 1 (Derisk)'!L$12)*(1+'PSS-A2 (Derisk)'!$F44) -> 0 | M33: =SUMIFS('Exhibit A (Derisk)'!$I$12:$I$41,'Exhibit A (Derisk)'!$C$12:$C$41,'PSS-A8 Page 1 (Derisk)'!$B33,'Exhibit A (Derisk)'!$B$12:$B$41,'PSS-A8 Page 1 (Derisk)'!M$12)*(1+'PSS-A2 (Derisk)'!$F44) -> 0 | N33: =SUMIFS('Exhibit A (Derisk)'!$I$12:$I$41,'Exhibit A (Derisk)'!$C$12:$C$41,'PSS-A8 Page 1 (Derisk)'!$B33,'Exhibit A (Derisk)'!$B$12:$B$41,'PSS-A8 Page 1 (Derisk)'!N$12)*(1+'PSS-A2 (Derisk)'!$F44) -> 0 | O33: =SUMIFS('Exhibit A (Derisk)'!$I$12:$I$41,'Exhibit A (Derisk)'!$C$12:$C$41,'PSS-A8 Page 1 (Derisk)'!$B33,'Exhibit A (Derisk)'!$B$12:$B$41,'PSS-A8 Page 1 (Derisk)'!O$12)*(1+'PSS-A2 (Derisk)'!$F44) -> 0 | P33: =SUMIFS('Exhibit A (Derisk)'!$I$12:$I$41,'Exhibit A (Derisk)'!$C$12:$C$41,'PSS-A8 Page 1 (Derisk)'!$B33,'Exhibit A (Derisk)'!$B$12:$B$41,'PSS-A8 Page 1 (Derisk)'!P$12)*(1+'PSS-A2 (Derisk)'!$F44) -> 0 | R33: 0
B34: 3-4 | C34: Electrical & electronic components | D34: NC | E34: =SUMIFS('Exhibit A (Derisk)'!$I$12:$I$41,'Exhibit A (Derisk)'!$C$12:$C$41,'PSS-A8 Page 1 (Derisk)'!$B34,'Exhibit A (Derisk)'!$B$12:$B$41,'PSS-A8 Page 1 (Derisk)'!E$12)*(1+'PSS-A2 (Derisk)'!$F45) -> 0 | F34: =SUMIFS('Exhibit A (Derisk)'!$I$12:$I$41,'Exhibit A (Derisk)'!$C$12:$C$41,'PSS-A8 Page 1 (Derisk)'!$B34,'Exhibit A (Derisk)'!$B$12:$B$41,'PSS-A8 Page 1 (Derisk)'!F$12)*(1+'PSS-A2 (Derisk)'!$F45) -> 0 | G34: =SUMIFS('Exhibit A (Derisk)'!$I$12:$I$41,'Exhibit A (Derisk)'!$C$12:$C$41,'PSS-A8 Page 1 (Derisk)'!$B34,'Exhibit A (Derisk)'!$B$12:$B$41,'PSS-A8 Page 1 (Derisk)'!G$12)*(1+'PSS-A2 (Derisk)'!$F45) -> 0 | H34: =SUMIFS('Exhibit A (Derisk)'!$I$12:$I$41,'Exhibit A (Derisk)'!$C$12:$C$41,'PSS-A8 Page 1 (Derisk)'!$B34,'Exhibit A (Derisk)'!$B$12:$B$41,'PSS-A8 Page 1 (Derisk)'!H$12)*(1+'PSS-A2 (Derisk)'!$F45) -> 0 | I34: =SUMIFS('Exhibit A (Derisk)'!$I$12:$I$41,'Exhibit A (Derisk)'!$C$12:$C$41,'PSS-A8 Page 1 (Derisk)'!$B34,'Exhibit A (Derisk)'!$B$12:$B$41,'PSS-A8 Page 1 (Derisk)'!I$12)*(1+'PSS-A2 (Derisk)'!$F45) -> 0 | J34: =SUMIFS('Exhibit A (Derisk)'!$I$12:$I$41,'Exhibit A (Derisk)'!$C$12:$C$41,'PSS-A8 Page 1 (Derisk)'!$B34,'Exhibit A (Derisk)'!$B$12:$B$41,'PSS-A8 Page 1 (Derisk)'!J$12)*(1+'PSS-A2 (Derisk)'!$F45) -> 0 | K34: =SUMIFS('Exhibit A (Derisk)'!$I$12:$I$41,'Exhibit A (Derisk)'!$C$12:$C$41,'PSS-A8 Page 1 (Derisk)'!$B34,'Exhibit A (Derisk)'!$B$12:$B$41,'PSS-A8 Page 1 (Derisk)'!K$12)*(1+'PSS-A2 (Derisk)'!$F45) -> 0 | L34: =SUMIFS('Exhibit A (Derisk)'!$I$12:$I$41,'Exhibit A (Derisk)'!$C$12:$C$41,'PSS-A8 Page 1 (Derisk)'!$B34,'Exhibit A (Derisk)'!$B$12:$B$41,'PSS-A8 Page 1 (Derisk)'!L$12)*(1+'PSS-A2 (Derisk)'!$F45) -> 0 | M34: =SUMIFS('Exhibit A (Derisk)'!$I$12:$I$41,'Exhibit A (Derisk)'!$C$12:$C$41,'PSS-A8 Page 1 (Derisk)'!$B34,'Exhibit A (Derisk)'!$B$12:$B$41,'PSS-A8 Page 1 (Derisk)'!M$12)*(1+'PSS-A2 (Derisk)'!$F45) -> 0 | N34: =SUMIFS('Exhibit A (Derisk)'!$I$12:$I$41,'Exhibit A (Derisk)'!$C$12:$C$41,'PSS-A8 Page 1 (Derisk)'!$B34,'Exhibit A (Derisk)'!$B$12:$B$41,'PSS-A8 Page 1 (Derisk)'!N$12)*(1+'PSS-A2 (Derisk)'!$F45) -> 0 | O34: =SUMIFS('Exhibit A (Derisk)'!$I$12:$I$41,'Exhibit A (Derisk)'!$C$12:$C$41,'PSS-A8 Page 1 (Derisk)'!$B34,'Exhibit A (Derisk)'!$B$12:$B$41,'PSS-A8 Page 1 (Derisk)'!O$12)*(1+'PSS-A2 (Derisk)'!$F45) -> 0 | P34: =SUMIFS('Exhibit A (Derisk)'!$I$12:$I$41,'Exhibit A (Derisk)'!$C$12:$C$41,'PSS-A8 Page 1 (Derisk)'!$B34,'Exhibit A (Derisk)'!$B$12:$B$41,'PSS-A8 Page 1 (Derisk)'!P$12)*(1+'PSS-A2 (Derisk)'!$F45) -> 0 | R34: 0
B35: 3-5a | C35: HIREL parts procured by company | D35: NC | E35: =SUMIFS('Exhibit A (Derisk)'!$I$12:$I$41,'Exhibit A (Derisk)'!$C$12:$C$41,'PSS-A8 Page 1 (Derisk)'!$B35,'Exhibit A (Derisk)'!$B$12:$B$41,'PSS-A8 Page 1 (Derisk)'!E$12)*(1+'PSS-A2 (Derisk)'!$F47) -> 0 | F35: =SUMIFS('Exhibit A (Derisk)'!$I$12:$I$41,'Exhibit A (Derisk)'!$C$12:$C$41,'PSS-A8 Page 1 (Derisk)'!$B35,'Exhibit A (Derisk)'!$B$12:$B$41,'PSS-A8 Page 1 (Derisk)'!F$12)*(1+'PSS-A2 (Derisk)'!$F47) -> 0 | G35: =SUMIFS('Exhibit A (Derisk)'!$I$12:$I$41,'Exhibit A (Derisk)'!$C$12:$C$41,'PSS-A8 Page 1 (Derisk)'!$B35,'Exhibit A (Derisk)'!$B$12:$B$41,'PSS-A8 Page 1 (Derisk)'!G$12)*(1+'PSS-A2 (Derisk)'!$F47) -> 0 | H35: =SUMIFS('Exhibit A (Derisk)'!$I$12:$I$41,'Exhibit A (Derisk)'!$C$12:$C$41,'PSS-A8 Page 1 (Derisk)'!$B35,'Exhibit A (Derisk)'!$B$12:$B$41,'PSS-A8 Page 1 (Derisk)'!H$12)*(1+'PSS-A2 (Derisk)'!$F47) -> 0 | I35: =SUMIFS('Exhibit A (Derisk)'!$I$12:$I$41,'Exhibit A (Derisk)'!$C$12:$C$41,'PSS-A8 Page 1 (Derisk)'!$B35,'Exhibit A (Derisk)'!$B$12:$B$41,'PSS-A8 Page 1 (Derisk)'!I$12)*(1+'PSS-A2 (Derisk)'!$F47) -> 0 | J35: =SUMIFS('Exhibit A (Derisk)'!$I$12:$I$41,'Exhibit A (Derisk)'!$C$12:$C$41,'PSS-A8 Page 1 (Derisk)'!$B35,'Exhibit A (Derisk)'!$B$12:$B$41,'PSS-A8 Page 1 (Derisk)'!J$12)*(1+'PSS-A2 (Derisk)'!$F47) -> 0 | K35: =SUMIFS('Exhibit A (Derisk)'!$I$12:$I$41,'Exhibit A (Derisk)'!$C$12:$C$41,'PSS-A8 Page 1 (Derisk)'!$B35,'Exhibit A (Derisk)'!$B$12:$B$41,'PSS-A8 Page 1 (Derisk)'!K$12)*(1+'PSS-A2 (Derisk)'!$F47) -> 0 | L35: =SUMIFS('Exhibit A (Derisk)'!$I$12:$I$41,'Exhibit A (Derisk)'!$C$12:$C$41,'PSS-A8 Page 1 (Derisk)'!$B35,'Exhibit A (Derisk)'!$B$12:$B$41,'PSS-A8 Page 1 (Derisk)'!L$12)*(1+'PSS-A2 (Derisk)'!$F47) -> 0 | M35: =SUMIFS('Exhibit A (Derisk)'!$I$12:$I$41,'Exhibit A (Derisk)'!$C$12:$C$41,'PSS-A8 Page 1 (Derisk)'!$B35,'Exhibit A (Derisk)'!$B$12:$B$41,'PSS-A8 Page 1 (Derisk)'!M$12)*(1+'PSS-A2 (Derisk)'!$F47) -> 0 | N35: =SUMIFS('Exhibit A (Derisk)'!$I$12:$I$41,'Exhibit A (Derisk)'!$C$12:$C$41,'PSS-A8 Page 1 (Derisk)'!$B35,'Exhibit A (Derisk)'!$B$12:$B$41,'PSS-A8 Page 1 (Derisk)'!N$12)*(1+'PSS-A2 (Derisk)'!$F47) -> 0 | O35: =SUMIFS('Exhibit A (Derisk)'!$I$12:$I$41,'Exhibit A (Derisk)'!$C$12:$C$41,'PSS-A8 Page 1 (Derisk)'!$B35,'Exhibit A (Derisk)'!$B$12:$B$41,'PSS-A8 Page 1 (Derisk)'!O$12)*(1+'PSS-A2 (Derisk)'!$F47) -> 0 | P35: =SUMIFS('Exhibit A (Derisk)'!$I$12:$I$41,'Exhibit A (Derisk)'!$C$12:$C$41,'PSS-A8 Page 1 (Derisk)'!$B35,'Exhibit A (Derisk)'!$B$12:$B$41,'PSS-A8 Page 1 (Derisk)'!P$12)*(1+'PSS-A2 (Derisk)'!$F47) -> 0 | R35: 0
B36: 3-5b | C36: HIREL parts procured by thrid party | D36: NC | E36: =SUMIFS('Exhibit A (Derisk)'!$I$12:$I$41,'Exhibit A (Derisk)'!$C$12:$C$41,'PSS-A8 Page 1 (Derisk)'!$B36,'Exhibit A (Derisk)'!$B$12:$B$41,'PSS-A8 Page 1 (Derisk)'!E$12)*('PSS-A2 (Derisk)'!$F48) -> 0 | F36: =SUMIFS('Exhibit A (Derisk)'!$I$12:$I$41,'Exhibit A (Derisk)'!$C$12:$C$41,'PSS-A8 Page 1 (Derisk)'!$B36,'Exhibit A (Derisk)'!$B$12:$B$41,'PSS-A8 Page 1 (Derisk)'!F$12)*('PSS-A2 (Derisk)'!$F48) -> 0 | G36: =SUMIFS('Exhibit A (Derisk)'!$I$12:$I$41,'Exhibit A (Derisk)'!$C$12:$C$41,'PSS-A8 Page 1 (Derisk)'!$B36,'Exhibit A (Derisk)'!$B$12:$B$41,'PSS-A8 Page 1 (Derisk)'!G$12)*('PSS-A2 (Derisk)'!$F48) -> 0 | H36: =SUMIFS('Exhibit A (Derisk)'!$I$12:$I$41,'Exhibit A (Derisk)'!$C$12:$C$41,'PSS-A8 Page 1 (Derisk)'!$B36,'Exhibit A (Derisk)'!$B$12:$B$41,'PSS-A8 Page 1 (Derisk)'!H$12)*('PSS-A2 (Derisk)'!$F48) -> 0 | I36: =SUMIFS('Exhibit A (Derisk)'!$I$12:$I$41,'Exhibit A (Derisk)'!$C$12:$C$41,'PSS-A8 Page 1 (Derisk)'!$B36,'Exhibit A (Derisk)'!$B$12:$B$41,'PSS-A8 Page 1 (Derisk)'!I$12)*('PSS-A2 (Derisk)'!$F48) -> 0 | J36: =SUMIFS('Exhibit A (Derisk)'!$I$12:$I$41,'Exhibit A (Derisk)'!$C$12:$C$41,'PSS-A8 Page 1 (Derisk)'!$B36,'Exhibit A (Derisk)'!$B$12:$B$41,'PSS-A8 Page 1 (Derisk)'!J$12)*('PSS-A2 (Derisk)'!$F48) -> 0 | K36: =SUMIFS('Exhibit A (Derisk)'!$I$12:$I$41,'Exhibit A (Derisk)'!$C$12:$C$41,'PSS-A8 Page 1 (Derisk)'!$B36,'Exhibit A (Derisk)'!$B$12:$B$41,'PSS-A8 Page 1 (Derisk)'!K$12)*('PSS-A2 (Derisk)'!$F48) -> 0 | L36: =SUMIFS('Exhibit A (Derisk)'!$I$12:$I$41,'Exhibit A (Derisk)'!$C$12:$C$41,'PSS-A8 Page 1 (Derisk)'!$B36,'Exhibit A (Derisk)'!$B$12:$B$41,'PSS-A8 Page 1 (Derisk)'!L$12)*('PSS-A2 (Derisk)'!$F48) -> 0 | M36: =SUMIFS('Exhibit A (Derisk)'!$I$12:$I$41,'Exhibit A (Derisk)'!$C$12:$C$41,'PSS-A8 Page 1 (Derisk)'!$B36,'Exhibit A (Derisk)'!$B$12:$B$41,'PSS-A8 Page 1 (Derisk)'!M$12)*('PSS-A2 (Derisk)'!$F48) -> 0 | N36: =SUMIFS('Exhibit A (Derisk)'!$I$12:$I$41,'Exhibit A (Derisk)'!$C$12:$C$41,'PSS-A8 Page 1 (Derisk)'!$B36,'Exhibit A (Derisk)'!$B$12:$B$41,'PSS-A8 Page 1 (Derisk)'!N$12)*('PSS-A2 (Derisk)'!$F48) -> 0 | O36: =SUMIFS('Exhibit A (Derisk)'!$I$12:$I$41,'Exhibit A (Derisk)'!$C$12:$C$41,'PSS-A8 Page 1 (Derisk)'!$B36,'Exhibit A (Derisk)'!$B$12:$B$41,'PSS-A8 Page 1 (Derisk)'!O$12)*('PSS-A2 (Derisk)'!$F48) -> 0 | P36: =SUMIFS('Exhibit A (Derisk)'!$I$12:$I$41,'Exhibit A (Derisk)'!$C$12:$C$41,'PSS-A8 Page 1 (Derisk)'!$B36,'Exhibit A (Derisk)'!$B$12:$B$41,'PSS-A8 Page 1 (Derisk)'!P$12)*('PSS-A2 (Derisk)'!$F48) -> 0 | R36: 0
B37: 3-6 | C37: External Major Products Cost | D37: NC | E37: =SUMIFS('Exhibit A (Derisk)'!$I$12:$I$41,'Exhibit A (Derisk)'!$C$12:$C$41,'PSS-A8 Page 1 (Derisk)'!$B37,'Exhibit A (Derisk)'!$B$12:$B$41,'PSS-A8 Page 1 (Derisk)'!E$12)*(1+'PSS-A2 (Derisk)'!$F49) -> 0 | F37: =SUMIFS('Exhibit A (Derisk)'!$I$12:$I$41,'Exhibit A (Derisk)'!$C$12:$C$41,'PSS-A8 Page 1 (Derisk)'!$B37,'Exhibit A (Derisk)'!$B$12:$B$41,'PSS-A8 Page 1 (Derisk)'!F$12)*(1+'PSS-A2 (Derisk)'!$F49) -> 0 | G37: =SUMIFS('Exhibit A (Derisk)'!$I$12:$I$41,'Exhibit A (Derisk)'!$C$12:$C$41,'PSS-A8 Page 1 (Derisk)'!$B37,'Exhibit A (Derisk)'!$B$12:$B$41,'PSS-A8 Page 1 (Derisk)'!G$12)*(1+'PSS-A2 (Derisk)'!$F49) -> 0 | H37: =SUMIFS('Exhibit A (Derisk)'!$I$12:$I$41,'Exhibit A (Derisk)'!$C$12:$C$41,'PSS-A8 Page 1 (Derisk)'!$B37,'Exhibit A (Derisk)'!$B$12:$B$41,'PSS-A8 Page 1 (Derisk)'!H$12)*(1+'PSS-A2 (Derisk)'!$F49) -> 0 | I37: =SUMIFS('Exhibit A (Derisk)'!$I$12:$I$41,'Exhibit A (Derisk)'!$C$12:$C$41,'PSS-A8 Page 1 (Derisk)'!$B37,'Exhibit A (Derisk)'!$B$12:$B$41,'PSS-A8 Page 1 (Derisk)'!I$12)*(1+'PSS-A2 (Derisk)'!$F49) -> 0 | J37: =SUMIFS('Exhibit A (Derisk)'!$I$12:$I$41,'Exhibit A (Derisk)'!$C$12:$C$41,'PSS-A8 Page 1 (Derisk)'!$B37,'Exhibit A (Derisk)'!$B$12:$B$41,'PSS-A8 Page 1 (Derisk)'!J$12)*(1+'PSS-A2 (Derisk)'!$F49) -> 6340 | K37: =SUMIFS('Exhibit A (Derisk)'!$I$12:$I$41,'Exhibit A (Derisk)'!$C$12:$C$41,'PSS-A8 Page 1 (Derisk)'!$B37,'Exhibit A (Derisk)'!$B$12:$B$41,'PSS-A8 Page 1 (Derisk)'!K$12)*(1+'PSS-A2 (Derisk)'!$F49) -> 0 | L37: =SUMIFS('Exhibit A (Derisk)'!$I$12:$I$41,'Exhibit A (Derisk)'!$C$12:$C$41,'PSS-A8 Page 1 (Derisk)'!$B37,'Exhibit A (Derisk)'!$B$12:$B$41,'PSS-A8 Page 1 (Derisk)'!L$12)*(1+'PSS-A2 (Derisk)'!$F49) -> 0 | M37: =SUMIFS('Exhibit A (Derisk)'!$I$12:$I$41,'Exhibit A (Derisk)'!$C$12:$C$41,'PSS-A8 Page 1 (Derisk)'!$B37,'Exhibit A (Derisk)'!$B$12:$B$41,'PSS-A8 Page 1 (Derisk)'!M$12)*(1+'PSS-A2 (Derisk)'!$F49) -> 0 | N37: =SUMIFS('Exhibit A (Derisk)'!$I$12:$I$41,'Exhibit A (Derisk)'!$C$12:$C$41,'PSS-A8 Page 1 (Derisk)'!$B37,'Exhibit A (Derisk)'!$B$12:$B$41,'PSS-A8 Page 1 (Derisk)'!N$12)*(1+'PSS-A2 (Derisk)'!$F49) -> 0 | O37: =SUMIFS('Exhibit A (Derisk)'!$I$12:$I$41,'Exhibit A (Derisk)'!$C$12:$C$41,'PSS-A8 Page 1 (Derisk)'!$B37,'Exhibit A (Derisk)'!$B$12:$B$41,'PSS-A8 Page 1 (Derisk)'!O$12)*(1+'PSS-A2 (Derisk)'!$F49) -> 0 | P37: =SUMIFS('Exhibit A (Derisk)'!$I$12:$I$41,'Exhibit A (Derisk)'!$C$12:$C$41,'PSS-A8 Page 1 (Derisk)'!$B37,'Exhibit A (Derisk)'!$B$12:$B$41,'PSS-A8 Page 1 (Derisk)'!P$12)*(1+'PSS-A2 (Derisk)'!$F49) -> 0 | R37: 6340
B38: 3-7 | C38: External Services Cost | D38: NC | E38: =SUMIFS('Exhibit A (Derisk)'!$I$12:$I$41,'Exhibit A (Derisk)'!$C$12:$C$41,'PSS-A8 Page 1 (Derisk)'!$B38,'Exhibit A (Derisk)'!$B$12:$B$41,'PSS-A8 Page 1 (Derisk)'!E$12)*(1+'PSS-A2 (Derisk)'!$F50) -> 0 | F38: =SUMIFS('Exhibit A (Derisk)'!$I$12:$I$41,'Exhibit A (Derisk)'!$C$12:$C$41,'PSS-A8 Page 1 (Derisk)'!$B38,'Exhibit A (Derisk)'!$B$12:$B$41,'PSS-A8 Page 1 (Derisk)'!F$12)*(1+'PSS-A2 (Derisk)'!$F50) -> 0 | G38: =SUMIFS('Exhibit A (Derisk)'!$I$12:$I$41,'Exhibit A (Derisk)'!$C$12:$C$41,'PSS-A8 Page 1 (Derisk)'!$B38,'Exhibit A (Derisk)'!$B$12:$B$41,'PSS-A8 Page 1 (Derisk)'!G$12)*(1+'PSS-A2 (Derisk)'!$F50) -> 0 | H38: =SUMIFS('Exhibit A (Derisk)'!$I$12:$I$41,'Exhibit A (Derisk)'!$C$12:$C$41,'PSS-A8 Page 1 (Derisk)'!$B38,'Exhibit A (Derisk)'!$B$12:$B$41,'PSS-A8 Page 1 (Derisk)'!H$12)*(1+'PSS-A2 (Derisk)'!$F50) -> 0 | I38: =SUMIFS('Exhibit A (Derisk)'!$I$12:$I$41,'Exhibit A (Derisk)'!$C$12:$C$41,'PSS-A8 Page 1 (Derisk)'!$B38,'Exhibit A (Derisk)'!$B$12:$B$41,'PSS-A8 Page 1 (Derisk)'!I$12)*(1+'PSS-A2 (Derisk)'!$F50) -> 0 | J38: =SUMIFS('Exhibit A (Derisk)'!$I$12:$I$41,'Exhibit A (Derisk)'!$C$12:$C$41,'PSS-A8 Page 1 (Derisk)'!$B38,'Exhibit A (Derisk)'!$B$12:$B$41,'PSS-A8 Page 1 (Derisk)'!J$12)*(1+'PSS-A2 (Derisk)'!$F50) -> 0 | K38: =SUMIFS('Exhibit A (Derisk)'!$I$12:$I$41,'Exhibit A (Derisk)'!$C$12:$C$41,'PSS-A8 Page 1 (Derisk)'!$B38,'Exhibit A (Derisk)'!$B$12:$B$41,'PSS-A8 Page 1 (Derisk)'!K$12)*(1+'PSS-A2 (Derisk)'!$F50) -> 0 | L38: =SUMIFS('Exhibit A (Derisk)'!$I$12:$I$41,'Exhibit A (Derisk)'!$C$12:$C$41,'PSS-A8 Page 1 (Derisk)'!$B38,'Exhibit A (Derisk)'!$B$12:$B$41,'PSS-A8 Page 1 (Derisk)'!L$12)*(1+'PSS-A2 (Derisk)'!$F50) -> 0 | M38: =SUMIFS('Exhibit A (Derisk)'!$I$12:$I$41,'Exhibit A (Derisk)'!$C$12:$C$41,'PSS-A8 Page 1 (Derisk)'!$B38,'Exhibit A (Derisk)'!$B$12:$B$41,'PSS-A8 Page 1 (Derisk)'!M$12)*(1+'PSS-A2 (Derisk)'!$F50) -> 0 | N38: =SUMIFS('Exhibit A (Derisk)'!$I$12:$I$41,'Exhibit A (Derisk)'!$C$12:$C$41,'PSS-A8 Page 1 (Derisk)'!$B38,'Exhibit A (Derisk)'!$B$12:$B$41,'PSS-A8 Page 1 (Derisk)'!N$12)*(1+'PSS-A2 (Derisk)'!$F50) -> 0 | O38: =SUMIFS('Exhibit A (Derisk)'!$I$12:$I$41,'Exhibit A (Derisk)'!$C$12:$C$41,'PSS-A8 Page 1 (Derisk)'!$B38,'Exhibit A (Derisk)'!$B$12:$B$41,'PSS-A8 Page 1 (Derisk)'!O$12)*(1+'PSS-A2 (Derisk)'!$F50) -> 0 | P38: =SUMIFS('Exhibit A (Derisk)'!$I$12:$I$41,'Exhibit A (Derisk)'!$C$12:$C$41,'PSS-A8 Page 1 (Derisk)'!$B38,'Exhibit A (Derisk)'!$B$12:$B$41,'PSS-A8 Page 1 (Derisk)'!P$12)*(1+'PSS-A2 (Derisk)'!$F50) -> 0 | R38: 0
B39: 3-8 | C39: Transport/Insurance Cost | D39: NC | R39: 0
B40: 3-9 | C40: Travel and Subsistence Cost | D40: NC | E40: =SUMIF('Exhibit B (Derisk)'!$B$11:$B$30,E12,'Exhibit B (Derisk)'!$N$11:$N$30) -> 3480 | F40: =SUMIF('Exhibit B (Derisk)'!$B$11:$B$30,F12,'Exhibit B (Derisk)'!$N$11:$N$30) -> 0 | G40: =SUMIF('Exhibit B (Derisk)'!$B$11:$B$30,G12,'Exhibit B (Derisk)'!$N$11:$N$30) -> 0 | H40: =SUMIF('Exhibit B (Derisk)'!$B$11:$B$30,H12,'Exhibit B (Derisk)'!$N$11:$N$30) -> 0 | I40: =SUMIF('Exhibit B (Derisk)'!$B$11:$B$30,I12,'Exhibit B (Derisk)'!$N$11:$N$30) -> 0 | J40: =SUMIF('Exhibit B (Derisk)'!$B$11:$B$30,J12,'Exhibit B (Derisk)'!$N$11:$N$30) -> 0 | K40: =SUMIF('Exhibit B (Derisk)'!$B$11:$B$30,K12,'Exhibit B (Derisk)'!$N$11:$N$30) -> 0 | L40: =SUMIF('Exhibit B (Derisk)'!$B$11:$B$30,L12,'Exhibit B (Derisk)'!$N$11:$N$30) -> 0 | M40: =SUMIF('Exhibit B (Derisk)'!$B$11:$B$30,M12,'Exhibit B (Derisk)'!$N$11:$N$30) -> 0 | N40: =SUMIF('Exhibit B (Derisk)'!$B$11:$B$30,N12,'Exhibit B (Derisk)'!$N$11:$N$30) -> 0 | O40: =SUMIF('Exhibit B (Derisk)'!$B$11:$B$30,O12,'Exhibit B (Derisk)'!$N$11:$N$30) -> 0 | P40: =SUMIF('Exhibit B (Derisk)'!$B$11:$B$30,P12,'Exhibit B (Derisk)'!$N$11:$N$30) -> 0 | R40: 3480
B41: 3-10 | C41: Miscellaneous Cost | D41: NC | E41: =SUMIFS('Exhibit A (Derisk)'!$I$12:$I$41,'Exhibit A (Derisk)'!$C$12:$C$41,'PSS-A8 Page 1 (Derisk)'!$B41,'Exhibit A (Derisk)'!$B$12:$B$41,'PSS-A8 Page 1 (Derisk)'!E$12)*(1+'PSS-A2 (Derisk)'!$F53) -> 0 | F41: =SUMIFS('Exhibit A (Derisk)'!$I$12:$I$41,'Exhibit A (Derisk)'!$C$12:$C$41,'PSS-A8 Page 1 (Derisk)'!$B41,'Exhibit A (Derisk)'!$B$12:$B$41,'PSS-A8 Page 1 (Derisk)'!F$12)*(1+'PSS-A2 (Derisk)'!$F53) -> 0 | G41: =SUMIFS('Exhibit A (Derisk)'!$I$12:$I$41,'Exhibit A (Derisk)'!$C$12:$C$41,'PSS-A8 Page 1 (Derisk)'!$B41,'Exhibit A (Derisk)'!$B$12:$B$41,'PSS-A8 Page 1 (Derisk)'!G$12)*(1+'PSS-A2 (Derisk)'!$F53) -> 0 | H41: =SUMIFS('Exhibit A (Derisk)'!$I$12:$I$41,'Exhibit A (Derisk)'!$C$12:$C$41,'PSS-A8 Page 1 (Derisk)'!$B41,'Exhibit A (Derisk)'!$B$12:$B$41,'PSS-A8 Page 1 (Derisk)'!H$12)*(1+'PSS-A2 (Derisk)'!$F53) -> 0 | I41: =SUMIFS('Exhibit A (Derisk)'!$I$12:$I$41,'Exhibit A (Derisk)'!$C$12:$C$41,'PSS-A8 Page 1 (Derisk)'!$B41,'Exhibit A (Derisk)'!$B$12:$B$41,'PSS-A8 Page 1 (Derisk)'!I$12)*(1+'PSS-A2 (Derisk)'!$F53) -> 0 | J41: =SUMIFS('Exhibit A (Derisk)'!$I$12:$I$41,'Exhibit A (Derisk)'!$C$12:$C$41,'PSS-A8 Page 1 (Derisk)'!$B41,'Exhibit A (Derisk)'!$B$12:$B$41,'PSS-A8 Page 1 (Derisk)'!J$12)*(1+'PSS-A2 (Derisk)'!$F53) -> 0 | K41: =SUMIFS('Exhibit A (Derisk)'!$I$12:$I$41,'Exhibit A (Derisk)'!$C$12:$C$41,'PSS-A8 Page 1 (Derisk)'!$B41,'Exhibit A (Derisk)'!$B$12:$B$41,'PSS-A8 Page 1 (Derisk)'!K$12)*(1+'PSS-A2 (Derisk)'!$F53) -> 0 | L41: =SUMIFS('Exhibit A (Derisk)'!$I$12:$I$41,'Exhibit A (Derisk)'!$C$12:$C$41,'PSS-A8 Page 1 (Derisk)'!$B41,'Exhibit A (Derisk)'!$B$12:$B$41,'PSS-A8 Page 1 (Derisk)'!L$12)*(1+'PSS-A2 (Derisk)'!$F53) -> 0 | M41: =SUMIFS('Exhibit A (Derisk)'!$I$12:$I$41,'Exhibit A (Derisk)'!$C$12:$C$41,'PSS-A8 Page 1 (Derisk)'!$B41,'Exhibit A (Derisk)'!$B$12:$B$41,'PSS-A8 Page 1 (Derisk)'!M$12)*(1+'PSS-A2 (Derisk)'!$F53) -> 0 | N41: =SUMIFS('Exhibit A (Derisk)'!$I$12:$I$41,'Exhibit A (Derisk)'!$C$12:$C$41,'PSS-A8 Page 1 (Derisk)'!$B41,'Exhibit A (Derisk)'!$B$12:$B$41,'PSS-A8 Page 1 (Derisk)'!N$12)*(1+'PSS-A2 (Derisk)'!$F53) -> 0 | O41: =SUMIFS('Exhibit A (Derisk)'!$I$12:$I$41,'Exhibit A (Derisk)'!$C$12:$C$41,'PSS-A8 Page 1 (Derisk)'!$B41,'Exhibit A (Derisk)'!$B$12:$B$41,'PSS-A8 Page 1 (Derisk)'!O$12)*(1+'PSS-A2 (Derisk)'!$F53) -> 0 | P41: =SUMIFS('Exhibit A (Derisk)'!$I$12:$I$41,'Exhibit A (Derisk)'!$C$12:$C$41,'PSS-A8 Page 1 (Derisk)'!$B41,'Exhibit A (Derisk)'!$B$12:$B$41,'PSS-A8 Page 1 (Derisk)'!P$12)*(1+'PSS-A2 (Derisk)'!$F53) -> 0 | R41: 0
B42: 3 | C42: Total Other Costs (sum of above 3.x) | D42: NC | E42: =SUM(E31:E41) -> 3480 | F42: 0 | G42: 0 | H42: 0 | I42: 0 | J42: 6340 | K42: 0 | L42: 0 | M42: 0 | N42: 0 | O42: 0 | P42: 0 | R42: 9820
B44: 4 | C44: Sub-Total Direct Cost | D44: NC | E44: =E27+E29+E42 -> 42879 | F44: 4774.8 | G44: 3550.05 | H44: 2237.325 | I44: 5211.8 | J44: 29668.9 | K44: 31737.7 | L44: 8996.45 | M44: 0 | N44: 0 | O44: 0 | P44: 0 | R44: =SUM(E44:P44) -> 129056.025
B46: 5-7 | C46: General expenses | D46: NC | R46: =SUM(E46:P46) -> 0
B48: 8 | C48: Sub-Total Company Cost | D48: NC | E48: =E44+E46 -> 42879 | F48: 4774.8 | G48: 3550.05 | H48: 2237.325 | I48: 5211.8 | J48: 29668.9 | K48: 31737.7 | L48: 8996.45 | M48: 0 | N48: 0 | O48: 0 | P48: 0 | R48: =SUM(E48:P48) -> 129056.025
B50: 9 | C50: Profit Fee | D50: NC | E50: 0 | F50: 0 | G50: 0 | H50: 0 | I50: 0 | J50: 0 | K50: 0 | L50: 0 | M50: 0 | N50: 0 | O50: 0 | P50: 0 | R50: 0
B51: 10 | C51: Cost without additional charge | D51: NC | E51: =SUMIFS('Exhibit A (Derisk)'!$I$12:$I$41,'Exhibit A (Derisk)'!$C$12:$C$41,'PSS-A8 Page 1 (Derisk)'!$B51,'Exhibit A (Derisk)'!$B$12:$B$41,'PSS-A8 Page 1 (Derisk)'!E$12) -> 0 | F51: =SUMIFS('Exhibit A (Derisk)'!$I$12:$I$41,'Exhibit A (Derisk)'!$C$12:$C$41,'PSS-A8 Page 1 (Derisk)'!$B51,'Exhibit A (Derisk)'!$B$12:$B$41,'PSS-A8 Page 1 (Derisk)'!F$12) -> 0 | G51: =SUMIFS('Exhibit A (Derisk)'!$I$12:$I$41,'Exhibit A (Derisk)'!$C$12:$C$41,'PSS-A8 Page 1 (Derisk)'!$B51,'Exhibit A (Derisk)'!$B$12:$B$41,'PSS-A8 Page 1 (Derisk)'!G$12) -> 0 | H51: =SUMIFS('Exhibit A (Derisk)'!$I$12:$I$41,'Exhibit A (Derisk)'!$C$12:$C$41,'PSS-A8 Page 1 (Derisk)'!$B51,'Exhibit A (Derisk)'!$B$12:$B$41,'PSS-A8 Page 1 (Derisk)'!H$12) -> 0 | I51: =SUMIFS('Exhibit A (Derisk)'!$I$12:$I$41,'Exhibit A (Derisk)'!$C$12:$C$41,'PSS-A8 Page 1 (Derisk)'!$B51,'Exhibit A (Derisk)'!$B$12:$B$41,'PSS-A8 Page 1 (Derisk)'!I$12) -> 0 | J51: =SUMIFS('Exhibit A (Derisk)'!$I$12:$I$41,'Exhibit A (Derisk)'!$C$12:$C$41,'PSS-A8 Page 1 (Derisk)'!$B51,'Exhibit A (Derisk)'!$B$12:$B$41,'PSS-A8 Page 1 (Derisk)'!J$12) -> 0 | K51: =SUMIFS('Exhibit A (Derisk)'!$I$12:$I$41,'Exhibit A (Derisk)'!$C$12:$C$41,'PSS-A8 Page 1 (Derisk)'!$B51,'Exhibit A (Derisk)'!$B$12:$B$41,'PSS-A8 Page 1 (Derisk)'!K$12) -> 0 | L51: =SUMIFS('Exhibit A (Derisk)'!$I$12:$I$41,'Exhibit A (Derisk)'!$C$12:$C$41,'PSS-A8 Page 1 (Derisk)'!$B51,'Exhibit A (Derisk)'!$B$12:$B$41,'PSS-A8 Page 1 (Derisk)'!L$12) -> 0 | M51: =SUMIFS('Exhibit A (Derisk)'!$I$12:$I$41,'Exhibit A (Derisk)'!$C$12:$C$41,'PSS-A8 Page 1 (Derisk)'!$B51,'Exhibit A (Derisk)'!$B$12:$B$41,'PSS-A8 Page 1 (Derisk)'!M$12) -> 0 | N51: =SUMIFS('Exhibit A (Derisk)'!$I$12:$I$41,'Exhibit A (Derisk)'!$C$12:$C$41,'PSS-A8 Page 1 (Derisk)'!$B51,'Exhibit A (Derisk)'!$B$12:$B$41,'PSS-A8 Page 1 (Derisk)'!N$12) -> 0 | O51: =SUMIFS('Exhibit A (Derisk)'!$I$12:$I$41,'Exhibit A (Derisk)'!$C$12:$C$41,'PSS-A8 Page 1 (Derisk)'!$B51,'Exhibit A (Derisk)'!$B$12:$B$41,'PSS-A8 Page 1 (Derisk)'!O$12) -> 0 | P51: =SUMIFS('Exhibit A (Derisk)'!$I$12:$I$41,'Exhibit A (Derisk)'!$C$12:$C$41,'PSS-A8 Page 1 (Derisk)'!$B51,'Exhibit A (Derisk)'!$B$12:$B$41,'PSS-A8 Page 1 (Derisk)'!P$12) -> 0 | R51: =SUM(E51:P51) -> 0
B52: 11 | C52: Financial Provision for escalation | D52: NC | R52: =SUM(E52:P52) -> 0
B54: 12 | C54: Total Company Price | D54: NC | E54: =SUM(E48,E50:E52) -> 42879 | F54: 4774.8 | G54: 3550.05 | H54: 2237.325 | I54: 5211.8 | J54: 29668.9 | K54: 31737.7 | L54: 8996.45 | M54: 0 | N54: 0 | O54: 0 | P54: 0 | R54: =SUM(E54:P54) -> 129056.025
D55: EURO | E55: =E54/$O$7 -> 42879 | F55: =F54/$O$7 -> 4774.8 | G55: 3550.05 | H55: 2237.325 | I55: 5211.8 | J55: 29668.9 | K55: 31737.7 | L55: 8996.45 | M55: 0 | N55: 0 | O55: 0 | P55: 0 | R55: =SUM(E55:P55) -> 129056.025
B57: 13 | C57: Total Sub-Contractors Price | D57: NC | E57: 0 | F57: 0 | G57: 0 | H57: 0 | I57: 0 | J57: 0 | K57: 0 | L57: 0 | M57: 0 | N57: 0 | O57: 0 | P57: 0 | R57: 0
D58: EURO | E58: 0 | F58: 0 | G58: 0 | H58: 0 | I58: 0 | J58: 0 | K58: 0 | L58: 0 | M58: 0 | N58: 0 | O58: 0 | P58: 0 | R58: 0
B60: 14 | C60: Reduction for Company contribution | D60: NC | E60: 10719.75 | F60: 1193.7 | G60: 887.5125 | H60: 559.33125 | I60: 1302.95 | J60: 7417.225 | K60: 7934.425 | L60: 2249.1125 | M60: 0 | N60: 0 | O60: 0 | P60: 0 | R60: =SUM(E60:P60) -> 32264.00625
B62: 15 | C62: Total Price for ESA | D62: NC | E62: =E54+E57-E60 -> 32159.25 | F62: 3581.1 | G62: 2662.5375 | H62: 1677.99375 | I62: 3908.85 | J62: 22251.675 | K62: 23803.275 | L62: 6747.3375 | M62: 0 | N62: 0 | O62: 0 | P62: 0 | R62: =ROUND(SUM(E62:P62),0) -> 96792
D63: EURO | E63: =E62/$O$7 -> 32159.25 | F63: =F62/$O$7 -> 3581.1 | G63: 2662.5375 | H63: 1677.99375 | I63: 3908.85 | J63: 22251.675 | K63: 23803.275 | L63: 6747.3375 | M63: 0 | N63: 0 | O63: 0 | P63: 0 | R63: =ROUND(SUM(E63:P63),0) -> 96792

Sheet PSS-A8 Page 2 (Derisk)
B2: COMPANY MANPOWER AND PRICE SUMMARY PER WP | J2: Form no. PSS A8 | P2: Page 2 | R2: Issue 5
C4: ITT/RFQ: | E4: ='PSS-A1 (Derisk)'!D4 -> InCubed | M4: Price Type: | O4: ='PSS-A2 (Derisk)'!D5 -> FFP
C5: Proposal/Tender No.: | E5: ='PSS-A1 (Derisk)'!D5 -> CM/020/Prop_001 | M5: Economic Conditions: | O5: ='PSS-A1 (Derisk)'!D6 -> 2021-2022
C6: Company Name: | E6: ='PSS-A1 (Derisk)'!G3 -> OurLittleComp | M6: National Currency (NC): | O6: ='PSS-A1 (Derisk)'!D7 -> EUR
C7: Contractual Phase: | E7: ='PSS-A2 (Derisk)'!D9 -> N/A | M7: Exchange Rate: 1 EUR = | O7: ='PSS-A2 (Derisk)'!E8 -> 1
C8: WBS-Level (Number and Title): | E8: N/A
D11: WP Title | E11: =IF(E12="","",VLOOKUP(E12,'Project Planning'!$C$10:$D$46,2,FALSE)) ->  | F11: =IF(F12="","",VLOOKUP(F12,'Project Planning'!$C$10:$D$46,2,FALSE)) ->  | G11: =IF(G12="","",VLOOKUP(G12,'Project Planning'!$C$10:$D$46,2,FALSE)) ->  | H11: =IF(H12="","",VLOOKUP(H12,'Project Planning'!$C$10:$D$46,2,FALSE)) ->  | I11: =IF(I12="","",VLOOKUP(I12,'Project Planning'!$C$10:$D$46,2,FALSE)) ->  | J11: =IF(J12="","",VLOOKUP(J12,'Project Planning'!$C$10:$D$46,2,FALSE)) ->  | K11: =IF(K12="","",VLOOKUP(K12,'Project Planning'!$C$10:$D$46,2,FALSE)) ->  | L11: =IF(L12="","",VLOOKUP(L12,'Project Planning'!$C$10:$D$46,2,FALSE)) ->  | M11: =IF(M12="","",VLOOKUP(M12,'Project Planning'!$C$10:$D$46,2,FALSE)) ->  | N11: =IF(N12="","",VLOOKUP(N12,'Project Planning'!$C$10:$D$46,2,FALSE)) ->  | O11: =IF(O12="","",VLOOKUP(O12,'Project Planning'!$C$10:$D$46,2,FALSE)) ->  | P11: =IF(P12="","",VLOOKUP(P12,'Project Planning'!$C$10:$D$46,2,FALSE)) ->  | R11: Total WBS-Level (Cumulated with Page 1) | T11: only the lowest level WPs have to be provided (or at least only the WPs for which a WPD exists)
D12: WP Number | E12: =IFERROR('Project Planning'!V125,"") ->  | F12: =IFERROR('Project Planning'!W125,"") ->  | G12: =IFERROR('Project Planning'!X125,"") ->  | H12: =IFERROR('Project Planning'!Y125,"") ->  | I12: =IFERROR('Project Planning'!Z125,"") ->  | J12: =IFERROR('Project Planning'!AA125,"") ->  | K12: =IFERROR('Project Planning'!AB125,"") ->  | L12: =IFERROR('Project Planning'!AC125,"") ->  | M12: =IFERROR('Project Planning'!AD125,"") ->  | N12: =IFERROR('Project Planning'!AE125,"") ->  | O12: =IFERROR('Project Planning'!AF125,"") ->  | P12: =IFERROR('Project Planning'!AG125,"") -> 
C13: Labour Hours per category | D13: Hours | X13: =MATCH('PSS-A8 Page 1 (Derisk)'!P12,'Project Planning'!C12:C46,0) -> 21 | Z13: =INDIRECT("B"&"X13") -> 0
C14: =IF('PSS-A2 (Derisk)'!C17<>"",'PSS-A2 (Derisk)'!C17,"") -> Project Manager | D14: # | R14: =SUM(E14:P14)+'PSS-A8 Page 1 (Derisk)'!R14 -> 460
C15: =IF('PSS-A2 (Derisk)'!C18<>"",'PSS-A2 (Derisk)'!C18,"") -> Senior SW Developer | D15: # | R15: =SUM(E15:P15)+'PSS-A8 Page 1 (Derisk)'!R15 -> 535
C16: =IF('PSS-A2 (Derisk)'!C19<>"",'PSS-A2 (Derisk)'!C19,"") -> Junior SW Developer | D16: # | R16: =SUM(E16:P16)+'PSS-A8 Page 1 (Derisk)'!R16 -> 665
C17: =IF('PSS-A2 (Derisk)'!C20<>"",'PSS-A2 (Derisk)'!C20,"") -> Administrative Assistant | D17: # | R17: =SUM(E17:P17)+'PSS-A8 Page 1 (Derisk)'!R17 -> 275
C18: =IF('PSS-A2 (Derisk)'!C21<>"",'PSS-A2 (Derisk)'!C21,"") ->  | D18: # | R18: =SUM(E18:P18)+'PSS-A8 Page 1 (Derisk)'!R18 -> 0 | V18: ='PSS-A8 Page 1 (Derisk)'!$E$12:$P$12 -> WP1100 | W18: WP1200 | X18: WP1300 | Y18: WP1400 | Z18: WP3100 | AA18: WP3200 | AB18: WP3300 | AC18: WP3400 | AH18: WP3900
C19: =IF('PSS-A2 (Derisk)'!C22<>"",'PSS-A2 (Derisk)'!C22,"") ->  | D19: # | R19: =SUM(E19:P19)+'PSS-A8 Page 1 (Derisk)'!R19 -> 0
C20: =IF('PSS-A2 (Derisk)'!C23<>"",'PSS-A2 (Derisk)'!C23,"") ->  | D20: # | R20: =SUM(E20:P20)+'PSS-A8 Page 1 (Derisk)'!R20 -> 0 | U20: =+'Project Planning'!$C$12:$C$46 -> WP1100 | W20: =COUNTIFS(_xlfn.ANCHORARRAY(V18),_xlfn.ANCHORARRAY(U20)) -> 1 | X20: =+COUNTIFS(AH18,E12) -> 0 | Y20: =IF("Derisking"='Project Planning'!$B$12:$B$46,_xlfn.ANCHORARRAY(W20),"") -> 1 | Z20: =+ MATCH(0,_xlfn.ANCHORARRAY(Y20),0) ->  | AA20: =+INDEX(_xlfn.ANCHORARRAY(U20),Z20) -> 
C21: =IF('PSS-A2 (Derisk)'!C24<>"",'PSS-A2 (Derisk)'!C24,"") ->  | D21: # | R21: =SUM(E21:P21)+'PSS-A8 Page 1 (Derisk)'!R21 -> 0 | U21: WP1200 | W21: 1 | Y21: 1
C22: =IF('PSS-A2 (Derisk)'!C25<>"",'PSS-A2 (Derisk)'!C25,"") ->  | D22: # | R22: =SUM(E22:P22)+'PSS-A8 Page 1 (Derisk)'!R22 -> 0 | U22: WP1300 | W22: 1 | Y22: 1
C23: =IF('PSS-A2 (Derisk)'!C26<>"",'PSS-A2 (Derisk)'!C26,"") ->  | D23: # | R23: =SUM(E23:P23)+'PSS-A8 Page 1 (Derisk)'!R23 -> 0 | U23: WP1400 | W23: 1 | Y23: 1
C24: Total Labour Hours | D24: # | E24: =SUM(E14:E23) -> 0 | F24: 0 | G24: 0 | H24: 0 | I24: 0 | J24: 0 | K24: 0 | L24: 0 | M24: 0 | N24: 0 | O24: 0 | P24: 0 | R24: =SUM(E24:P24)+'PSS-A8 Page 1 (Derisk)'!R24 -> 1935 | U24: WP2100 | W24: 0
D25: Relative effort between WP | G25: =IFERROR("",G24/$R$24) ->  | U25: WP2200 | W25: 0
U26: WP2300 | W26: 0
B27: 1 | C27: Total Labour Cost | D27: NC | E27: =SUMPRODUCT(E14:E23,'PSS-A2 (Derisk)'!$H$17:$H$26) -> 0 | F27: =SUMPRODUCT(F14:F23,'PSS-A2 (Derisk)'!$H$17:$H$26) -> 0 | G27: =SUMPRODUCT(G14:G23,'PSS-A2 (Derisk)'!$H$17:$H$26) -> 0 | H27: =SUMPRODUCT(H14:H23,'PSS-A2 (Derisk)'!$H$17:$H$26) -> 0 | I27: =SUMPRODUCT(I14:I23,'PSS-A2 (Derisk)'!$H$17:$H$26) -> 0 | J27: =SUMPRODUCT(J14:J23,'PSS-A2 (Derisk)'!$H$17:$H$26) -> 0 | K27: =SUMPRODUCT(K14:K23,'PSS-A2 (Derisk)'!$H$17:$H$26) -> 0 | L27: =SUMPRODUCT(L14:L23,'PSS-A2 (Derisk)'!$H$17:$H$26) -> 0 | M27: =SUMPRODUCT(M14:M23,'PSS-A2 (Derisk)'!$H$17:$H$26) -> 0 | N27: =SUMPRODUCT(N14:N23,'PSS-A2 (Derisk)'!$H$17:$H$26) -> 0 | O27: =SUMPRODUCT(O14:O23,'PSS-A2 (Derisk)'!$H$17:$H$26) -> 0 | P27: =SUMPRODUCT(P14:P23,'PSS-A2 (Derisk)'!$H$17:$H$26) -> 0 | R27: =SUM(E27:P27)+'PSS-A8 Page 1 (Derisk)'!R27 -> 119236.025 | U27: WP2400 | W27: 0
U28: WP3100 | W28: 1 | Y28: 1
B29: 2 | C29: Internal Special Facilities Cost | D29: NC | R29: =SUM(E29:P29)+'PSS-A8 Page 1 (Derisk)'!R29 -> 0 | U29: WP3200 | W29: 1 | Y29: 1
U30: WP3300 | W30: 1 | Y30: 1
B31: 3-1 | C31: Raw materials | D31: NC | E31: =SUMIFS('Exhibit A (Derisk)'!$I$12:$I$41,'Exhibit A (Derisk)'!$C$12:$C$41,'PSS-A8 Page 2 (Derisk)'!$B31,'Exhibit A (Derisk)'!$B$12:$B$41,'PSS-A8 Page 2 (Derisk)'!E$12)*(1+'PSS-A2 (Derisk)'!$F42) -> 0 | F31: =SUMIFS('Exhibit A (Derisk)'!$I$12:$I$41,'Exhibit A (Derisk)'!$C$12:$C$41,'PSS-A8 Page 2 (Derisk)'!$B31,'Exhibit A (Derisk)'!$B$12:$B$41,'PSS-A8 Page 2 (Derisk)'!F$12)*(1+'PSS-A2 (Derisk)'!$F42) -> 0 | G31: =SUMIFS('Exhibit A (Derisk)'!$I$12:$I$41,'Exhibit A (Derisk)'!$C$12:$C$41,'PSS-A8 Page 2 (Derisk)'!$B31,'Exhibit A (Derisk)'!$B$12:$B$41,'PSS-A8 Page 2 (Derisk)'!G$12)*(1+'PSS-A2 (Derisk)'!$F42) -> 0 | H31: =SUMIFS('Exhibit A (Derisk)'!$I$12:$I$41,'Exhibit A (Derisk)'!$C$12:$C$41,'PSS-A8 Page 2 (Derisk)'!$B31,'Exhibit A (Derisk)'!$B$12:$B$41,'PSS-A8 Page 2 (Derisk)'!H$12)*(1+'PSS-A2 (Derisk)'!$F42) -> 0 | I31: =SUMIFS('Exhibit A (Derisk)'!$I$12:$I$41,'Exhibit A (Derisk)'!$C$12:$C$41,'PSS-A8 Page 2 (Derisk)'!$B31,'Exhibit A (Derisk)'!$B$12:$B$41,'PSS-A8 Page 2 (Derisk)'!I$12)*(1+'PSS-A2 (Derisk)'!$F42) -> 0 | J31: =SUMIFS('Exhibit A (Derisk)'!$I$12:$I$41,'Exhibit A (Derisk)'!$C$12:$C$41,'PSS-A8 Page 2 (Derisk)'!$B31,'Exhibit A (Derisk)'!$B$12:$B$41,'PSS-A8 Page 2 (Derisk)'!J$12)*(1+'PSS-A2 (Derisk)'!$F42) -> 0 | K31: =SUMIFS('Exhibit A (Derisk)'!$I$12:$I$41,'Exhibit A (Derisk)'!$C$12:$C$41,'PSS-A8 Page 2 (Derisk)'!$B31,'Exhibit A (Derisk)'!$B$12:$B$41,'PSS-A8 Page 2 (Derisk)'!K$12)*(1+'PSS-A2 (Derisk)'!$F42) -> 0 | L31: =SUMIFS('Exhibit A (Derisk)'!$I$12:$I$41,'Exhibit A (Derisk)'!$C$12:$C$41,'PSS-A8 Page 2 (Derisk)'!$B31,'Exhibit A (Derisk)'!$B$12:$B$41,'PSS-A8 Page 2 (Derisk)'!L$12)*(1+'PSS-A2 (Derisk)'!$F42) -> 0 | M31: =SUMIFS('Exhibit A (Derisk)'!$I$12:$I$41,'Exhibit A (Derisk)'!$C$12:$C$41,'PSS-A8 Page 2 (Derisk)'!$B31,'Exhibit A (Derisk)'!$B$12:$B$41,'PSS-A8 Page 2 (Derisk)'!M$12)*(1+'PSS-A2 (Derisk)'!$F42) -> 0 | N31: =SUMIFS('Exhibit A (Derisk)'!$I$12:$I$41,'Exhibit A (Derisk)'!$C$12:$C$41,'PSS-A8 Page 2 (Derisk)'!$B31,'Exhibit A (Derisk)'!$B$12:$B$41,'PSS-A8 Page 2 (Derisk)'!N$12)*(1+'PSS-A2 (Derisk)'!$F42) -> 0 | O31: =SUMIFS('Exhibit A (Derisk)'!$I$12:$I$41,'Exhibit A (Derisk)'!$C$12:$C$41,'PSS-A8 Page 2 (Derisk)'!$B31,'Exhibit A (Derisk)'!$B$12:$B$41,'PSS-A8 Page 2 (Derisk)'!O$12)*(1+'PSS-A2 (Derisk)'!$F42) -> 0 | P31: =SUMIFS('Exhibit A (Derisk)'!$I$12:$I$41,'Exhibit A (Derisk)'!$C$12:$C$41,'PSS-A8 Page 2 (Derisk)'!$B31,'Exhibit A (Derisk)'!$B$12:$B$41,'PSS-A8 Page 2 (Derisk)'!P$12)*(1+'PSS-A2 (Derisk)'!$F42) -> 0 | R31: =SUM(E31:P31)+'PSS-A8 Page 1 (Derisk)'!R31 -> 0 | U31: WP3400 | W31: 1 | Y31: 1
B32: 3-2 | C32: Mechanical parts | D32: NC | E32: =SUMIFS('Exhibit A (Derisk)'!$I$12:$I$41,'Exhibit A (Derisk)'!$C$12:$C$41,'PSS-A8 Page 2 (Derisk)'!$B32,'Exhibit A (Derisk)'!$B$12:$B$41,'PSS-A8 Page 2 (Derisk)'!E$12)*(1+'PSS-A2 (Derisk)'!$F43) -> 0 | F32: =SUMIFS('Exhibit A (Derisk)'!$I$12:$I$41,'Exhibit A (Derisk)'!$C$12:$C$41,'PSS-A8 Page 2 (Derisk)'!$B32,'Exhibit A (Derisk)'!$B$12:$B$41,'PSS-A8 Page 2 (Derisk)'!F$12)*(1+'PSS-A2 (Derisk)'!$F43) -> 0 | G32: =SUMIFS('Exhibit A (Derisk)'!$I$12:$I$41,'Exhibit A (Derisk)'!$C$12:$C$41,'PSS-A8 Page 2 (Derisk)'!$B32,'Exhibit A (Derisk)'!$B$12:$B$41,'PSS-A8 Page 2 (Derisk)'!G$12)*(1+'PSS-A2 (Derisk)'!$F43) -> 0 | H32: =SUMIFS('Exhibit A (Derisk)'!$I$12:$I$41,'Exhibit A (Derisk)'!$C$12:$C$41,'PSS-A8 Page 2 (Derisk)'!$B32,'Exhibit A (Derisk)'!$B$12:$B$41,'PSS-A8 Page 2 (Derisk)'!H$12)*(1+'PSS-A2 (Derisk)'!$F43) -> 0 | I32: =SUMIFS('Exhibit A (Derisk)'!$I$12:$I$41,'Exhibit A (Derisk)'!$C$12:$C$41,'PSS-A8 Page 2 (Derisk)'!$B32,'Exhibit A (Derisk)'!$B$12:$B$41,'PSS-A8 Page 2 (Derisk)'!I$12)*(1+'PSS-A2 (Derisk)'!$F43) -> 0 | J32: =SUMIFS('Exhibit A (Derisk)'!$I$12:$I$41,'Exhibit A (Derisk)'!$C$12:$C$41,'PSS-A8 Page 2 (Derisk)'!$B32,'Exhibit A (Derisk)'!$B$12:$B$41,'PSS-A8 Page 2 (Derisk)'!J$12)*(1+'PSS-A2 (Derisk)'!$F43) -> 0 | K32: =SUMIFS('Exhibit A (Derisk)'!$I$12:$I$41,'Exhibit A (Derisk)'!$C$12:$C$41,'PSS-A8 Page 2 (Derisk)'!$B32,'Exhibit A (Derisk)'!$B$12:$B$41,'PSS-A8 Page 2 (Derisk)'!K$12)*(1+'PSS-A2 (Derisk)'!$F43) -> 0 | L32: =SUMIFS('Exhibit A (Derisk)'!$I$12:$I$41,'Exhibit A (Derisk)'!$C$12:$C$41,'PSS-A8 Page 2 (Derisk)'!$B32,'Exhibit A (Derisk)'!$B$12:$B$41,'PSS-A8 Page 2 (Derisk)'!L$12)*(1+'PSS-A2 (Derisk)'!$F43) -> 0 | M32: =SUMIFS('Exhibit A (Derisk)'!$I$12:$I$41,'Exhibit A (Derisk)'!$C$12:$C$41,'PSS-A8 Page 2 (Derisk)'!$B32,'Exhibit A (Derisk)'!$B$12:$B$41,'PSS-A8 Page 2 (Derisk)'!M$12)*(1+'PSS-A2 (Derisk)'!$F43) -> 0 | N32: =SUMIFS('Exhibit A (Derisk)'!$I$12:$I$41,'Exhibit A (Derisk)'!$C$12:$C$41,'PSS-A8 Page 2 (Derisk)'!$B32,'Exhibit A (Derisk)'!$B$12:$B$41,'PSS-A8 Page 2 (Derisk)'!N$12)*(1+'PSS-A2 (Derisk)'!$F43) -> 0 | O32: =SUMIFS('Exhibit A (Derisk)'!$I$12:$I$41,'Exhibit A (Derisk)'!$C$12:$C$41,'PSS-A8 Page 2 (Derisk)'!$B32,'Exhibit A (Derisk)'!$B$12:$B$41,'PSS-A8 Page 2 (Derisk)'!O$12)*(1+'PSS-A2 (Derisk)'!$F43) -> 0 | P32: =SUMIFS('Exhibit A (Derisk)'!$I$12:$I$41,'Exhibit A (Derisk)'!$C$12:$C$41,'PSS-A8 Page 2 (Derisk)'!$B32,'Exhibit A (Derisk)'!$B$12:$B$41,'PSS-A8 Page 2 (Derisk)'!P$12)*(1+'PSS-A2 (Derisk)'!$F43) -> 0 | R32: =SUM(E32:P32)+'PSS-A8 Page 1 (Derisk)'!R32 -> 0 | U32: WP4100 | W32: 0
B33: 3-3 | C33: Semi-finished products | D33: NC | E33: =SUMIFS('Exhibit A (Derisk)'!$I$12:$I$41,'Exhibit A (Derisk)'!$C$12:$C$41,'PSS-A8 Page 2 (Derisk)'!$B33,'Exhibit A (Derisk)'!$B$12:$B$41,'PSS-A8 Page 2 (Derisk)'!E$12)*(1+'PSS-A2 (Derisk)'!$F44) -> 0 | F33: =SUMIFS('Exhibit A (Derisk)'!$I$12:$I$41,'Exhibit A (Derisk)'!$C$12:$C$41,'PSS-A8 Page 2 (Derisk)'!$B33,'Exhibit A (Derisk)'!$B$12:$B$41,'PSS-A8 Page 2 (Derisk)'!F$12)*(1+'PSS-A2 (Derisk)'!$F44) -> 0 | G33: =SUMIFS('Exhibit A (Derisk)'!$I$12:$I$41,'Exhibit A (Derisk)'!$C$12:$C$41,'PSS-A8 Page 2 (Derisk)'!$B33,'Exhibit A (Derisk)'!$B$12:$B$41,'PSS-A8 Page 2 (Derisk)'!G$12)*(1+'PSS-A2 (Derisk)'!$F44) -> 0 | H33: =SUMIFS('Exhibit A (Derisk)'!$I$12:$I$41,'Exhibit A (Derisk)'!$C$12:$C$41,'PSS-A8 Page 2 (Derisk)'!$B33,'Exhibit A (Derisk)'!$B$12:$B$41,'PSS-A8 Page 2 (Derisk)'!H$12)*(1+'PSS-A2 (Derisk)'!$F44) -> 0 | I33: =SUMIFS('Exhibit A (Derisk)'!$I$12:$I$41,'Exhibit A (Derisk)'!$C$12:$C$41,'PSS-A8 Page 2 (Derisk)'!$B33,'Exhibit A (Derisk)'!$B$12:$B$41,'PSS-A8 Page 2 (Derisk)'!I$12)*(1+'PSS-A2 (Derisk)'!$F44) -> 0 | J33: =SUMIFS('Exhibit A (Derisk)'!$I$12:$I$41,'Exhibit A (Derisk)'!$C$12:$C$41,'PSS-A8 Page 2 (Derisk)'!$B33,'Exhibit A (Derisk)'!$B$12:$B$41,'PSS-A8 Page 2 (Derisk)'!J$12)*(1+'PSS-A2 (Derisk)'!$F44) -> 0 | K33: =SUMIFS('Exhibit A (Derisk)'!$I$12:$I$41,'Exhibit A (Derisk)'!$C$12:$C$41,'PSS-A8 Page 2 (Derisk)'!$B33,'Exhibit A (Derisk)'!$B$12:$B$41,'PSS-A8 Page 2 (Derisk)'!K$12)*(1+'PSS-A2 (Derisk)'!$F44) -> 0 | L33: =SUMIFS('Exhibit A (Derisk)'!$I$12:$I$41,'Exhibit A (Derisk)'!$C$12:$C$41,'PSS-A8 Page 2 (Derisk)'!$B33,'Exhibit A (Derisk)'!$B$12:$B$41,'PSS-A8 Page 2 (Derisk)'!L$12)*(1+'PSS-A2 (Derisk)'!$F44) -> 0 | M33: =SUMIFS('Exhibit A (Derisk)'!$I$12:$I$41,'Exhibit A (Derisk)'!$C$12:$C$41,'PSS-A8 Page 2 (Derisk)'!$B33,'Exhibit A (Derisk)'!$B$12:$B$41,'PSS-A8 Page 2 (Derisk)'!M$12)*(1+'PSS-A2 (Derisk)'!$F44) -> 0 | N33: =SUMIFS('Exhibit A (Derisk)'!$I$12:$I$41,'Exhibit A (Derisk)'!$C$12:$C$41,'PSS-A8 Page 2 (Derisk)'!$B33,'Exhibit A (Derisk)'!$B$12:$B$41,'PSS-A8 Page 2 (Derisk)'!N$12)*(1+'PSS-A2 (Derisk)'!$F44) -> 0 | O33: =SUMIFS('Exhibit A (Derisk)'!$I$12:$I$41,'Exhibit A (Derisk)'!$C$12:$C$41,'PSS-A8 Page 2 (Derisk)'!$B33,'Exhibit A (Derisk)'!$B$12:$B$41,'PSS-A8 Page 2 (Derisk)'!O$12)*(1+'PSS-A2 (Derisk)'!$F44) -> 0 | P33: =SUMIFS('Exhibit A (Derisk)'!$I$12:$I$41,'Exhibit A (Derisk)'!$C$12:$C$41,'PSS-A8 Page 2 (Derisk)'!$B33,'Exhibit A (Derisk)'!$B$12:$B$41,'PSS-A8 Page 2 (Derisk)'!P$12)*(1+'PSS-A2 (Derisk)'!$F44) -> 0 | R33: =SUM(E33:P33)+'PSS-A8 Page 1 (Derisk)'!R33 -> 0 | U33: WP4200 | W33: 0
B34: 3-4 | C34: Electrical & electronic components | D34: NC | E34: =SUMIFS('Exhibit A (Derisk)'!$I$12:$I$41,'Exhibit A (Derisk)'!$C$12:$C$41,'PSS-A8 Page 2 (Derisk)'!$B34,'Exhibit A (Derisk)'!$B$12:$B$41,'PSS-A8 Page 2 (Derisk)'!E$12)*(1+'PSS-A2 (Derisk)'!$F45) -> 0 | F34: =SUMIFS('Exhibit A (Derisk)'!$I$12:$I$41,'Exhibit A (Derisk)'!$C$12:$C$41,'PSS-A8 Page 2 (Derisk)'!$B34,'Exhibit A (Derisk)'!$B$12:$B$41,'PSS-A8 Page 2 (Derisk)'!F$12)*(1+'PSS-A2 (Derisk)'!$F45) -> 0 | G34: =SUMIFS('Exhibit A (Derisk)'!$I$12:$I$41,'Exhibit A (Derisk)'!$C$12:$C$41,'PSS-A8 Page 2 (Derisk)'!$B34,'Exhibit A (Derisk)'!$B$12:$B$41,'PSS-A8 Page 2 (Derisk)'!G$12)*(1+'PSS-A2 (Derisk)'!$F45) -> 0 | H34: =SUMIFS('Exhibit A (Derisk)'!$I$12:$I$41,'Exhibit A (Derisk)'!$C$12:$C$41,'PSS-A8 Page 2 (Derisk)'!$B34,'Exhibit A (Derisk)'!$B$12:$B$41,'PSS-A8 Page 2 (Derisk)'!H$12)*(1+'PSS-A2 (Derisk)'!$F45) -> 0 | I34: =SUMIFS('Exhibit A (Derisk)'!$I$12:$I$41,'Exhibit A (Derisk)'!$C$12:$C$41,'PSS-A8 Page 2 (Derisk)'!$B34,'Exhibit A (Derisk)'!$B$12:$B$41,'PSS-A8 Page 2 (Derisk)'!I$12)*(1+'PSS-A2 (Derisk)'!$F45) -> 0 | J34: =SUMIFS('Exhibit A (Derisk)'!$I$12:$I$41,'Exhibit A (Derisk)'!$C$12:$C$41,'PSS-A8 Page 2 (Derisk)'!$B34,'Exhibit A (Derisk)'!$B$12:$B$41,'PSS-A8 Page 2 (Derisk)'!J$12)*(1+'PSS-A2 (Derisk)'!$F45) -> 0 | K34: =SUMIFS('Exhibit A (Derisk)'!$I$12:$I$41,'Exhibit A (Derisk)'!$C$12:$C$41,'PSS-A8 Page 2 (Derisk)'!$B34,'Exhibit A (Derisk)'!$B$12:$B$41,'PSS-A8 Page 2 (Derisk)'!K$12)*(1+'PSS-A2 (Derisk)'!$F45) -> 0 | L34: =SUMIFS('Exhibit A (Derisk)'!$I$12:$I$41,'Exhibit A (Derisk)'!$C$12:$C$41,'PSS-A8 Page 2 (Derisk)'!$B34,'Exhibit A (Derisk)'!$B$12:$B$41,'PSS-A8 Page 2 (Derisk)'!L$12)*(1+'PSS-A2 (Derisk)'!$F45) -> 0 | M34: =SUMIFS('Exhibit A (Derisk)'!$I$12:$I$41,'Exhibit A (Derisk)'!$C$12:$C$41,'PSS-A8 Page 2 (Derisk)'!$B34,'Exhibit A (Derisk)'!$B$12:$B$41,'PSS-A8 Page 2 (Derisk)'!M$12)*(1+'PSS-A2 (Derisk)'!$F45) -> 0 | N34: =SUMIFS('Exhibit A (Derisk)'!$I$12:$I$41,'Exhibit A (Derisk)'!$C$12:$C$41,'PSS-A8 Page 2 (Derisk)'!$B34,'Exhibit A (Derisk)'!$B$12:$B$41,'PSS-A8 Page 2 (Derisk)'!N$12)*(1+'PSS-A2 (Derisk)'!$F45) -> 0 | O34: =SUMIFS('Exhibit A (Derisk)'!$I$12:$I$41,'Exhibit A (Derisk)'!$C$12:$C$41,'PSS-A8 Page 2 (Derisk)'!$B34,'Exhibit A (Derisk)'!$B$12:$B$41,'PSS-A8 Page 2 (Derisk)'!O$12)*(1+'PSS-A2 (Derisk)'!$F45) -> 0 | P34: =SUMIFS('Exhibit A (Derisk)'!$I$12:$I$41,'Exhibit A (Derisk)'!$C$12:$C$41,'PSS-A8 Page 2 (Derisk)'!$B34,'Exhibit A (Derisk)'!$B$12:$B$41,'PSS-A8 Page 2 (Derisk)'!P$12)*(1+'PSS-A2 (Derisk)'!$F45) -> 0 | R34: =SUM(E34:P34)+'PSS-A8 Page 1 (Derisk)'!R34 -> 0 | U34: WP4300 | W34: 0
B35: 3-5a | C35: HIREL parts procured by company | D35: NC | E35: =SUMIFS('Exhibit A (Derisk)'!$I$12:$I$41,'Exhibit A (Derisk)'!$C$12:$C$41,'PSS-A8 Page 2 (Derisk)'!$B35,'Exhibit A (Derisk)'!$B$12:$B$41,'PSS-A8 Page 2 (Derisk)'!E$12)*(1+'PSS-A2 (Derisk)'!$F47) -> 0 | F35: =SUMIFS('Exhibit A (Derisk)'!$I$12:$I$41,'Exhibit A (Derisk)'!$C$12:$C$41,'PSS-A8 Page 2 (Derisk)'!$B35,'Exhibit A (Derisk)'!$B$12:$B$41,'PSS-A8 Page 2 (Derisk)'!F$12)*(1+'PSS-A2 (Derisk)'!$F47) -> 0 | G35: =SUMIFS('Exhibit A (Derisk)'!$I$12:$I$41,'Exhibit A (Derisk)'!$C$12:$C$41,'PSS-A8 Page 2 (Derisk)'!$B35,'Exhibit A (Derisk)'!$B$12:$B$41,'PSS-A8 Page 2 (Derisk)'!G$12)*(1+'PSS-A2 (Derisk)'!$F47) -> 0 | H35: =SUMIFS('Exhibit A (Derisk)'!$I$12:$I$41,'Exhibit A (Derisk)'!$C$12:$C$41,'PSS-A8 Page 2 (Derisk)'!$B35,'Exhibit A (Derisk)'!$B$12:$B$41,'PSS-A8 Page 2 (Derisk)'!H$12)*(1+'PSS-A2 (Derisk)'!$F47) -> 0 | I35: =SUMIFS('Exhibit A (Derisk)'!$I$12:$I$41,'Exhibit A (Derisk)'!$C$12:$C$41,'PSS-A8 Page 2 (Derisk)'!$B35,'Exhibit A (Derisk)'!$B$12:$B$41,'PSS-A8 Page 2 (Derisk)'!I$12)*(1+'PSS-A2 (Derisk)'!$F47) -> 0 | J35: =SUMIFS('Exhibit A (Derisk)'!$I$12:$I$41,'Exhibit A (Derisk)'!$C$12:$C$41,'PSS-A8 Page 2 (Derisk)'!$B35,'Exhibit A (Derisk)'!$B$12:$B$41,'PSS-A8 Page 2 (Derisk)'!J$12)*(1+'PSS-A2 (Derisk)'!$F47) -> 0 | K35: =SUMIFS('Exhibit A (Derisk)'!$I$12:$I$41,'Exhibit A (Derisk)'!$C$12:$C$41,'PSS-A8 Page 2 (Derisk)'!$B35,'Exhibit A (Derisk)'!$B$12:$B$41,'PSS-A8 Page 2 (Derisk)'!K$12)*(1+'PSS-A2 (Derisk)'!$F47) -> 0 | L35: =SUMIFS('Exhibit A (Derisk)'!$I$12:$I$41,'Exhibit A (Derisk)'!$C$12:$C$41,'PSS-A8 Page 2 (Derisk)'!$B35,'Exhibit A (Derisk)'!$B$12:$B$41,'PSS-A8 Page 2 (Derisk)'!L$12)*(1+'PSS-A2 (Derisk)'!$F47) -> 0 | M35: =SUMIFS('Exhibit A (Derisk)'!$I$12:$I$41,'Exhibit A (Derisk)'!$C$12:$C$41,'PSS-A8 Page 2 (Derisk)'!$B35,'Exhibit A (Derisk)'!$B$12:$B$41,'PSS-A8 Page 2 (Derisk)'!M$12)*(1+'PSS-A2 (Derisk)'!$F47) -> 0 | N35: =SUMIFS('Exhibit A (Derisk)'!$I$12:$I$41,'Exhibit A (Derisk)'!$C$12:$C$41,'PSS-A8 Page 2 (Derisk)'!$B35,'Exhibit A (Derisk)'!$B$12:$B$41,'PSS-A8 Page 2 (Derisk)'!N$12)*(1+'PSS-A2 (Derisk)'!$F47) -> 0 | O35: =SUMIFS('Exhibit A (Derisk)'!$I$12:$I$41,'Exhibit A (Derisk)'!$C$12:$C$41,'PSS-A8 Page 2 (Derisk)'!$B35,'Exhibit A (Derisk)'!$B$12:$B$41,'PSS-A8 Page 2 (Derisk)'!O$12)*(1+'PSS-A2 (Derisk)'!$F47) -> 0 | P35: =SUMIFS('Exhibit A (Derisk)'!$I$12:$I$41,'Exhibit A (Derisk)'!$C$12:$C$41,'PSS-A8 Page 2 (Derisk)'!$B35,'Exhibit A (Derisk)'!$B$12:$B$41,'PSS-A8 Page 2 (Derisk)'!P$12)*(1+'PSS-A2 (Derisk)'!$F47) -> 0 | R35: =SUM(E35:P35)+'PSS-A8 Page 1 (Derisk)'!R35 -> 0 | U35: WP4400 | W35: 0
B36: 3-5b | C36: HIREL parts procured by thrid party | D36: NC | E36: =SUMIFS('Exhibit A (Derisk)'!$I$12:$I$41,'Exhibit A (Derisk)'!$C$12:$C$41,'PSS-A8 Page 2 (Derisk)'!$B36,'Exhibit A (Derisk)'!$B$12:$B$41,'PSS-A8 Page 2 (Derisk)'!E$12)*('PSS-A2 (Derisk)'!$F48) -> 0 | F36: =SUMIFS('Exhibit A (Derisk)'!$I$12:$I$41,'Exhibit A (Derisk)'!$C$12:$C$41,'PSS-A8 Page 2 (Derisk)'!$B36,'Exhibit A (Derisk)'!$B$12:$B$41,'PSS-A8 Page 2 (Derisk)'!F$12)*('PSS-A2 (Derisk)'!$F48) -> 0 | G36: =SUMIFS('Exhibit A (Derisk)'!$I$12:$I$41,'Exhibit A (Derisk)'!$C$12:$C$41,'PSS-A8 Page 2 (Derisk)'!$B36,'Exhibit A (Derisk)'!$B$12:$B$41,'PSS-A8 Page 2 (Derisk)'!G$12)*('PSS-A2 (Derisk)'!$F48) -> 0 | H36: =SUMIFS('Exhibit A (Derisk)'!$I$12:$I$41,'Exhibit A (Derisk)'!$C$12:$C$41,'PSS-A8 Page 2 (Derisk)'!$B36,'Exhibit A (Derisk)'!$B$12:$B$41,'PSS-A8 Page 2 (Derisk)'!H$12)*('PSS-A2 (Derisk)'!$F48) -> 0 | I36: =SUMIFS('Exhibit A (Derisk)'!$I$12:$I$41,'Exhibit A (Derisk)'!$C$12:$C$41,'PSS-A8 Page 2 (Derisk)'!$B36,'Exhibit A (Derisk)'!$B$12:$B$41,'PSS-A8 Page 2 (Derisk)'!I$12)*('PSS-A2 (Derisk)'!$F48) -> 0 | J36: =SUMIFS('Exhibit A (Derisk)'!$I$12:$I$41,'Exhibit A (Derisk)'!$C$12:$C$41,'PSS-A8 Page 2 (Derisk)'!$B36,'Exhibit A (Derisk)'!$B$12:$B$41,'PSS-A8 Page 2 (Derisk)'!J$12)*('PSS-A2 (Derisk)'!$F48) -> 0 | K36: =SUMIFS('Exhibit A (Derisk)'!$I$12:$I$41,'Exhibit A (Derisk)'!$C$12:$C$41,'PSS-A8 Page 2 (Derisk)'!$B36,'Exhibit A (Derisk)'!$B$12:$B$41,'PSS-A8 Page 2 (Derisk)'!K$12)*('PSS-A2 (Derisk)'!$F48) -> 0 | L36: =SUMIFS('Exhibit A (Derisk)'!$I$12:$I$41,'Exhibit A (Derisk)'!$C$12:$C$41,'PSS-A8 Page 2 (Derisk)'!$B36,'Exhibit A (Derisk)'!$B$12:$B$41,'PSS-A8 Page 2 (Derisk)'!L$12)*('PSS-A2 (Derisk)'!$F48) -> 0 | M36: =SUMIFS('Exhibit A (Derisk)'!$I$12:$I$41,'Exhibit A (Derisk)'!$C$12:$C$41,'PSS-A8 Page 2 (Derisk)'!$B36,'Exhibit A (Derisk)'!$B$12:$B$41,'PSS-A8 Page 2 (Derisk)'!M$12)*('PSS-A2 (Derisk)'!$F48) -> 0 | N36: =SUMIFS('Exhibit A (Derisk)'!$I$12:$I$41,'Exhibit A (Derisk)'!$C$12:$C$41,'PSS-A8 Page 2 (Derisk)'!$B36,'Exhibit A (Derisk)'!$B$12:$B$41,'PSS-A8 Page 2 (Derisk)'!N$12)*('PSS-A2 (Derisk)'!$F48) -> 0 | O36: =SUMIFS('Exhibit A (Derisk)'!$I$12:$I$41,'Exhibit A (Derisk)'!$C$12:$C$41,'PSS-A8 Page 2 (Derisk)'!$B36,'Exhibit A (Derisk)'!$B$12:$B$41,'PSS-A8 Page 2 (Derisk)'!O$12)*('PSS-A2 (Derisk)'!$F48) -> 0 | P36: =SUMIFS('Exhibit A (Derisk)'!$I$12:$I$41,'Exhibit A (Derisk)'!$C$12:$C$41,'PSS-A8 Page 2 (Derisk)'!$B36,'Exhibit A (Derisk)'!$B$12:$B$41,'PSS-A8 Page 2 (Derisk)'!P$12)*('PSS-A2 (Derisk)'!$F48) -> 0 | R36: =SUM(E36:P36)+'PSS-A8 Page 1 (Derisk)'!R36 -> 0 | U36: WP4500 | W36: 0
B37: 3-6 | C37: External Major Products Cost | D37: NC | E37: =SUMIFS('Exhibit A (Derisk)'!$I$12:$I$41,'Exhibit A (Derisk)'!$C$12:$C$41,'PSS-A8 Page 2 (Derisk)'!$B37,'Exhibit A (Derisk)'!$B$12:$B$41,'PSS-A8 Page 2 (Derisk)'!E$12)*(1+'PSS-A2 (Derisk)'!$F49) -> 0 | F37: =SUMIFS('Exhibit A (Derisk)'!$I$12:$I$41,'Exhibit A (Derisk)'!$C$12:$C$41,'PSS-A8 Page 2 (Derisk)'!$B37,'Exhibit A (Derisk)'!$B$12:$B$41,'PSS-A8 Page 2 (Derisk)'!F$12)*(1+'PSS-A2 (Derisk)'!$F49) -> 0 | G37: =SUMIFS('Exhibit A (Derisk)'!$I$12:$I$41,'Exhibit A (Derisk)'!$C$12:$C$41,'PSS-A8 Page 2 (Derisk)'!$B37,'Exhibit A (Derisk)'!$B$12:$B$41,'PSS-A8 Page 2 (Derisk)'!G$12)*(1+'PSS-A2 (Derisk)'!$F49) -> 0 | H37: =SUMIFS('Exhibit A (Derisk)'!$I$12:$I$41,'Exhibit A (Derisk)'!$C$12:$C$41,'PSS-A8 Page 2 (Derisk)'!$B37,'Exhibit A (Derisk)'!$B$12:$B$41,'PSS-A8 Page 2 (Derisk)'!H$12)*(1+'PSS-A2 (Derisk)'!$F49) -> 0 | I37: =SUMIFS('Exhibit A (Derisk)'!$I$12:$I$41,'Exhibit A (Derisk)'!$C$12:$C$41,'PSS-A8 Page 2 (Derisk)'!$B37,'Exhibit A (Derisk)'!$B$12:$B$41,'PSS-A8 Page 2 (Derisk)'!I$12)*(1+'PSS-A2 (Derisk)'!$F49) -> 0 | J37: =SUMIFS('Exhibit A (Derisk)'!$I$12:$I$41,'Exhibit A (Derisk)'!$C$12:$C$41,'PSS-A8 Page 2 (Derisk)'!$B37,'Exhibit A (Derisk)'!$B$12:$B$41,'PSS-A8 Page 2 (Derisk)'!J$12)*(1+'PSS-A2 (Derisk)'!$F49) -> 0 | K37: =SUMIFS('Exhibit A (Derisk)'!$I$12:$I$41,'Exhibit A (Derisk)'!$C$12:$C$41,'PSS-A8 Page 2 (Derisk)'!$B37,'Exhibit A (Derisk)'!$B$12:$B$41,'PSS-A8 Page 2 (Derisk)'!K$12)*(1+'PSS-A2 (Derisk)'!$F49) -> 0 | L37: =SUMIFS('Exhibit A (Derisk)'!$I$12:$I$41,'Exhibit A (Derisk)'!$C$12:$C$41,'PSS-A8 Page 2 (Derisk)'!$B37,'Exhibit A (Derisk)'!$B$12:$B$41,'PSS-A8 Page 2 (Derisk)'!L$12)*(1+'PSS-A2 (Derisk)'!$F49) -> 0 | M37: =SUMIFS('Exhibit A (Derisk)'!$I$12:$I$41,'Exhibit A (Derisk)'!$C$12:$C$41,'PSS-A8 Page 2 (Derisk)'!$B37,'Exhibit A (Derisk)'!$B$12:$B$41,'PSS-A8 Page 2 (Derisk)'!M$12)*(1+'PSS-A2 (Derisk)'!$F49) -> 0 | N37: =SUMIFS('Exhibit A (Derisk)'!$I$12:$I$41,'Exhibit A (Derisk)'!$C$12:$C$41,'PSS-A8 Page 2 (Derisk)'!$B37,'Exhibit A (Derisk)'!$B$12:$B$41,'PSS-A8 Page 2 (Derisk)'!N$12)*(1+'PSS-A2 (Derisk)'!$F49) -> 0 | O37: =SUMIFS('Exhibit A (Derisk)'!$I$12:$I$41,'Exhibit A (Derisk)'!$C$12:$C$41,'PSS-A8 Page 2 (Derisk)'!$B37,'Exhibit A (Derisk)'!$B$12:$B$41,'PSS-A8 Page 2 (Derisk)'!O$12)*(1+'PSS-A2 (Derisk)'!$F49) -> 0 | P37: =SUMIFS('Exhibit A (Derisk)'!$I$12:$I$41,'Exhibit A (Derisk)'!$C$12:$C$41,'PSS-A8 Page 2 (Derisk)'!$B37,'Exhibit A (Derisk)'!$B$12:$B$41,'PSS-A8 Page 2 (Derisk)'!P$12)*(1+'PSS-A2 (Derisk)'!$F49) -> 0 | R37: =SUM(E37:P37)+'PSS-A8 Page 1 (Derisk)'!R37 -> 6340 | U37: WP4600 | W37: 0
B38: 3-7 | C38: External Services Cost | D38: NC | E38: =SUMIFS('Exhibit A (Derisk)'!$I$12:$I$41,'Exhibit A (Derisk)'!$C$12:$C$41,'PSS-A8 Page 2 (Derisk)'!$B38,'Exhibit A (Derisk)'!$B$12:$B$41,'PSS-A8 Page 2 (Derisk)'!E$12)*(1+'PSS-A2 (Derisk)'!$F50) -> 0 | F38: =SUMIFS('Exhibit A (Derisk)'!$I$12:$I$41,'Exhibit A (Derisk)'!$C$12:$C$41,'PSS-A8 Page 2 (Derisk)'!$B38,'Exhibit A (Derisk)'!$B$12:$B$41,'PSS-A8 Page 2 (Derisk)'!F$12)*(1+'PSS-A2 (Derisk)'!$F50) -> 0 | G38: =SUMIFS('Exhibit A (Derisk)'!$I$12:$I$41,'Exhibit A (Derisk)'!$C$12:$C$41,'PSS-A8 Page 2 (Derisk)'!$B38,'Exhibit A (Derisk)'!$B$12:$B$41,'PSS-A8 Page 2 (Derisk)'!G$12)*(1+'PSS-A2 (Derisk)'!$F50) -> 0 | H38: =SUMIFS('Exhibit A (Derisk)'!$I$12:$I$41,'Exhibit A (Derisk)'!$C$12:$C$41,'PSS-A8 Page 2 (Derisk)'!$B38,'Exhibit A (Derisk)'!$B$12:$B$41,'PSS-A8 Page 2 (Derisk)'!H$12)*(1+'PSS-A2 (Derisk)'!$F50) -> 0 | I38: =SUMIFS('Exhibit A (Derisk)'!$I$12:$I$41,'Exhibit A (Derisk)'!$C$12:$C$41,'PSS-A8 Page 2 (Derisk)'!$B38,'Exhibit A (Derisk)'!$B$12:$B$41,'PSS-A8 Page 2 (Derisk)'!I$12)*(1+'PSS-A2 (Derisk)'!$F50) -> 0 | J38: =SUMIFS('Exhibit A (Derisk)'!$I$12:$I$41,'Exhibit A (Derisk)'!$C$12:$C$41,'PSS-A8 Page 2 (Derisk)'!$B38,'Exhibit A (Derisk)'!$B$12:$B$41,'PSS-A8 Page 2 (Derisk)'!J$12)*(1+'PSS-A2 (Derisk)'!$F50) -> 0 | K38: =SUMIFS('Exhibit A (Derisk)'!$I$12:$I$41,'Exhibit A (Derisk)'!$C$12:$C$41,'PSS-A8 Page 2 (Derisk)'!$B38,'Exhibit A (Derisk)'!$B$12:$B$41,'PSS-A8 Page 2 (Derisk)'!K$12)*(1+'PSS-A2 (Derisk)'!$F50) -> 0 | L38: =SUMIFS('Exhibit A (Derisk)'!$I$12:$I$41,'Exhibit A (Derisk)'!$C$12:$C$41,'PSS-A8 Page 2 (Derisk)'!$B38,'Exhibit A (Derisk)'!$B$12:$B$41,'PSS-A8 Page 2 (Derisk)'!L$12)*(1+'PSS-A2 (Derisk)'!$F50) -> 0 | M38: =SUMIFS('Exhibit A (Derisk)'!$I$12:$I$41,'Exhibit A (Derisk)'!$C$12:$C$41,'PSS-A8 Page 2 (Derisk)'!$B38,'Exhibit A (Derisk)'!$B$12:$B$41,'PSS-A8 Page 2 (Derisk)'!M$12)*(1+'PSS-A2 (Derisk)'!$F50) -> 0 | N38: =SUMIFS('Exhibit A (Derisk)'!$I$12:$I$41,'Exhibit A (Derisk)'!$C$12:$C$41,'PSS-A8 Page 2 (Derisk)'!$B38,'Exhibit A (Derisk)'!$B$12:$B$41,'PSS-A8 Page 2 (Derisk)'!N$12)*(1+'PSS-A2 (Derisk)'!$F50) -> 0 | O38: =SUMIFS('Exhibit A (Derisk)'!$I$12:$I$41,'Exhibit A (Derisk)'!$C$12:$C$41,'PSS-A8 Page 2 (Derisk)'!$B38,'Exhibit A (Derisk)'!$B$12:$B$41,'PSS-A8 Page 2 (Derisk)'!O$12)*(1+'PSS-A2 (Derisk)'!$F50) -> 0 | P38: =SUMIFS('Exhibit A (Derisk)'!$I$12:$I$41,'Exhibit A (Derisk)'!$C$12:$C$41,'PSS-A8 Page 2 (Derisk)'!$B38,'Exhibit A (Derisk)'!$B$12:$B$41,'PSS-A8 Page 2 (Derisk)'!P$12)*(1+'PSS-A2 (Derisk)'!$F50) -> 0 | R38: =SUM(E38:P38)+'PSS-A8 Page 1 (Derisk)'!R38 -> 0 | U38: WP5100 | W38: 0
B39: 3-8 | C39: Transport/Insurance Cost | D39: NC | R39: =SUM(E39:P39)+'PSS-A8 Page 1 (Derisk)'!R39 -> 0 | U39: WP5200 | W39: 0
B40: 3-9 | C40: Travel and Subsistence Cost | D40: NC | E40: =SUMIF('Exhibit B (Derisk)'!$B$11:$B$30,E12,'Exhibit B (Derisk)'!$N$11:$N$30) -> 0 | F40: =SUMIF('Exhibit B (Derisk)'!$B$11:$B$30,F12,'Exhibit B (Derisk)'!$N$11:$N$30) -> 0 | G40: =SUMIF('Exhibit B (Derisk)'!$B$11:$B$30,G12,'Exhibit B (Derisk)'!$N$11:$N$30) -> 0 | H40: =SUMIF('Exhibit B (Derisk)'!$B$11:$B$30,H12,'Exhibit B (Derisk)'!$N$11:$N$30) -> 0 | I40: =SUMIF('Exhibit B (Derisk)'!$B$11:$B$30,I12,'Exhibit B (Derisk)'!$N$11:$N$30) -> 0 | J40: =SUMIF('Exhibit B (Derisk)'!$B$11:$B$30,J12,'Exhibit B (Derisk)'!$N$11:$N$30) -> 0 | K40: =SUMIF('Exhibit B (Derisk)'!$B$11:$B$30,K12,'Exhibit B (Derisk)'!$N$11:$N$30) -> 0 | L40: =SUMIF('Exhibit B (Derisk)'!$B$11:$B$30,L12,'Exhibit B (Derisk)'!$N$11:$N$30) -> 0 | M40: =SUMIF('Exhibit B (Derisk)'!$B$11:$B$30,M12,'Exhibit B (Derisk)'!$N$11:$N$30) -> 0 | N40: =SUMIF('Exhibit B (Derisk)'!$B$11:$B$30,N12,'Exhibit B (Derisk)'!$N$11:$N$30) -> 0 | O40: =SUMIF('Exhibit B (Derisk)'!$B$11:$B$30,O12,'Exhibit B (Derisk)'!$N$11:$N$30) -> 0 | P40: =SUMIF('Exhibit B (Derisk)'!$B$11:$B$30,P12,'Exhibit B (Derisk)'!$N$11:$N$30) -> 0 | R40: =SUM(E40:P40)+'PSS-A8 Page 1 (Derisk)'!R40 -> 3480 | W40: 4
B41: 3-10 | C41: Miscellaneous Cost | D41: NC | E41: =SUMIFS('Exhibit A (Derisk)'!$I$12:$I$41,'Exhibit A (Derisk)'!$C$12:$C$41,'PSS-A8 Page 2 (Derisk)'!$B41,'Exhibit A (Derisk)'!$B$12:$B$41,'PSS-A8 Page 2 (Derisk)'!E$12)*(1+'PSS-A2 (Derisk)'!$F53) -> 0 | F41: =SUMIFS('Exhibit A (Derisk)'!$I$12:$I$41,'Exhibit A (Derisk)'!$C$12:$C$41,'PSS-A8 Page 2 (Derisk)'!$B41,'Exhibit A (Derisk)'!$B$12:$B$41,'PSS-A8 Page 2 (Derisk)'!F$12)*(1+'PSS-A2 (Derisk)'!$F53) -> 0 | G41: =SUMIFS('Exhibit A (Derisk)'!$I$12:$I$41,'Exhibit A (Derisk)'!$C$12:$C$41,'PSS-A8 Page 2 (Derisk)'!$B41,'Exhibit A (Derisk)'!$B$12:$B$41,'PSS-A8 Page 2 (Derisk)'!G$12)*(1+'PSS-A2 (Derisk)'!$F53) -> 0 | H41: =SUMIFS('Exhibit A (Derisk)'!$I$12:$I$41,'Exhibit A (Derisk)'!$C$12:$C$41,'PSS-A8 Page 2 (Derisk)'!$B41,'Exhibit A (Derisk)'!$B$12:$B$41,'PSS-A8 Page 2 (Derisk)'!H$12)*(1+'PSS-A2 (Derisk)'!$F53) -> 0 | I41: =SUMIFS('Exhibit A (Derisk)'!$I$12:$I$41,'Exhibit A (Derisk)'!$C$12:$C$41,'PSS-A8 Page 2 (Derisk)'!$B41,'Exhibit A (Derisk)'!$B$12:$B$41,'PSS-A8 Page 2 (Derisk)'!I$12)*(1+'PSS-A2 (Derisk)'!$F53) -> 0 | J41: =SUMIFS('Exhibit A (Derisk)'!$I$12:$I$41,'Exhibit A (Derisk)'!$C$12:$C$41,'PSS-A8 Page 2 (Derisk)'!$B41,'Exhibit A (Derisk)'!$B$12:$B$41,'PSS-A8 Page 2 (Derisk)'!J$12)*(1+'PSS-A2 (Derisk)'!$F53) -> 0 | K41: =SUMIFS('Exhibit A (Derisk)'!$I$12:$I$41,'Exhibit A (Derisk)'!$C$12:$C$41,'PSS-A8 Page 2 (Derisk)'!$B41,'Exhibit A (Derisk)'!$B$12:$B$41,'PSS-A8 Page 2 (Derisk)'!K$12)*(1+'PSS-A2 (Derisk)'!$F53) -> 0 | L41: =SUMIFS('Exhibit A (Derisk)'!$I$12:$I$41,'Exhibit A (Derisk)'!$C$12:$C$41,'PSS-A8 Page 2 (Derisk)'!$B41,'Exhibit A (Derisk)'!$B$12:$B$41,'PSS-A8 Page 2 (Derisk)'!L$12)*(1+'PSS-A2 (Derisk)'!$F53) -> 0 | M41: =SUMIFS('Exhibit A (Derisk)'!$I$12:$I$41,'Exhibit A (Derisk)'!$C$12:$C$41,'PSS-A8 Page 2 (Derisk)'!$B41,'Exhibit A (Derisk)'!$B$12:$B$41,'PSS-A8 Page 2 (Derisk)'!M$12)*(1+'PSS-A2 (Derisk)'!$F53) -> 0 | N41: =SUMIFS('Exhibit A (Derisk)'!$I$12:$I$41,'Exhibit A (Derisk)'!$C$12:$C$41,'PSS-A8 Page 2 (Derisk)'!$B41,'Exhibit A (Derisk)'!$B$12:$B$41,'PSS-A8 Page 2 (Derisk)'!N$12)*(1+'PSS-A2 (Derisk)'!$F53) -> 0 | O41: =SUMIFS('Exhibit A (Derisk)'!$I$12:$I$41,'Exhibit A (Derisk)'!$C$12:$C$41,'PSS-A8 Page 2 (Derisk)'!$B41,'Exhibit A (Derisk)'!$B$12:$B$41,'PSS-A8 Page 2 (Derisk)'!O$12)*(1+'PSS-A2 (Derisk)'!$F53) -> 0 | P41: =SUMIFS('Exhibit A (Derisk)'!$I$12:$I$41,'Exhibit A (Derisk)'!$C$12:$C$41,'PSS-A8 Page 2 (Derisk)'!$B41,'Exhibit A (Derisk)'!$B$12:$B$41,'PSS-A8 Page 2 (Derisk)'!P$12)*(1+'PSS-A2 (Derisk)'!$F53) -> 0 | R41: =SUM(E41:P41)+'PSS-A8 Page 1 (Derisk)'!R41 -> 0 | W41: 4
B42: 3 | C42: Total Other Costs (sum of above 3.x) | D42: NC | E42: =SUM(E31:E41) -> 0 | F42: 0 | G42: 0 | H42: 0 | I42: 0 | J42: 0 | K42: 0 | L42: 0 | M42: 0 | N42: 0 | O42: 0 | P42: 0 | R42: =SUM(E42:P42)+'PSS-A8 Page 1 (Derisk)'!R42 -> 9820 | W42: 4
W43: 4
B44: 4 | C44: Sub-Total Direct Cost | D44: NC | E44: =E27+E29+E42 -> 0 | F44: 0 | G44: 0 | H44: 0 | I44: 0 | J44: 0 | K44: 0 | L44: 0 | M44: 0 | N44: 0 | O44: 0 | P44: 0 | R44: =SUM(E44:P44)+'PSS-A8 Page 1 (Derisk)'!R44 -> 129056.025 | W44: 4
W45: 4
B46: 5-7 | C46: General expenses | D46: NC | R46: =SUM(E46:P46)+'PSS-A8 Page 1 (Derisk)'!R46 -> 0 | W46: 4
W47: 4
B48: 8 | C48: Sub-Total Company Cost | D48: NC | E48: =E44+E46 -> 0 | F48: 0 | G48: 0 | H48: 0 | I48: 0 | J48: 0 | K48: 0 | L48: 0 | M48: 0 | N48: 0 | O48: 0 | P48: 0 | R48: =SUM(E48:P48)+'PSS-A8 Page 1 (Derisk)'!R48 -> 129056.025 | W48: 4
W49: 4
B50: 9 | C50: Profit Fee | D50: NC | E50: 0 | F50: 0 | G50: 0 | H50: 0 | I50: 0 | J50: 0 | K50: 0 | L50: 0 | M50: 0 | N50: 0 | O50: 0 | P50: 0 | R50: 0 | W50: 4
B51: 10 | C51: Cost without additional charge | D51: NC | E51: =SUMIFS('Exhibit A (Derisk)'!$I$12:$I$41,'Exhibit A (Derisk)'!$C$12:$C$41,'PSS-A8 Page 2 (Derisk)'!$B51,'Exhibit A (Derisk)'!$B$12:$B$41,'PSS-A8 Page 2 (Derisk)'!E$12) -> 0 | F51: =SUMIFS('Exhibit A (Derisk)'!$I$12:$I$41,'Exhibit A (Derisk)'!$C$12:$C$41,'PSS-A8 Page 2 (Derisk)'!$B51,'Exhibit A (Derisk)'!$B$12:$B$41,'PSS-A8 Page 2 (Derisk)'!F$12) -> 0 | G51: =SUMIFS('Exhibit A (Derisk)'!$I$12:$I$41,'Exhibit A (Derisk)'!$C$12:$C$41,'PSS-A8 Page 2 (Derisk)'!$B51,'Exhibit A (Derisk)'!$B$12:$B$41,'PSS-A8 Page 2 (Derisk)'!G$12) -> 0 | H51: =SUMIFS('Exhibit A (Derisk)'!$I$12:$I$41,'Exhibit A (Derisk)'!$C$12:$C$41,'PSS-A8 Page 2 (Derisk)'!$B51,'Exhibit A (Derisk)'!$B$12:$B$41,'PSS-A8 Page 2 (Derisk)'!H$12) -> 0 | I51: =SUMIFS('Exhibit A (Derisk)'!$I$12:$I$41,'Exhibit A (Derisk)'!$C$12:$C$41,'PSS-A8 Page 2 (Derisk)'!$B51,'Exhibit A (Derisk)'!$B$12:$B$41,'PSS-A8 Page 2 (Derisk)'!I$12) -> 0 | J51: =SUMIFS('Exhibit A (Derisk)'!$I$12:$I$41,'Exhibit A (Derisk)'!$C$12:$C$41,'PSS-A8 Page 2 (Derisk)'!$B51,'Exhibit A (Derisk)'!$B$12:$B$41,'PSS-A8 Page 2 (Derisk)'!J$12) -> 0 | K51: =SUMIFS('Exhibit A (Derisk)'!$I$12:$I$41,'Exhibit A (Derisk)'!$C$12:$C$41,'PSS-A8 Page 2 (Derisk)'!$B51,'Exhibit A (Derisk)'!$B$12:$B$41,'PSS-A8 Page 2 (Derisk)'!K$12) -> 0 | L51: =SUMIFS('Exhibit A (Derisk)'!$I$12:$I$41,'Exhibit A (Derisk)'!$C$12:$C$41,'PSS-A8 Page 2 (Derisk)'!$B51,'Exhibit A (Derisk)'!$B$12:$B$41,'PSS-A8 Page 2 (Derisk)'!L$12) -> 0 | M51: =SUMIFS('Exhibit A (Derisk)'!$I$12:$I$41,'Exhibit A (Derisk)'!$C$12:$C$41,'PSS-A8 Page 2 (Derisk)'!$B51,'Exhibit A (Derisk)'!$B$12:$B$41,'PSS-A8 Page 2 (Derisk)'!M$12) -> 0 | N51: =SUMIFS('Exhibit A (Derisk)'!$I$12:$I$41,'Exhibit A (Derisk)'!$C$12:$C$41,'PSS-A8 Page 2 (Derisk)'!$B51,'Exhibit A (Derisk)'!$B$12:$B$41,'PSS-A8 Page 2 (Derisk)'!N$12) -> 0 | O51: =SUMIFS('Exhibit A (Derisk)'!$I$12:$I$41,'Exhibit A (Derisk)'!$C$12:$C$41,'PSS-A8 Page 2 (Derisk)'!$B51,'Exhibit A (Derisk)'!$B$12:$B$41,'PSS-A8 Page 2 (Derisk)'!O$12) -> 0 | P51: =SUMIFS('Exhibit A (Derisk)'!$I$12:$I$41,'Exhibit A (Derisk)'!$C$12:$C$41,'PSS-A8 Page 2 (Derisk)'!$B51,'Exhibit A (Derisk)'!$B$12:$B$41,'PSS-A8 Page 2 (Derisk)'!P$12) -> 0 | R51: =SUM(E51:P51)+'PSS-A8 Page 1 (Derisk)'!R51 -> 0 | W51: 4
B52: 11 | C52: Financial Provision for escalation | D52: NC | R52: =SUM(E52:P52)+'PSS-A8 Page 1 (Derisk)'!R52 -> 0 | W52: 4
W53: 4
B54: 12 | C54: Total Company Price | D54: NC | E54: =SUM(E48,E50:E52) -> 0 | F54: 0 | G54: 0 | H54: 0 | I54: 0 | J54: 0 | K54: 0 | L54: 0 | M54: 0 | N54: 0 | O54: 0 | P54: 0 | R54: =SUM(E54:P54)+'PSS-A8 Page 1 (Derisk)'!R54 -> 129056.025 | W54: 4
D55: EURO | E55: =E54/'PSS-A8 Page 1 (Derisk)'!$O$7 -> 0 | F55: =F54/'PSS-A8 Page 1 (Derisk)'!$O$7 -> 0 | G55: =G54/'PSS-A8 Page 1 (Derisk)'!$O$7 -> 0 | H55: =H54/'PSS-A8 Page 1 (Derisk)'!$O$7 -> 0 | I55: =I54/'PSS-A8 Page 1 (Derisk)'!$O$7 -> 0 | J55: =J54/'PSS-A8 Page 1 (Derisk)'!$O$7 -> 0 | K55: =K54/'PSS-A8 Page 1 (Derisk)'!$O$7 -> 0 | L55: =L54/'PSS-A8 Page 1 (Derisk)'!$O$7 -> 0 | M55: =M54/'PSS-A8 Page 1 (Derisk)'!$O$7 -> 0 | N55: =N54/'PSS-A8 Page 1 (Derisk)'!$O$7 -> 0 | O55: =O54/'PSS-A8 Page 1 (Derisk)'!$O$7 -> 0 | P55: =P54/'PSS-A8 Page 1 (Derisk)'!$O$7 -> 0 | R55: =SUM(E55:P55)+'PSS-A8 Page 1 (Derisk)'!R55 -> 129056.025
B57: 13 | C57: Total Sub-Contractors Price | D57: NC | E57: 0 | F57: 0 | G57: 0 | H57: 0 | I57: 0 | J57: 0 | K57: 0 | L57: 0 | M57: 0 | N57: 0 | O57: 0 | P57: 0 | R57: 0
D58: EURO | E58: 0 | F58: 0 | G58: 0 | H58: 0 | I58: 0 | J58: 0 | K58: 0 | L58: 0 | M58: 0 | N58: 0 | O58: 0 | P58: 0 | R58: 0
B60: 14 | C60: Reduction for Company contribution | D60: NC | R60: =SUM(E60:P60)+'PSS-A8 Page 1 (Derisk)'!R60 -> 32264.00625
B62: 15 | C62: Total Price for ESA | D62: NC | E62: =E54+E57-E60 -> 0 | F62: =F54+F57-F60 -> 0 | G62: 0 | H62: 0 | I62: 0 | J62: 0 | K62: 0 | L62: 0 | M62: 0 | N62: 0 | O62: 0 | P62: 0 | R62: =ROUND(SUM(E62:P62)+'PSS-A8 Page 1 (Derisk)'!R62,0) -> 96792
D63: EURO | E63: =E62/'PSS-A8 Page 1 (Derisk)'!$O$7 -> 0 | F63: =F62/'PSS-A8 Page 1 (Derisk)'!$O$7 -> 0 | G63: =G62/'PSS-A8 Page 1 (Derisk)'!$O$7 -> 0 | H63: =H62/'PSS-A8 Page 1 (Derisk)'!$O$7 -> 0 | I63: =I62/'PSS-A8 Page 1 (Derisk)'!$O$7 -> 0 | J63: =J62/'PSS-A8 Page 1 (Derisk)'!$O$7 -> 0 | K63: =K62/'PSS-A8 Page 1 (Derisk)'!$O$7 -> 0 | L63: =L62/'PSS-A8 Page 1 (Derisk)'!$O$7 -> 0 | M63: =M62/'PSS-A8 Page 1 (Derisk)'!$O$7 -> 0 | N63: =N62/'PSS-A8 Page 1 (Derisk)'!$O$7 -> 0 | O63: =O62/'PSS-A8 Page 1 (Derisk)'!$O$7 -> 0 | P63: =P62/'PSS-A8 Page 1 (Derisk)'!$O$7 -> 0 | R63: =ROUND(SUM(E63:P63)+'PSS-A8 Page 1 (Derisk)'!R63,0) -> 96792

Sheet PSS-A15.1 (Derisk)
B2: COMPANY PRICE PROJECTION vs. PAYMENT PLAN in THOUSANDS EURO | G2: Form no. PSS A15.1 | M2: Page X of Y | AG2: Issue 5
B4: ITT/RFQ: | D4: ='PSS-A1 (Derisk)'!D4 -> InCubed | K4: Price Type: | L4: ='PSS-A2 (Derisk)'!D5 -> FFP
B5: Proposal/Tender No.: | D5: ='PSS-A1 (Derisk)'!D5 -> CM/020/Prop_001 | K5: Economic Conditions: | L5: ='PSS-A2 (Derisk)'!D6 -> 2021-2022
B6: Company Name: | D6: ='PSS-A1 (Derisk)'!G3 -> OurLittleComp | K6: National Currency (NC) (*): | L6: ='PSS-A1 (Derisk)'!D7 -> EUR
B7: Contractual Phase: | D7: ='PSS-A2 (Derisk)'!D9 -> N/A
B8: WBS-Level (Number and Title): | D8: N/A | F8: N/A | K8: Exchange Rate (*): 1 EUR = | L8: ='PSS-A2 (Derisk)'!E8 -> 1
B10: Time period expressed in: | C10: month | E10: =('PSS-A2 (Derisk)'!K68/'PSS-A2 (Derisk)'!K65) -> 0.75
B12: Period | C12: 1 | D12: =IF(C12>=deriskdur,"",C12+1) -> 2 | E12: 3 | F12: 4 | G12: 5 | H12: 6 | I12: 7 | J12: 8 | K12: 9
B13: Start [MM-YY] | C13: =IF(C12="",B14,VLOOKUP(C12,'PSS-A8 Calculations (Derisk)'!$B$10:$AB$57,2)) -> 2021-01-01 | D13: =IF(D12="","",VLOOKUP(D12,'PSS-A8 Calculations (Derisk)'!$B$10:$AB$57,2)) -> 2021-02-01 | E13: =IF(E12="","",VLOOKUP(E12,'PSS-A8 Calculations (Derisk)'!$B$10:$AB$57,2)) -> 2021-03-01 | F13: =IF(F12="","",VLOOKUP(F12,'PSS-A8 Calculations (Derisk)'!$B$10:$AB$57,2)) -> 2021-04-01 | G13: =IF(G12="","",VLOOKUP(G12,'PSS-A8 Calculations (Derisk)'!$B$10:$AB$57,2)) -> 2021-05-01 | H13: =IF(H12="","",VLOOKUP(H12,'PSS-A8 Calculations (Derisk)'!$B$10:$AB$57,2)) -> 2021-06-01 | I13: =IF(I12="","",VLOOKUP(I12,'PSS-A8 Calculations (Derisk)'!$B$10:$AB$57,2)) -> 2021-07-01 | J13: =IF(J12="","",VLOOKUP(J12,'PSS-A8 Calculations (Derisk)'!$B$10:$AB$57,2)) -> 2021-08-01 | K13: =IF(K12="","",VLOOKUP(K12,'PSS-A8 Calculations (Derisk)'!$B$10:$AB$57,2)) -> 2021-09-01 | L13: =IF(L12="","",VLOOKUP(L12,'PSS-A8 Calculations (Derisk)'!$B$10:$AB$57,2)) ->  | M13: =IF(M12="","",VLOOKUP(M12,'PSS-A8 Calculations (Derisk)'!$B$10:$AB$57,2)) ->  | N13: =IF(N12="","",VLOOKUP(N12,'PSS-A8 Calculations (Derisk)'!$B$10:$AB$57,2)) ->  | O13: =IF(O12="","",VLOOKUP(O12,'PSS-A8 Calculations (Derisk)'!$B$10:$AB$57,2)) ->  | P13: =IF(P12="","",VLOOKUP(P12,'PSS-A8 Calculations (Derisk)'!$B$10:$AB$57,2)) ->  | Q13: =IF(Q12="","",VLOOKUP(Q12,'PSS-A8 Calculations (Derisk)'!$B$10:$AB$57,2)) ->  | R13: =IF(R12="","",VLOOKUP(R12,'PSS-A8 Calculations (Derisk)'!$B$10:$AB$57,2)) ->  | S13: =IF(S12="","",VLOOKUP(S12,'PSS-A8 Calculations (Derisk)'!$B$10:$AB$57,2)) ->  | T13: =IF(T12="","",VLOOKUP(T12,'PSS-A8 Calculations (Derisk)'!$B$10:$AB$57,2)) ->  | U13: =IF(U12="","",VLOOKUP(U12,'PSS-A8 Calculations (Derisk)'!$B$10:$AB$57,2)) ->  | V13: =IF(V12="","",VLOOKUP(V12,'PSS-A8 Calculations (Derisk)'!$B$10:$AB$57,2)) ->  | W13: =IF(W12="","",VLOOKUP(W12,'PSS-A8 Calculations (Derisk)'!$B$10:$AB$57,2)) ->  | X13: =IF(X12="","",VLOOKUP(X12,'PSS-A8 Calculations (Derisk)'!$B$10:$AB$57,2)) ->  | Y13: =IF(Y12="","",VLOOKUP(Y12,'PSS-A8 Calculations (Derisk)'!$B$10:$AB$57,2)) ->  | Z13: =IF(Z12="","",VLOOKUP(Z12,'PSS-A8 Calculations (Derisk)'!$B$10:$AB$57,2)) ->  | AA13: =IF(AA12="","",VLOOKUP(AA12,'PSS-A8 Calculations (Derisk)'!$B$10:$AB$57,2)) ->  | AB13: =IF(AB12="","",VLOOKUP(AB12,'PSS-A8 Calculations (Derisk)'!$B$10:$AB$57,2)) ->  | AC13: =IF(AC12="","",VLOOKUP(AC12,'PSS-A8 Calculations (Derisk)'!$B$10:$AB$57,2)) ->  | AD13: =IF(AD12="","",VLOOKUP(AD12,'PSS-A8 Calculations (Derisk)'!$B$10:$AB$57,2)) ->  | AE13: =IF(AE12="","",VLOOKUP(AE12,'PSS-A8 Calculations (Derisk)'!$B$10:$AB$57,2)) ->  | AF13: =IF(AF12="","",VLOOKUP(AF12,'PSS-A8 Calculations (Derisk)'!$B$10:$AB$57,2)) -> 
B14: End [MM-YY] | C14: =EDATE(C13,1) -> 2021-02-01 | D14: =IF(D12="","",EDATE(D13,1)) -> 2021-03-01 | E14: =IF(E12="","",EDATE(E13,1)) -> 2021-04-01 | F14: 2021-05-01 | G14: 2021-06-01 | H14: 2021-07-01 | I14: 2021-08-01 | J14: 2021-09-01 | K14: 2021-10-01 | M14: =IF(M12="","",EDATE(M13,1)) ->  | N14: =IF(N12="","",EDATE(N13,1)) ->  | O14: =IF(O12="","",EDATE(O13,1)) ->  | P14: =IF(P12="","",EDATE(P13,1)) ->  | Q14: =IF(Q12="","",EDATE(Q13,1)) ->  | R14: =IF(R12="","",EDATE(R13,1)) ->  | S14: =IF(S12="","",EDATE(S13,1)) ->  | T14: =IF(T12="","",EDATE(T13,1)) ->  | U14: =IF(U12="","",EDATE(U13,1)) ->  | V14: =IF(V12="","",EDATE(V13,1)) ->  | W14: =IF(W12="","",EDATE(W13,1)) ->  | X14: =IF(X12="","",EDATE(X13,1)) ->  | Y14: =IF(Y12="","",EDATE(Y13,1)) ->  | Z14: =IF(Z12="","",EDATE(Z13,1)) ->  | AA14: =IF(AA12="","",EDATE(AA13,1)) ->  | AB14: =IF(AB12="","",EDATE(AB13,1)) ->  | AC14: =IF(AC12="","",EDATE(AC13,1)) ->  | AD14: =IF(AD12="","",EDATE(AD13,1)) ->  | AE14: =IF(AE12="","",EDATE(AE13,1)) ->  | AF14: =IF(AF12="","",EDATE(AF13,1)) -> 
B15: 1. MILESTONES | C15: =IF(C12="","",IFERROR(INDEX('Financial Planning (Derisk)'!$C$87:$C$94,MATCH(C12,'Financial Planning (Derisk)'!$H$87:$H$94,0)),"")) ->  | D15: =IF(D12="","",IFERROR(INDEX('Financial Planning (Derisk)'!$C$87:$C$94,MATCH(D12,'Financial Planning (Derisk)'!$H$87:$H$94,0)),"")) ->  | E15: =IF(E12="","",IFERROR(INDEX('Financial Planning (Derisk)'!$C$87:$C$94,MATCH(E12,'Financial Planning (Derisk)'!$H$87:$H$94,0)),"")) -> RR | F15: =IF(F12="","",IFERROR(INDEX('Financial Planning (Derisk)'!$C$87:$C$94,MATCH(F12,'Financial Planning (Derisk)'!$H$87:$H$94,0)),"")) ->  | G15: =IF(G12="","",IFERROR(INDEX('Financial Planning (Derisk)'!$C$87:$C$94,MATCH(G12,'Financial Planning (Derisk)'!$H$87:$H$94,0)),"")) ->  | H15: =IF(H12="","",IFERROR(INDEX('Financial Planning (Derisk)'!$C$87:$C$94,MATCH(H12,'Financial Planning (Derisk)'!$H$87:$H$94,0)),"")) ->  | I15: =IF(I12="","",IFERROR(INDEX('Financial Planning (Derisk)'!$C$87:$C$94,MATCH(I12,'Financial Planning (Derisk)'!$H$87:$H$94,0)),"")) ->  | J15: =IF(J12="","",IFERROR(INDEX('Financial Planning (Derisk)'!$C$87:$C$94,MATCH(J12,'Financial Planning (Derisk)'!$H$87:$H$94,0)),"")) ->  | K15: =IF(K12="","",IFERROR(INDEX('Financial Planning (Derisk)'!$C$87:$C$94,MATCH(K12,'Financial Planning (Derisk)'!$H$87:$H$94,0)),"")) -> DCCR (PDR) | L15: =IF(L12="","",IFERROR(INDEX('Financial Planning (Derisk)'!$C$87:$C$94,MATCH(L12,'Financial Planning (Derisk)'!$H$87:$H$94,0)),"")) ->  | M15: =IF(M12="","",IFERROR(INDEX('Financial Planning (Derisk)'!$C$87:$C$94,MATCH(M12,'Financial Planning (Derisk)'!$H$87:$H$94,0)),"")) ->  | N15: =IF(N12="","",IFERROR(INDEX('Financial Planning (Derisk)'!$C$87:$C$94,MATCH(N12,'Financial Planning (Derisk)'!$H$87:$H$94,0)),"")) ->  | O15: =IF(O12="","",IFERROR(INDEX('Financial Planning (Derisk)'!$C$87:$C$94,MATCH(O12,'Financial Planning (Derisk)'!$H$87:$H$94,0)),"")) ->  | P15: =IF(P12="","",IFERROR(INDEX('Financial Planning (Derisk)'!$C$87:$C$94,MATCH(P12,'Financial Planning (Derisk)'!$H$87:$H$94,0)),"")) ->  | Q15: =IF(Q12="","",IFERROR(INDEX('Financial Planning (Derisk)'!$C$87:$C$94,MATCH(Q12,'Financial Planning (Derisk)'!$H$87:$H$94,0)),"")) ->  | R15: =IF(R12="","",IFERROR(INDEX('Financial Planning (Derisk)'!$C$87:$C$94,MATCH(R12,'Financial Planning (Derisk)'!$H$87:$H$94,0)),"")) ->  | S15: =IF(S12="","",IFERROR(INDEX('Financial Planning (Derisk)'!$C$87:$C$94,MATCH(S12,'Financial Planning (Derisk)'!$H$87:$H$94,0)),"")) ->  | T15: =IF(T12="","",IFERROR(INDEX('Financial Planning (Derisk)'!$C$87:$C$94,MATCH(T12,'Financial Planning (Derisk)'!$H$87:$H$94,0)),"")) ->  | U15: =IF(U12="","",IFERROR(INDEX('Financial Planning (Derisk)'!$C$87:$C$94,MATCH(U12,'Financial Planning (Derisk)'!$H$87:$H$94,0)),"")) ->  | V15: =IF(V12="","",IFERROR(INDEX('Financial Planning (Derisk)'!$C$87:$C$94,MATCH(V12,'Financial Planning (Derisk)'!$H$87:$H$94,0)),"")) ->  | W15: =IF(W12="","",IFERROR(INDEX('Financial Planning (Derisk)'!$C$87:$C$94,MATCH(W12,'Financial Planning (Derisk)'!$H$87:$H$94,0)),"")) ->  | X15: =IF(X12="","",IFERROR(INDEX('Financial Planning (Derisk)'!$C$87:$C$94,MATCH(X12,'Financial Planning (Derisk)'!$H$87:$H$94,0)),"")) ->  | Y15: =IF(Y12="","",IFERROR(INDEX('Financial Planning (Derisk)'!$C$87:$C$94,MATCH(Y12,'Financial Planning (Derisk)'!$H$87:$H$94,0)),"")) ->  | Z15: =IF(Z12="","",IFERROR(INDEX('Financial Planning (Derisk)'!$C$87:$C$94,MATCH(Z12,'Financial Planning (Derisk)'!$H$87:$H$94,0)),"")) ->  | AA15: =IF(AA12="","",IFERROR(INDEX('Financial Planning (Derisk)'!$C$87:$C$94,MATCH(AA12,'Financial Planning (Derisk)'!$H$87:$H$94,0)),"")) ->  | AB15: =IF(AB12="","",IFERROR(INDEX('Financial Planning (Derisk)'!$C$87:$C$94,MATCH(AB12,'Financial Planning (Derisk)'!$H$87:$H$94,0)),"")) ->  | AC15: =IF(AC12="","",IFERROR(INDEX('Financial Planning (Derisk)'!$C$87:$C$94,MATCH(AC12,'Financial Planning (Derisk)'!$H$87:$H$94,0)),"")) ->  | AD15: =IF(AD12="","",IFERROR(INDEX('Financial Planning (Derisk)'!$C$87:$C$94,MATCH(AD12,'Financial Planning (Derisk)'!$H$87:$H$94,0)),"")) ->  | AE15: =IF(AE12="","",IFERROR(INDEX('Financial Planning (Derisk)'!$C$87:$C$94,MATCH(AE12,'Financial Planning (Derisk)'!$H$87:$H$94,0)),"")) ->  | AF15: =IF(AF12="","",IFERROR(INDEX('Financial Planning (Derisk)'!$C$87:$C$94,MATCH(AF12,'Financial Planning (Derisk)'!$H$87:$H$94,0)),"")) -> 
B16: 2. EXPENDITURES PER PERIOD | C16: =IF(C12="","",C44) -> 7.116370833 | D16: 7.116370833 | E16: 15.83654583 | F16: 14.65319583 | G16: 14.65319583 | H16: 14.65319583 | I16: 18.34238333 | J16: 18.34238333 | K16: 18.34238333
B17: CUMULATIVE EXPENDITURES | C17: =IF(C12="","",C16) -> 7.116370833 | D17: =IF(D12="","",C17+D16) -> 14.23274167 | E17: =IF(E12="","",D17+E16) -> 30.0692875 | F17: 44.72248333 | G17: 59.37567917 | H17: 74.028875 | I17: 92.37125833 | J17: 110.7136417 | K17: 129.056025 | M17: =IF(M12="","",L17+M16) ->  | N17: =IF(N12="","",M17+N16) ->  | O17: =IF(O12="","",N17+O16) ->  | P17: =IF(P12="","",O17+P16) ->  | Q17: =IF(Q12="","",P17+Q16) ->  | R17: =IF(R12="","",Q17+R16) ->  | S17: =IF(S12="","",R17+S16) ->  | T17: =IF(T12="","",S17+T16) ->  | U17: =IF(U12="","",T17+U16) ->  | V17: =IF(V12="","",U17+V16) ->  | W17: =IF(W12="","",V17+W16) ->  | X17: =IF(X12="","",W17+X16) ->  | Y17: =IF(Y12="","",X17+Y16) ->  | Z17: =IF(Z12="","",Y17+Z16) ->  | AA17: =IF(AA12="","",Z17+AA16) ->  | AB17: =IF(AB12="","",AA17+AB16) ->  | AC17: =IF(AC12="","",AB17+AC16) ->  | AD17: =IF(AD12="","",AC17+AD16) ->  | AE17: =IF(AE12="","",AD17+AE16) ->  | AF17: =IF(AF12="","",AE17+AF16) -> 
B18: ESA COVERED CUMULATIVE EXPENDITURES | C18: =IF(C12="","",C17*$E$10) -> 5.337278125 | D18: =IF(D12="","",D17*$E$10) -> 10.67455625 | E18: 22.55196562 | F18: 33.5418625 | G18: 44.53175937 | H18: 55.52165625 | I18: 69.27844375 | J18: 83.03523125 | K18: 96.79201875
B19: 3. PAYMENT PLAN PER PERIOD | C19: =IF(C12=1,IF(APR="Yes",'Financial Planning (Derisk)'!$F$95/1000,0),IFERROR(INDEX('Financial Planning (Derisk)'!$I$87:$I$94/1000,MATCH(C$15,'Financial Planning (Derisk)'!$C$87:$C$94,0)),IF(C12="","",0))) -> 33.8772 | D19: =IF(D12=1,IF(APR="Yes",'Financial Planning (Derisk)'!$F$95/1000,0),IFERROR(INDEX('Financial Planning (Derisk)'!$I$87:$I$94/1000,MATCH(D$15,'Financial Planning (Derisk)'!$C$87:$C$94,0)),IF(D12="","",0))) -> 0 | E19: =IF(E12=1,IF(APR="Yes",'Financial Planning (Derisk)'!$F$95/1000,0),IFERROR(INDEX('Financial Planning (Derisk)'!$I$87:$I$94/1000,MATCH(E$15,'Financial Planning (Derisk)'!$C$87:$C$94,0)),IF(E12="","",0))) -> 21.7782 | F19: =IF(F12=1,IF(APR="Yes",'Financial Planning (Derisk)'!$F$95/1000,0),IFERROR(INDEX('Financial Planning (Derisk)'!$I$87:$I$94/1000,MATCH(F$15,'Financial Planning (Derisk)'!$C$87:$C$94,0)),IF(F12="","",0))) -> 0 | G19: =IF(G12=1,IF(APR="Yes",'Financial Planning (Derisk)'!$F$95/1000,0),IFERROR(INDEX('Financial Planning (Derisk)'!$I$87:$I$94/1000,MATCH(G$15,'Financial Planning (Derisk)'!$C$87:$C$94,0)),IF(G12="","",0))) -> 0 | H19: =IF(H12=1,IF(APR="Yes",'Financial Planning (Derisk)'!$F$95/1000,0),IFERROR(INDEX('Financial Planning (Derisk)'!$I$87:$I$94/1000,MATCH(H$15,'Financial Planning (Derisk)'!$C$87:$C$94,0)),IF(H12="","",0))) -> 0 | I19: =IF(I12=1,IF(APR="Yes",'Financial Planning (Derisk)'!$F$95/1000,0),IFERROR(INDEX('Financial Planning (Derisk)'!$I$87:$I$94/1000,MATCH(I$15,'Financial Planning (Derisk)'!$C$87:$C$94,0)),IF(I12="","",0))) -> 0 | J19: =IF(J12=1,IF(APR="Yes",'Financial Planning (Derisk)'!$F$95/1000,0),IFERROR(INDEX('Financial Planning (Derisk)'!$I$87:$I$94/1000,MATCH(J$15,'Financial Planning (Derisk)'!$C$87:$C$94,0)),IF(J12="","",0))) -> 0 | K19: =IF(K12=1,IF(APR="Yes",'Financial Planning (Derisk)'!$F$95/1000,0),IFERROR(INDEX('Financial Planning (Derisk)'!$I$87:$I$94/1000,MATCH(K$15,'Financial Planning (Derisk)'!$C$87:$C$94,0)),IF(K12="","",0))) -> 41.1366 | L19: =IF(L12=1,IF(APR="Yes",'Financial Planning (Derisk)'!$F$95/1000,0),IFERROR(INDEX('Financial Planning (Derisk)'!$I$87:$I$94/1000,MATCH(L$15,'Financial Planning (Derisk)'!$C$87:$C$94,0)),IF(L12="","",0))) ->  | M19: =IF(M12=1,IF(APR="Yes",'Financial Planning (Derisk)'!$F$95/1000,0),IFERROR(INDEX('Financial Planning (Derisk)'!$I$87:$I$94/1000,MATCH(M$15,'Financial Planning (Derisk)'!$C$87:$C$94,0)),IF(M12="","",0))) ->  | N19: =IF(N12=1,IF(APR="Yes",'Financial Planning (Derisk)'!$F$95/1000,0),IFERROR(INDEX('Financial Planning (Derisk)'!$I$87:$I$94/1000,MATCH(N$15,'Financial Planning (Derisk)'!$C$87:$C$94,0)),IF(N12="","",0))) ->  | O19: =IF(O12=1,IF(APR="Yes",'Financial Planning (Derisk)'!$F$95/1000,0),IFERROR(INDEX('Financial Planning (Derisk)'!$I$87:$I$94/1000,MATCH(O$15,'Financial Planning (Derisk)'!$C$87:$C$94,0)),IF(O12="","",0))) ->  | P19: =IF(P12=1,IF(APR="Yes",'Financial Planning (Derisk)'!$F$95/1000,0),IFERROR(INDEX('Financial Planning (Derisk)'!$I$87:$I$94/1000,MATCH(P$15,'Financial Planning (Derisk)'!$C$87:$C$94,0)),IF(P12="","",0))) ->  | Q19: =IF(Q12=1,IF(APR="Yes",'Financial Planning (Derisk)'!$F$95/1000,0),IFERROR(INDEX('Financial Planning (Derisk)'!$I$87:$I$94/1000,MATCH(Q$15,'Financial Planning (Derisk)'!$C$87:$C$94,0)),IF(Q12="","",0))) ->  | R19: =IF(R12=1,IF(APR="Yes",'Financial Planning (Derisk)'!$F$95/1000,0),IFERROR(INDEX('Financial Planning (Derisk)'!$I$87:$I$94/1000,MATCH(R$15,'Financial Planning (Derisk)'!$C$87:$C$94,0)),IF(R12="","",0))) ->  | S19: =IF(S12=1,IF(APR="Yes",'Financial Planning (Derisk)'!$F$95/1000,0),IFERROR(INDEX('Financial Planning (Derisk)'!$I$87:$I$94/1000,MATCH(S$15,'Financial Planning (Derisk)'!$C$87:$C$94,0)),IF(S12="","",0))) ->  | T19: =IF(T12=1,IF(APR="Yes",'Financial Planning (Derisk)'!$F$95/1000,0),IFERROR(INDEX('Financial Planning (Derisk)'!$I$87:$I$94/1000,MATCH(T$15,'Financial Planning (Derisk)'!$C$87:$C$94,0)),IF(T12="","",0))) ->  | U19: =IF(U12=1,IF(APR="Yes",'Financial Planning (Derisk)'!$F$95/1000,0),IFERROR(INDEX('Financial Planning (Derisk)'!$I$87:$I$94/1000,MATCH(U$15,'Financial Planning (Derisk)'!$C$87:$C$94,0)),IF(U12="","",0))) ->  | V19: =IF(V12=1,IF(APR="Yes",'Financial Planning (Derisk)'!$F$95/1000,0),IFERROR(INDEX('Financial Planning (Derisk)'!$I$87:$I$94/1000,MATCH(V$15,'Financial Planning (Derisk)'!$C$87:$C$94,0)),IF(V12="","",0))) ->  | W19: =IF(W12=1,IF(APR="Yes",'Financial Planning (Derisk)'!$F$95/1000,0),IFERROR(INDEX('Financial Planning (Derisk)'!$I$87:$I$94/1000,MATCH(W$15,'Financial Planning (Derisk)'!$C$87:$C$94,0)),IF(W12="","",0))) ->  | X19: =IF(X12=1,IF(APR="Yes",'Financial Planning (Derisk)'!$F$95/1000,0),IFERROR(INDEX('Financial Planning (Derisk)'!$I$87:$I$94/1000,MATCH(X$15,'Financial Planning (Derisk)'!$C$87:$C$94,0)),IF(X12="","",0))) ->  | Y19: =IF(Y12=1,IF(APR="Yes",'Financial Planning (Derisk)'!$F$95/1000,0),IFERROR(INDEX('Financial Planning (Derisk)'!$I$87:$I$94/1000,MATCH(Y$15,'Financial Planning (Derisk)'!$C$87:$C$94,0)),IF(Y12="","",0))) ->  | Z19: =IF(Z12=1,IF(APR="Yes",'Financial Planning (Derisk)'!$F$95/1000,0),IFERROR(INDEX('Financial Planning (Derisk)'!$I$87:$I$94/1000,MATCH(Z$15,'Financial Planning (Derisk)'!$C$87:$C$94,0)),IF(Z12="","",0))) ->  | AA19: =IF(AA12=1,IF(APR="Yes",'Financial Planning (Derisk)'!$F$95/1000,0),IFERROR(INDEX('Financial Planning (Derisk)'!$I$87:$I$94/1000,MATCH(AA$15,'Financial Planning (Derisk)'!$C$87:$C$94,0)),IF(AA12="","",0))) ->  | AB19: =IF(AB12=1,IF(APR="Yes",'Financial Planning (Derisk)'!$F$95/1000,0),IFERROR(INDEX('Financial Planning (Derisk)'!$I$87:$I$94/1000,MATCH(AB$15,'Financial Planning (Derisk)'!$C$87:$C$94,0)),IF(AB12="","",0))) ->  | AC19: =IF(AC12=1,IF(APR="Yes",'Financial Planning (Derisk)'!$F$95/1000,0),IFERROR(INDEX('Financial Planning (Derisk)'!$I$87:$I$94/1000,MATCH(AC$15,'Financial Planning (Derisk)'!$C$87:$C$94,0)),IF(AC12="","",0))) ->  | AD19: =IF(AD12=1,IF(APR="Yes",'Financial Planning (Derisk)'!$F$95/1000,0),IFERROR(INDEX('Financial Planning (Derisk)'!$I$87:$I$94/1000,MATCH(AD$15,'Financial Planning (Derisk)'!$C$87:$C$94,0)),IF(AD12="","",0))) ->  | AE19: =IF(AE12=1,IF(APR="Yes",'Financial Planning (Derisk)'!$F$95/1000,0),IFERROR(INDEX('Financial Planning (Derisk)'!$I$87:$I$94/1000,MATCH(AE$15,'Financial Planning (Derisk)'!$C$87:$C$94,0)),IF(AE12="","",0))) ->  | AF19: =IF(AF12=1,IF(APR="Yes",'Financial Planning (Derisk)'!$F$95/1000,0),IFERROR(INDEX('Financial Planning (Derisk)'!$I$87:$I$94/1000,MATCH(AF$15,'Financial Planning (Derisk)'!$C$87:$C$94,0)),IF(AF12="","",0))) -> 
B20: CUMULATIVE PAYMENTS | C20: =IF(C12="","",C19) -> 33.8772 | D20: =IF(D12="","",C20+D19) -> 33.8772 | E20: =IF(E12="","",D20+E19) -> 55.6554 | F20: 55.6554 | G20: 55.6554 | H20: 55.6554 | I20: 55.6554 | J20: 55.6554 | K20: 96.792 | M20: =IF(M12="","",L20+M19) ->  | N20: =IF(N12="","",M20+N19) ->  | O20: =IF(O12="","",N20+O19) ->  | P20: =IF(P12="","",O20+P19) ->  | Q20: =IF(Q12="","",P20+Q19) ->  | R20: =IF(R12="","",Q20+R19) ->  | S20: =IF(S12="","",R20+S19) ->  | T20: =IF(T12="","",S20+T19) ->  | U20: =IF(U12="","",T20+U19) ->  | V20: =IF(V12="","",U20+V19) ->  | W20: =IF(W12="","",V20+W19) ->  | X20: =IF(X12="","",W20+X19) ->  | Y20: =IF(Y12="","",X20+Y19) ->  | Z20: =IF(Z12="","",Y20+Z19) ->  | AA20: =IF(AA12="","",Z20+AA19) ->  | AB20: =IF(AB12="","",AA20+AB19) ->  | AC20: =IF(AC12="","",AB20+AC19) ->  | AD20: =IF(AD12="","",AC20+AD19) ->  | AE20: =IF(AE12="","",AD20+AE19) ->  | AF20: =IF(AF12="","",AE20+AF19) -> 
B21: 4. DEVIATION
B22: ESA COVERED CUMULATIVE EXPENDITURES VS. MPP | C22: =IF(C12="","",C24-C18) -> -5.337278125 | D22: =IF(D12="","",IF(D23=0,SUM($C$24:D24)-D18,D24-D18)) -> -10.67455625 | E22: =IF(E12="","",IF(E23=0,SUM($C$24:E24)-E18,E24-E18)) -> 16.16483438 | F22: =IF(F12="","",IF(F23=0,SUM($C$24:F24)-F18,F24-F18)) -> 5.1749375 | G22: =IF(G12="","",IF(G23=0,SUM($C$24:G24)-G18,G24-G18)) -> -5.814959375 | H22: =IF(H12="","",IF(H23=0,SUM($C$24:H24)-H18,H24-H18)) -> -16.80485625 | I22: =IF(I12="","",IF(I23=0,SUM($C$24:I24)-I18,I24-I18)) -> -30.56164375 | J22: =IF(J12="","",IF(J23=0,SUM($C$24:J24)-J18,J24-J18)) -> -44.31843125 | K22: =IF(K12="","",IF(K23=0,SUM($C$24:K24)-K18,K24-K18)) -> -1.874999998e-05 | L22: =IF(L12="","",IF(L23=0,SUM($C$24:L24)-L18,L24-L18)) ->  | M22: =IF(M12="","",IF(M23=0,SUM($C$24:M24)-M18,M24-M18)) ->  | N22: =IF(N12="","",IF(N23=0,SUM($C$24:N24)-N18,N24-N18)) ->  | O22: =IF(O12="","",IF(O23=0,SUM($C$24:O24)-O18,O24-O18)) ->  | P22: =IF(P12="","",IF(P23=0,SUM($C$24:P24)-P18,P24-P18)) ->  | Q22: =IF(Q12="","",IF(Q23=0,SUM($C$24:Q24)-Q18,Q24-Q18)) ->  | R22: =IF(R12="","",IF(R23=0,SUM($C$24:R24)-R18,R24-R18)) ->  | S22: =IF(S12="","",IF(S23=0,SUM($C$24:S24)-S18,S24-S18)) ->  | T22: =IF(T12="","",IF(T23=0,SUM($C$24:T24)-T18,T24-T18)) ->  | U22: =IF(U12="","",IF(U23=0,SUM($C$24:U24)-U18,U24-U18)) ->  | V22: =IF(V12="","",IF(V23=0,SUM($C$24:V24)-V18,V24-V18)) ->  | W22: =IF(W12="","",IF(W23=0,SUM($C$24:W24)-W18,W24-W18)) ->  | X22: =IF(X12="","",IF(X23=0,SUM($C$24:X24)-X18,X24-X18)) ->  | Y22: =IF(Y12="","",IF(Y23=0,SUM($C$24:Y24)-Y18,Y24-Y18)) ->  | Z22: =IF(Z12="","",IF(Z23=0,SUM($C$24:Z24)-Z18,Z24-Z18)) ->  | AA22: =IF(AA12="","",IF(AA23=0,SUM($C$24:AA24)-AA18,AA24-AA18)) ->  | AB22: =IF(AB12="","",IF(AB23=0,SUM($C$24:AB24)-AB18,AB24-AB18)) ->  | AC22: =IF(AC12="","",IF(AC23=0,SUM($C$24:AC24)-AC18,AC24-AC18)) ->  | AD22: =IF(AD12="","",IF(AD23=0,SUM($C$24:AD24)-AD18,AD24-AD18)) ->  | AE22: =IF(AE12="","",IF(AE23=0,SUM($C$24:AE24)-AE18,AE24-AE18)) ->  | AF22: =IF(AF12="","",IF(AF23=0,SUM($C$24:AF24)-AF18,AF24-AF18)) -> 
B23: 5. ESA MPP | C23: =IF(C12="","",IFERROR(INDEX('Financial Planning (Derisk)'!$E$87:$E$94,MATCH(C15,'Financial Planning (Derisk)'!$C$87:$C$94,0))/1000,0)) -> 0 | D23: =IF(D12="","",IFERROR(INDEX('Financial Planning (Derisk)'!$E$87:$E$94,MATCH(D15,'Financial Planning (Derisk)'!$C$87:$C$94,0))/1000,0)) -> 0 | E23: =IF(E12="","",IFERROR(INDEX('Financial Planning (Derisk)'!$E$87:$E$94,MATCH(E15,'Financial Planning (Derisk)'!$C$87:$C$94,0))/1000,0)) -> 38.7168 | F23: =IF(F12="","",IFERROR(INDEX('Financial Planning (Derisk)'!$E$87:$E$94,MATCH(F15,'Financial Planning (Derisk)'!$C$87:$C$94,0))/1000,0)) -> 0 | G23: =IF(G12="","",IFERROR(INDEX('Financial Planning (Derisk)'!$E$87:$E$94,MATCH(G15,'Financial Planning (Derisk)'!$C$87:$C$94,0))/1000,0)) -> 0 | H23: =IF(H12="","",IFERROR(INDEX('Financial Planning (Derisk)'!$E$87:$E$94,MATCH(H15,'Financial Planning (Derisk)'!$C$87:$C$94,0))/1000,0)) -> 0 | I23: =IF(I12="","",IFERROR(INDEX('Financial Planning (Derisk)'!$E$87:$E$94,MATCH(I15,'Financial Planning (Derisk)'!$C$87:$C$94,0))/1000,0)) -> 0 | J23: =IF(J12="","",IFERROR(INDEX('Financial Planning (Derisk)'!$E$87:$E$94,MATCH(J15,'Financial Planning (Derisk)'!$C$87:$C$94,0))/1000,0)) -> 0 | K23: =IF(K12="","",IFERROR(INDEX('Financial Planning (Derisk)'!$E$87:$E$94,MATCH(K15,'Financial Planning (Derisk)'!$C$87:$C$94,0))/1000,0)) -> 58.0752 | L23: =IF(L12="","",IFERROR(INDEX('Financial Planning (Derisk)'!$E$87:$E$94,MATCH(L15,'Financial Planning (Derisk)'!$C$87:$C$94,0))/1000,0)) ->  | M23: =IF(M12="","",IFERROR(INDEX('Financial Planning (Derisk)'!$E$87:$E$94,MATCH(M15,'Financial Planning (Derisk)'!$C$87:$C$94,0))/1000,0)) ->  | N23: =IF(N12="","",IFERROR(INDEX('Financial Planning (Derisk)'!$E$87:$E$94,MATCH(N15,'Financial Planning (Derisk)'!$C$87:$C$94,0))/1000,0)) ->  | O23: =IF(O12="","",IFERROR(INDEX('Financial Planning (Derisk)'!$E$87:$E$94,MATCH(O15,'Financial Planning (Derisk)'!$C$87:$C$94,0))/1000,0)) ->  | P23: =IF(P12="","",IFERROR(INDEX('Financial Planning (Derisk)'!$E$87:$E$94,MATCH(P15,'Financial Planning (Derisk)'!$C$87:$C$94,0))/1000,0)) ->  | Q23: =IF(Q12="","",IFERROR(INDEX('Financial Planning (Derisk)'!$E$87:$E$94,MATCH(Q15,'Financial Planning (Derisk)'!$C$87:$C$94,0))/1000,0)) ->  | R23: =IF(R12="","",IFERROR(INDEX('Financial Planning (Derisk)'!$E$87:$E$94,MATCH(R15,'Financial Planning (Derisk)'!$C$87:$C$94,0))/1000,0)) ->  | S23: =IF(S12="","",IFERROR(INDEX('Financial Planning (Derisk)'!$E$87:$E$94,MATCH(S15,'Financial Planning (Derisk)'!$C$87:$C$94,0))/1000,0)) ->  | T23: =IF(T12="","",IFERROR(INDEX('Financial Planning (Derisk)'!$E$87:$E$94,MATCH(T15,'Financial Planning (Derisk)'!$C$87:$C$94,0))/1000,0)) ->  | U23: =IF(U12="","",IFERROR(INDEX('Financial Planning (Derisk)'!$E$87:$E$94,MATCH(U15,'Financial Planning (Derisk)'!$C$87:$C$94,0))/1000,0)) ->  | V23: =IF(V12="","",IFERROR(INDEX('Financial Planning (Derisk)'!$E$87:$E$94,MATCH(V15,'Financial Planning (Derisk)'!$C$87:$C$94,0))/1000,0)) ->  | W23: =IF(W12="","",IFERROR(INDEX('Financial Planning (Derisk)'!$E$87:$E$94,MATCH(W15,'Financial Planning (Derisk)'!$C$87:$C$94,0))/1000,0)) ->  | X23: =IF(X12="","",IFERROR(INDEX('Financial Planning (Derisk)'!$E$87:$E$94,MATCH(X15,'Financial Planning (Derisk)'!$C$87:$C$94,0))/1000,0)) ->  | Y23: =IF(Y12="","",IFERROR(INDEX('Financial Planning (Derisk)'!$E$87:$E$94,MATCH(Y15,'Financial Planning (Derisk)'!$C$87:$C$94,0))/1000,0)) ->  | Z23: =IF(Z12="","",IFERROR(INDEX('Financial Planning (Derisk)'!$E$87:$E$94,MATCH(Z15,'Financial Planning (Derisk)'!$C$87:$C$94,0))/1000,0)) ->  | AA23: =IF(AA12="","",IFERROR(INDEX('Financial Planning (Derisk)'!$E$87:$E$94,MATCH(AA15,'Financial Planning (Derisk)'!$C$87:$C$94,0))/1000,0)) ->  | AB23: =IF(AB12="","",IFERROR(INDEX('Financial Planning (Derisk)'!$E$87:$E$94,MATCH(AB15,'Financial Planning (Derisk)'!$C$87:$C$94,0))/1000,0)) ->  | AC23: =IF(AC12="","",IFERROR(INDEX('Financial Planning (Derisk)'!$E$87:$E$94,MATCH(AC15,'Financial Planning (Derisk)'!$C$87:$C$94,0))/1000,0)) ->  | AD23: =IF(AD12="","",IFERROR(INDEX('Financial Planning (Derisk)'!$E$87:$E$94,MATCH(AD15,'Financial Planning (Derisk)'!$C$87:$C$94,0))/1000,0)) ->  | AE23: =IF(AE12="","",IFERROR(INDEX('Financial Planning (Derisk)'!$E$87:$E$94,MATCH(AE15,'Financial Planning (Derisk)'!$C$87:$C$94,0))/1000,0)) ->  | AF23: =IF(AF12="","",IFERROR(INDEX('Financial Planning (Derisk)'!$E$87:$E$94,MATCH(AF15,'Financial Planning (Derisk)'!$C$87:$C$94,0))/1000,0)) -> 
B24: CUMULATIVE ESA MPP | C24: =IF(C12="","",C23) -> 0 | D24: =IF(D12="","",IF(D23<>0,SUM($C$24:D24),0)) -> 0 | E24: =IF(E12="","",IF(E23<>0,E23+SUM($C$24:D24),0)) -> 38.7168 | F24: =IF(F12="","",IF(F23<>0,F23+SUM($C$24:E24),0)) -> 0 | G24: =IF(G12="","",IF(G23<>0,G23+SUM($C$24:F24),0)) -> 0 | H24: =IF(H12="","",IF(H23<>0,H23+SUM($C$24:G24),0)) -> 0 | I24: =IF(I12="","",IF(I23<>0,I23+SUM($C$24:H24),0)) -> 0 | J24: =IF(J12="","",IF(J23<>0,J23+SUM($C$24:I24),0)) -> 0 | K24: =IF(K12="","",IF(K23<>0,K23+SUM($C$24:J24),0)) -> 96.792 | L24: =IF(L12="","",IF(L23<>0,L23+SUM($C$24:K24),0)) ->  | M24: =IF(M12="","",IF(M23<>0,M23+SUM($C$24:L24),0)) ->  | N24: =IF(N12="","",IF(N23<>0,N23+SUM($C$24:M24),0)) ->  | O24: =IF(O12="","",IF(O23<>0,O23+SUM($C$24:N24),0)) ->  | P24: =IF(P12="","",IF(P23<>0,P23+SUM($C$24:O24),0)) ->  | Q24: =IF(Q12="","",IF(Q23<>0,Q23+SUM($C$24:P24),0)) ->  | R24: =IF(R12="","",IF(R23<>0,R23+SUM($C$24:Q24),0)) ->  | S24: =IF(S12="","",IF(S23<>0,S23+SUM($C$24:R24),0)) ->  | T24: =IF(T12="","",IF(T23<>0,T23+SUM($C$24:S24),0)) ->  | U24: =IF(U12="","",IF(U23<>0,U23+SUM($C$24:T24),0)) ->  | V24: =IF(V12="","",IF(V23<>0,V23+SUM($C$24:U24),0)) ->  | W24: =IF(W12="","",IF(W23<>0,W23+SUM($C$24:V24),0)) ->  | X24: =IF(X12="","",IF(X23<>0,X23+SUM($C$24:W24),0)) ->  | Y24: =IF(Y12="","",IF(Y23<>0,Y23+SUM($C$24:X24),0)) ->  | Z24: =IF(Z12="","",IF(Z23<>0,Z23+SUM($C$24:Y24),0)) ->  | AA24: =IF(AA12="","",IF(AA23<>0,AA23+SUM($C$24:Z24),0)) ->  | AB24: =IF(AB12="","",IF(AB23<>0,AB23+SUM($C$24:AA24),0)) ->  | AC24: =IF(AC12="","",IF(AC23<>0,AC23+SUM($C$24:AB24),0)) ->  | AD24: =IF(AD12="","",IF(AD23<>0,AD23+SUM($C$24:AC24),0)) ->  | AE24: =IF(AE12="","",IF(AE23<>0,AE23+SUM($C$24:AD24),0)) ->  | AF24: =IF(AF12="","",IF(AF23<>0,AF23+SUM($C$24:AE24),0)) -> 
